Workbook

Sheet Guidance
H33: 8109

Sheet kT to TJ
A1: Conversion of energy balance from mass units (Mt and million cubic meters) to energy units (TJ)
A2: =+assumptions!B2 -> Country X | B2: =+assumptions!B3 -> 2015
A4: Mass units | B4: LPG | C4: Gasoline | D4: Jet Fuel | E4: Diesel | F4: HFO | G4: Kerosene and other | H4: Total oil products | I4: Coal | J4: Lignite | K4: Gas | L4: Coke | M4: Petrocoke
A5: Unit | B5: Mt | C5: Mt | D5: Mt | E5: Mt | F5: Mt | G5: Mt | H5: Mt | I5: Mt | J5: Mt | K5: mcm | L5: Mt | M5: Mt
A6: Total | B6: =+B7+B8 -> 3.995 | C6: =+C7+C8 -> 2.028 | D6: 1.319 | E6: 20.131 | F6: 0.468 | G6: 0.058 | H6: 27.999 | I6: 28.263 | J6: 56.406 | K6: 44508 | L6: 4.935 | M6: 4.092
A7: Fossil power plants | E7: 0.238 | F7: 0.227 | H7: =SUM(B7:G7) -> 0.465 | I7: 16.071 | J7: =48.755+0.492 -> 49.247 | K7: 19607
A8: FINAL CONSUMPTION | B8: =SUM(B9:B28) -> 3.995 | C8: =SUM(C9:C28) -> 2.028 | D8: 1.319 | E8: 19.893 | F8: 0.241 | G8: 0.058 | H8: 27.534 | I8: =SUM(I9:I28) -> 12.192 | J8: =SUM(J9:J28) -> 7.159 | K8: 24901 | L8: =SUM(L9:L28) -> 4.935 | M8: =SUM(M9:M28) -> 4.092
A9: Industry - steel | E9: =0.016+0.001 -> 0.017 | H9: =SUM(B9:G9) -> 0.017 | I9: =0.017 -> 0.017 | J9: 0.026 | K9: =203+27 -> 230
A10: Industry - chemical | B10: 0.009 | E10: 0.004 | F10: 0.003 | H10: 0.016 | I10: 0.394 | J10: 0.325 | K10: 2590
A11: Industry - non metallic mineral | B11: 0.003 | E11: 0.024 | F11: 0.018 | H11: 0.045 | I11: 3.307 | J11: =1.106+0.3 -> 1.406 | K11: 1884 | M11: 4.085
A12: Industry - food processing and beverage | B12: 0.02 | E12: 0.006 | F12: 0.037 | H12: 0.063 | I12: 0.228 | J12: 0.787 | K12: 982 | L12: 0.049 | M12: 0.007
A13: Industry - construction | E13: 0.147 | H13: 0.147 | I13: 0.001 | J13: 0.003 | K13: 360
A14: Industry - mining | E14: 0.376 | H14: 0.376 | I14: 0.019 | J14: 0.094 | K14: 130
A15: Industry - machinery | B15: 0.005 | E15: 0.003 | H15: 0.008 | I15: 0.003 | J15: 0.017 | K15: 69
A16: Industry - non ferrous metals | B16: 0.037 | E16: 0.013 | H16: 0.05 | I16: 1.086 | J16: 0.068 | K16: 2057 | L16: 4.838
A17: Industry - paper and pulp | B17: 0.001 | E17: 0.01 | H17: 0.011 | I17: 0.043 | J17: 0.202 | K17: 222
A18: Industry - transport equipment | B18: 0.023 | E18: 0.007 | H18: 0.03 | J18: 0.008 | K18: 178
A19: Industry - textile and leather | B19: 0.012 | E19: 0.006 | H19: 0.018 | I19: 0.355 | J19: 1.086 | K19: 1198
A20: Industry - miscellaneous | H20: 0 | J20: 0.001 | K20: 621
A21: Transport - road | B21: 3.069 | C21: 2.028 | E21: 16.428 | H21: 21.525 | K21: 86
A22: Transport - rail | E22: 0.135 | H22: 0.135
A23: Transport - domestic air | D23: 1.319 | H23: 1.319
A24: Transport - navigation | F24: 0.183 | H24: 0.183
A25: Households | B25: 0.245 | G25: 0.058 | H25: 0.303 | I25: 1.516 | J25: =2.084+0.242 -> 2.326 | K25: 11000
A26: Services | B26: 0.571 | H26: 0.571 | I26: 5.223 | J26: 0.81 | K26: 3161 | L26: 0.048
A27: Agriculture & Fishery | E27: 2.717 | H27: 2.717 | K27: 133
A28: Non energy - chemical feedstocs | H28: 0
A33: TJ units | B33: LPG | C33: Gasoline | D33: Jet Fuel | E33: Diesel | F33: HFO | G33: Kerosene and other | H33: Total oil products | I33: Coal | J33: Lignite | K33: Gas | L33: Coke | M33: Petrocoke | N33: Total energy
A34: TJ/(kT or Mm3) | B34: =+assumptions!B22 -> 47.3 | C34: =+assumptions!C22 -> 44.8 | D34: =+assumptions!E22 -> 44.59 | E34: =+assumptions!F22 -> 43.33 | F34: =+assumptions!H22 -> 40.19 | G34: =+assumptions!I22 -> 44.75 | I34: =+assumptions!J22 -> 24.96 | J34: =+assumptions!M22 -> 18.3 | K34: =+assumptions!N22 -> 39 | L34: =+assumptions!K22 -> 28 | M34: =+assumptions!L22 -> 31 | N34: TJ
A35: Total | B35: =+B36+B37 -> 188963.5 | C35: =+C36+C37 -> 90854.4 | D35: 58814.21 | E35: 872276.23 | F35: 18808.92 | G35: 2595.5 | H35: 1232312.76 | I35: 705444.48 | J35: 1032229.8 | K35: 1735812 | L35: 138180 | M35: 126852 | N35: =SUM(H35:M35) -> 4970831.04
A36: Fossil power plants | B36: =B7*B$34*1000 -> 0 | C36: =C7*C$34*1000 -> 0 | D36: 0 | E36: 10312.54 | F36: 9123.13 | G36: 0 | H36: =SUM(B36:G36) -> 19435.67 | I36: =I7*I$34*1000 -> 401132.16 | J36: 901220.1 | K36: =K7*K$34 -> 764673 | L36: =L7*L$34*1000 -> 0 | M36: 0 | N36: =SUM(H36:M36) -> 2086460.93
A37: FINAL CONSUMPTION | B37: =SUM(B38:B57) -> 188963.5 | C37: =SUM(C38:C57) -> 90854.4 | D37: 58814.21 | E37: 861963.69 | F37: 9685.79 | G37: 2595.5 | H37: 1212877.09 | I37: 304312.32 | J37: =SUM(J38:J57) -> 131009.7 | K37: 971139 | L37: =SUM(L38:L57) -> 138180 | M37: =SUM(M38:M57) -> 126852 | N37: 2884370.11
A38: Industry - steel | B38: =B9*B$34*1000 -> 0 | C38: 0 | D38: 0 | E38: 736.61 | F38: 0 | G38: 0 | H38: =SUM(B38:G38) -> 736.61 | I38: =I9*I$34*1000 -> 424.32 | J38: 475.8 | K38: =K9*K$34 -> 8970 | L38: =L9*L$34*1000 -> 0 | M38: 0 | N38: 10606.73
A39: Industry - chemical | B39: 425.7 | C39: 0 | D39: 0 | E39: 173.32 | F39: 120.57 | G39: 0 | H39: 719.59 | I39: =I10*I$34*1000 -> 9834.24 | J39: 5947.5 | K39: 101010 | L39: 0 | M39: 0 | N39: 117511.33
A40: Industry - non metallic mineral | B40: 141.9 | C40: 0 | D40: 0 | E40: 1039.92 | F40: 723.42 | G40: 0 | H40: 1905.24 | I40: =I11*I$34*1000 -> 82542.72 | J40: 25729.8 | K40: 73476 | L40: 0 | M40: 126635 | N40: 310288.76
A41: Industry - food processing and beverage | B41: 946 | C41: 0 | D41: 0 | E41: 259.98 | F41: 1487.03 | G41: 0 | H41: 2693.01 | I41: =I12*I$34*1000 -> 5690.88 | J41: 14402.1 | K41: 38298 | L41: =L12*L$34*1000 -> 1372 | M41: =M12*M$34*1000 -> 217 | N41: 62672.99
A42: Industry - construction | B42: 0 | C42: 0 | D42: 0 | E42: 6369.51 | F42: 0 | G42: 0 | H42: 6369.51 | I42: =I13*I$34*1000 -> 24.96 | J42: 54.9 | K42: 14040 | L42: =L13*L$34*1000 -> 0 | M42: 0 | N42: 20489.37
A43: Industry - mining | B43: 0 | C43: 0 | D43: 0 | E43: 16292.08 | F43: 0 | G43: 0 | H43: 16292.08 | I43: =I14*I$34*1000 -> 474.24 | J43: 1720.2 | K43: 5070 | L43: 0 | M43: 0 | N43: 23556.52
A44: Industry - machinery | B44: 236.5 | C44: 0 | D44: 0 | E44: 129.99 | F44: 0 | G44: 0 | H44: 366.49 | I44: =I15*I$34*1000 -> 74.88 | J44: 311.1 | K44: 2691 | L44: 0 | M44: 0 | N44: 3443.47
A45: Industry - non ferrous metals | B45: 1750.1 | C45: 0 | D45: 0 | E45: 563.29 | F45: 0 | G45: 0 | H45: 2313.39 | I45: =I16*I$34*1000 -> 27106.56 | J45: 1244.4 | K45: 80223 | L45: 135464 | M45: 0 | N45: 246351.35
A46: Industry - paper and pulp | B46: 47.3 | C46: 0 | D46: 0 | E46: 433.3 | F46: 0 | G46: 0 | H46: 480.6 | I46: =I17*I$34*1000 -> 1073.28 | J46: 3696.6 | K46: 8658 | L46: 0 | M46: 0 | N46: 13908.48
A47: Industry - transport equipment | B47: 1087.9 | C47: 0 | D47: 0 | E47: 303.31 | F47: 0 | G47: 0 | H47: 1391.21 | I47: =I18*I$34*1000 -> 0 | J47: 146.4 | K47: 6942 | L47: 0 | M47: 0 | N47: 8479.61
A48: Industry - textile and leather | B48: 567.6 | C48: 0 | D48: 0 | E48: 259.98 | F48: 0 | G48: 0 | H48: 827.58 | I48: =I19*I$34*1000 -> 8860.8 | J48: 19873.8 | K48: 46722 | L48: 0 | M48: 0 | N48: 76284.18
A49: Industry - miscellaneous | B49: 0 | C49: 0 | D49: 0 | E49: 0 | F49: 0 | G49: 0 | H49: 0 | I49: =I20*I$34*1000 -> 0 | J49: 18.3 | K49: 24219 | L49: 0 | M49: 0 | N49: 24237.3
A50: Transport - road | B50: 145163.7 | C50: =C21*C$34*1000 -> 90854.4 | D50: 0 | E50: 711825.24 | F50: 0 | G50: 0 | H50: 947843.34 | I50: =I21*I$34*1000 -> 0 | J50: 0 | K50: 3354 | L50: 0 | M50: 0 | N50: 951197.34
A51: Transport - rail | B51: 0 | C51: 0 | D51: 0 | E51: 5849.55 | F51: 0 | G51: 0 | H51: 5849.55 | I51: =I22*I$34*1000 -> 0 | J51: 0 | K51: 0 | L51: 0 | M51: 0 | N51: 5849.55
A52: Transport - domestic air | B52: 0 | C52: 0 | D52: =D23*D$34*1000 -> 58814.21 | E52: 0 | F52: 0 | G52: 0 | H52: 58814.21 | I52: =I23*I$34*1000 -> 0 | J52: 0 | K52: 0 | L52: 0 | M52: 0 | N52: 58814.21
A53: Transport - navigation | B53: 0 | C53: 0 | D53: 0 | E53: 0 | F53: 7354.77 | G53: 0 | H53: 7354.77 | I53: =I24*I$34*1000 -> 0 | J53: 0 | K53: 0 | L53: 0 | M53: 0 | N53: 7354.77
A54: Households | B54: =B25*B$34*1000 -> 11588.5 | C54: =C25*C$34*1000 -> 0 | D54: 0 | E54: 0 | F54: 0 | G54: 2595.5 | H54: 14184 | I54: =I25*I$34*1000 -> 37839.36 | J54: 42565.8 | K54: 429000 | L54: 0 | M54: 0 | N54: 523589.16
A55: Services | B55: 27008.3 | C55: 0 | D55: 0 | E55: 0 | F55: 0 | G55: 0 | H55: 27008.3 | I55: =I26*I$34*1000 -> 130366.08 | J55: 14823 | K55: 123279 | L55: 1344 | M55: 0 | N55: 296820.38
A56: Agriculture & Fishery | B56: 0 | C56: 0 | D56: 0 | E56: 117727.61 | F56: 0 | G56: 0 | H56: 117727.61 | I56: =I27*I$34*1000 -> 0 | J56: 0 | K56: 5187 | L56: 0 | M56: 0 | N56: 122914.61
A57: Non energy - chemical feedstocs | B57: 0 | C57: 0 | D57: 0 | E57: 0 | F57: 0 | G57: 0 | H57: 0 | I57: =I28*I$34*1000 -> 0 | J57: 0 | K57: 0 | L57: 0 | M57: 0 | N57: 0

Sheet Start Year Balance
A1: Fossil fuel energy balance in TJ | B1: =+assumptions!$B$2 -> Country X | D1: =+assumptions!$B$3 -> 2015
A3: TJ units | B3: LPG | C3: Gasoline | D3: Jet Fuel | E3: Diesel | F3: HFO | G3: Kerosene and other | H3: Total oil products | I3: Coal | J3: Lignite | K3: Natural Gas | L3: Coke | M3: Petrocoke | N3: Total energy (fossil)
A4: Unit | B4: TJ | C4: TJ | D4: TJ | E4: TJ | F4: TJ | G4: TJ | H4: TJ | I4: TJ | J4: TJ | K4: TJ | L4: TJ | M4: TJ | N4: TJ
A5: Total | B5: =+B6+B7 -> 188963.5 | C5: =+C6+C7 -> 90854.4 | D5: 58814.21 | E5: 872276.23 | F5: 18808.92 | G5: 2595.5 | H5: =+H6+H7 -> 1232312.76 | I5: 791364 | J5: 1032229.8 | K5: 1735812 | L5: 138180 | M5: 126852 | N5: =SUM(H5:M5) -> 5056750.56
A6: Fossil power plants | B6: 0 | C6: 0 | D6: 0 | E6: 10312.54 | F6: 9123.13 | G6: 0 | H6: =SUM(B6:G6) -> 19435.67 | I6: 449988 | J6: 901220.1 | K6: 764673 | L6: 0 | M6: 0 | N6: =SUM(H6:M6) -> 2135316.77
A7: FINAL CONSUMPTION | B7: =SUM(B8:B27) -> 188963.5 | C7: =SUM(C8:C27) -> 90854.4 | D7: 58814.21 | E7: 861963.69 | F7: 9685.79 | G7: 2595.5 | H7: =SUM(H8:H27) -> 1212877.09 | I7: 341376 | J7: =SUM(J8:J27) -> 131009.7 | K7: 971139 | L7: =SUM(L8:L27) -> 138180 | M7: =SUM(M8:M27) -> 126852 | N7: 2921433.79
A8: Industry - steel | B8: 0 | C8: 0 | D8: 0 | E8: 736.61 | F8: 0 | G8: 0 | H8: =SUM(B8:G8) -> 736.61 | I8: 476 | J8: 475.8 | K8: 8970 | L8: 0 | M8: 0 | N8: 10658.41
A9: Industry - chemical | B9: 425.7 | C9: 0 | D9: 0 | E9: 173.32 | F9: 120.57 | G9: 0 | H9: 719.59 | I9: 11032 | J9: 5947.5 | K9: 101010 | L9: 0 | M9: 0 | N9: 118709.09
A10: Industry - non metallic mineral | B10: 141.9 | C10: 0 | D10: 0 | E10: 1039.92 | F10: 723.42 | G10: 0 | H10: 1905.24 | I10: 92596 | J10: 25729.8 | K10: 73476 | L10: 0 | M10: 126635 | N10: 320342.04
A11: Industry - food processing and beverage | B11: 946 | C11: 0 | D11: 0 | E11: 259.98 | F11: 1487.03 | G11: 0 | H11: 2693.01 | I11: 6384 | J11: 14402.1 | K11: 38298 | L11: 1372 | M11: 217 | N11: 63366.11
A12: Industry - construction | B12: 0 | C12: 0 | D12: 0 | E12: 6369.51 | F12: 0 | G12: 0 | H12: 6369.51 | I12: 28 | J12: 54.9 | K12: 14040 | L12: 0 | M12: 0 | N12: 20492.41
A13: Industry - mining | B13: 0 | C13: 0 | D13: 0 | E13: 16292.08 | F13: 0 | G13: 0 | H13: 16292.08 | I13: 532 | J13: 1720.2 | K13: 5070 | L13: 0 | M13: 0 | N13: 23614.28
A14: Industry - machinery | B14: 236.5 | C14: 0 | D14: 0 | E14: 129.99 | F14: 0 | G14: 0 | H14: 366.49 | I14: 84 | J14: 311.1 | K14: 2691 | L14: 0 | M14: 0 | N14: 3452.59
A15: Industry - non ferrous metals | B15: 1750.1 | C15: 0 | D15: 0 | E15: 563.29 | F15: 0 | G15: 0 | H15: 2313.39 | I15: 30408 | J15: 1244.4 | K15: 80223 | L15: 135464 | M15: 0 | N15: 249652.79
A16: Industry - paper and pulp | B16: 47.3 | C16: 0 | D16: 0 | E16: 433.3 | F16: 0 | G16: 0 | H16: 480.6 | I16: 1204 | J16: 3696.6 | K16: 8658 | L16: 0 | M16: 0 | N16: 14039.2
A17: Industry - transport equipment | B17: 1087.9 | C17: 0 | D17: 0 | E17: 303.31 | F17: 0 | G17: 0 | H17: 1391.21 | I17: 0 | J17: 146.4 | K17: 6942 | L17: 0 | M17: 0 | N17: 8479.61
A18: Industry - textile and leather | B18: 567.6 | C18: 0 | D18: 0 | E18: 259.98 | F18: 0 | G18: 0 | H18: 827.58 | I18: 9940 | J18: 19873.8 | K18: 46722 | L18: 0 | M18: 0 | N18: 77363.38
A19: Industry - miscellaneous | B19: 0 | C19: 0 | D19: 0 | E19: 0 | F19: 0 | G19: 0 | H19: 0 | I19: 0 | J19: 18.3 | K19: 24219 | L19: 0 | M19: 0 | N19: 24237.3
A20: Transport - road | B20: 145163.7 | C20: 90854.4 | D20: 0 | E20: 711825.24 | F20: 0 | G20: 0 | H20: 947843.34 | I20: 0 | J20: 0 | K20: 3354 | L20: 0 | M20: 0 | N20: 951197.34
A21: Transport - rail | B21: 0 | C21: 0 | D21: 0 | E21: 5849.55 | F21: 0 | G21: 0 | H21: 5849.55 | I21: 0 | J21: 0 | K21: 0 | L21: 0 | M21: 0 | N21: 5849.55
A22: Transport - domestic air | B22: 0 | C22: 0 | D22: 58814.21 | E22: 0 | F22: 0 | G22: 0 | H22: 58814.21 | I22: 0 | J22: 0 | K22: 0 | L22: 0 | M22: 0 | N22: 58814.21
A23: Transport - navigation | B23: 0 | C23: 0 | D23: 0 | E23: 0 | F23: 7354.77 | G23: 0 | H23: 7354.77 | I23: 0 | J23: 0 | K23: 0 | L23: 0 | M23: 0 | N23: 7354.77
A24: Households | B24: 11588.5 | C24: 0 | D24: 0 | E24: 0 | F24: 0 | G24: 2595.5 | H24: 14184 | I24: 42448 | J24: 42565.8 | K24: 429000 | L24: 0 | M24: 0 | N24: 528197.8
A25: Services | B25: 27008.3 | C25: 0 | D25: 0 | E25: 0 | F25: 0 | G25: 0 | H25: 27008.3 | I25: 146244 | J25: 14823 | K25: 123279 | L25: 1344 | M25: 0 | N25: 312698.3
A26: Agriculture & Fishery | B26: 0 | C26: 0 | D26: 0 | E26: 117727.61 | F26: 0 | G26: 0 | H26: 117727.61 | I26: 0 | J26: 0 | K26: 5187 | L26: 0 | M26: 0 | N26: 122914.61
A27: Non energy - chemical feedstocs | B27: 0 | C27: 0 | D27: 0 | E27: 0 | F27: 0 | G27: 0 | H27: 0 | I27: 0 | J27: 0 | K27: 0 | L27: 0 | M27: 0 | N27: 0
A30: Fossil fuel energy balance balance in ktoe
A31: 1 ktoe=41.868 TJ | B31: =+B1 -> Country X | D31: =+D1 -> 2015
A32: ktoe per TJ | C32: =1/41.868 -> 0.02388458966 | D32: =1/41.868 -> 0.02388458966 | E32: 0.02388458966 | F32: 0.02388458966 | G32: 0.02388458966 | H32: 0.02388458966 | I32: 0.02388458966 | J32: 0.02388458966 | K32: 0.02388458966 | L32: 0.02388458966 | M32: 0.02388458966 | N32: 0.02388458966
A33: Unit : ktoe | B33: Total | C33: LPG | D33: Gasoline | E33: Jet Fuel | F33: Diesel | G33: HFO | H33: Kerosene and other | I33: Total oil products | J33: Coal | K33: Lignite | L33: Natural Gas | M33: Coke | N33: Petrocoke | O33: Electricity consumption Gwh | Q33: Electricity production Gwh | R33: Share of production | S33: Efficiency
A34: Total consumption | B34: =+B35+B36 -> 120778.4122 | C34: =+C35+C36 -> 4513.315659 | D34: 2170.020063 | E34: 1404.753272 | F34: 20833.95983 | G34: 449.2433362 | H34: 61.99245247 | I34: 29433.28461 | J34: 18901.40441 | K34: 24654.38521 | L34: 41459.15735 | M34: 3300.3726 | N34: 3029.807968 | P34: Total | Q34: =+Q36+Q51 -> 261785
A35: Fossil power plants | B35: =SUM(I35:N35) -> 51001.16485 | C35: =B6*C$32 -> 0 | D35: =C6*D$32 -> 0 | E35: 0 | F35: 246.3107863 | G35: 217.9022165 | H35: 0 | I35: =SUM(C35:H35) -> 464.2130028 | J35: =I6*J$32 -> 10747.77873 | K35: 21525.27228 | L35: =K6*L$32 -> 18263.90083 | M35: =L6*M$32 -> 0 | N35: 0 | P35: Losses | Q35: =Q34-O36 -> 44733 | R35: =IF(Q$34=0,1,Q35/Q$34) -> 0.1708768646
A36: FINAL CONSUMPTION | B36: =SUM(I36:N36) -> 69777.2473 | C36: =SUM(C37:C56) -> 4513.315659 | D36: =SUM(D37:D56) -> 2170.020063 | E36: 1404.753272 | F36: 20587.64904 | G36: 231.3411197 | H36: 61.99245247 | I36: 28969.07161 | J36: 8153.625681 | K36: 3129.112926 | L36: 23195.25652 | M36: 3300.3726 | N36: 3029.807968 | O36: =SUM(O37:O56) -> 217052 | P36: Fossil | Q36: =SUM(Q37:Q49) -> 177609 | R36: =SUM(R37:R50) -> 0.6784536929
A37: Industry - steel | B37: 254.5717493 | C37: =B8*C$32 -> 0 | D37: 0 | E37: 0 | F37: 17.59362759 | G37: 0 | H37: 0 | I37: 17.59362759 | J37: =I8*J$32 -> 11.36906468 | K37: 11.36428776 | L37: 214.2447693 | M37: 0 | N37: 0 | O37: =1418+115 -> 1533 | P37: Lignite | Q37: =31336+1079 -> 32415 | R37: =IF(Q$34=0,1,Q37/Q$34) -> 0.1238229845 | S37: =IF(K35>0,Q37/11.63/K35,0) -> 0.1294844622
A38: Industry - chemical | B38: 2835.317904 | C38: 10.16766982 | D38: 0 | E38: 0 | F38: 4.13967708 | G38: 2.879764976 | H38: 0 | I38: 17.18711188 | J38: 263.4947932 | K38: 142.053597 | L38: 2412.582402 | M38: 0 | N38: 0 | O38: 15155 | P38: Coal | Q38: 43751 | R38: 0.1671256947 | S38: =IF( J35>0,Q38/11.63/J35,0) -> 0.3500173338
A39: Industry - non metallic mineral | B39: 7651.238177 | C39: 3.389223273 | D39: 0 | E39: 0 | F39: 24.83806248 | G39: 17.27858985 | H39: 0 | I39: 45.50587561 | J39: 2211.617464 | K39: 614.5457151 | L39: 1754.94411 | M39: 0 | N39: =M10*N$32 -> 3024.625012 | O39: 18543 | P39: Oil | Q39: =980+1244 -> 2224 | R39: 0.008495521134 | S39: =IF( I35>0,Q39/11.63/I35,0) -> 0.4119436068
A40: Industry - food processing and beverage | B40: 1513.473536 | C40: 22.59482182 | D40: 0 | E40: 0 | F40: 6.209515621 | G40: 35.51710137 | H40: 0 | I40: 64.32143881 | J40: 152.4792204 | K40: 343.9882488 | L40: 914.7320149 | M40: 32.76965702 | N40: 5.182955957 | O40: 7100 | P40: Natural Gas | Q40: 99219 | R40: 0.3790094925 | S40: =IF( L35>0,Q40/11.63/L35,0) -> 0.4671126089
A41: Industry - construction | B41: 489.4528041 | C41: 0 | D41: 0 | E41: 0 | F41: 152.1331327 | G41: 0 | H41: 0 | I41: 152.1331327 | J41: 0.6687685106 | K41: 1.311263972 | L41: 335.3396389 | M41: 0 | N41: 0 | O41: 2866 | P41: Nuclear | R41: 0
A42: Industry - mining | B42: 564.017388 | C42: 0 | D42: 0 | E42: 0 | F42: 389.1296456 | G42: 0 | H42: 0 | I42: 389.1296456 | J42: 12.7066017 | K42: 41.08627114 | L42: 121.0948696 | M42: 0 | N42: 0 | O42: 2205 | P42: Net import | R42: 0
A43: Industry - machinery | B43: 82.46369542 | C43: 5.648705455 | D43: 0 | E43: 0 | F43: 3.10475781 | G43: 0 | H43: 0 | I43: 8.753463266 | J43: 2.006305532 | K43: 7.430495844 | L43: 64.27343078 | M43: 0 | N43: 0 | O43: 2154
A44: Industry - non ferrous metals | B44: 5962.854447 | C44: 41.80042037 | D44: 0 | E44: 0 | F44: 13.45395051 | G44: 0 | H44: 0 | I44: 55.25437088 | J44: 726.2826025 | K44: 29.72198338 | L44: 1916.093437 | M44: =L15*M$32 -> 3235.502054 | N44: 0 | O44: 25263
A45: Industry - paper and pulp | B45: 335.3205312 | C45: 1.129741091 | D45: 0 | E45: 0 | F45: 10.3491927 | G45: 0 | H45: 0 | I45: 11.47893379 | J45: 28.75704595 | K45: 88.29177415 | L45: 206.7927773 | M45: 0 | N45: 0 | O45: 4018
A46: Industry - transport equipment | B46: 202.5320054 | C46: 25.98404509 | D46: 0 | E46: 0 | F46: 7.244434891 | G46: 0 | H46: 0 | I46: 33.22847998 | J46: 0 | K46: 3.496703927 | L46: 165.8068214 | M46: 0 | N46: 0 | O46: 2656
A47: Industry - textile and leather | B47: 1847.792586 | C47: 13.55689309 | D47: 0 | E47: 0 | F47: 6.209515621 | G47: 0 | H47: 0 | I47: 19.76640871 | J47: 237.4128212 | K47: 474.677558 | L47: 1115.935798 | M47: 0 | N47: 0 | O47: 17371
A48: Industry - miscellaneous | B48: 578.897965 | C48: 0 | D48: 0 | E48: 0 | F48: 0 | G48: 0 | H48: 0 | I48: 0 | J48: 0 | K48: 0.4370879908 | L48: 578.460877 | M48: 0 | N48: 0 | O48: 4669
A49: Transport - road | B49: 22718.95815 | C49: 3467.175408 | D49: 2170.020063 | E49: 0 | F49: 17001.65377 | G49: 0 | H49: 0 | I49: 22638.84924 | J49: 0 | K49: 0 | L49: 80.10891373 | M49: 0 | N49: 0
A50: Transport - rail | B50: 139.7141015 | C50: 0 | D50: 0 | E50: 0 | F50: 139.7141015 | G50: 0 | H50: 0 | I50: 139.7141015 | J50: 0 | K50: 0 | L50: 0 | M50: 0 | N50: 0 | O50: 803
A51: Transport - domestic air | B51: 1404.753272 | C51: 0 | D51: 0 | E51: 1404.753272 | F51: 0 | G51: 0 | H51: 0 | I51: 1404.753272 | J51: 0 | K51: 0 | L51: 0 | M51: 0 | N51: 0 | P51: Renewables | Q51: =SUM(Q52:Q56) -> 84176 | R51: =SUM(R52:R56) -> 0.3215463071
A52: Transport - navigation | B52: 175.6656635 | C52: 0 | D52: 0 | E52: 0 | F52: 0 | G52: 175.6656635 | H52: 0 | I52: 175.6656635 | J52: 0 | K52: 0 | L52: 0 | M52: 0 | N52: 0 | P52: Hydro | Q52: 67146 | R52: =IF(Q$34=0,1,Q52/Q$34) -> 0.2564929236
A53: Households | B53: 12615.78771 | C53: =B24*C$32 -> 276.7865673 | D53: 0 | E53: 0 | F53: 0 | G53: 0 | H53: 61.99245247 | I53: 338.7790198 | J53: =I24*J$32 -> 1013.853062 | K53: 1016.666667 | L53: 10246.48897 | M53: 0 | N53: 0 | O53: 47901 | P53: Wind | Q53: 11653 | R53: 0.0445136276
A54: Services | B54: 7468.670584 | C54: 645.082163 | D54: 0 | E54: 0 | F54: 0 | G54: 0 | H54: 0 | I54: 645.082163 | J54: 3492.977931 | K54: 354.0412726 | L54: 2944.468329 | M54: 32.10088851 | N54: 0 | O54: 59934 | P54: Solar | Q54: 194 | R54: 0.0007410661421
A55: Agriculture & Fishery | B55: 2935.765023 | C55: 0 | D55: 0 | E55: 0 | F55: 2811.875657 | G55: 0 | H55: 0 | I55: 2811.875657 | J55: 0 | K55: 0 | L55: 123.8893666 | M55: 0 | N55: 0 | O55: 4881 | P55: Biomass | Q55: 1758 | R55: 0.006715434421
A56: Non energy - chemical feedstocs | B56: 0 | C56: 0 | D56: 0 | E56: 0 | F56: 0 | G56: 0 | H56: 0 | I56: 0 | J56: 0 | K56: 0 | L56: 0 | M56: 0 | N56: 0 | P56: Geothermal | Q56: 3425 | R56: 0.01308325534
R57: =+R36+R51 -> 1
A58: GHG Balance
A59: 1 toe = 10 GCal= 41.868 GJ | B59: =+B31 -> Country X | D59: =+D31 -> 2015 | G59: Fraction of carbon oxidised: | J59: 0.99
A60: Ton CO2/Toe (IPCC): | C60: =41.868*assumptions!C41/1000*J59 -> 2.614070448 | D60: =41.868*assumptions!C38/1000*J59 -> 2.872437876 | E60: =41.868*assumptions!C39/1000*J59 -> 2.96362638 | F60: =41.868*assumptions!C37/1000*J59 -> 3.070012968 | G60: =41.868*assumptions!C36/1000*J59 -> 3.206795724 | H60: =41.868*assumptions!C40/1000*J59 -> 2.978824464 | J60: =41.868*assumptions!C43/1000*J59 -> 3.921105672 | K60: =41.868*assumptions!C44/1000*J59 -> 4.194671184 | L60: =41.868*assumptions!C42/1000*J59 -> 2.325306852 | M60: =41.868*108.2/1000*J59 -> 4.484816424 | N60: =41.868*100.3/1000*J59 -> 4.157366796
A61: Unit : ktCO2-e | B61: Total | C61: LPG | D61: Gasoline | E61: Jet Fuel | F61: Diesel | G61: HFO | H61: Kerosene and other | I61: Total oil products | J61: Coal | K61: Lignite | L61: Natural Gas | M61: Coke | N61: Petrocoke
A62: Total | B62: =+B63+B64 -> 389114.6541 | C62: =+C63+C64 -> 11798.12509 | D62: 6233.247821 | E62: 4163.163855 | F62: 63960.52684 | G62: 1440.63161 | H62: 184.664634 | I62: 87780.35985 | J62: 74114.40406 | K62: 103417.0392 | L62: 96405.26267 | M62: 14801.56524 | N62: 12596.02304
A63: Fossil power plants | B63: =SUM(I63:N63) -> 176358.7345 | C63: =C35*C$60 -> 0 | D63: 0 | E63: 0 | F63: 756.177308 | G63: 698.7678961 | H63: 0 | I63: =SUM(C63:H63) -> 1454.945204 | J63: =J35*J$60 -> 42143.17615 | K63: 90291.43938 | L63: 42469.17375 | M63: 0 | N63: 0
A64: FINAL CONSUMPTION | B64: =SUM(I64:N64) -> 212755.9196 | C64: =SUM(C65:C84) -> 11798.12509 | D64: =SUM(D65:D84) -> 6233.247821 | E64: 4163.163855 | F64: 63204.34953 | G64: 741.8637135 | H64: 184.664634 | I64: 86325.41464 | J64: 31971.2279 | K64: 13125.59982 | L64: =SUM(L65:L84) -> 53936.08892 | M64: =SUM(M65:M84) -> 14801.56524 | N64: 12596.02304
A65: Industry - steel | B65: 644.4462493 | C65: 0 | D65: 0 | E65: 0 | F65: 54.01266486 | G65: 0 | H65: 0 | I65: 54.01266486 | J65: 44.579304 | K65: 47.6694504 | L65: 498.18483 | M65: 0 | N65: 0
A66: Industry - chemical | B66: 7287.576134 | C66: 26.5790052 | D66: 0 | E66: 0 | F66: 12.70886232 | G66: 9.23481801 | H66: 0 | I66: 48.52268553 | J66: 1033.190928 | K66: 595.86813 | L66: 5609.99439 | M66: 0 | N66: 0
A67: Industry - non metallic mineral | B67: 28045.5839 | C67: 8.8596684 | D67: 0 | E67: 0 | F67: 76.25317392 | G67: 55.40890806 | H67: 0 | I67: 140.5217504 | J67: 8671.985784 | K67: 2577.817202 | L67: 4080.783564 | M67: 0 | N67: 12574.4756
A68: Industry - food processing and beverage | B68: 4528.374536 | C68: 59.064456 | D68: 0 | E68: 0 | F68: 19.06329348 | G68: 113.8960888 | H68: 0 | I68: 192.0238383 | J68: 597.887136 | K68: 1442.917595 | L68: 2127.032622 | M68: 146.965896 | N68: 21.547449
A69: Industry - construction | B69: 1254.940883 | C69: 0 | D69: 0 | E69: 0 | F69: 467.0506903 | G69: 0 | H69: 0 | I69: 467.0506903 | J69: 2.622312 | K69: 5.5003212 | L69: 779.76756 | M69: 0 | N69: 0
A70: Industry - mining | B70: 1698.383114 | C70: 0 | D70: 0 | E70: 0 | F70: 1194.633058 | G70: 0 | H70: 0 | I70: 1194.633058 | J70: 49.823928 | K70: 172.3433976 | L70: 281.58273 | M70: 0 | N70: 0
A71: Industry - machinery | B71: 212.7886325 | C71: 14.766114 | D71: 0 | E71: 0 | F71: 9.53164674 | G71: 0 | H71: 0 | I71: 24.29776074 | J71: 7.866936 | K71: 31.1684868 | L71: 149.455449 | M71: 0 | N71: 0
A72: Industry - non ferrous metals | B72: 22089.21577 | C72: 109.2692436 | D72: 0 | E72: 0 | F72: 41.30380254 | G72: 0 | H72: 0 | I72: 150.5730461 | J72: 2847.830832 | K72: 124.6739472 | L72: 4455.505197 | M72: 14510.63275 | N72: 0
A73: Industry - paper and pulp | B73: 998.6964174 | C73: 2.9532228 | D73: 0 | E73: 0 | F73: 31.7721558 | G73: 0 | H73: 0 | I73: 34.7253786 | J73: 112.759416 | K73: 370.3549608 | L73: 480.856662 | M73: 0 | N73: 0
A74: Industry - transport equipment | B74: 490.3838947 | C74: 67.9241244 | D74: 0 | E74: 0 | F74: 22.24050906 | G74: 0 | H74: 0 | I74: 90.16463346 | J74: 0 | K74: 14.6675232 | L74: 385.551738 | M74: 0 | N74: 0
A75: Industry - textile and leather | B75: 5571.432159 | C75: 35.4386736 | D75: 0 | E75: 0 | F75: 19.06329348 | G75: 0 | H75: 0 | I75: 54.50196708 | J75: 930.92076 | K75: 1991.116274 | L75: 2594.893158 | M75: 0 | N75: 0
A76: Industry - miscellaneous | B76: 1346.932481 | C76: 0 | D76: 0 | E76: 0 | F76: 0 | G76: 0 | H76: 0 | I76: 0 | J76: 0 | K76: 1.8334404 | L76: 1345.099041 | M76: 0 | N76: 0
A77: Transport - road | B77: 67678.26395 | C77: 9063.440773 | D77: 6233.247821 | E77: 0 | F77: 52195.29755 | G77: 0 | H77: 0 | I77: 67491.98614 | J77: 0 | K77: 0 | L77: 186.277806 | M77: 0 | N77: 0
A78: Transport - rail | B78: 428.9241033 | C78: 0 | D78: 0 | E78: 0 | F78: 428.9241033 | G78: 0 | H78: 0 | I78: 428.9241033 | J78: 0 | K78: 0 | L78: 0 | M78: 0 | N78: 0
A79: Transport - domestic air | B79: 4163.163855 | C79: =C51*C$60 -> 0 | D79: 0 | E79: 4163.163855 | F79: 0 | G79: 0 | H79: 0 | I79: 4163.163855 | J79: =J51*J$60 -> 0 | K79: 0 | L79: 0 | M79: 0 | N79: 0
A80: Transport - navigation | B80: 563.3238986 | C80: 0 | D80: 0 | E80: 0 | F80: 0 | G80: 563.3238986 | H80: 0 | I80: 563.3238986 | J80: 0 | K80: 0 | L80: 0 | M80: 0 | N80: 0
A81: Households | B81: =SUM(I81:N81) -> 32974.44258 | C81: 723.539586 | D81: 0 | E81: 0 | F81: 0 | G81: 0 | H81: 184.664634 | I81: 908.20422 | J81: 3975.424992 | K81: 4264.58237 | L81: 23826.231 | M81: 0 | N81: 0
A82: Services | B82: 23858.47149 | C82: 1686.290219 | D82: 0 | E82: 0 | F82: 0 | G82: 0 | H82: 0 | I82: 1686.290219 | J82: 13696.33558 | K82: 1485.086724 | L82: 6846.792381 | M82: 143.966592 | N82: 0
A83: Agriculture & Fishery | B83: 8920.575524 | C83: 0 | D83: 0 | E83: 0 | F83: 8632.494731 | G83: 0 | H83: 0 | I83: 8632.494731 | J83: 0 | K83: 0 | L83: 288.080793 | M83: 0 | N83: 0
A84: Non energy - chemical feedstocs | B84: 0 | C84: 0 | D84: 0 | E84: 0 | F84: 0 | G84: 0 | H84: 0 | I84: 0 | J84: 0 | K84: 0 | L84: =L56*L$60 -> 0 | M84: 0 | N84: 0
A85: CH4 from energy combustion | B85: 5061
A86: N2O from energy combustion | B86: 3875
A87: Total Agriculture | B87: =SUM(B88:B92) -> 56612
A88: Enteric fermentation | B88: 26888
A89: Manure management | B89: 6304
A90: Rice cultivation | B90: 200
A91: N2O from agricultural soils | B91: 22878
A92: Burning of agricultural residues | B92: 342
A93: Fugitive (CH4) | B93: 4131
A94: Forestry | B94: -64020
A95: Waste - solid | B95: 16880
A96: Waste - liquid
A97: Industrial processes | B97: 60720
A98: Total GHG emission | B98: =B62+B85+B86+B87+B93+B94+B95+B96+B97 -> 472373.6541

Sheet Growth
A2: Start year: | B2: =+assumptions!B3 -> 2015
A3: Growth from the start year | B3: Annual % increase in the period | F3: % increase from start year values
A4: Growth and multiplication factors | B4: =+assumptions!B3 & " to 2025" -> 2015 to 2025 | C4: 2025 to 2030 | D4: 2030 to 2035 | E4: 2035 to 2050 | F4: 2025 | G4: 2030 | H4: 2035 | I4: 2050
A5: Population growth | B5: 0.0083 | C5: =B5 -> 0.0083 | D5: 0.007 | E5: 0.005 | F5: =(1+B5)^(2025-B$2)-1 -> 0.08616967106 | G5: =(1+F5)*(1+C5)^5-1 -> 0.1320002111 | H5: =(1+G5)*(1+D5)^5-1 -> 0.172178795 | I5: =(1+H5)*(1+E5)^15-1 -> 0.2632368527
A6: GDP growth | B6: 0.041 | C6: =B6 -> 0.041 | D6: 0.03 | E6: 0.03 | F6: =(1+B6)^(2025-B$2)-1 -> 0.4945391468 | G6: =(1+F6)*(1+C6)^5-1 -> 0.8270942155 | H6: =(1+G6)*(1+D6)^5-1 -> 1.118102955 | I6: =(1+H6)*(1+E6)^15-1 -> 2.299935389
A8: Industry - fuel in steel | B8: 0.06 | C8: 0.06 | D8: 0.04 | E8: 0.02 | F8: =(1+B8)^(2025-B$2)-1 -> 0.7908476965 | G8: =(1+F8)*(1+C8)^5-1 -> 1.396558193 | H8: =(1+G8)*(1+D8)^5-1 -> 1.915779481 | I8: =(1+H8)*(1+E8)^15-1 -> 2.924255286
A9: Industry - fuel in chemical | B9: =+$B$8 -> 0.06 | C9: =+C8 -> 0.06 | D9: =+D8 -> 0.04 | E9: =+E8 -> 0.02 | F9: 0.7908476965 | G9: 1.396558193 | H9: 1.915779481 | I9: =(1+H9)*(1+E9)^15-1 -> 2.924255286
A10: Industry - fuel in non metallic mineral | B10: =+$B$8 -> 0.06 | C10: =+C9 -> 0.06 | D10: 0.04 | E10: =+E9 -> 0.02 | F10: 0.7908476965 | G10: 1.396558193 | H10: 1.915779481 | I10: =(1+H10)*(1+E10)^15-1 -> 2.924255286
A11: Industry - fuel in food and beverage | B11: 0.06 | C11: 0.06 | D11: 0.04 | E11: =+E10 -> 0.02 | F11: 0.7908476965 | G11: 1.396558193 | H11: 1.915779481 | I11: 2.924255286
A12: Industry - fuel in construction | B12: 0.06 | C12: 0.06 | D12: 0.04 | E12: =+E11 -> 0.02 | F12: 0.7908476965 | G12: 1.396558193 | H12: 1.915779481 | I12: 2.924255286
A13: Industry - fuel in mining | B13: 0.06 | C13: 0.06 | D13: 0.04 | E13: =+E12 -> 0.02 | F13: 0.7908476965 | G13: 1.396558193 | H13: 1.915779481 | I13: 2.924255286
A14: Industry - fuel in machinery | B14: 0.06 | C14: 0.06 | D14: 0.04 | E14: =+E13 -> 0.02 | F14: 0.7908476965 | G14: 1.396558193 | H14: 1.915779481 | I14: 2.924255286
A15: Industry - fuel in non ferrous metals | B15: 0.06 | C15: 0.06 | D15: 0.04 | E15: =+E14 -> 0.02 | F15: 0.7908476965 | G15: 1.396558193 | H15: 1.915779481 | I15: 2.924255286
A16: Industry - fuel in paper and pulp | B16: 0.06 | C16: 0.06 | D16: 0.04 | E16: =+E15 -> 0.02 | F16: 0.7908476965 | G16: 1.396558193 | H16: 1.915779481 | I16: 2.924255286
A17: Industry - fuel in transport equipment | B17: 0.06 | C17: 0.06 | D17: 0.04 | E17: =+E16 -> 0.02 | F17: 0.7908476965 | G17: 1.396558193 | H17: 1.915779481 | I17: 2.924255286
A18: Industry - fuel in textile and leather | B18: 0.06 | C18: 0.06 | D18: 0.04 | E18: =+E17 -> 0.02 | F18: 0.7908476965 | G18: 1.396558193 | H18: 1.915779481 | I18: 2.924255286
A19: Industry - fuel in miscellaneous | B19: 0.06 | C19: 0.06 | D19: 0.04 | E19: =+E18 -> 0.02 | F19: 0.7908476965 | G19: 1.396558193 | H19: 1.915779481 | I19: 2.924255286
A20: Industry - electricity consumption | B20: 0.06 | C20: 0.06 | D20: 0.04 | E20: =+E19 -> 0.02 | F20: 0.7908476965 | G20: 1.396558193 | H20: 1.915779481 | I20: 2.924255286
A21: Transport - fuel in road | B21: 0.06 | C21: 0.06 | D21: 0.04 | E21: 0.02 | F21: 0.7908476965 | G21: 1.396558193 | H21: 1.915779481 | I21: 2.924255286
A22: Transport - fuel in rail | B22: =+B21 -> 0.06 | C22: 0.06 | D22: 0.04 | E22: =+E21 -> 0.02 | F22: 0.7908476965 | G22: 1.396558193 | H22: 1.915779481 | I22: 2.924255286
A23: Transport - fuel in air | B23: =+B22 -> 0.06 | C23: 0.06 | D23: 0.04 | E23: =+E22 -> 0.02 | F23: 0.7908476965 | G23: 1.396558193 | H23: 1.915779481 | I23: 2.924255286
A24: Transport - fuel in navigation | B24: =+B23 -> 0.06 | C24: 0.06 | D24: 0.04 | E24: =+E23 -> 0.02 | F24: 0.7908476965 | G24: 1.396558193 | H24: 1.915779481 | I24: 2.924255286
A25: Transport - electricity consumption | B25: =+B24 -> 0.06 | C25: 0.06 | D25: 0.04 | E25: =+E24 -> 0.02 | F25: 0.7908476965 | G25: 1.396558193 | H25: 1.915779481 | I25: 2.924255286
A26: Households - LPG | B26: 0.06 | C26: 0.06 | D26: 0.04 | E26: 0.02 | F26: 0.7908476965 | G26: 1.396558193 | H26: 1.915779481 | I26: 2.924255286
A27: Households - Kerosene | B27: =+B26 -> 0.06 | C27: 0.06 | D27: 0.04 | E27: =+E26 -> 0.02 | F27: 0.7908476965 | G27: 1.396558193 | H27: 1.915779481 | I27: 2.924255286
A28: Households - electricity consumption | B28: =+B27 -> 0.06 | C28: 0.06 | D28: 0.04 | E28: =+E27 -> 0.02 | F28: 0.7908476965 | G28: 1.396558193 | H28: 1.915779481 | I28: 2.924255286
A29: Services - fuel | B29: =+B28 -> 0.06 | C29: 0.06 | D29: 0.04 | E29: =+E28 -> 0.02 | F29: 0.7908476965 | G29: 1.396558193 | H29: 1.915779481 | I29: 2.924255286
A30: Services - electricity consumption | B30: =+B29 -> 0.06 | C30: 0.06 | D30: 0.04 | E30: =+E29 -> 0.02 | F30: 0.7908476965 | G30: 1.396558193 | H30: 1.915779481 | I30: 2.924255286
A31: Agriculture - fuel | B31: 0.06 | C31: 0.06 | D31: 0.04 | E31: 0.02 | F31: 0.7908476965 | G31: 1.396558193 | H31: 1.915779481 | I31: 2.924255286
A32: Agriculture - electricity consumption | B32: =+B31 -> 0.06 | C32: =+C31 -> 0.06 | D32: =+D31 -> 0.04 | E32: =+E31 -> 0.02 | F32: 0.7908476965 | G32: 1.396558193 | H32: 1.915779481 | I32: 2.924255286
A33: Non energy - fuel in chemical feedstocs | B33: 0.06 | C33: 0.06 | D33: =D32 -> 0.04 | E33: 0.02 | F33: 0.7908476965 | G33: 1.396558193 | H33: 1.915779481 | I33: 2.924255286
A34: Livestock emissions | B34: 0.03 | C34: =+B34 -> 0.03 | D34: 0.02 | E34: 0.01 | F34: 0.3439163793 | G34: 0.5579674166 | H34: 0.7201219167 | I34: 0.9970081447
A35: Rice emissions | B35: =+B34 -> 0.03 | C35: =+B35 -> 0.03 | D35: =+D34 -> 0.02 | E35: 0.01 | F35: 0.3439163793 | G35: 0.5579674166 | H35: 0.7201219167 | I35: 0.9970081447
A36: N2O from agricultural soils | B36: =+B35 -> 0.03 | C36: 0.03 | D36: 0.02 | E36: 0.01 | F36: 0.3439163793 | G36: 0.5579674166 | H36: 0.7201219167 | I36: 0.9970081447
A37: Biomass burning | B37: =+B36 -> 0.03 | C37: 0.03 | D37: 0.02 | E37: 0.01 | F37: 0.3439163793 | G37: 0.5579674166 | H37: 0.7201219167 | I37: 0.9970081447
A38: Forestry emission | B38: 0 | C38: 0 | D38: 0 | E38: 0 | F38: 0 | G38: 0 | H38: 0 | I38: 0
A39: Solid waste emissions | B39: 0 | C39: 0 | D39: 0 | E39: 0 | F39: 0 | G39: 0 | H39: 0 | I39: 0
A40: Liquid waste emissions | B40: 0 | C40: 0 | D40: 0 | E40: 0 | F40: 0 | G40: 0 | H40: 0 | I40: 0
A41: Industrial processes | B41: 0 | C41: 0 | D41: 0 | E41: 0 | F41: 0 | G41: 0 | H41: 0 | I41: 0
D45: =+assumptions!B3 -> 2015 | E45: 2025 | F45: 2030 | G45: 2035 | H45: 2050
A46: Population (thousands) | D46: 1876.633 | E46: =+D46*(1+F5) -> 2038.341848 | F46: =+D46*(1+G5) -> 2124.348952 | G46: =+D46*(1+H5) -> 2199.749409 | H46: =+D46*(1+I5) -> 2370.631965
A47: GDP (Current MUS$) | D47: =562.5/assumptions!B5 -> 140.625 | E47: =+D47*(1+F6) -> 210.1695675 | F47: =+D47*(1+G6) -> 256.9351241 | G47: =+D47*(1+H6) -> 297.8582281 | H47: =+D47*(1+I6) -> 464.0534141
A48: BAU energy CO2 emissions (ktCO2) | B48: Fossil fuel emissions | D48: =+'Start Year Balance'!B62 -> 389114.6541 | E48: =+'Balance 2025'!B62 -> 696845.0819 | F48: =+'Balance 2030'!B62 -> 932535.9122 | G48: =+'Balance 2035'!B62 -> 1134572.524 | H48: =+'Balance 2050'!B62 -> 1526985.238
A49: BAU other gases GHG emissions (ktCO2e) | B49: Other emissions | D49: =+'Start Year Balance'!B98-D48 -> 83259 | E49: ='Balance 2025'!B98-E48 -> 113062.8009 | F49: =+'Balance 2030'!B98-F48 -> 133095.4773 | G49: =+'Balance 2035'!B98-G48 -> 149060.0324 | H49: ='Balance 2050'!B98-H48 -> 177912.8689
A50: BAU GHG emissions (ktCO2e) | B50: All GHG emissions | D50: =+D48+D49 -> 472373.6541 | E50: =+E48+E49 -> 809907.8828 | F50: =+F48+F49 -> 1065631.39 | G50: =+G48+G49 -> 1283632.557 | H50: =+H48+H49 -> 1704898.107
A51: Conditional Mitigation (ktCO2e) | B51: All GHG emissions | D51: 0 | E51: =+main25!J123 -> 137764.8456 | F51: =+main30!J123 -> 247137.1573 | G51: =+main35!J123 -> 303274.1128 | H51: =main50!J123 -> 440217.0082
A52: Conditional scenario (ktCO2e) | B52: All GHG emissions | D52: =+D50-D51 -> 472373.6541 | E52: =+E50-E51 -> 672143.0372 | F52: =+F50-F51 -> 818494.2322 | G52: =+G50-G51 -> 980358.4439 | H52: =+H50-H51 -> 1264681.099
A53: Conditional scenario reduction (%) | B53: All GHG emissions | D53: 0 | E53: =E51/E48 -> 0.1976979521 | F53: 0.2650162359 | G53: =G51/G48 -> 0.2673025358 | H53: =H51/H48 -> 0.288291594
A54: Unconditional Mitigation (ktCO2) | B54: All GHG emissions | D54: 0 | E54: 0 | F54: 0 | G54: 0 | H54: 0 | I54: This line is copied from the unconditional model
A55: Unconditional scenario (ktCO2) | B55: All GHG emissions | D55: =+D50-D54 -> 472373.6541 | E55: =+E50-E54 -> 809907.8828 | F55: =+F50-F54 -> 1065631.39 | G55: =+G50-G54 -> 1283632.557 | H55: =+H50-H54 -> 1704898.107
A56: Unconditional scenario reduction (%) | B56: All GHG emissions | D56: 0 | E56: =+E54/E48 -> 0 | F56: 0 | G56: =+G54/G48 -> 0 | H56: =+H54/H48 -> 0
A58: Total tCO2-e/capita in BAU | B58: All GHG emissions | D58: =D50/D46 -> 251.7133899 | E58: =E50/E46 -> 397.336631 | F58: =F50/F46 -> 501.6272814 | G58: =G50/G46 -> 583.5358117 | H58: =H50/H46 -> 719.1745207
A59: Total tCO2-e/US$ in BAU | B59: All GHG emissions | D59: =D50/D47 -> 3359.10154 | E59: =E50/E47 -> 3853.592565 | F59: =F50/F47 -> 4147.47261 | G59: =G50/G47 -> 4309.542042 | H59: =H50/H47 -> 3673.926438
A79: Sectoral split of BAU scenario emissions
A80: ktCO2e/year | B80: =+D45 -> 2015 | C80: 2025 | D80: 2030 | E80: 2035 | F80: 2050
A81: Total | B81: =SUM(B82:B89) -> 472373.6541 | C81: =SUM(C82:C89) -> 809907.8828 | D81: =SUM(D82:D89) -> 1065631.39 | E81: =SUM(E82:E89) -> 1283632.557 | F81: =SUM(F82:F89) -> 1704898.107
A82: Power | B82: =+'Start Year Balance'!B63+'Start Year Balance'!B85+'Start Year Balance'!B86 -> 185294.7345 | C82: =+main25!J131 -> 331834.6484 | D82: =+main30!J131 -> 444069.6141 | E82: =+main35!J131 -> 540278.5848 | F82: =+main50!J131 -> 727143.8412
A83: Industry | B83: =SUM('Start Year Balance'!B65:B76)+'Start Year Balance'!B84+'Start Year Balance'!B93+'Start Year Balance'!B97 -> 139019.7542 | C83: =+main25!J132 -> 200942.9344 | D83: =+main30!J132 -> 248369.9174 | E83: =+main35!J132 -> 289024.8166 | F83: =+main50!J132 -> 367988.2242
A84: Transport | B84: =SUM('Start Year Balance'!B77:B80) -> 72833.67581 | C84: =+main25!J133 -> 130434.0205 | D84: =+main30!J133 -> 174550.1425 | E84: =+main35!J133 -> 212366.9375 | F84: =+main50!J133 -> 285817.9372
A85: Households | B85: =+'Start Year Balance'!B81 -> 32974.44258 | C85: =+main25!J134 -> 59052.20454 | D85: =+main30!J134 -> 79025.17053 | E85: =+main35!J134 -> 96146.20309 | F85: =+main50!J134 -> 129400.1306
A86: Services | B86: =+'Start Year Balance'!B82 -> 23858.47149 | C86: =+main25!J135 -> 42726.88871 | D86: =+main30!J135 -> 57178.21533 | E86: =+main35!J135 -> 69566.04163 | F86: =+main50!J135 -> 93626.73286
A87: Agriculture & Fishery | B87: =+'Start Year Balance'!B83+'Start Year Balance'!B87 -> 65532.57552 | C87: =+main25!J136 -> 92057.1862 | D87: =+main30!J136 -> 109578.3297 | E87: =+main35!J136 -> 123389.973 | F87: =+main50!J136 -> 148061.2407
A88: Forestry | B88: =+'Start Year Balance'!B94 -> -64020 | C88: =+main25!J137 -> -64020 | D88: =+main30!J137 -> -64020 | E88: =+main35!J137 -> -64020 | F88: =+main50!J137 -> -64020
A89: Waste | B89: =+'Start Year Balance'!B95+'Start Year Balance'!B96 -> 16880 | C89: =+main25!J138 -> 16880 | D89: =+main30!J138 -> 16880 | E89: =+main35!J138 -> 16880 | F89: =+main50!J138 -> 16880
A107: Sectoral split of mitigation scenario emissions
A108: ktCO2e/year | B108: =+B80 -> 2015 | C108: =+C80 -> 2025 | D108: =+D80 -> 2030 | E108: =+E80 -> 2035 | F108: =+F80 -> 2050
A109: Total | B109: =SUM(B110:B117) -> 472373.6541 | C109: =SUM(C110:C117) -> 672143.0372 | D109: =SUM(D110:D117) -> 818494.2322 | E109: =SUM(E110:E117) -> 980358.4439 | F109: =SUM(F110:F117) -> 1264681.099
A110: Power | B110: =+'Start Year Balance'!B63+'Start Year Balance'!B85+'Start Year Balance'!B86 -> 185294.7345 | C110: =+main25!L131 -> 210059.1109 | D110: =+main30!L131 -> 258450.8266 | E110: =+main35!L131 -> 311761.0173 | F110: =+main50!L131 -> 411641.6662
A111: Industry | B111: =SUM('Start Year Balance'!B65:B76)+'Start Year Balance'!B84+'Start Year Balance'!B93+'Start Year Balance'!B97 -> 139019.7542 | C111: =+main25!L132 -> 187660.4401 | D111: =+main30!L132 -> 223484.9544 | E111: =+main35!L132 -> 258748.4542 | F111: =+main50!L132 -> 309776.799
A112: Transport | B112: =SUM('Start Year Balance'!B77:B80) -> 72833.67581 | C112: =+main25!L133 -> 129898.4205 | D112: =+main30!L133 -> 145982.2172 | E112: =+main35!L133 -> 177686.5318 | F112: =+main50!L133 -> 238074.7452
A113: Households | B113: =+'Start Year Balance'!B81 -> 32974.44258 | C113: =+main25!L134 -> 59052.20454 | D113: =+main30!L134 -> 79025.17053 | E113: =+main35!L134 -> 96146.20309 | F113: =+main50!L134 -> 129400.1306
A114: Services | B114: =+'Start Year Balance'!B82 -> 23858.47149 | C114: =+main25!L135 -> 40555.67488 | D114: =+main30!L135 -> 49138.39578 | E114: =+main35!L135 -> 59791.9264 | F114: =+main50!L135 -> 74866.51688
A115: Agriculture & Fishery | B115: =+'Start Year Balance'!B83+'Start Year Balance'!B87 -> 65532.57552 | C115: =+main25!L136 -> 92057.1862 | D115: =+main30!L136 -> 109552.6677 | E115: =+main35!L136 -> 123364.311 | F115: =+main50!L136 -> 148061.2407
A116: Forestry | B116: =+'Start Year Balance'!B94 -> -64020 | C116: =+main25!L137 -> -64020 | D116: =+main30!L137 -> -64020 | E116: =+main35!L137 -> -64020 | F116: =+main50!L137 -> -64020
A117: Waste | B117: =+'Start Year Balance'!B95+'Start Year Balance'!B96 -> 16880 | C117: =+main25!L138 -> 16880 | D117: =+main30!L138 -> 16880 | E117: =+main35!L138 -> 16880 | F117: =+main50!L138 -> 16880

Sheet Country info

Sheet Balance 2025
A1: Fossil fuel balance | B1: =+assumptions!$B$2 -> Country X | D1: 2025
A3: TJ units | B3: LPG | C3: Gasoline | D3: Jet Fuel | E3: Diesel | F3: Fueloil | G3: Kerosene and other | H3: Total oil products | I3: Coal | J3: Lignite | K3: Gas | L3: Coke | M3: Petrocoke | N3: Total energy (fossil)
A4: Unit | B4: TJ | C4: TJ | D4: TJ | E4: TJ | F4: TJ | G4: TJ | H4: TJ | I4: TJ | J4: TJ | K4: TJ | L4: TJ | M4: TJ | N4: TJ
A5: Total | B5: =+B6+B7 -> 338404.8487 | C5: 162706.393 | D5: 105327.2925 | E5: 1562113.877 | F5: 33683.91106 | G5: 4648.145196 | H5: 2206884.468 | I5: 1417212.397 | J5: 1848566.36 | K5: 3108574.922 | L5: 247459.3347 | M5: 227172.612 | N5: =SUM(H5:M5) -> 9055870.092
A6: Fossil power plants | B6: =C35/C32 -> 0 | C6: =D35/D32 -> 0 | D6: 0 | E6: 18468.1885 | F6: 16338.13635 | G6: 0 | H6: =SUM(B6:G6) -> 34806.32485 | I6: =J35/J32 -> 805859.9733 | J6: =K35/K32 -> 1613947.94 | K6: =L35/L32 -> 1369412.881 | L6: =M35/M32 -> 0 | M6: =N35/N32 -> 0 | N6: =SUM(H6:M6) -> 3824027.119
A7: FINAL CONSUMPTION | B7: =SUM(B8:B27) -> 338404.8487 | C7: 162706.393 | D7: 105327.2925 | E7: 1543645.689 | F7: 17345.77471 | G7: 4648.145196 | H7: 2172078.143 | I7: 611352.4233 | J7: 234618.4195 | K7: 1739162.041 | L7: 247459.3347 | M7: 227172.612 | N7: 5231842.973
A8: Industry - steel | B8: =+'Start Year Balance'!B8*(1+Growth!$F8) -> 0 | C8: =+'Start Year Balance'!C8*(1+Growth!$F8) -> 0 | D8: =+'Start Year Balance'!D8*(1+Growth!$F8) -> 0 | E8: =+'Start Year Balance'!E8*(1+Growth!$F8) -> 1319.156322 | F8: =+'Start Year Balance'!F8*(1+Growth!$F8) -> 0 | G8: =+'Start Year Balance'!G8*(1+Growth!$F8) -> 0 | H8: =SUM(B8:G8) -> 1319.156322 | I8: =+'Start Year Balance'!I8*(1+Growth!$F8) -> 852.4435036 | J8: =+'Start Year Balance'!J8*(1+Growth!$F8) -> 852.085334 | K8: =+'Start Year Balance'!K8*(1+Growth!$F8) -> 16063.90384 | L8: =+'Start Year Balance'!L8*(1+Growth!$F8) -> 0 | M8: =+'Start Year Balance'!M8*(1+Growth!$F8) -> 0 | N8: 19087.589
A9: Industry - chemical | B9: =+'Start Year Balance'!B9*(1+Growth!$F9) -> 762.3638644 | C9: =+'Start Year Balance'!C9*(1+Growth!$F9) -> 0 | D9: =+'Start Year Balance'!D9*(1+Growth!$F9) -> 0 | E9: =+'Start Year Balance'!E9*(1+Growth!$F9) -> 310.3897228 | F9: =+'Start Year Balance'!F9*(1+Growth!$F9) -> 215.9225068 | G9: =+'Start Year Balance'!G9*(1+Growth!$F9) -> 0 | H9: =SUM(B9:G9) -> 1288.676094 | I9: =+'Start Year Balance'!I9*(1+Growth!$F9) -> 19756.63179 | J9: =+'Start Year Balance'!J9*(1+Growth!$F9) -> 10651.06668 | K9: =+'Start Year Balance'!K9*(1+Growth!$F9) -> 180893.5258 | L9: =+'Start Year Balance'!L9*(1+Growth!$F9) -> 0 | M9: =+'Start Year Balance'!M9*(1+Growth!$F9) -> 0 | N9: 212589.9004
A10: Industry - non metallic mineral | B10: =+'Start Year Balance'!B10*(1+Growth!$F10) -> 254.1212881 | C10: =+'Start Year Balance'!C10*(1+Growth!$F10) -> 0 | D10: =+'Start Year Balance'!D10*(1+Growth!$F10) -> 0 | E10: =+'Start Year Balance'!E10*(1+Growth!$F10) -> 1862.338337 | F10: =+'Start Year Balance'!F10*(1+Growth!$F10) -> 1295.535041 | G10: =+'Start Year Balance'!G10*(1+Growth!$F10) -> 0 | H10: 3411.994665 | I10: =+'Start Year Balance'!I10*(1+Growth!$F10) -> 165825.3333 | J10: =+'Start Year Balance'!J10*(1+Growth!$F10) -> 46078.15306 | K10: =+'Start Year Balance'!K10*(1+Growth!$F10) -> 131584.3254 | L10: =+'Start Year Balance'!L10*(1+Growth!$F10) -> 0 | M10: =+'Start Year Balance'!M10*(1+Growth!$F10) -> 226783.9981 | N10: 573683.8044
A11: Industry - food processing and beverage | B11: =+'Start Year Balance'!B11*(1+Growth!$F11) -> 1694.141921 | C11: =+'Start Year Balance'!C11*(1+Growth!$F11) -> 0 | D11: =+'Start Year Balance'!D11*(1+Growth!$F11) -> 0 | E11: =+'Start Year Balance'!E11*(1+Growth!$F11) -> 465.5845841 | F11: =+'Start Year Balance'!F11*(1+Growth!$F11) -> 2663.04425 | G11: =+'Start Year Balance'!G11*(1+Growth!$F11) -> 0 | H11: 4822.770755 | I11: =+'Start Year Balance'!I11*(1+Growth!$F11) -> 11432.77169 | J11: =+'Start Year Balance'!J11*(1+Growth!$F11) -> 25791.96761 | K11: =+'Start Year Balance'!K11*(1+Growth!$F11) -> 68585.88508 | L11: =+'Start Year Balance'!L11*(1+Growth!$F11) -> 2457.04304 | M11: =+'Start Year Balance'!M11*(1+Growth!$F11) -> 388.6139501 | N11: 113479.0521
A12: Industry - construction | B12: =+'Start Year Balance'!B12*(1+Growth!$F12) -> 0 | C12: =+'Start Year Balance'!C12*(1+Growth!$F12) -> 0 | D12: =+'Start Year Balance'!D12*(1+Growth!$F12) -> 0 | E12: =+'Start Year Balance'!E12*(1+Growth!$F12) -> 11406.82231 | F12: =+'Start Year Balance'!F12*(1+Growth!$F12) -> 0 | G12: =+'Start Year Balance'!G12*(1+Growth!$F12) -> 0 | H12: 11406.82231 | I12: =+'Start Year Balance'!I12*(1+Growth!$F12) -> 50.1437355 | J12: =+'Start Year Balance'!J12*(1+Growth!$F12) -> 98.31753854 | K12: =+'Start Year Balance'!K12*(1+Growth!$F12) -> 25143.50166 | L12: =+'Start Year Balance'!L12*(1+Growth!$F12) -> 0 | M12: =+'Start Year Balance'!M12*(1+Growth!$F12) -> 0 | N12: 36698.78525
A13: Industry - mining | B13: =+'Start Year Balance'!B13*(1+Growth!$F13) -> 0 | C13: =+'Start Year Balance'!C13*(1+Growth!$F13) -> 0 | D13: =+'Start Year Balance'!D13*(1+Growth!$F13) -> 0 | E13: =+'Start Year Balance'!E13*(1+Growth!$F13) -> 29176.63394 | F13: =+'Start Year Balance'!F13*(1+Growth!$F13) -> 0 | G13: =+'Start Year Balance'!G13*(1+Growth!$F13) -> 0 | H13: 29176.63394 | I13: =+'Start Year Balance'!I13*(1+Growth!$F13) -> 952.7309746 | J13: =+'Start Year Balance'!J13*(1+Growth!$F13) -> 3080.616208 | K13: =+'Start Year Balance'!K13*(1+Growth!$F13) -> 9079.597821 | L13: =+'Start Year Balance'!L13*(1+Growth!$F13) -> 0 | M13: =+'Start Year Balance'!M13*(1+Growth!$F13) -> 0 | N13: 42289.57894
A14: Industry - machinery | B14: =+'Start Year Balance'!B14*(1+Growth!$F14) -> 423.5354802 | C14: =+'Start Year Balance'!C14*(1+Growth!$F14) -> 0 | D14: =+'Start Year Balance'!D14*(1+Growth!$F14) -> 0 | E14: =+'Start Year Balance'!E14*(1+Growth!$F14) -> 232.7922921 | F14: =+'Start Year Balance'!F14*(1+Growth!$F14) -> 0 | G14: =+'Start Year Balance'!G14*(1+Growth!$F14) -> 0 | H14: 656.3277723 | I14: =+'Start Year Balance'!I14*(1+Growth!$F14) -> 150.4312065 | J14: =+'Start Year Balance'!J14*(1+Growth!$F14) -> 557.1327184 | K14: =+'Start Year Balance'!K14*(1+Growth!$F14) -> 4819.171151 | L14: =+'Start Year Balance'!L14*(1+Growth!$F14) -> 0 | M14: =+'Start Year Balance'!M14*(1+Growth!$F14) -> 0 | N14: 6183.062849
A15: Industry - non ferrous metals | B15: =+'Start Year Balance'!B15*(1+Growth!$F15) -> 3134.162554 | C15: =+'Start Year Balance'!C15*(1+Growth!$F15) -> 0 | D15: =+'Start Year Balance'!D15*(1+Growth!$F15) -> 0 | E15: =+'Start Year Balance'!E15*(1+Growth!$F15) -> 1008.766599 | F15: =+'Start Year Balance'!F15*(1+Growth!$F15) -> 0 | G15: =+'Start Year Balance'!G15*(1+Growth!$F15) -> 0 | H15: 4142.929153 | I15: =+'Start Year Balance'!I15*(1+Growth!$F15) -> 54456.09676 | J15: =+'Start Year Balance'!J15*(1+Growth!$F15) -> 2228.530874 | K15: =+'Start Year Balance'!K15*(1+Growth!$F15) -> 143667.1748 | L15: =+'Start Year Balance'!L15*(1+Growth!$F15) -> 242595.3924 | M15: =+'Start Year Balance'!M15*(1+Growth!$F15) -> 0 | N15: 447090.1239
A16: Industry - paper and pulp | B16: =+'Start Year Balance'!B16*(1+Growth!$F16) -> 84.70709605 | C16: =+'Start Year Balance'!C16*(1+Growth!$F16) -> 0 | D16: =+'Start Year Balance'!D16*(1+Growth!$F16) -> 0 | E16: =+'Start Year Balance'!E16*(1+Growth!$F16) -> 775.9743069 | F16: =+'Start Year Balance'!F16*(1+Growth!$F16) -> 0 | G16: =+'Start Year Balance'!G16*(1+Growth!$F16) -> 0 | H16: 860.681403 | I16: =+'Start Year Balance'!I16*(1+Growth!$F16) -> 2156.180627 | J16: =+'Start Year Balance'!J16*(1+Growth!$F16) -> 6620.047595 | K16: =+'Start Year Balance'!K16*(1+Growth!$F16) -> 15505.15936 | L16: =+'Start Year Balance'!L16*(1+Growth!$F16) -> 0 | M16: =+'Start Year Balance'!M16*(1+Growth!$F16) -> 0 | N16: 25142.06898
A17: Industry - transport equipment | B17: =+'Start Year Balance'!B17*(1+Growth!$F17) -> 1948.263209 | C17: =+'Start Year Balance'!C17*(1+Growth!$F17) -> 0 | D17: =+'Start Year Balance'!D17*(1+Growth!$F17) -> 0 | E17: =+'Start Year Balance'!E17*(1+Growth!$F17) -> 543.1820148 | F17: =+'Start Year Balance'!F17*(1+Growth!$F17) -> 0 | G17: =+'Start Year Balance'!G17*(1+Growth!$F17) -> 0 | H17: 2491.445224 | I17: =+'Start Year Balance'!I17*(1+Growth!$F17) -> 0 | J17: =+'Start Year Balance'!J17*(1+Growth!$F17) -> 262.1801028 | K17: =+'Start Year Balance'!K17*(1+Growth!$F17) -> 12432.06471 | L17: =+'Start Year Balance'!L17*(1+Growth!$F17) -> 0 | M17: =+'Start Year Balance'!M17*(1+Growth!$F17) -> 0 | N17: 15185.69004
A18: Industry - textile and leather | B18: =+'Start Year Balance'!B18*(1+Growth!$F18) -> 1016.485153 | C18: =+'Start Year Balance'!C18*(1+Growth!$F18) -> 0 | D18: =+'Start Year Balance'!D18*(1+Growth!$F18) -> 0 | E18: =+'Start Year Balance'!E18*(1+Growth!$F18) -> 465.5845841 | F18: =+'Start Year Balance'!F18*(1+Growth!$F18) -> 0 | G18: =+'Start Year Balance'!G18*(1+Growth!$F18) -> 0 | H18: 1482.069737 | I18: =+'Start Year Balance'!I18*(1+Growth!$F18) -> 17801.0261 | J18: =+'Start Year Balance'!J18*(1+Growth!$F18) -> 35590.94895 | K18: =+'Start Year Balance'!K18*(1+Growth!$F18) -> 83671.98608 | L18: =+'Start Year Balance'!L18*(1+Growth!$F18) -> 0 | M18: =+'Start Year Balance'!M18*(1+Growth!$F18) -> 0 | N18: 138546.0309
A19: Industry - miscellaneous | B19: =+'Start Year Balance'!B19*(1+Growth!$F19) -> 0 | C19: =+'Start Year Balance'!C19*(1+Growth!$F19) -> 0 | D19: =+'Start Year Balance'!D19*(1+Growth!$F19) -> 0 | E19: =+'Start Year Balance'!E19*(1+Growth!$F19) -> 0 | F19: =+'Start Year Balance'!F19*(1+Growth!$F19) -> 0 | G19: =+'Start Year Balance'!G19*(1+Growth!$F19) -> 0 | H19: 0 | I19: =+'Start Year Balance'!I19*(1+Growth!$F19) -> 0 | J19: =+'Start Year Balance'!J19*(1+Growth!$F19) -> 32.77251285 | K19: =+'Start Year Balance'!K19*(1+Growth!$F19) -> 43372.54036 | L19: =+'Start Year Balance'!L19*(1+Growth!$F19) -> 0 | M19: =+'Start Year Balance'!M19*(1+Growth!$F19) -> 0 | N19: 43405.31288
A20: Transport - road | B20: =+'Start Year Balance'!B20*(1+Growth!$F21) -> 259966.0778 | C20: =+'Start Year Balance'!C20*(1+Growth!$F21) -> 162706.393 | D20: =+'Start Year Balance'!D20*(1+Growth!$F21) -> 0 | E20: =+'Start Year Balance'!E20*(1+Growth!$F21) -> 1274770.591 | F20: =+'Start Year Balance'!F20*(1+Growth!$F21) -> 0 | G20: =+'Start Year Balance'!G20*(1+Growth!$F21) -> 0 | H20: 1697443.062 | I20: =+'Start Year Balance'!I20*(1+Growth!$F21) -> 0 | J20: =+'Start Year Balance'!J20*(1+Growth!$F21) -> 0 | K20: =+'Start Year Balance'!K20*(1+Growth!$F21) -> 6006.503174 | L20: =+'Start Year Balance'!L20*(1+Growth!$F21) -> 0 | M20: =+'Start Year Balance'!M20*(1+Growth!$F21) -> 0 | N20: 1703449.565
A21: Transport - rail | B21: =+'Start Year Balance'!B21*(1+Growth!$F22) -> 0 | C21: =+'Start Year Balance'!C21*(1+Growth!$F22) -> 0 | D21: =+'Start Year Balance'!D21*(1+Growth!$F22) -> 0 | E21: =+'Start Year Balance'!E21*(1+Growth!$F22) -> 10475.65314 | F21: =+'Start Year Balance'!F21*(1+Growth!$F22) -> 0 | G21: =+'Start Year Balance'!G21*(1+Growth!$F22) -> 0 | H21: 10475.65314 | I21: =+'Start Year Balance'!I21*(1+Growth!$F22) -> 0 | J21: =+'Start Year Balance'!J21*(1+Growth!$F22) -> 0 | K21: =+'Start Year Balance'!K21*(1+Growth!$F22) -> 0 | L21: =+'Start Year Balance'!L21*(1+Growth!$F22) -> 0 | M21: =+'Start Year Balance'!M21*(1+Growth!$F22) -> 0 | N21: 10475.65314
A22: Transport - domestic air | B22: =+'Start Year Balance'!B22*(1+Growth!$F23) -> 0 | C22: =+'Start Year Balance'!C22*(1+Growth!$F23) -> 0 | D22: =+'Start Year Balance'!D22*(1+Growth!$F23) -> 105327.2925 | E22: =+'Start Year Balance'!E22*(1+Growth!$F23) -> 0 | F22: =+'Start Year Balance'!F22*(1+Growth!$F23) -> 0 | G22: =+'Start Year Balance'!G22*(1+Growth!$F23) -> 0 | H22: 105327.2925 | I22: =+'Start Year Balance'!I22*(1+Growth!$F23) -> 0 | J22: =+'Start Year Balance'!J22*(1+Growth!$F23) -> 0 | K22: =+'Start Year Balance'!K22*(1+Growth!$F23) -> 0 | L22: =+'Start Year Balance'!L22*(1+Growth!$F23) -> 0 | M22: =+'Start Year Balance'!M22*(1+Growth!$F23) -> 0 | N22: 105327.2925
A23: Transport - navigation | B23: =+'Start Year Balance'!B23*(1+Growth!$F24) -> 0 | C23: =+'Start Year Balance'!C23*(1+Growth!$F24) -> 0 | D23: =+'Start Year Balance'!D23*(1+Growth!$F24) -> 0 | E23: =+'Start Year Balance'!E23*(1+Growth!$F24) -> 0 | F23: =+'Start Year Balance'!F23*(1+Growth!$F24) -> 13171.27291 | G23: =+'Start Year Balance'!G23*(1+Growth!$F24) -> 0 | H23: 13171.27291 | I23: =+'Start Year Balance'!I23*(1+Growth!$F24) -> 0 | J23: =+'Start Year Balance'!J23*(1+Growth!$F24) -> 0 | K23: =+'Start Year Balance'!K23*(1+Growth!$F24) -> 0 | L23: =+'Start Year Balance'!L23*(1+Growth!$F24) -> 0 | M23: =+'Start Year Balance'!M23*(1+Growth!$F24) -> 0 | N23: 13171.27291
A24: Households | B24: =+'Start Year Balance'!B24*(1+Growth!$F26) -> 20753.23853 | C24: =+'Start Year Balance'!C24*(1+Growth!$F26) -> 0 | D24: =+'Start Year Balance'!D24*(1+Growth!$F26) -> 0 | E24: =+'Start Year Balance'!E24*(1+Growth!$F26) -> 0 | F24: =+'Start Year Balance'!F24*(1+Growth!$F26) -> 0 | G24: =+'Start Year Balance'!G24*(1+Growth!$F27) -> 4648.145196 | H24: 25401.38373 | I24: =+'Start Year Balance'!I24*(1+Growth!$F26) -> 76017.90302 | J24: =+'Start Year Balance'!J24*(1+Growth!$F26) -> 76228.86488 | K24: =+'Start Year Balance'!K24*(1+Growth!$F26) -> 768273.6618 | L24: =+'Start Year Balance'!L24*(1+Growth!$F26) -> 0 | M24: =+'Start Year Balance'!M24*(1+Growth!$F26) -> 0 | N24: 945921.8134
A25: Services | B25: =+'Start Year Balance'!B25*(1+Growth!$F29) -> 48367.75184 | C25: =+'Start Year Balance'!C25*(1+Growth!$F29) -> 0 | D25: =+'Start Year Balance'!D25*(1+Growth!$F29) -> 0 | E25: =+'Start Year Balance'!E25*(1+Growth!$F29) -> 0 | F25: =+'Start Year Balance'!F25*(1+Growth!$F29) -> 0 | G25: =+'Start Year Balance'!G25*(1+Growth!$F29) -> 0 | H25: 48367.75184 | I25: =+'Start Year Balance'!I25*(1+Growth!$F29) -> 261900.7305 | J25: =+'Start Year Balance'!J25*(1+Growth!$F29) -> 26545.73541 | K25: =+'Start Year Balance'!K25*(1+Growth!$F29) -> 220773.9132 | L25: =+'Start Year Balance'!L25*(1+Growth!$F29) -> 2406.899304 | M25: =+'Start Year Balance'!M25*(1+Growth!$F29) -> 0 | N25: 559995.0303
A26: Agriculture & Fishery | B26: =+'Start Year Balance'!B26*(1+Growth!$F31) -> 0 | C26: =+'Start Year Balance'!C26*(1+Growth!$F31) -> 0 | D26: =+'Start Year Balance'!D26*(1+Growth!$F31) -> 0 | E26: =+'Start Year Balance'!E26*(1+Growth!$F31) -> 210832.2192 | F26: =+'Start Year Balance'!F26*(1+Growth!$F31) -> 0 | G26: =+'Start Year Balance'!G26*(1+Growth!$F31) -> 0 | H26: 210832.2192 | I26: =+'Start Year Balance'!I26*(1+Growth!$F31) -> 0 | J26: =+'Start Year Balance'!J26*(1+Growth!$F31) -> 0 | K26: =+'Start Year Balance'!K26*(1+Growth!$F31) -> 9289.127002 | L26: =+'Start Year Balance'!L26*(1+Growth!$F31) -> 0 | M26: =+'Start Year Balance'!M26*(1+Growth!$F31) -> 0 | N26: 220121.3462
A27: Non energy uses | B27: =+'Start Year Balance'!B27*(1+Growth!$F33) -> 0 | C27: =+'Start Year Balance'!C27*(1+Growth!$F33) -> 0 | D27: =+'Start Year Balance'!D27*(1+Growth!$F33) -> 0 | E27: =+'Start Year Balance'!E27*(1+Growth!$F33) -> 0 | F27: =+'Start Year Balance'!F27*(1+Growth!$F33) -> 0 | G27: =+'Start Year Balance'!G27*(1+Growth!$F33) -> 0 | H27: 0 | I27: =+'Start Year Balance'!I27*(1+Growth!$F33) -> 0 | J27: =+'Start Year Balance'!J27*(1+Growth!$F33) -> 0 | K27: =+'Start Year Balance'!K27*(1+Growth!$F33) -> 0 | L27: =+'Start Year Balance'!L27*(1+Growth!$F33) -> 0 | M27: =+'Start Year Balance'!M27*(1+Growth!$F33) -> 0 | N27: 0
A30: Fossil fuel balance | B30: =+assumptions!$B$2 -> Country X | D30: 2025
A31: =+'Start Year Balance'!A31 -> 1 ktoe=41.868 TJ
A32: =+'Start Year Balance'!A32 -> ktoe per TJ | C32: =+'Start Year Balance'!C32 -> 0.02388458966 | D32: =+'Start Year Balance'!D32 -> 0.02388458966 | E32: =+'Start Year Balance'!E32 -> 0.02388458966 | F32: =+'Start Year Balance'!F32 -> 0.02388458966 | G32: =+'Start Year Balance'!G32 -> 0.02388458966 | H32: =+'Start Year Balance'!H32 -> 0.02388458966 | J32: =+'Start Year Balance'!J32 -> 0.02388458966 | K32: =+'Start Year Balance'!K32 -> 0.02388458966 | L32: =+'Start Year Balance'!L32 -> 0.02388458966 | M32: 0.02388458966 | N32: 0.02388458966
A33: Unit : ktoe | B33: Total | C33: LPG | D33: Gasoline | E33: Jet Fuel | F33: Diesel | G33: Fueloil | H33: Kerosene and other | I33: Total oil products | J33: Coal | K33: Lignite | L33: Gas | M33: Coke | N33: Petrocoke | O33: Electricity consumption Gwh | Q33: Electricity production Gwh | R33: Share of production | S33: Efficiency
A34: Total consumption | B34: =+B35+B36 -> 216295.7412 | C34: =+C35+C36 -> 8082.660951 | D34: 3886.175431 | E34: 2515.699162 | F34: 37310.44896 | G34: 804.5263938 | H34: 111.0190407 | I34: 52710.52994 | J34: 33849.53656 | K34: 44152.24896 | L34: 74247.03644 | M34: 5910.464668 | N34: 5425.92462 | P34: Total | Q34: =IF(R35=1,0,O36/(1-R35)) -> 468817.0642
A35: Fossil power plants | B35: =SUM(I35:N35) -> 91335.3186 | C35: =IF(Q36=0,0,$I35*IF('Start Year Balance'!$I35>0,'Start Year Balance'!C35/'Start Year Balance'!$I35,0)) -> 0 | D35: =IF(Q36=0,0,$I35*IF('Start Year Balance'!$I35>0,'Start Year Balance'!D35/'Start Year Balance'!$I35,0)) -> 0 | E35: =IF(Q36=0,0,$I35*IF('Start Year Balance'!$I35>0,'Start Year Balance'!E35/'Start Year Balance'!$I35,0)) -> 0 | F35: =IF(Q36=0,0,$I35*IF('Start Year Balance'!$I35>0,'Start Year Balance'!F35/'Start Year Balance'!$I35,0)) -> 441.1051042 | G35: =IF(Q36=0,0,$I35*IF('Start Year Balance'!$I35>0,'Start Year Balance'!G35/'Start Year Balance'!$I35,0)) -> 390.2296825 | H35: =IF(Q36=0,0,$I35*IF('Start Year Balance'!$I35>0,'Start Year Balance'!H35/'Start Year Balance'!$I35,0)) -> 0 | I35: =IF(Q36=0,0,Q39/11.63/S39) -> 831.3347867 | J35: =IF(S38>0,Q38/11.63/S38,0) -> 19247.63479 | K35: =IF(S37>0,Q37/11.63/S37,0) -> 38548.48429 | L35: =IF(S40>0,Q40/11.63/S40,0) -> 32707.86473 | M35: =IF(T40>0,R40/11.63/T40,0) -> 0 | N35: 0 | P35: Losses | Q35: =Q34*R35 -> 80109.99001 | R35: =+'Start Year Balance'!R35 -> 0.1708768646
A36: FINAL CONSUMPTION | B36: =SUM(B37:B56) -> 124960.4226 | C36: =SUM(C37:C56) -> 8082.660951 | D36: 3886.175431 | E36: 2515.699162 | F36: 36869.34386 | G36: 414.2967113 | H36: 111.0190407 | I36: =SUM(C36:H36) -> 51879.19516 | J36: =SUM(J37:J56) -> 14601.90177 | K36: 5603.764676 | L36: 41539.17171 | M36: 5910.464668 | N36: 5425.92462 | O36: =SUM(O37:O56) -> 388707.0742 | P36: Fossil | Q36: =SUM(Q37:Q49) -> 318070.6685 | R36: =SUM(R37:R50) -> 0.6784536929
A37: Industry - steel | B37: =SUM(I37:N37) -> 455.8992309 | C37: =+'Start Year Balance'!C37*(1+Growth!$F8) -> 0 | D37: =+'Start Year Balance'!D37*(1+Growth!$F8) -> 0 | E37: =+'Start Year Balance'!E37*(1+Growth!$F8) -> 0 | F37: =+'Start Year Balance'!F37*(1+Growth!$F8) -> 31.50750745 | G37: =+'Start Year Balance'!G37*(1+Growth!$F8) -> 0 | H37: =+'Start Year Balance'!H37*(1+Growth!$F8) -> 0 | I37: =SUM(C37:H37) -> 31.50750745 | J37: =+'Start Year Balance'!J37*(1+Growth!$F8) -> 20.36026329 | K37: =+'Start Year Balance'!K37*(1+Growth!$F8) -> 20.35170856 | L37: =+'Start Year Balance'!L37*(1+Growth!$F8) -> 383.6797516 | M37: =+'Start Year Balance'!M37*(1+Growth!$F8) -> 0 | N37: =+'Start Year Balance'!N37*(1+Growth!$F8) -> 0 | O37: =+'Start Year Balance'!O37*(1+Growth!F$20) -> 2745.369519 | P37: Lignite | Q37: =Q$34*R37 -> 58050.32808 | R37: =+'Start Year Balance'!R37 -> 0.1238229845 | S37: =+'Start Year Balance'!S37 -> 0.1294844622
A38: Industry - chemical | B38: =SUM(I38:N38) -> 5077.622537 | C38: =+'Start Year Balance'!C38*(1+Growth!$F9) -> 18.20874808 | D38: =+'Start Year Balance'!D38*(1+Growth!$F9) -> 0 | E38: =+'Start Year Balance'!E38*(1+Growth!$F9) -> 0 | F38: =+'Start Year Balance'!F38*(1+Growth!$F9) -> 7.413531164 | G38: =+'Start Year Balance'!G38*(1+Growth!$F9) -> 5.157220473 | H38: =+'Start Year Balance'!H38*(1+Growth!$F9) -> 0 | I38: =SUM(C38:H38) -> 30.77949971 | J38: =+'Start Year Balance'!J38*(1+Growth!$F9) -> 471.8790434 | K38: =+'Start Year Balance'!K38*(1+Growth!$F9) -> 254.396357 | L38: =+'Start Year Balance'!L38*(1+Growth!$F9) -> 4320.567637 | M38: =+'Start Year Balance'!M38*(1+Growth!$F9) -> 0 | N38: =+'Start Year Balance'!N38*(1+Growth!$F9) -> 0 | O38: =+'Start Year Balance'!O38*(1+Growth!F$20) -> 27140.29684 | P38: Coal | Q38: 78351.37757 | R38: =+'Start Year Balance'!R38 -> 0.1671256947 | S38: =+'Start Year Balance'!S38 -> 0.3500173338
A39: Industry - non metallic mineral | B39: 13702.20227 | C39: =+'Start Year Balance'!C39*(1+Growth!$F10) -> 6.069582692 | D39: =+'Start Year Balance'!D39*(1+Growth!$F10) -> 0 | E39: =+'Start Year Balance'!E39*(1+Growth!$F10) -> 0 | F39: =+'Start Year Balance'!F39*(1+Growth!$F10) -> 44.48118698 | G39: =+'Start Year Balance'!G39*(1+Growth!$F10) -> 30.94332284 | H39: =+'Start Year Balance'!H39*(1+Growth!$F10) -> 0 | I39: 81.49409251 | J39: =+'Start Year Balance'!J39*(1+Growth!$F10) -> 3960.670042 | K39: =+'Start Year Balance'!K39*(1+Growth!$F10) -> 1100.557778 | L39: =+'Start Year Balance'!L39*(1+Growth!$F10) -> 3142.837617 | M39: =+'Start Year Balance'!M39*(1+Growth!$F10) -> 0 | N39: =+'Start Year Balance'!N39*(1+Growth!$F10) -> 5416.642736 | O39: =+'Start Year Balance'!O39*(1+Growth!F$20) -> 33207.68884 | P39: Oil | Q39: 3982.845277 | R39: =+'Start Year Balance'!R39 -> 0.008495521134 | S39: =+'Start Year Balance'!S39 -> 0.4119436068
A40: Industry - food processing and beverage | B40: 2710.400595 | C40: =+'Start Year Balance'!C40*(1+Growth!$F11) -> 40.46388461 | D40: =+'Start Year Balance'!D40*(1+Growth!$F11) -> 0 | E40: =+'Start Year Balance'!E40*(1+Growth!$F11) -> 0 | F40: =+'Start Year Balance'!F40*(1+Growth!$F11) -> 11.12029675 | G40: =+'Start Year Balance'!G40*(1+Growth!$F11) -> 63.60571917 | H40: =+'Start Year Balance'!H40*(1+Growth!$F11) -> 0 | I40: 115.1899005 | J40: =+'Start Year Balance'!J40*(1+Growth!$F11) -> 273.0670606 | K40: =+'Start Year Balance'!K40*(1+Growth!$F11) -> 616.030563 | L40: =+'Start Year Balance'!L40*(1+Growth!$F11) -> 1638.145722 | M40: =+'Start Year Balance'!M40*(1+Growth!$F11) -> 58.68546479 | N40: =+'Start Year Balance'!N40*(1+Growth!$F11) -> 9.281884737 | O40: =+'Start Year Balance'!O40*(1+Growth!F$20) -> 12715.01865 | P40: Natural Gas | Q40: 177686.1176 | R40: =+'Start Year Balance'!R40 -> 0.3790094925 | S40: =+'Start Year Balance'!S40 -> 0.4671126089
A41: Industry - construction | B41: 876.5354267 | C41: =+'Start Year Balance'!C41*(1+Growth!$F12) -> 0 | D41: =+'Start Year Balance'!D41*(1+Growth!$F12) -> 0 | E41: =+'Start Year Balance'!E41*(1+Growth!$F12) -> 0 | F41: =+'Start Year Balance'!F41*(1+Growth!$F12) -> 272.4472703 | G41: =+'Start Year Balance'!G41*(1+Growth!$F12) -> 0 | H41: =+'Start Year Balance'!H41*(1+Growth!$F12) -> 0 | I41: 272.4472703 | J41: =+'Start Year Balance'!J41*(1+Growth!$F12) -> 1.197662547 | K41: =+'Start Year Balance'!K41*(1+Growth!$F12) -> 2.348274065 | L41: =+'Start Year Balance'!L41*(1+Growth!$F12) -> 600.5422198 | M41: =+'Start Year Balance'!M41*(1+Growth!$F12) -> 0 | N41: =+'Start Year Balance'!N41*(1+Growth!$F12) -> 0 | O41: =+'Start Year Balance'!O41*(1+Growth!F$20) -> 5132.569498 | P41: Nuclear | Q41: 0 | R41: =+'Start Year Balance'!R41 -> 0
A42: Industry - mining | B42: 1010.06924 | C42: =+'Start Year Balance'!C42*(1+Growth!$F13) -> 0 | D42: =+'Start Year Balance'!D42*(1+Growth!$F13) -> 0 | E42: =+'Start Year Balance'!E42*(1+Growth!$F13) -> 0 | F42: =+'Start Year Balance'!F42*(1+Growth!$F13) -> 696.8719294 | G42: =+'Start Year Balance'!G42*(1+Growth!$F13) -> 0 | H42: =+'Start Year Balance'!H42*(1+Growth!$F13) -> 0 | I42: 696.8719294 | J42: =+'Start Year Balance'!J42*(1+Growth!$F13) -> 22.75558839 | K42: =+'Start Year Balance'!K42*(1+Growth!$F13) -> 73.57925403 | L42: =+'Start Year Balance'!L42*(1+Growth!$F13) -> 216.8624683 | M42: =+'Start Year Balance'!M42*(1+Growth!$F13) -> 0 | N42: =+'Start Year Balance'!N42*(1+Growth!$F13) -> 0 | O42: =+'Start Year Balance'!O42*(1+Growth!F$20) -> 3948.819171 | P42: Net import | Q42: 0 | R42: =+'Start Year Balance'!R42 -> 0
A43: Industry - machinery | B43: 147.679919 | C43: =+'Start Year Balance'!C43*(1+Growth!$F14) -> 10.11597115 | D43: =+'Start Year Balance'!D43*(1+Growth!$F14) -> 0 | E43: =+'Start Year Balance'!E43*(1+Growth!$F14) -> 0 | F43: =+'Start Year Balance'!F43*(1+Growth!$F14) -> 5.560148373 | G43: =+'Start Year Balance'!G43*(1+Growth!$F14) -> 0 | H43: =+'Start Year Balance'!H43*(1+Growth!$F14) -> 0 | I43: 15.67611953 | J43: =+'Start Year Balance'!J43*(1+Growth!$F14) -> 3.59298764 | K43: =+'Start Year Balance'!K43*(1+Growth!$F14) -> 13.30688637 | L43: =+'Start Year Balance'!L43*(1+Growth!$F14) -> 115.1039255 | M43: =+'Start Year Balance'!M43*(1+Growth!$F14) -> 0 | N43: =+'Start Year Balance'!N43*(1+Growth!$F14) -> 0 | O43: =+'Start Year Balance'!O43*(1+Growth!F$20) -> 3857.485938
A44: Industry - non ferrous metals | B44: 10678.56415 | C44: =+'Start Year Balance'!C44*(1+Growth!$F15) -> 74.85818653 | D44: =+'Start Year Balance'!D44*(1+Growth!$F15) -> 0 | E44: =+'Start Year Balance'!E44*(1+Growth!$F15) -> 0 | F44: =+'Start Year Balance'!F44*(1+Growth!$F15) -> 24.09397628 | G44: =+'Start Year Balance'!G44*(1+Growth!$F15) -> 0 | H44: =+'Start Year Balance'!H44*(1+Growth!$F15) -> 0 | I44: 98.95216281 | J44: =+'Start Year Balance'!J44*(1+Growth!$F15) -> 1300.661526 | K44: =+'Start Year Balance'!K44*(1+Growth!$F15) -> 53.22754547 | L44: =+'Start Year Balance'!L44*(1+Growth!$F15) -> 3431.431517 | M44: =+'Start Year Balance'!M44*(1+Growth!$F15) -> 5794.291401 | N44: =+'Start Year Balance'!N44*(1+Growth!$F15) -> 0 | O44: =+'Start Year Balance'!O44*(1+Growth!F$20) -> 45242.18536
A45: Industry - paper and pulp | B45: 600.5080009 | C45: =+'Start Year Balance'!C45*(1+Growth!$F16) -> 2.023194231 | D45: =+'Start Year Balance'!D45*(1+Growth!$F16) -> 0 | E45: =+'Start Year Balance'!E45*(1+Growth!$F16) -> 0 | F45: =+'Start Year Balance'!F45*(1+Growth!$F16) -> 18.53382791 | G45: =+'Start Year Balance'!G45*(1+Growth!$F16) -> 0 | H45: =+'Start Year Balance'!H45*(1+Growth!$F16) -> 0 | I45: 20.55702214 | J45: =+'Start Year Balance'!J45*(1+Growth!$F16) -> 51.49948951 | K45: =+'Start Year Balance'!K45*(1+Growth!$F16) -> 158.1171204 | L45: =+'Start Year Balance'!L45*(1+Growth!$F16) -> 370.3343689 | M45: =+'Start Year Balance'!M45*(1+Growth!$F16) -> 0 | N45: =+'Start Year Balance'!N45*(1+Growth!$F16) -> 0 | O45: =+'Start Year Balance'!O45*(1+Growth!F$20) -> 7195.626045
A46: Industry - transport equipment | B46: 362.7039753 | C46: =+'Start Year Balance'!C46*(1+Growth!$F17) -> 46.5334673 | D46: =+'Start Year Balance'!D46*(1+Growth!$F17) -> 0 | E46: =+'Start Year Balance'!E46*(1+Growth!$F17) -> 0 | F46: =+'Start Year Balance'!F46*(1+Growth!$F17) -> 12.97367954 | G46: =+'Start Year Balance'!G46*(1+Growth!$F17) -> 0 | H46: =+'Start Year Balance'!H46*(1+Growth!$F17) -> 0 | I46: 59.50714684 | J46: =+'Start Year Balance'!J46*(1+Growth!$F17) -> 0 | K46: =+'Start Year Balance'!K46*(1+Growth!$F17) -> 6.262064172 | L46: =+'Start Year Balance'!L46*(1+Growth!$F17) -> 296.9347642 | M46: =+'Start Year Balance'!M46*(1+Growth!$F17) -> 0 | N46: =+'Start Year Balance'!N46*(1+Growth!$F17) -> 0 | O46: =+'Start Year Balance'!O46*(1+Growth!F$20) -> 4756.491482
A47: Industry - textile and leather | B47: 3309.115097 | C47: =+'Start Year Balance'!C47*(1+Growth!$F18) -> 24.27833077 | D47: =+'Start Year Balance'!D47*(1+Growth!$F18) -> 0 | E47: =+'Start Year Balance'!E47*(1+Growth!$F18) -> 0 | F47: =+'Start Year Balance'!F47*(1+Growth!$F18) -> 11.12029675 | G47: =+'Start Year Balance'!G47*(1+Growth!$F18) -> 0 | H47: =+'Start Year Balance'!H47*(1+Growth!$F18) -> 0 | I47: 35.39862751 | J47: =+'Start Year Balance'!J47*(1+Growth!$F18) -> 425.1702041 | K47: =+'Start Year Balance'!K47*(1+Growth!$F18) -> 850.0752114 | L47: =+'Start Year Balance'!L47*(1+Growth!$F18) -> 1998.471054 | M47: =+'Start Year Balance'!M47*(1+Growth!$F18) -> 0 | N47: =+'Start Year Balance'!N47*(1+Growth!$F18) -> 0 | O47: =+'Start Year Balance'!O47*(1+Growth!F$20) -> 31108.81534
A48: Industry - miscellaneous | B48: 1036.718087 | C48: =+'Start Year Balance'!C48*(1+Growth!$F19) -> 0 | D48: =+'Start Year Balance'!D48*(1+Growth!$F19) -> 0 | E48: =+'Start Year Balance'!E48*(1+Growth!$F19) -> 0 | F48: =+'Start Year Balance'!F48*(1+Growth!$F19) -> 0 | G48: =+'Start Year Balance'!G48*(1+Growth!$F19) -> 0 | H48: =+'Start Year Balance'!H48*(1+Growth!$F19) -> 0 | I48: 0 | J48: =+'Start Year Balance'!J48*(1+Growth!$F19) -> 0 | K48: =+'Start Year Balance'!K48*(1+Growth!$F19) -> 0.7827580216 | L48: =+'Start Year Balance'!L48*(1+Growth!$F19) -> 1035.935329 | M48: =+'Start Year Balance'!M48*(1+Growth!$F19) -> 0 | N48: =+'Start Year Balance'!N48*(1+Growth!$F19) -> 0 | O48: =+'Start Year Balance'!O48*(1+Growth!F$20) -> 8361.467895
A49: Transport - road | B49: 40686.19388 | C49: =+'Start Year Balance'!C49*(1+Growth!$F21) -> 6209.183094 | D49: =+'Start Year Balance'!D49*(1+Growth!$F21) -> 3886.175431 | E49: =+'Start Year Balance'!E49*(1+Growth!$F21) -> 0 | F49: =+'Start Year Balance'!F49*(1+Growth!$F21) -> 30447.37249 | G49: =+'Start Year Balance'!G49*(1+Growth!$F21) -> 0 | H49: =+'Start Year Balance'!H49*(1+Growth!$F21) -> 0 | I49: 40542.73101 | J49: =+'Start Year Balance'!J49*(1+Growth!$F21) -> 0 | K49: =+'Start Year Balance'!K49*(1+Growth!$F21) -> 0 | L49: =+'Start Year Balance'!L49*(1+Growth!$F21) -> 143.4628636 | M49: =+'Start Year Balance'!M49*(1+Growth!$F21) -> 0 | N49: =+'Start Year Balance'!N49*(1+Growth!$F21) -> 0 | O49: =+'Start Year Balance'!O49*(1+Growth!F$25) -> 0
A50: Transport - rail | B50: 250.2066768 | C50: =+'Start Year Balance'!C50*(1+Growth!$F22) -> 0 | D50: =+'Start Year Balance'!D50*(1+Growth!$F22) -> 0 | E50: =+'Start Year Balance'!E50*(1+Growth!$F22) -> 0 | F50: =+'Start Year Balance'!F50*(1+Growth!$F22) -> 250.2066768 | G50: =+'Start Year Balance'!G50*(1+Growth!$F22) -> 0 | H50: =+'Start Year Balance'!H50*(1+Growth!$F22) -> 0 | I50: 250.2066768 | J50: =+'Start Year Balance'!J50*(1+Growth!$F22) -> 0 | K50: =+'Start Year Balance'!K50*(1+Growth!$F22) -> 0 | L50: =+'Start Year Balance'!L50*(1+Growth!$F22) -> 0 | M50: =+'Start Year Balance'!M50*(1+Growth!$F22) -> 0 | N50: =+'Start Year Balance'!N50*(1+Growth!$F22) -> 0 | O50: =+'Start Year Balance'!O50*(1+Growth!F$25) -> 1438.0507
A51: Transport - domestic air | B51: 2515.699162 | C51: =+'Start Year Balance'!C51*(1+Growth!$F23) -> 0 | D51: =+'Start Year Balance'!D51*(1+Growth!$F23) -> 0 | E51: =+'Start Year Balance'!E51*(1+Growth!$F23) -> 2515.699162 | F51: =+'Start Year Balance'!F51*(1+Growth!$F23) -> 0 | G51: =+'Start Year Balance'!G51*(1+Growth!$F23) -> 0 | H51: =+'Start Year Balance'!H51*(1+Growth!$F23) -> 0 | I51: 2515.699162 | J51: =+'Start Year Balance'!J51*(1+Growth!$F23) -> 0 | K51: =+'Start Year Balance'!K51*(1+Growth!$F23) -> 0 | L51: =+'Start Year Balance'!L51*(1+Growth!$F23) -> 0 | M51: =+'Start Year Balance'!M51*(1+Growth!$F23) -> 0 | N51: =+'Start Year Balance'!N51*(1+Growth!$F23) -> 0 | O51: =+'Start Year Balance'!O51*(1+Growth!F$25) -> 0 | P51: Renewables | Q51: =SUM(Q52:Q56) -> 150746.3957 | R51: =SUM(R52:R56) -> 0.3215463071
A52: Transport - navigation | B52: 314.5904489 | C52: =+'Start Year Balance'!C52*(1+Growth!$F24) -> 0 | D52: =+'Start Year Balance'!D52*(1+Growth!$F24) -> 0 | E52: =+'Start Year Balance'!E52*(1+Growth!$F24) -> 0 | F52: =+'Start Year Balance'!F52*(1+Growth!$F24) -> 0 | G52: =+'Start Year Balance'!G52*(1+Growth!$F24) -> 314.5904489 | H52: =+'Start Year Balance'!H52*(1+Growth!$F24) -> 0 | I52: 314.5904489 | J52: =+'Start Year Balance'!J52*(1+Growth!$F24) -> 0 | K52: =+'Start Year Balance'!K52*(1+Growth!$F24) -> 0 | L52: =+'Start Year Balance'!L52*(1+Growth!$F24) -> 0 | M52: =+'Start Year Balance'!M52*(1+Growth!$F24) -> 0 | N52: =+'Start Year Balance'!N52*(1+Growth!$F24) -> 0 | O52: =+'Start Year Balance'!O52*(1+Growth!F$25) -> 0 | P52: Hydro | Q52: =Q$34*R52 -> 120248.2594 | R52: =+'Start Year Balance'!R52 -> 0.2564929236
A53: Households | B53: 22592.95437 | C53: =+'Start Year Balance'!C53*(1+Growth!$F26) -> 495.6825865 | D53: =+'Start Year Balance'!D53*(1+Growth!$F26) -> 0 | E53: =+'Start Year Balance'!E53*(1+Growth!$F26) -> 0 | F53: =+'Start Year Balance'!F53*(1+Growth!$F26) -> 0 | G53: =+'Start Year Balance'!G53*(1+Growth!$F26) -> 0 | H53: =+'Start Year Balance'!H53*(1+Growth!$F27) -> 111.0190407 | I53: 606.7016272 | J53: =+'Start Year Balance'!J53*(1+Growth!$F26) -> 1815.656421 | K53: =+'Start Year Balance'!K53*(1+Growth!$F26) -> 1820.695158 | L53: =+'Start Year Balance'!L53*(1+Growth!$F26) -> 18349.90116 | M53: =+'Start Year Balance'!M53*(1+Growth!$F26) -> 0 | N53: =+'Start Year Balance'!N53*(1+Growth!$F26) -> 0 | O53: =+'Start Year Balance'!O53*(1+Growth!F28) -> 85783.39551 | P53: Wind | Q53: =Q$34*R53 -> 20868.74821 | R53: =+'Start Year Balance'!R53 -> 0.0445136276
A54: Services | B54: 13375.25151 | C54: =+'Start Year Balance'!C54*(1+Growth!$F29) -> 1155.243906 | D54: =+'Start Year Balance'!D54*(1+Growth!$F29) -> 0 | E54: =+'Start Year Balance'!E54*(1+Growth!$F29) -> 0 | F54: =+'Start Year Balance'!F54*(1+Growth!$F29) -> 0 | G54: =+'Start Year Balance'!G54*(1+Growth!$F29) -> 0 | H54: =+'Start Year Balance'!H54*(1+Growth!$F29) -> 0 | I54: 1155.243906 | J54: =+'Start Year Balance'!J54*(1+Growth!$F29) -> 6255.391481 | K54: =+'Start Year Balance'!K54*(1+Growth!$F29) -> 634.0339975 | L54: =+'Start Year Balance'!L54*(1+Growth!$F29) -> 5273.094325 | M54: =+'Start Year Balance'!M54*(1+Growth!$F29) -> 57.48780224 | N54: =+'Start Year Balance'!N54*(1+Growth!$F29) -> 0 | O54: =+'Start Year Balance'!O54*(1+Growth!F30) -> 107332.6658 | P54: Solar | Q54: =Q$34*R54 -> 347.4244531 | R54: =+'Start Year Balance'!R54 -> 0.0007410661421
A55: Agriculture & Fishery | B55: 5257.50803 | C55: =+'Start Year Balance'!C55*(1+Growth!$F31) -> 0 | D55: =+'Start Year Balance'!D55*(1+Growth!$F31) -> 0 | E55: =+'Start Year Balance'!E55*(1+Growth!$F31) -> 0 | F55: =+'Start Year Balance'!F55*(1+Growth!$F31) -> 5035.641043 | G55: =+'Start Year Balance'!G55*(1+Growth!$F31) -> 0 | H55: =+'Start Year Balance'!H55*(1+Growth!$F31) -> 0 | I55: 5035.641043 | J55: =+'Start Year Balance'!J55*(1+Growth!$F31) -> 0 | K55: =+'Start Year Balance'!K55*(1+Growth!$F31) -> 0 | L55: =+'Start Year Balance'!L55*(1+Growth!$F31) -> 221.8669868 | M55: =+'Start Year Balance'!M55*(1+Growth!$F31) -> 0 | N55: =+'Start Year Balance'!N55*(1+Growth!$F31) -> 0 | O55: =+'Start Year Balance'!O55*(1+Growth!F32) -> 8741.127607 | P55: Biomass | Q55: =Q$34*R55 -> 3148.310251 | R55: =+'Start Year Balance'!R55 -> 0.006715434421
A56: Non energy uses | B56: 0 | C56: =+'Start Year Balance'!C56*(1+Growth!$F33) -> 0 | D56: =+'Start Year Balance'!D56*(1+Growth!$F33) -> 0 | E56: =+'Start Year Balance'!E56*(1+Growth!$F33) -> 0 | F56: =+'Start Year Balance'!F56*(1+Growth!$F33) -> 0 | G56: =+'Start Year Balance'!G56*(1+Growth!$F33) -> 0 | H56: =+'Start Year Balance'!H56*(1+Growth!$F33) -> 0 | I56: 0 | J56: =+'Start Year Balance'!J56*(1+Growth!$F33) -> 0 | K56: =+'Start Year Balance'!K56*(1+Growth!$F33) -> 0 | L56: =+'Start Year Balance'!L56*(1+Growth!$F33) -> 0 | M56: =+'Start Year Balance'!M56*(1+Growth!$F33) -> 0 | N56: =+'Start Year Balance'!N56*(1+Growth!$F33) -> 0 | O56: =+'Start Year Balance'!O56*(1+Growth!F33) -> 0 | P56: Geothermal | Q56: =Q$34*R56 -> 6133.653361 | R56: =+'Start Year Balance'!R56 -> 0.01308325534
R57: =+R36+R51 -> 1
A59: GHG Balance | B59: =+assumptions!$B$2 -> Country X | D59: 2025
A60: Ton CO2/Toe (IPCC): | C60: =+'Start Year Balance'!C60 -> 2.614070448 | D60: =+'Start Year Balance'!D60 -> 2.872437876 | E60: =+'Start Year Balance'!E60 -> 2.96362638 | F60: =+'Start Year Balance'!F60 -> 3.070012968 | G60: =+'Start Year Balance'!G60 -> 3.206795724 | H60: =+'Start Year Balance'!H60 -> 2.978824464 | J60: =+'Start Year Balance'!J60 -> 3.921105672 | K60: =+'Start Year Balance'!K60 -> 4.194671184 | L60: =+'Start Year Balance'!L60 -> 2.325306852 | M60: =+'Start Year Balance'!M60 -> 4.484816424 | N60: =+'Start Year Balance'!N60 -> 4.157366796
A61: Unit : ktCO2-e | B61: Total | C61: LPG | D61: Gasoline | E61: Jet Fuel | F61: Diesel | G61: Fueloil | H61: Kerosene and other | I61: Total oil products | J61: Coal | K61: Lignite | L61: Gas | M61: Coke | N61: Petrocoke
A62: Total | B62: =+B63+B64 -> 696845.0819 | C62: =+C63+C64 -> 21128.64513 | D62: 11162.7975 | E62: 7455.5924 | F62: 114543.5622 | G62: 2579.9518 | H62: 330.7062344 | I62: 157201.2552 | J62: 132727.6098 | K62: 185204.1664 | L62: 172647.1426 | M62: 26507.34902 | N62: 22557.55885
A63: Fossil power plants | B63: =SUM(I63:N63) -> 315831.6334 | C63: =C60*C35 -> 0 | D63: =D60*D35 -> 0 | E63: 0 | F63: 1354.19839 | G63: 1251.386877 | H63: 0 | I63: =SUM(C63:H63) -> 2605.585267 | J63: =J60*J35 -> 75472.00994 | K63: 161698.2162 | L63: 76055.82198 | M63: 0 | N63: 0
A64: FINAL CONSUMPTION | B64: =SUM(B65:B84) -> 381013.4485 | C64: =SUM(C65:C84) -> 21128.64513 | D64: 11162.7975 | E64: 7455.5924 | F64: 113189.3638 | G64: 1328.564922 | H64: 330.7062344 | I64: =SUM(C64:H64) -> 154595.67 | J64: =SUM(J65:J84) -> 57255.59985 | K64: 23505.95021 | L64: 96591.3206 | M64: 26507.34902 | N64: 22557.55885
A65: Industry - steel | B65: =SUM(I65:N65) -> 1154.105081 | C65: =+'Start Year Balance'!C65*(1+Growth!$F8) -> 0 | D65: =+'Start Year Balance'!D65*(1+Growth!$F8) -> 0 | E65: =+'Start Year Balance'!E65*(1+Growth!$F8) -> 0 | F65: =+'Start Year Balance'!F65*(1+Growth!$F8) -> 96.72845645 | G65: =+'Start Year Balance'!G65*(1+Growth!$F8) -> 0 | H65: =+'Start Year Balance'!H65*(1+Growth!$F8) -> 0 | I65: =SUM(C65:H65) -> 96.72845645 | J65: =+'Start Year Balance'!J65*(1+Growth!$F8) -> 79.83474388 | K65: =+'Start Year Balance'!K65*(1+Growth!$F8) -> 85.36872544 | L65: =+'Start Year Balance'!L65*(1+Growth!$F8) -> 892.1731553 | M65: =+'Start Year Balance'!M65*(1+Growth!$F8) -> 0 | N65: =+'Start Year Balance'!N65*(1+Growth!$F8) -> 0
A66: Industry - chemical | B66: =SUM(I66:N66) -> 13050.93893 | C66: =+'Start Year Balance'!C66*(1+Growth!$F9) -> 47.59895024 | D66: =+'Start Year Balance'!D66*(1+Growth!$F9) -> 0 | E66: =+'Start Year Balance'!E66*(1+Growth!$F9) -> 0 | F66: =+'Start Year Balance'!F66*(1+Growth!$F9) -> 22.75963681 | G66: =+'Start Year Balance'!G66*(1+Growth!$F9) -> 16.53815256 | H66: =+'Start Year Balance'!H66*(1+Growth!$F9) -> 0 | I66: 86.89673961 | J66: =+'Start Year Balance'!J66*(1+Growth!$F9) -> 1850.287593 | K66: =+'Start Year Balance'!K66*(1+Growth!$F9) -> 1067.109068 | L66: =+'Start Year Balance'!L66*(1+Growth!$F9) -> 10046.64553 | M66: =+'Start Year Balance'!M66*(1+Growth!$F9) -> 0 | N66: =+'Start Year Balance'!N66*(1+Growth!$F9) -> 0
A67: Industry - non metallic mineral | B67: 50225.36932 | C67: =+'Start Year Balance'!C67*(1+Growth!$F10) -> 15.86631675 | D67: =+'Start Year Balance'!D67*(1+Growth!$F10) -> 0 | E67: =+'Start Year Balance'!E67*(1+Growth!$F10) -> 0 | F67: =+'Start Year Balance'!F67*(1+Growth!$F10) -> 136.5578209 | G67: =+'Start Year Balance'!G67*(1+Growth!$F10) -> 99.22891537 | H67: =+'Start Year Balance'!H67*(1+Growth!$F10) -> 0 | I67: 251.653053 | J67: =+'Start Year Balance'!J67*(1+Growth!$F10) -> 15530.20577 | K67: =+'Start Year Balance'!K67*(1+Growth!$F10) -> 4616.477999 | L67: =+'Start Year Balance'!L67*(1+Growth!$F10) -> 7308.061846 | M67: =+'Start Year Balance'!M67*(1+Growth!$F10) -> 0 | N67: =+'Start Year Balance'!N67*(1+Growth!$F10) -> 22518.97065
A68: Industry - food processing and beverage | B68: 8109.629107 | C68: =+'Start Year Balance'!C68*(1+Growth!$F11) -> 105.775445 | D68: =+'Start Year Balance'!D68*(1+Growth!$F11) -> 0 | E68: =+'Start Year Balance'!E68*(1+Growth!$F11) -> 0 | F68: =+'Start Year Balance'!F68*(1+Growth!$F11) -> 34.13945522 | G68: =+'Start Year Balance'!G68*(1+Growth!$F11) -> 203.9705483 | H68: =+'Start Year Balance'!H68*(1+Growth!$F11) -> 0 | I68: 343.8854484 | J68: =+'Start Year Balance'!J68*(1+Growth!$F11) -> 1070.7248 | K68: =+'Start Year Balance'!K68*(1+Growth!$F11) -> 2584.045651 | L68: =+'Start Year Balance'!L68*(1+Growth!$F11) -> 3809.191472 | M68: =+'Start Year Balance'!M68*(1+Growth!$F11) -> 263.1935363 | N68: =+'Start Year Balance'!N68*(1+Growth!$F11) -> 38.58819941
A69: Industry - construction | B69: 2247.40799 | C69: =+'Start Year Balance'!C69*(1+Growth!$F12) -> 0 | D69: =+'Start Year Balance'!D69*(1+Growth!$F12) -> 0 | E69: =+'Start Year Balance'!E69*(1+Growth!$F12) -> 0 | F69: =+'Start Year Balance'!F69*(1+Growth!$F12) -> 836.4166528 | G69: =+'Start Year Balance'!G69*(1+Growth!$F12) -> 0 | H69: =+'Start Year Balance'!H69*(1+Growth!$F12) -> 0 | I69: 836.4166528 | J69: =+'Start Year Balance'!J69*(1+Growth!$F12) -> 4.696161405 | K69: =+'Start Year Balance'!K69*(1+Growth!$F12) -> 9.850237551 | L69: =+'Start Year Balance'!L69*(1+Growth!$F12) -> 1396.444939 | M69: =+'Start Year Balance'!M69*(1+Growth!$F12) -> 0 | N69: =+'Start Year Balance'!N69*(1+Growth!$F12) -> 0
A70: Industry - mining | B70: 3041.545487 | C70: =+'Start Year Balance'!C70*(1+Growth!$F13) -> 0 | D70: =+'Start Year Balance'!D70*(1+Growth!$F13) -> 0 | E70: =+'Start Year Balance'!E70*(1+Growth!$F13) -> 0 | F70: =+'Start Year Balance'!F70*(1+Growth!$F13) -> 2139.40586 | G70: =+'Start Year Balance'!G70*(1+Growth!$F13) -> 0 | H70: =+'Start Year Balance'!H70*(1+Growth!$F13) -> 0 | I70: 2139.40586 | J70: =+'Start Year Balance'!J70*(1+Growth!$F13) -> 89.22706669 | K70: =+'Start Year Balance'!K70*(1+Growth!$F13) -> 308.6407766 | L70: =+'Start Year Balance'!L70*(1+Growth!$F13) -> 504.2717834 | M70: =+'Start Year Balance'!M70*(1+Growth!$F13) -> 0 | N70: =+'Start Year Balance'!N70*(1+Growth!$F13) -> 0
A71: Industry - machinery | B71: 381.0720324 | C71: =+'Start Year Balance'!C71*(1+Growth!$F14) -> 26.44386124 | D71: =+'Start Year Balance'!D71*(1+Growth!$F14) -> 0 | E71: =+'Start Year Balance'!E71*(1+Growth!$F14) -> 0 | F71: =+'Start Year Balance'!F71*(1+Growth!$F14) -> 17.06972761 | G71: =+'Start Year Balance'!G71*(1+Growth!$F14) -> 0 | H71: =+'Start Year Balance'!H71*(1+Growth!$F14) -> 0 | I71: 43.51358885 | J71: =+'Start Year Balance'!J71*(1+Growth!$F14) -> 14.08848421 | K71: =+'Start Year Balance'!K71*(1+Growth!$F14) -> 55.81801279 | L71: =+'Start Year Balance'!L71*(1+Growth!$F14) -> 267.6519466 | M71: =+'Start Year Balance'!M71*(1+Growth!$F14) -> 0 | N71: =+'Start Year Balance'!N71*(1+Growth!$F14) -> 0
A72: Industry - non ferrous metals | B72: 39558.42119 | C72: =+'Start Year Balance'!C72*(1+Growth!$F15) -> 195.6845732 | D72: =+'Start Year Balance'!D72*(1+Growth!$F15) -> 0 | E72: =+'Start Year Balance'!E72*(1+Growth!$F15) -> 0 | F72: =+'Start Year Balance'!F72*(1+Growth!$F15) -> 73.96881964 | G72: =+'Start Year Balance'!G72*(1+Growth!$F15) -> 0 | H72: =+'Start Year Balance'!H72*(1+Growth!$F15) -> 0 | I72: 269.6533928 | J72: =+'Start Year Balance'!J72*(1+Growth!$F15) -> 5100.031286 | K72: =+'Start Year Balance'!K72*(1+Growth!$F15) -> 223.2720512 | L72: =+'Start Year Balance'!L72*(1+Growth!$F15) -> 7979.131219 | M72: =+'Start Year Balance'!M72*(1+Growth!$F15) -> 25986.33324 | N72: =+'Start Year Balance'!N72*(1+Growth!$F15) -> 0
A73: Industry - paper and pulp | B73: 1788.513179 | C73: =+'Start Year Balance'!C73*(1+Growth!$F16) -> 5.288772249 | D73: =+'Start Year Balance'!D73*(1+Growth!$F16) -> 0 | E73: =+'Start Year Balance'!E73*(1+Growth!$F16) -> 0 | F73: =+'Start Year Balance'!F73*(1+Growth!$F16) -> 56.89909203 | G73: =+'Start Year Balance'!G73*(1+Growth!$F16) -> 0 | H73: =+'Start Year Balance'!H73*(1+Growth!$F16) -> 0 | I73: 62.18786428 | J73: =+'Start Year Balance'!J73*(1+Growth!$F16) -> 201.9349404 | K73: =+'Start Year Balance'!K73*(1+Growth!$F16) -> 663.2493285 | L73: =+'Start Year Balance'!L73*(1+Growth!$F16) -> 861.1410455 | M73: =+'Start Year Balance'!M73*(1+Growth!$F16) -> 0 | N73: =+'Start Year Balance'!N73*(1+Growth!$F16) -> 0
A74: Industry - transport equipment | B74: 878.2028682 | C74: =+'Start Year Balance'!C74*(1+Growth!$F17) -> 121.6417617 | D74: =+'Start Year Balance'!D74*(1+Growth!$F17) -> 0 | E74: =+'Start Year Balance'!E74*(1+Growth!$F17) -> 0 | F74: =+'Start Year Balance'!F74*(1+Growth!$F17) -> 39.82936442 | G74: =+'Start Year Balance'!G74*(1+Growth!$F17) -> 0 | H74: =+'Start Year Balance'!H74*(1+Growth!$F17) -> 0 | I74: 161.4711261 | J74: =+'Start Year Balance'!J74*(1+Growth!$F17) -> 0 | K74: =+'Start Year Balance'!K74*(1+Growth!$F17) -> 26.26730014 | L74: =+'Start Year Balance'!L74*(1+Growth!$F17) -> 690.4644419 | M74: =+'Start Year Balance'!M74*(1+Growth!$F17) -> 0 | N74: =+'Start Year Balance'!N74*(1+Growth!$F17) -> 0
A75: Industry - textile and leather | B75: 9977.586449 | C75: =+'Start Year Balance'!C75*(1+Growth!$F18) -> 63.46526699 | D75: =+'Start Year Balance'!D75*(1+Growth!$F18) -> 0 | E75: =+'Start Year Balance'!E75*(1+Growth!$F18) -> 0 | F75: =+'Start Year Balance'!F75*(1+Growth!$F18) -> 34.13945522 | G75: =+'Start Year Balance'!G75*(1+Growth!$F18) -> 0 | H75: =+'Start Year Balance'!H75*(1+Growth!$F18) -> 0 | I75: 97.6047222 | J75: =+'Start Year Balance'!J75*(1+Growth!$F18) -> 1667.137299 | K75: =+'Start Year Balance'!K75*(1+Growth!$F18) -> 3565.785994 | L75: =+'Start Year Balance'!L75*(1+Growth!$F18) -> 4647.058435 | M75: =+'Start Year Balance'!M75*(1+Growth!$F18) -> 0 | N75: =+'Start Year Balance'!N75*(1+Growth!$F18) -> 0
A76: Industry - miscellaneous | B76: 2412.150932 | C76: =+'Start Year Balance'!C76*(1+Growth!$F19) -> 0 | D76: =+'Start Year Balance'!D76*(1+Growth!$F19) -> 0 | E76: =+'Start Year Balance'!E76*(1+Growth!$F19) -> 0 | F76: =+'Start Year Balance'!F76*(1+Growth!$F19) -> 0 | G76: =+'Start Year Balance'!G76*(1+Growth!$F19) -> 0 | H76: =+'Start Year Balance'!H76*(1+Growth!$F19) -> 0 | I76: 0 | J76: =+'Start Year Balance'!J76*(1+Growth!$F19) -> 0 | K76: =+'Start Year Balance'!K76*(1+Growth!$F19) -> 3.283412517 | L76: =+'Start Year Balance'!L76*(1+Growth!$F19) -> 2408.867519 | M76: =+'Start Year Balance'!M76*(1+Growth!$F19) -> 0 | N76: =+'Start Year Balance'!N76*(1+Growth!$F19) -> 0
A77: Transport - road | B77: 121201.4631 | C77: =+'Start Year Balance'!C77*(1+Growth!$F21) -> 16231.24203 | D77: =+'Start Year Balance'!D77*(1+Growth!$F21) -> 11162.7975 | E77: =+'Start Year Balance'!E77*(1+Growth!$F21) -> 0 | F77: =+'Start Year Balance'!F77*(1+Growth!$F21) -> 93473.82838 | G77: =+'Start Year Balance'!G77*(1+Growth!$F21) -> 0 | H77: =+'Start Year Balance'!H77*(1+Growth!$F21) -> 0 | I77: 120867.8679 | J77: =+'Start Year Balance'!J77*(1+Growth!$F21) -> 0 | K77: =+'Start Year Balance'!K77*(1+Growth!$F21) -> 0 | L77: =+'Start Year Balance'!L77*(1+Growth!$F21) -> 333.5951798 | M77: =+'Start Year Balance'!M77*(1+Growth!$F21) -> 0 | N77: =+'Start Year Balance'!N77*(1+Growth!$F21) -> 0
A78: Transport - rail | B78: 768.1377424 | C78: =+'Start Year Balance'!C78*(1+Growth!$F22) -> 0 | D78: =+'Start Year Balance'!D78*(1+Growth!$F22) -> 0 | E78: =+'Start Year Balance'!E78*(1+Growth!$F22) -> 0 | F78: =+'Start Year Balance'!F78*(1+Growth!$F22) -> 768.1377424 | G78: =+'Start Year Balance'!G78*(1+Growth!$F22) -> 0 | H78: =+'Start Year Balance'!H78*(1+Growth!$F22) -> 0 | I78: 768.1377424 | J78: =+'Start Year Balance'!J78*(1+Growth!$F22) -> 0 | K78: =+'Start Year Balance'!K78*(1+Growth!$F22) -> 0 | L78: =+'Start Year Balance'!L78*(1+Growth!$F22) -> 0 | M78: =+'Start Year Balance'!M78*(1+Growth!$F22) -> 0 | N78: =+'Start Year Balance'!N78*(1+Growth!$F22) -> 0
A79: Transport - domestic air | B79: 7455.5924 | C79: =+'Start Year Balance'!C79*(1+Growth!$F23) -> 0 | D79: =+'Start Year Balance'!D79*(1+Growth!$F23) -> 0 | E79: =+'Start Year Balance'!E79*(1+Growth!$F23) -> 7455.5924 | F79: =+'Start Year Balance'!F79*(1+Growth!$F23) -> 0 | G79: =+'Start Year Balance'!G79*(1+Growth!$F23) -> 0 | H79: =+'Start Year Balance'!H79*(1+Growth!$F23) -> 0 | I79: 7455.5924 | J79: =+'Start Year Balance'!J79*(1+Growth!$F23) -> 0 | K79: =+'Start Year Balance'!K79*(1+Growth!$F23) -> 0 | L79: =+'Start Year Balance'!L79*(1+Growth!$F23) -> 0 | M79: =+'Start Year Balance'!M79*(1+Growth!$F23) -> 0 | N79: =+'Start Year Balance'!N79*(1+Growth!$F23) -> 0
A80: Transport - navigation | B80: 1008.827306 | C80: =+'Start Year Balance'!C80*(1+Growth!$F24) -> 0 | D80: =+'Start Year Balance'!D80*(1+Growth!$F24) -> 0 | E80: =+'Start Year Balance'!E80*(1+Growth!$F24) -> 0 | F80: =+'Start Year Balance'!F80*(1+Growth!$F24) -> 0 | G80: =+'Start Year Balance'!G80*(1+Growth!$F24) -> 1008.827306 | H80: =+'Start Year Balance'!H80*(1+Growth!$F24) -> 0 | I80: 1008.827306 | J80: =+'Start Year Balance'!J80*(1+Growth!$F24) -> 0 | K80: =+'Start Year Balance'!K80*(1+Growth!$F24) -> 0 | L80: =+'Start Year Balance'!L80*(1+Growth!$F24) -> 0 | M80: =+'Start Year Balance'!M80*(1+Growth!$F24) -> 0 | N80: =+'Start Year Balance'!N80*(1+Growth!$F24) -> 0
A81: Households | B81: 59052.20454 | C81: =+'Start Year Balance'!C81*(1+Growth!$F26) -> 1295.749201 | D81: =+'Start Year Balance'!D81*(1+Growth!$F26) -> 0 | E81: =+'Start Year Balance'!E81*(1+Growth!$F26) -> 0 | F81: =+'Start Year Balance'!F81*(1+Growth!$F26) -> 0 | G81: =+'Start Year Balance'!G81*(1+Growth!$F26) -> 0 | H81: =+'Start Year Balance'!H81*(1+Growth!$F27) -> 330.7062344 | I81: 1626.455435 | J81: =+'Start Year Balance'!J81*(1+Growth!$F26) -> 7119.38069 | K81: =+'Start Year Balance'!K81*(1+Growth!$F26) -> 7637.217515 | L81: =+'Start Year Balance'!L81*(1+Growth!$F26) -> 42669.1509 | M81: =+'Start Year Balance'!M81*(1+Growth!$F26) -> 0 | N81: =+'Start Year Balance'!N81*(1+Growth!$F26) -> 0
A82: Services | B82: 42726.88871 | C82: =+'Start Year Balance'!C82*(1+Growth!$F29) -> 3019.888954 | D82: =+'Start Year Balance'!D82*(1+Growth!$F29) -> 0 | E82: =+'Start Year Balance'!E82*(1+Growth!$F29) -> 0 | F82: =+'Start Year Balance'!F82*(1+Growth!$F29) -> 0 | G82: =+'Start Year Balance'!G82*(1+Growth!$F29) -> 0 | H82: =+'Start Year Balance'!H82*(1+Growth!$F29) -> 0 | I82: 3019.888954 | J82: =+'Start Year Balance'!J82*(1+Growth!$F29) -> 24528.05102 | K82: =+'Start Year Balance'!K82*(1+Growth!$F29) -> 2659.564139 | L82: =+'Start Year Balance'!L82*(1+Growth!$F29) -> 12261.56236 | M82: =+'Start Year Balance'!M82*(1+Growth!$F29) -> 257.8222397 | N82: =+'Start Year Balance'!N82*(1+Growth!$F29) -> 0
A83: Agriculture & Fishery | B83: 15975.39213 | C83: =+'Start Year Balance'!C83*(1+Growth!$F31) -> 0 | D83: =+'Start Year Balance'!D83*(1+Growth!$F31) -> 0 | E83: =+'Start Year Balance'!E83*(1+Growth!$F31) -> 0 | F83: =+'Start Year Balance'!F83*(1+Growth!$F31) -> 15459.4833 | G83: =+'Start Year Balance'!G83*(1+Growth!$F31) -> 0 | H83: =+'Start Year Balance'!H83*(1+Growth!$F31) -> 0 | I83: 15459.4833 | J83: =+'Start Year Balance'!J83*(1+Growth!$F31) -> 0 | K83: =+'Start Year Balance'!K83*(1+Growth!$F31) -> 0 | L83: =+'Start Year Balance'!L83*(1+Growth!$F31) -> 515.9088246 | M83: =+'Start Year Balance'!M83*(1+Growth!$F31) -> 0 | N83: =+'Start Year Balance'!N83*(1+Growth!$F31) -> 0
A84: Non energy uses | B84: 0 | C84: =+'Start Year Balance'!C84*(1+Growth!$F33) -> 0 | D84: =+'Start Year Balance'!D84*(1+Growth!$F33) -> 0 | E84: =+'Start Year Balance'!E84*(1+Growth!$F33) -> 0 | F84: =+'Start Year Balance'!F84*(1+Growth!$F33) -> 0 | G84: =+'Start Year Balance'!G84*(1+Growth!$F33) -> 0 | H84: =+'Start Year Balance'!H84*(1+Growth!$F33) -> 0 | I84: 0 | J84: =+'Start Year Balance'!J84*(1+Growth!$F33) -> 0 | K84: =+'Start Year Balance'!K84*(1+Growth!$F33) -> 0 | L84: =+'Start Year Balance'!L84*(1+Growth!$F33) -> 0 | M84: =+'Start Year Balance'!M84*(1+Growth!$F33) -> 0 | N84: =+'Start Year Balance'!N84*(1+Growth!$F33) -> 0
A85: CH4 from energy combustion | B85: =IF(B62=0,0,+'Start Year Balance'!B85*'Balance 2025'!B64/'Start Year Balance'!B64) -> 9063.480192
A86: N2O from energy combustion | B86: =IF(B63=0,0,+'Start Year Balance'!B86*'Balance 2025'!B65/'Start Year Balance'!B65) -> 6939.534824
A87: Total Agriculture | B87: =SUM(B88:B92) -> 76081.79407
A88: Enteric fermentation | B88: =+'Start Year Balance'!B88*(1+Growth!F$34) -> 36135.22361
A89: Manure management | B89: =+'Start Year Balance'!B89*(1+Growth!F$34) -> 8472.048855
A90: Rice cultivation | B90: =+'Start Year Balance'!B90*(1+Growth!F$35) -> 268.7832759
A91: N2O from agricultural soils | B91: =+'Start Year Balance'!B91*(1+Growth!F$36) -> 30746.11893
A92: Burning of agricultural residues | B92: =+'Start Year Balance'!B92*(1+Growth!F$37) -> 459.6194017
A93: Fugitive (CH4) | B93: =IF('Start Year Balance'!L62=0,0,'Start Year Balance'!B93*'Balance 2025'!L62/'Start Year Balance'!L62) -> 7397.991834
A94: Forestry | B94: =+'Start Year Balance'!B94*(1+Growth!F$38) -> -64020
A95: Waste - solid | B95: =+'Start Year Balance'!B95*(1+Growth!F39) -> 16880
A96: Waste - liquid | B96: =+'Start Year Balance'!B96*(1+Growth!F40) -> 0
A97: Industrial processes | B97: =+'Start Year Balance'!B97*(1+Growth!F41) -> 60720
A98: Total GHG emission | B98: =+B85+B86+B87+B93+B94+B95+B96+B97+B62 -> 809907.8828

Sheet Balance 2030
A1: Fossil fuel balance | B1: =+assumptions!$B$2 -> Country X | D1: 2030
A3: TJ units | B3: LPG | C3: Gasoline | D3: Jet Fuel | E3: Diesel | F3: Fueloil | G3: Kerosene and other | H3: Total oil products | I3: Coal | J3: Lignite | K3: Gas | L3: Coke | M3: Petrocoke | N3: Total energy (fossil)
A4: Unit | B4: TJ | C4: TJ | D4: TJ | E4: TJ | F4: TJ | G4: TJ | H4: TJ | I4: TJ | J4: TJ | K4: TJ | L4: TJ | M4: TJ | N4: TJ
A5: Total | B5: =+B6+B7 -> 452862.0241 | C5: 217737.8567 | D5: 140951.6768 | E5: 2090460.746 | F5: 45076.67133 | G5: 6220.26679 | H5: 2953309.241 | I5: 1896549.878 | J5: 2473798.784 | K5: 4159974.47 | L5: =+L6+L7 -> 331156.4111 | M5: 304008.1999 | N5: =SUM(H5:M5) -> 12118796.99
A6: Fossil power plants | B6: =C35/C32 -> 0 | C6: =D35/D32 -> 0 | D6: 0 | E6: 24714.60223 | F6: 21864.11195 | G6: 0 | H6: =SUM(B6:G6) -> 46578.71418 | I6: =J35/J32 -> 1078422.428 | J6: =K35/K32 -> 2159826.414 | K6: =L35/L32 -> 1832583.343 | L6: =M35/M32 -> 0 | M6: =N35/N32 -> 0 | N6: =SUM(H6:M6) -> 5117410.9
A7: FINAL CONSUMPTION | B7: =SUM(B8:B27) -> 452862.0241 | C7: 217737.8567 | D7: 140951.6768 | E7: 2065746.143 | F7: 23212.55938 | G7: 6220.26679 | H7: 2906730.527 | I7: 818127.4497 | J7: =SUM(J8:J27) -> 313972.3699 | K7: 2327391.127 | L7: =SUM(L8:L27) -> 331156.4111 | M7: 304008.1999 | N7: 7001386.085
A8: Industry - steel | B8: =+'Start Year Balance'!B8*(1+Growth!$G8) -> 0 | C8: =+'Start Year Balance'!C8*(1+Growth!$G8) -> 0 | D8: =+'Start Year Balance'!D8*(1+Growth!$G8) -> 0 | E8: =+'Start Year Balance'!E8*(1+Growth!$G8) -> 1765.328731 | F8: =+'Start Year Balance'!F8*(1+Growth!$G8) -> 0 | G8: =+'Start Year Balance'!G8*(1+Growth!$G8) -> 0 | H8: =SUM(B8:G8) -> 1765.328731 | I8: =+'Start Year Balance'!I8*(1+Growth!$G8) -> 1140.7617 | J8: =+'Start Year Balance'!J8*(1+Growth!$G8) -> 1140.282388 | K8: =+'Start Year Balance'!K8*(1+Growth!$G8) -> 21497.12699 | L8: =+'Start Year Balance'!L8*(1+Growth!$G8) -> 0 | M8: =+'Start Year Balance'!M8*(1+Growth!$G8) -> 0 | N8: 25543.49981
A9: Industry - chemical | B9: =+'Start Year Balance'!B9*(1+Growth!$G9) -> 1020.214823 | C9: =+'Start Year Balance'!C9*(1+Growth!$G9) -> 0 | D9: =+'Start Year Balance'!D9*(1+Growth!$G9) -> 0 | E9: =+'Start Year Balance'!E9*(1+Growth!$G9) -> 415.371466 | F9: =+'Start Year Balance'!F9*(1+Growth!$G9) -> 288.9530213 | G9: =+'Start Year Balance'!G9*(1+Growth!$G9) -> 0 | H9: =SUM(B9:G9) -> 1724.53931 | I9: =+'Start Year Balance'!I9*(1+Growth!$G9) -> 26438.82999 | J9: =+'Start Year Balance'!J9*(1+Growth!$G9) -> 14253.52985 | K9: =+'Start Year Balance'!K9*(1+Growth!$G9) -> 242076.3431 | L9: =+'Start Year Balance'!L9*(1+Growth!$G9) -> 0 | M9: =+'Start Year Balance'!M9*(1+Growth!$G9) -> 0 | N9: 284493.2422
A10: Industry - non metallic mineral | B10: =+'Start Year Balance'!B10*(1+Growth!$G10) -> 340.0716076 | C10: =+'Start Year Balance'!C10*(1+Growth!$G10) -> 0 | D10: =+'Start Year Balance'!D10*(1+Growth!$G10) -> 0 | E10: =+'Start Year Balance'!E10*(1+Growth!$G10) -> 2492.228796 | F10: =+'Start Year Balance'!F10*(1+Growth!$G10) -> 1733.718128 | G10: =+'Start Year Balance'!G10*(1+Growth!$G10) -> 0 | H10: 4566.018532 | I10: =+'Start Year Balance'!I10*(1+Growth!$G10) -> 221911.7024 | J10: =+'Start Year Balance'!J10*(1+Growth!$G10) -> 61662.963 | K10: =+'Start Year Balance'!K10*(1+Growth!$G10) -> 176089.5098 | L10: =+'Start Year Balance'!L10*(1+Growth!$G10) -> 0 | M10: =+'Start Year Balance'!M10*(1+Growth!$G10) -> 303488.1468 | N10: 767718.3406
A11: Industry - food processing and beverage | B11: =+'Start Year Balance'!B11*(1+Growth!$G11) -> 2267.144051 | C11: =+'Start Year Balance'!C11*(1+Growth!$G11) -> 0 | D11: =+'Start Year Balance'!D11*(1+Growth!$G11) -> 0 | E11: =+'Start Year Balance'!E11*(1+Growth!$G11) -> 623.057199 | F11: =+'Start Year Balance'!F11*(1+Growth!$G11) -> 3563.75393 | G11: =+'Start Year Balance'!G11*(1+Growth!$G11) -> 0 | H11: 6453.95518 | I11: =+'Start Year Balance'!I11*(1+Growth!$G11) -> 15299.6275 | J11: =+'Start Year Balance'!J11*(1+Growth!$G11) -> 34515.47075 | K11: =+'Start Year Balance'!K11*(1+Growth!$G11) -> 91783.38568 | L11: =+'Start Year Balance'!L11*(1+Growth!$G11) -> 3288.077841 | M11: =+'Start Year Balance'!M11*(1+Growth!$G11) -> 520.0531279 | N11: 151860.5701
A12: Industry - construction | B12: =+'Start Year Balance'!B12*(1+Growth!$G12) -> 0 | C12: =+'Start Year Balance'!C12*(1+Growth!$G12) -> 0 | D12: =+'Start Year Balance'!D12*(1+Growth!$G12) -> 0 | E12: =+'Start Year Balance'!E12*(1+Growth!$G12) -> 15264.90138 | F12: =+'Start Year Balance'!F12*(1+Growth!$G12) -> 0 | G12: =+'Start Year Balance'!G12*(1+Growth!$G12) -> 0 | H12: 15264.90138 | I12: =+'Start Year Balance'!I12*(1+Growth!$G12) -> 67.10362941 | J12: =+'Start Year Balance'!J12*(1+Growth!$G12) -> 131.5710448 | K12: =+'Start Year Balance'!K12*(1+Growth!$G12) -> 33647.67703 | L12: =+'Start Year Balance'!L12*(1+Growth!$G12) -> 0 | M12: =+'Start Year Balance'!M12*(1+Growth!$G12) -> 0 | N12: 49111.25308
A13: Industry - mining | B13: =+'Start Year Balance'!B13*(1+Growth!$G13) -> 0 | C13: =+'Start Year Balance'!C13*(1+Growth!$G13) -> 0 | D13: =+'Start Year Balance'!D13*(1+Growth!$G13) -> 0 | E13: =+'Start Year Balance'!E13*(1+Growth!$G13) -> 39044.91781 | F13: =+'Start Year Balance'!F13*(1+Growth!$G13) -> 0 | G13: =+'Start Year Balance'!G13*(1+Growth!$G13) -> 0 | H13: 39044.91781 | I13: =+'Start Year Balance'!I13*(1+Growth!$G13) -> 1274.968959 | J13: =+'Start Year Balance'!J13*(1+Growth!$G13) -> 4122.559404 | K13: =+'Start Year Balance'!K13*(1+Growth!$G13) -> 12150.55004 | L13: =+'Start Year Balance'!L13*(1+Growth!$G13) -> 0 | M13: =+'Start Year Balance'!M13*(1+Growth!$G13) -> 0 | N13: 56592.99621
A14: Industry - machinery | B14: =+'Start Year Balance'!B14*(1+Growth!$G14) -> 566.7860127 | C14: =+'Start Year Balance'!C14*(1+Growth!$G14) -> 0 | D14: =+'Start Year Balance'!D14*(1+Growth!$G14) -> 0 | E14: =+'Start Year Balance'!E14*(1+Growth!$G14) -> 311.5285995 | F14: =+'Start Year Balance'!F14*(1+Growth!$G14) -> 0 | G14: =+'Start Year Balance'!G14*(1+Growth!$G14) -> 0 | H14: 878.3146122 | I14: =+'Start Year Balance'!I14*(1+Growth!$G14) -> 201.3108882 | J14: =+'Start Year Balance'!J14*(1+Growth!$G14) -> 745.5692539 | K14: =+'Start Year Balance'!K14*(1+Growth!$G14) -> 6449.138098 | L14: =+'Start Year Balance'!L14*(1+Growth!$G14) -> 0 | M14: =+'Start Year Balance'!M14*(1+Growth!$G14) -> 0 | N14: 8274.332852
A15: Industry - non ferrous metals | B15: =+'Start Year Balance'!B15*(1+Growth!$G15) -> 4194.216494 | C15: =+'Start Year Balance'!C15*(1+Growth!$G15) -> 0 | D15: =+'Start Year Balance'!D15*(1+Growth!$G15) -> 0 | E15: =+'Start Year Balance'!E15*(1+Growth!$G15) -> 1349.957265 | F15: =+'Start Year Balance'!F15*(1+Growth!$G15) -> 0 | G15: =+'Start Year Balance'!G15*(1+Growth!$G15) -> 0 | H15: 5544.173758 | I15: =+'Start Year Balance'!I15*(1+Growth!$G15) -> 72874.54154 | J15: =+'Start Year Balance'!J15*(1+Growth!$G15) -> 2982.277015 | K15: =+'Start Year Balance'!K15*(1+Growth!$G15) -> 192259.0879 | L15: =+'Start Year Balance'!L15*(1+Growth!$G15) -> 324647.3591 | M15: =+'Start Year Balance'!M15*(1+Growth!$G15) -> 0 | N15: 598307.4393
A16: Industry - paper and pulp | B16: =+'Start Year Balance'!B16*(1+Growth!$G16) -> 113.3572025 | C16: =+'Start Year Balance'!C16*(1+Growth!$G16) -> 0 | D16: =+'Start Year Balance'!D16*(1+Growth!$G16) -> 0 | E16: =+'Start Year Balance'!E16*(1+Growth!$G16) -> 1038.428665 | F16: =+'Start Year Balance'!F16*(1+Growth!$G16) -> 0 | G16: =+'Start Year Balance'!G16*(1+Growth!$G16) -> 0 | H16: 1151.785868 | I16: =+'Start Year Balance'!I16*(1+Growth!$G16) -> 2885.456064 | J16: =+'Start Year Balance'!J16*(1+Growth!$G16) -> 8859.117017 | K16: =+'Start Year Balance'!K16*(1+Growth!$G16) -> 20749.40084 | L16: =+'Start Year Balance'!L16*(1+Growth!$G16) -> 0 | M16: =+'Start Year Balance'!M16*(1+Growth!$G16) -> 0 | N16: 33645.75978
A17: Industry - transport equipment | B17: =+'Start Year Balance'!B17*(1+Growth!$G17) -> 2607.215658 | C17: =+'Start Year Balance'!C17*(1+Growth!$G17) -> 0 | D17: =+'Start Year Balance'!D17*(1+Growth!$G17) -> 0 | E17: =+'Start Year Balance'!E17*(1+Growth!$G17) -> 726.9000655 | F17: =+'Start Year Balance'!F17*(1+Growth!$G17) -> 0 | G17: =+'Start Year Balance'!G17*(1+Growth!$G17) -> 0 | H17: 3334.115724 | I17: =+'Start Year Balance'!I17*(1+Growth!$G17) -> 0 | J17: =+'Start Year Balance'!J17*(1+Growth!$G17) -> 350.8561195 | K17: =+'Start Year Balance'!K17*(1+Growth!$G17) -> 16636.90698 | L17: =+'Start Year Balance'!L17*(1+Growth!$G17) -> 0 | M17: =+'Start Year Balance'!M17*(1+Growth!$G17) -> 0 | N17: 20321.87882
A18: Industry - textile and leather | B18: =+'Start Year Balance'!B18*(1+Growth!$G18) -> 1360.28643 | C18: =+'Start Year Balance'!C18*(1+Growth!$G18) -> 0 | D18: =+'Start Year Balance'!D18*(1+Growth!$G18) -> 0 | E18: =+'Start Year Balance'!E18*(1+Growth!$G18) -> 623.057199 | F18: =+'Start Year Balance'!F18*(1+Growth!$G18) -> 0 | G18: =+'Start Year Balance'!G18*(1+Growth!$G18) -> 0 | H18: 1983.343629 | I18: =+'Start Year Balance'!I18*(1+Growth!$G18) -> 23821.78844 | J18: =+'Start Year Balance'!J18*(1+Growth!$G18) -> 47628.71822 | K18: =+'Start Year Balance'!K18*(1+Growth!$G18) -> 111971.9919 | L18: =+'Start Year Balance'!L18*(1+Growth!$G18) -> 0 | M18: =+'Start Year Balance'!M18*(1+Growth!$G18) -> 0 | N18: 185405.8422
A19: Industry - miscellaneous | B19: =+'Start Year Balance'!B19*(1+Growth!$G19) -> 0 | C19: =+'Start Year Balance'!C19*(1+Growth!$G19) -> 0 | D19: =+'Start Year Balance'!D19*(1+Growth!$G19) -> 0 | E19: =+'Start Year Balance'!E19*(1+Growth!$G19) -> 0 | F19: =+'Start Year Balance'!F19*(1+Growth!$G19) -> 0 | G19: =+'Start Year Balance'!G19*(1+Growth!$G19) -> 0 | H19: 0 | I19: =+'Start Year Balance'!I19*(1+Growth!$G19) -> 0 | J19: =+'Start Year Balance'!J19*(1+Growth!$G19) -> 43.85701493 | K19: =+'Start Year Balance'!K19*(1+Growth!$G19) -> 58042.24288 | L19: =+'Start Year Balance'!L19*(1+Growth!$G19) -> 0 | M19: =+'Start Year Balance'!M19*(1+Growth!$G19) -> 0 | N19: 58086.09989
A20: Transport - road | B20: =+'Start Year Balance'!B20*(1+Growth!$G21) -> 347893.2546 | C20: =+'Start Year Balance'!C20*(1+Growth!$G21) -> 217737.8567 | D20: =+'Start Year Balance'!D20*(1+Growth!$G21) -> 0 | E20: =+'Start Year Balance'!E20*(1+Growth!$G21) -> 1705930.611 | F20: =+'Start Year Balance'!F20*(1+Growth!$G21) -> 0 | G20: =+'Start Year Balance'!G20*(1+Growth!$G21) -> 0 | H20: 2271561.722 | I20: =+'Start Year Balance'!I20*(1+Growth!$G21) -> 0 | J20: =+'Start Year Balance'!J20*(1+Growth!$G21) -> 0 | K20: =+'Start Year Balance'!K20*(1+Growth!$G21) -> 8038.05618 | L20: =+'Start Year Balance'!L20*(1+Growth!$G21) -> 0 | M20: =+'Start Year Balance'!M20*(1+Growth!$G21) -> 0 | N20: 2279599.778
A21: Transport - rail | B21: =+'Start Year Balance'!B21*(1+Growth!$G22) -> 0 | C21: =+'Start Year Balance'!C21*(1+Growth!$G22) -> 0 | D21: =+'Start Year Balance'!D21*(1+Growth!$G22) -> 0 | E21: =+'Start Year Balance'!E21*(1+Growth!$G22) -> 14018.78698 | F21: =+'Start Year Balance'!F21*(1+Growth!$G22) -> 0 | G21: =+'Start Year Balance'!G21*(1+Growth!$G22) -> 0 | H21: 14018.78698 | I21: =+'Start Year Balance'!I21*(1+Growth!$G22) -> 0 | J21: =+'Start Year Balance'!J21*(1+Growth!$G22) -> 0 | K21: =+'Start Year Balance'!K21*(1+Growth!$G22) -> 0 | L21: =+'Start Year Balance'!L21*(1+Growth!$G22) -> 0 | M21: =+'Start Year Balance'!M21*(1+Growth!$G22) -> 0 | N21: 14018.78698
A22: Transport - domestic air | B22: =+'Start Year Balance'!B22*(1+Growth!$G23) -> 0 | C22: =+'Start Year Balance'!C22*(1+Growth!$G23) -> 0 | D22: =+'Start Year Balance'!D22*(1+Growth!$G23) -> 140951.6768 | E22: =+'Start Year Balance'!E22*(1+Growth!$G23) -> 0 | F22: =+'Start Year Balance'!F22*(1+Growth!$G23) -> 0 | G22: =+'Start Year Balance'!G22*(1+Growth!$G23) -> 0 | H22: 140951.6768 | I22: =+'Start Year Balance'!I22*(1+Growth!$G23) -> 0 | J22: =+'Start Year Balance'!J22*(1+Growth!$G23) -> 0 | K22: =+'Start Year Balance'!K22*(1+Growth!$G23) -> 0 | L22: =+'Start Year Balance'!L22*(1+Growth!$G23) -> 0 | M22: =+'Start Year Balance'!M22*(1+Growth!$G23) -> 0 | N22: 140951.6768
A23: Transport - navigation | B23: =+'Start Year Balance'!B23*(1+Growth!$G24) -> 0 | C23: =+'Start Year Balance'!C23*(1+Growth!$G24) -> 0 | D23: =+'Start Year Balance'!D23*(1+Growth!$G24) -> 0 | E23: =+'Start Year Balance'!E23*(1+Growth!$G24) -> 0 | F23: =+'Start Year Balance'!F23*(1+Growth!$G24) -> 17626.1343 | G23: =+'Start Year Balance'!G23*(1+Growth!$G24) -> 0 | H23: 17626.1343 | I23: =+'Start Year Balance'!I23*(1+Growth!$G24) -> 0 | J23: =+'Start Year Balance'!J23*(1+Growth!$G24) -> 0 | K23: =+'Start Year Balance'!K23*(1+Growth!$G24) -> 0 | L23: =+'Start Year Balance'!L23*(1+Growth!$G24) -> 0 | M23: =+'Start Year Balance'!M23*(1+Growth!$G24) -> 0 | N23: 17626.1343
A24: Households | B24: =+'Start Year Balance'!B24*(1+Growth!$G26) -> 27772.51462 | C24: =+'Start Year Balance'!C24*(1+Growth!$G26) -> 0 | D24: =+'Start Year Balance'!D24*(1+Growth!$G26) -> 0 | E24: =+'Start Year Balance'!E24*(1+Growth!$G26) -> 0 | F24: =+'Start Year Balance'!F24*(1+Growth!$G26) -> 0 | G24: =+'Start Year Balance'!G24*(1+Growth!$G27) -> 6220.26679 | H24: 33992.78141 | I24: =+'Start Year Balance'!I24*(1+Growth!$G26) -> 101729.1022 | J24: =+'Start Year Balance'!J24*(1+Growth!$G26) -> 102011.4167 | K24: =+'Start Year Balance'!K24*(1+Growth!$G26) -> 1028123.465 | L24: =+'Start Year Balance'!L24*(1+Growth!$G26) -> 0 | M24: =+'Start Year Balance'!M24*(1+Growth!$G26) -> 0 | N24: 1265856.765
A25: Services | B25: =+'Start Year Balance'!B25*(1+Growth!$G29) -> 64726.96265 | C25: =+'Start Year Balance'!C25*(1+Growth!$G29) -> 0 | D25: =+'Start Year Balance'!D25*(1+Growth!$G29) -> 0 | E25: =+'Start Year Balance'!E25*(1+Growth!$G29) -> 0 | F25: =+'Start Year Balance'!F25*(1+Growth!$G29) -> 0 | G25: =+'Start Year Balance'!G25*(1+Growth!$G29) -> 0 | H25: 64726.96265 | I25: =+'Start Year Balance'!I25*(1+Growth!$G29) -> 350482.2564 | J25: =+'Start Year Balance'!J25*(1+Growth!$G29) -> 35524.1821 | K25: =+'Start Year Balance'!K25*(1+Growth!$G29) -> 295445.2975 | L25: =+'Start Year Balance'!L25*(1+Growth!$G29) -> 3220.974212 | M25: =+'Start Year Balance'!M25*(1+Growth!$G29) -> 0 | N25: 749399.6728
A26: Agriculture & Fishery | B26: =+'Start Year Balance'!B26*(1+Growth!$G31) -> 0 | C26: =+'Start Year Balance'!C26*(1+Growth!$G31) -> 0 | D26: =+'Start Year Balance'!D26*(1+Growth!$G31) -> 0 | E26: =+'Start Year Balance'!E26*(1+Growth!$G31) -> 282141.0683 | F26: =+'Start Year Balance'!F26*(1+Growth!$G31) -> 0 | G26: =+'Start Year Balance'!G26*(1+Growth!$G31) -> 0 | H26: 282141.0683 | I26: =+'Start Year Balance'!I26*(1+Growth!$G31) -> 0 | J26: =+'Start Year Balance'!J26*(1+Growth!$G31) -> 0 | K26: =+'Start Year Balance'!K26*(1+Growth!$G31) -> 12430.94735 | L26: =+'Start Year Balance'!L26*(1+Growth!$G31) -> 0 | M26: =+'Start Year Balance'!M26*(1+Growth!$G31) -> 0 | N26: 294572.0156
A27: Non energy uses | B27: =+'Start Year Balance'!B27*(1+Growth!$G33) -> 0 | C27: =+'Start Year Balance'!C27*(1+Growth!$G33) -> 0 | D27: =+'Start Year Balance'!D27*(1+Growth!$G33) -> 0 | E27: =+'Start Year Balance'!E27*(1+Growth!$G33) -> 0 | F27: =+'Start Year Balance'!F27*(1+Growth!$G33) -> 0 | G27: =+'Start Year Balance'!G27*(1+Growth!$G33) -> 0 | H27: 0 | I27: =+'Start Year Balance'!I27*(1+Growth!$G33) -> 0 | J27: =+'Start Year Balance'!J27*(1+Growth!$G33) -> 0 | K27: =+'Start Year Balance'!K27*(1+Growth!$G33) -> 0 | L27: =+'Start Year Balance'!L27*(1+Growth!$G33) -> 0 | M27: =+'Start Year Balance'!M27*(1+Growth!$G33) -> 0 | N27: 0
A30: Fossil fuel balance | B30: =+assumptions!$B$2 -> Country X | D30: 2030
A31: =+'Start Year Balance'!A31 -> 1 ktoe=41.868 TJ | P31: Fuel share for power like in 2025
A32: =+'Start Year Balance'!A32 -> ktoe per TJ | C32: =+'Start Year Balance'!C32 -> 0.02388458966 | D32: =+'Start Year Balance'!D32 -> 0.02388458966 | E32: =+'Start Year Balance'!E32 -> 0.02388458966 | F32: =+'Start Year Balance'!F32 -> 0.02388458966 | G32: =+'Start Year Balance'!G32 -> 0.02388458966 | H32: =+'Start Year Balance'!H32 -> 0.02388458966 | J32: =+'Start Year Balance'!J32 -> 0.02388458966 | K32: =+'Start Year Balance'!K32 -> 0.02388458966 | L32: =+'Start Year Balance'!L32 -> 0.02388458966 | M32: 0.02388458966 | N32: 0.02388458966
A33: Unit : ktoe | B33: Total | C33: LPG | D33: Gasoline | E33: Jet Fuel | F33: Diesel | G33: Fueloil | H33: Kerosene and other | I33: Total oil products | J33: Coal | K33: Lignite | L33: Gas | M33: Coke | N33: Petrocoke | O33: Electricity consumption Gwh | Q33: Electricity production Gwh | R33: Share of production | S33: Efficiency
A34: Total consumption | B34: =+B35+B36 -> 289452.4932 | C34: =+C35+C36 -> 10816.42362 | D34: 5200.579361 | E34: 3366.572964 | F34: 49929.79712 | G34: 1076.637798 | H34: 148.5685199 | I34: 70538.57938 | J34: 45298.31561 | K34: 59085.66887 | L34: 99359.28323 | M34: 7909.534994 | N34: 7261.111109 | P34: Total | Q34: =IF(R35=1,0,O36/(1-R35)) -> 627382.9866
A35: Fossil power plants | B35: =SUM(I35:N35) -> 122227.2595 | C35: =IF(Q36=0,0,$I35*IF('Start Year Balance'!$I35>0,'Start Year Balance'!C35/'Start Year Balance'!$I35,0)) -> 0 | D35: =IF(Q36=0,0,$I35*IF('Start Year Balance'!$I35>0,'Start Year Balance'!D35/'Start Year Balance'!$I35,0)) -> 0 | E35: =IF(Q36=0,0,$I35*IF('Start Year Balance'!$I35>0,'Start Year Balance'!E35/'Start Year Balance'!$I35,0)) -> 0 | F35: =IF(Q36=0,0,$I35*IF('Start Year Balance'!$I35>0,'Start Year Balance'!F35/'Start Year Balance'!$I35,0)) -> 590.2981329 | G35: =IF(Q36=0,0,$I35*IF('Start Year Balance'!$I35>0,'Start Year Balance'!G35/'Start Year Balance'!$I35,0)) -> 522.2153422 | H35: =IF(Q36=0,0,$I35*IF('Start Year Balance'!$I35>0,'Start Year Balance'!H35/'Start Year Balance'!$I35,0)) -> 0 | I35: =IF(Q36=0,0,Q39/11.63/S39) -> 1112.513475 | J35: =IF(S38>0,Q38/11.63/S38,0) -> 25757.67718 | K35: =IF(S37>0,Q37/11.63/S37,0) -> 51586.56765 | L35: =IF(S40>0,Q40/11.63/S40,0) -> 43770.50117 | M35: =IF(T40>0,R40/11.63/T40,0) -> 0 | N35: 0 | P35: Losses | Q35: =Q34*R35 -> 107205.2377 | R35: =+'Balance 2025'!R35 -> 0.1708768646
A36: FINAL CONSUMPTION | B36: =SUM(B37:B56) -> 167225.2337 | C36: =SUM(C37:C56) -> 10816.42362 | D36: 5200.579361 | E36: 3366.572964 | F36: 49339.49898 | G36: 554.4224558 | H36: 148.5685199 | I36: =SUM(C36:H36) -> 69426.0659 | J36: =SUM(J37:J56) -> 19540.63843 | K36: 7499.101221 | L36: 55588.78206 | M36: 7909.534994 | N36: 7261.111109 | O36: =SUM(O37:O56) -> 520177.7489 | P36: Fossil | Q36: =SUM(Q37:Q49) -> 425650.3041 | R36: =SUM(R37:R50) -> 0.6784536929
A37: Industry - steel | B37: =SUM(I37:N37) -> 610.0960115 | C37: =+'Start Year Balance'!C37*(1+Growth!$G8) -> 0 | D37: =+'Start Year Balance'!D37*(1+Growth!$G8) -> 0 | E37: =+'Start Year Balance'!E37*(1+Growth!$G8) -> 0 | F37: =+'Start Year Balance'!F37*(1+Growth!$G8) -> 42.16415235 | G37: =+'Start Year Balance'!G37*(1+Growth!$G8) -> 0 | H37: =+'Start Year Balance'!H37*(1+Growth!$G8) -> 0 | I37: =SUM(C37:H37) -> 42.16415235 | J37: =+'Start Year Balance'!J37*(1+Growth!$G8) -> 27.24662511 | K37: =+'Start Year Balance'!K37*(1+Growth!$G8) -> 27.23517694 | L37: =+'Start Year Balance'!L37*(1+Growth!$G8) -> 513.4500571 | M37: =+'Start Year Balance'!M37*(1+Growth!$G8) -> 0 | N37: =+'Start Year Balance'!N37*(1+Growth!$G8) -> 0 | O37: =+'Start Year Balance'!O37*(1+Growth!G$20) -> 3673.92371 | P37: Lignite | Q37: =Q$34*R37 -> 77684.43383 | R37: =+'Balance 2025'!R37 -> 0.1238229845 | S37: =+'Balance 2025'!S37 -> 0.1294844622
A38: Industry - chemical | B38: =SUM(I38:N38) -> 6795.004353 | C38: =+'Start Year Balance'!C38*(1+Growth!$G9) -> 24.36741241 | D38: =+'Start Year Balance'!D38*(1+Growth!$G9) -> 0 | E38: =+'Start Year Balance'!E38*(1+Growth!$G9) -> 0 | F38: =+'Start Year Balance'!F38*(1+Growth!$G9) -> 9.920977024 | G38: =+'Start Year Balance'!G38*(1+Growth!$G9) -> 6.901524347 | H38: =+'Start Year Balance'!H38*(1+Growth!$G9) -> 0 | I38: =SUM(C38:H38) -> 41.18991378 | J38: =+'Start Year Balance'!J38*(1+Growth!$G9) -> 631.4806054 | K38: =+'Start Year Balance'!K38*(1+Growth!$G9) -> 340.4397118 | L38: =+'Start Year Balance'!L38*(1+Growth!$G9) -> 5781.894122 | M38: =+'Start Year Balance'!M38*(1+Growth!$G9) -> 0 | N38: =+'Start Year Balance'!N38*(1+Growth!$G9) -> 0 | O38: =+'Start Year Balance'!O38*(1+Growth!G$20) -> 36319.83942 | P38: Coal | Q38: 104851.8175 | R38: =+'Balance 2025'!R38 -> 0.1671256947 | S38: =+'Balance 2025'!S38 -> 0.3500173338
A39: Industry - non metallic mineral | B39: 18336.63754 | C39: =+'Start Year Balance'!C39*(1+Growth!$G10) -> 8.122470803 | D39: =+'Start Year Balance'!D39*(1+Growth!$G10) -> 0 | E39: =+'Start Year Balance'!E39*(1+Growth!$G10) -> 0 | F39: =+'Start Year Balance'!F39*(1+Growth!$G10) -> 59.52586214 | G39: =+'Start Year Balance'!G39*(1+Growth!$G10) -> 41.40914608 | H39: =+'Start Year Balance'!H39*(1+Growth!$G10) -> 0 | I39: 109.057479 | J39: =+'Start Year Balance'!J39*(1+Growth!$G10) -> 5300.269954 | K39: =+'Start Year Balance'!K39*(1+Growth!$G10) -> 1472.794569 | L39: =+'Start Year Balance'!L39*(1+Growth!$G10) -> 4205.825685 | M39: =+'Start Year Balance'!M39*(1+Growth!$G10) -> 0 | N39: =+'Start Year Balance'!N39*(1+Growth!$G10) -> 7248.689853 | O39: =+'Start Year Balance'!O39*(1+Growth!G$20) -> 44439.37857 | P39: Oil | Q39: 5329.945421 | R39: =+'Balance 2025'!R39 -> 0.008495521134 | S39: =+'Balance 2025'!S39 -> 0.4119436068
A40: Industry - food processing and beverage | B40: 3627.127402 | C40: =+'Start Year Balance'!C40*(1+Growth!$G11) -> 54.14980536 | D40: =+'Start Year Balance'!D40*(1+Growth!$G11) -> 0 | E40: =+'Start Year Balance'!E40*(1+Growth!$G11) -> 0 | F40: =+'Start Year Balance'!F40*(1+Growth!$G11) -> 14.88146554 | G40: =+'Start Year Balance'!G40*(1+Growth!$G11) -> 85.11880027 | H40: =+'Start Year Balance'!H40*(1+Growth!$G11) -> 0 | I40: 154.1500712 | J40: =+'Start Year Balance'!J40*(1+Growth!$G11) -> 365.4253249 | K40: =+'Start Year Balance'!K40*(1+Growth!$G11) -> 824.3878559 | L40: =+'Start Year Balance'!L40*(1+Growth!$G11) -> 2192.208505 | M40: =+'Start Year Balance'!M40*(1+Growth!$G11) -> 78.53439001 | N40: =+'Start Year Balance'!N40*(1+Growth!$G11) -> 12.42125556 | O40: =+'Start Year Balance'!O40*(1+Growth!G$20) -> 17015.56317 | P40: Natural Gas | Q40: 237784.1074 | R40: =+'Balance 2025'!R40 -> 0.3790094925 | S40: =+'Balance 2025'!S40 -> 0.4671126089
A41: Industry - construction | B41: 1173.002128 | C41: =+'Start Year Balance'!C41*(1+Growth!$G12) -> 0 | D41: =+'Start Year Balance'!D41*(1+Growth!$G12) -> 0 | E41: =+'Start Year Balance'!E41*(1+Growth!$G12) -> 0 | F41: =+'Start Year Balance'!F41*(1+Growth!$G12) -> 364.5959056 | G41: =+'Start Year Balance'!G41*(1+Growth!$G12) -> 0 | H41: =+'Start Year Balance'!H41*(1+Growth!$G12) -> 0 | I41: 364.5959056 | J41: =+'Start Year Balance'!J41*(1+Growth!$G12) -> 1.602742653 | K41: =+'Start Year Balance'!K41*(1+Growth!$G12) -> 3.142520417 | L41: =+'Start Year Balance'!L41*(1+Growth!$G12) -> 803.660959 | M41: =+'Start Year Balance'!M41*(1+Growth!$G12) -> 0 | N41: =+'Start Year Balance'!N41*(1+Growth!$G12) -> 0 | O41: =+'Start Year Balance'!O41*(1+Growth!G$20) -> 6868.535781 | P41: Nuclear | Q41: 0 | R41: =+'Balance 2025'!R41 -> 0
A42: Industry - mining | B42: 1351.700492 | C42: =+'Start Year Balance'!C42*(1+Growth!$G13) -> 0 | D42: =+'Start Year Balance'!D42*(1+Growth!$G13) -> 0 | E42: =+'Start Year Balance'!E42*(1+Growth!$G13) -> 0 | F42: =+'Start Year Balance'!F42*(1+Growth!$G13) -> 932.5718402 | G42: =+'Start Year Balance'!G42*(1+Growth!$G13) -> 0 | H42: =+'Start Year Balance'!H42*(1+Growth!$G13) -> 0 | I42: 932.5718402 | J42: =+'Start Year Balance'!J42*(1+Growth!$G13) -> 30.45211041 | K42: =+'Start Year Balance'!K42*(1+Growth!$G13) -> 98.46563972 | L42: =+'Start Year Balance'!L42*(1+Growth!$G13) -> 290.2109019 | M42: =+'Start Year Balance'!M42*(1+Growth!$G13) -> 0 | N42: =+'Start Year Balance'!N42*(1+Growth!$G13) -> 0 | O42: =+'Start Year Balance'!O42*(1+Growth!G$20) -> 5284.410816 | P42: Net import | Q42: 0 | R42: =+'Balance 2025'!R42 -> 0
A43: Industry - machinery | B43: 197.6290449 | C43: =+'Start Year Balance'!C43*(1+Growth!$G14) -> 13.53745134 | D43: =+'Start Year Balance'!D43*(1+Growth!$G14) -> 0 | E43: =+'Start Year Balance'!E43*(1+Growth!$G14) -> 0 | F43: =+'Start Year Balance'!F43*(1+Growth!$G14) -> 7.440732768 | G43: =+'Start Year Balance'!G43*(1+Growth!$G14) -> 0 | H43: =+'Start Year Balance'!H43*(1+Growth!$G14) -> 0 | I43: 20.97818411 | J43: =+'Start Year Balance'!J43*(1+Growth!$G14) -> 4.80822796 | K43: =+'Start Year Balance'!K43*(1+Growth!$G14) -> 17.80761569 | L43: =+'Start Year Balance'!L43*(1+Growth!$G14) -> 154.0350171 | M43: =+'Start Year Balance'!M43*(1+Growth!$G14) -> 0 | N43: =+'Start Year Balance'!N43*(1+Growth!$G14) -> 0 | O43: =+'Start Year Balance'!O43*(1+Growth!G$20) -> 5162.186348
A44: Industry - non ferrous metals | B44: 14290.32768 | C44: =+'Start Year Balance'!C44*(1+Growth!$G15) -> 100.1771399 | D44: =+'Start Year Balance'!D44*(1+Growth!$G15) -> 0 | E44: =+'Start Year Balance'!E44*(1+Growth!$G15) -> 0 | F44: =+'Start Year Balance'!F44*(1+Growth!$G15) -> 32.24317533 | G44: =+'Start Year Balance'!G44*(1+Growth!$G15) -> 0 | H44: =+'Start Year Balance'!H44*(1+Growth!$G15) -> 0 | I44: 132.4203152 | J44: =+'Start Year Balance'!J44*(1+Growth!$G15) -> 1740.578521 | K44: =+'Start Year Balance'!K44*(1+Growth!$G15) -> 71.23046278 | L44: =+'Start Year Balance'!L44*(1+Growth!$G15) -> 4592.029424 | M44: =+'Start Year Balance'!M44*(1+Growth!$G15) -> 7754.068956 | N44: =+'Start Year Balance'!N44*(1+Growth!$G15) -> 0 | O44: =+'Start Year Balance'!O44*(1+Growth!G$20) -> 60544.24963
A45: Industry - paper and pulp | B45: 803.6151663 | C45: =+'Start Year Balance'!C45*(1+Growth!$G16) -> 2.707490268 | D45: =+'Start Year Balance'!D45*(1+Growth!$G16) -> 0 | E45: =+'Start Year Balance'!E45*(1+Growth!$G16) -> 0 | F45: =+'Start Year Balance'!F45*(1+Growth!$G16) -> 24.80244256 | G45: =+'Start Year Balance'!G45*(1+Growth!$G16) -> 0 | H45: =+'Start Year Balance'!H45*(1+Growth!$G16) -> 0 | I45: 27.50993283 | J45: =+'Start Year Balance'!J45*(1+Growth!$G16) -> 68.91793409 | K45: =+'Start Year Balance'!K45*(1+Growth!$G16) -> 211.5963747 | L45: =+'Start Year Balance'!L45*(1+Growth!$G16) -> 495.5909247 | M45: =+'Start Year Balance'!M45*(1+Growth!$G16) -> 0 | N45: =+'Start Year Balance'!N45*(1+Growth!$G16) -> 0 | O45: =+'Start Year Balance'!O45*(1+Growth!G$20) -> 9629.37082
A46: Industry - transport equipment | B46: 485.3797368 | C46: =+'Start Year Balance'!C46*(1+Growth!$G17) -> 62.27227616 | D46: =+'Start Year Balance'!D46*(1+Growth!$G17) -> 0 | E46: =+'Start Year Balance'!E46*(1+Growth!$G17) -> 0 | F46: =+'Start Year Balance'!F46*(1+Growth!$G17) -> 17.36170979 | G46: =+'Start Year Balance'!G46*(1+Growth!$G17) -> 0 | H46: =+'Start Year Balance'!H46*(1+Growth!$G17) -> 0 | I46: 79.63398595 | J46: =+'Start Year Balance'!J46*(1+Growth!$G17) -> 0 | K46: =+'Start Year Balance'!K46*(1+Growth!$G17) -> 8.380054444 | L46: =+'Start Year Balance'!L46*(1+Growth!$G17) -> 397.3656964 | M46: =+'Start Year Balance'!M46*(1+Growth!$G17) -> 0 | N46: =+'Start Year Balance'!N46*(1+Growth!$G17) -> 0 | O46: =+'Start Year Balance'!O46*(1+Growth!G$20) -> 6365.258561
A47: Industry - textile and leather | B47: 4428.342462 | C47: =+'Start Year Balance'!C47*(1+Growth!$G18) -> 32.48988321 | D47: =+'Start Year Balance'!D47*(1+Growth!$G18) -> 0 | E47: =+'Start Year Balance'!E47*(1+Growth!$G18) -> 0 | F47: =+'Start Year Balance'!F47*(1+Growth!$G18) -> 14.88146554 | G47: =+'Start Year Balance'!G47*(1+Growth!$G18) -> 0 | H47: =+'Start Year Balance'!H47*(1+Growth!$G18) -> 0 | I47: 47.37134875 | J47: =+'Start Year Balance'!J47*(1+Growth!$G18) -> 568.9736419 | K47: =+'Start Year Balance'!K47*(1+Growth!$G18) -> 1137.592391 | L47: =+'Start Year Balance'!L47*(1+Growth!$G18) -> 2674.40508 | M47: =+'Start Year Balance'!M47*(1+Growth!$G18) -> 0 | N47: =+'Start Year Balance'!N47*(1+Growth!$G18) -> 0 | O47: =+'Start Year Balance'!O47*(1+Growth!G$20) -> 41630.61237
A48: Industry - miscellaneous | B48: 1387.362661 | C48: =+'Start Year Balance'!C48*(1+Growth!$G19) -> 0 | D48: =+'Start Year Balance'!D48*(1+Growth!$G19) -> 0 | E48: =+'Start Year Balance'!E48*(1+Growth!$G19) -> 0 | F48: =+'Start Year Balance'!F48*(1+Growth!$G19) -> 0 | G48: =+'Start Year Balance'!G48*(1+Growth!$G19) -> 0 | H48: =+'Start Year Balance'!H48*(1+Growth!$G19) -> 0 | I48: 0 | J48: =+'Start Year Balance'!J48*(1+Growth!$G19) -> 0 | K48: =+'Start Year Balance'!K48*(1+Growth!$G19) -> 1.047506806 | L48: =+'Start Year Balance'!L48*(1+Growth!$G19) -> 1386.315154 | M48: =+'Start Year Balance'!M48*(1+Growth!$G19) -> 0 | N48: =+'Start Year Balance'!N48*(1+Growth!$G19) -> 0 | O48: =+'Start Year Balance'!O48*(1+Growth!G$20) -> 11189.5302
A49: Transport - road | B49: 54447.3053 | C49: =+'Start Year Balance'!C49*(1+Growth!$G21) -> 8309.287632 | D49: =+'Start Year Balance'!D49*(1+Growth!$G21) -> 5200.579361 | E49: =+'Start Year Balance'!E49*(1+Growth!$G21) -> 0 | F49: =+'Start Year Balance'!F49*(1+Growth!$G21) -> 40745.45264 | G49: =+'Start Year Balance'!G49*(1+Growth!$G21) -> 0 | H49: =+'Start Year Balance'!H49*(1+Growth!$G21) -> 0 | I49: 54255.31963 | J49: =+'Start Year Balance'!J49*(1+Growth!$G21) -> 0 | K49: =+'Start Year Balance'!K49*(1+Growth!$G21) -> 0 | L49: =+'Start Year Balance'!L49*(1+Growth!$G21) -> 191.9856735 | M49: =+'Start Year Balance'!M49*(1+Growth!$G21) -> 0 | N49: =+'Start Year Balance'!N49*(1+Growth!$G21) -> 0 | O49: =+'Start Year Balance'!O49*(1+Growth!G$25) -> 0
A50: Transport - rail | B50: 334.8329745 | C50: =+'Start Year Balance'!C50*(1+Growth!$G22) -> 0 | D50: =+'Start Year Balance'!D50*(1+Growth!$G22) -> 0 | E50: =+'Start Year Balance'!E50*(1+Growth!$G22) -> 0 | F50: =+'Start Year Balance'!F50*(1+Growth!$G22) -> 334.8329745 | G50: =+'Start Year Balance'!G50*(1+Growth!$G22) -> 0 | H50: =+'Start Year Balance'!H50*(1+Growth!$G22) -> 0 | I50: 334.8329745 | J50: =+'Start Year Balance'!J50*(1+Growth!$G22) -> 0 | K50: =+'Start Year Balance'!K50*(1+Growth!$G22) -> 0 | L50: =+'Start Year Balance'!L50*(1+Growth!$G22) -> 0 | M50: =+'Start Year Balance'!M50*(1+Growth!$G22) -> 0 | N50: =+'Start Year Balance'!N50*(1+Growth!$G22) -> 0 | O50: =+'Start Year Balance'!O50*(1+Growth!G$25) -> 1924.436229
A51: Transport - domestic air | B51: 3366.572964 | C51: =+'Start Year Balance'!C51*(1+Growth!$G23) -> 0 | D51: =+'Start Year Balance'!D51*(1+Growth!$G23) -> 0 | E51: =+'Start Year Balance'!E51*(1+Growth!$G23) -> 3366.572964 | F51: =+'Start Year Balance'!F51*(1+Growth!$G23) -> 0 | G51: =+'Start Year Balance'!G51*(1+Growth!$G23) -> 0 | H51: =+'Start Year Balance'!H51*(1+Growth!$G23) -> 0 | I51: 3366.572964 | J51: =+'Start Year Balance'!J51*(1+Growth!$G23) -> 0 | K51: =+'Start Year Balance'!K51*(1+Growth!$G23) -> 0 | L51: =+'Start Year Balance'!L51*(1+Growth!$G23) -> 0 | M51: =+'Start Year Balance'!M51*(1+Growth!$G23) -> 0 | N51: =+'Start Year Balance'!N51*(1+Growth!$G23) -> 0 | O51: =+'Start Year Balance'!O51*(1+Growth!G$25) -> 0 | P51: Renewables | Q51: =SUM(Q52:Q56) -> 201732.6825 | R51: =SUM(R52:R56) -> 0.3215463071
A52: Transport - navigation | B52: 420.9929851 | C52: =+'Start Year Balance'!C52*(1+Growth!$G24) -> 0 | D52: =+'Start Year Balance'!D52*(1+Growth!$G24) -> 0 | E52: =+'Start Year Balance'!E52*(1+Growth!$G24) -> 0 | F52: =+'Start Year Balance'!F52*(1+Growth!$G24) -> 0 | G52: =+'Start Year Balance'!G52*(1+Growth!$G24) -> 420.9929851 | H52: =+'Start Year Balance'!H52*(1+Growth!$G24) -> 0 | I52: 420.9929851 | J52: =+'Start Year Balance'!J52*(1+Growth!$G24) -> 0 | K52: =+'Start Year Balance'!K52*(1+Growth!$G24) -> 0 | L52: =+'Start Year Balance'!L52*(1+Growth!$G24) -> 0 | M52: =+'Start Year Balance'!M52*(1+Growth!$G24) -> 0 | N52: =+'Start Year Balance'!N52*(1+Growth!$G24) -> 0 | O52: =+'Start Year Balance'!O52*(1+Growth!G$25) -> 0 | P52: Hydro | Q52: =Q$34*R52 -> 160919.2964 | R52: =+'Balance 2025'!R52 -> 0.2564929236
A53: Households | B53: 30234.46941 | C53: =+'Start Year Balance'!C53*(1+Growth!$G26) -> 663.3351156 | D53: =+'Start Year Balance'!D53*(1+Growth!$G26) -> 0 | E53: =+'Start Year Balance'!E53*(1+Growth!$G26) -> 0 | F53: =+'Start Year Balance'!F53*(1+Growth!$G26) -> 0 | G53: =+'Start Year Balance'!G53*(1+Growth!$G26) -> 0 | H53: =+'Start Year Balance'!H53*(1+Growth!$G27) -> 148.5685199 | I53: 811.9036355 | J53: =+'Start Year Balance'!J53*(1+Growth!$G26) -> 2429.757862 | K53: =+'Start Year Balance'!K53*(1+Growth!$G26) -> 2436.50083 | L53: =+'Start Year Balance'!L53*(1+Growth!$G26) -> 24556.30708 | M53: =+'Start Year Balance'!M53*(1+Growth!$G26) -> 0 | N53: =+'Start Year Balance'!N53*(1+Growth!$G26) -> 0 | O53: =+'Start Year Balance'!O53*(1+Growth!G28) -> 114797.534 | P53: Wind | Q53: =Q$34*R53 -> 27927.09262 | R53: =+'Balance 2025'!R53 -> 0.0445136276
A54: Services | B54: 17899.10368 | C54: =+'Start Year Balance'!C54*(1+Growth!$G29) -> 1545.976943 | D54: =+'Start Year Balance'!D54*(1+Growth!$G29) -> 0 | E54: =+'Start Year Balance'!E54*(1+Growth!$G29) -> 0 | F54: =+'Start Year Balance'!F54*(1+Growth!$G29) -> 0 | G54: =+'Start Year Balance'!G54*(1+Growth!$G29) -> 0 | H54: =+'Start Year Balance'!H54*(1+Growth!$G29) -> 0 | I54: 1545.976943 | J54: =+'Start Year Balance'!J54*(1+Growth!$G29) -> 8371.124878 | K54: =+'Start Year Balance'!K54*(1+Growth!$G29) -> 848.4805125 | L54: =+'Start Year Balance'!L54*(1+Growth!$G29) -> 7056.589698 | M54: =+'Start Year Balance'!M54*(1+Growth!$G29) -> 76.93164736 | N54: =+'Start Year Balance'!N54*(1+Growth!$G29) -> 0 | O54: =+'Start Year Balance'!O54*(1+Growth!G30) -> 143635.3187 | P54: Solar | Q54: =Q$34*R54 -> 464.9322895 | R54: =+'Balance 2025'!R54 -> 0.0007410661421
A55: Agriculture & Fishery | B55: 7035.73172 | C55: =+'Start Year Balance'!C55*(1+Growth!$G31) -> 0 | D55: =+'Start Year Balance'!D55*(1+Growth!$G31) -> 0 | E55: =+'Start Year Balance'!E55*(1+Growth!$G31) -> 0 | F55: =+'Start Year Balance'!F55*(1+Growth!$G31) -> 6738.823643 | G55: =+'Start Year Balance'!G55*(1+Growth!$G31) -> 0 | H55: =+'Start Year Balance'!H55*(1+Growth!$G31) -> 0 | I55: 6738.823643 | J55: =+'Start Year Balance'!J55*(1+Growth!$G31) -> 0 | K55: =+'Start Year Balance'!K55*(1+Growth!$G31) -> 0 | L55: =+'Start Year Balance'!L55*(1+Growth!$G31) -> 296.9080765 | M55: =+'Start Year Balance'!M55*(1+Growth!$G31) -> 0 | N55: =+'Start Year Balance'!N55*(1+Growth!$G31) -> 0 | O55: =+'Start Year Balance'!O55*(1+Growth!G32) -> 11697.60054 | P55: Biomass | Q55: =Q$34*R55 -> 4213.149303 | R55: =+'Balance 2025'!R55 -> 0.006715434421
A56: Non energy uses | B56: 0 | C56: =+'Start Year Balance'!C56*(1+Growth!$G33) -> 0 | D56: =+'Start Year Balance'!D56*(1+Growth!$G33) -> 0 | E56: =+'Start Year Balance'!E56*(1+Growth!$G33) -> 0 | F56: =+'Start Year Balance'!F56*(1+Growth!$G33) -> 0 | G56: =+'Start Year Balance'!G56*(1+Growth!$G33) -> 0 | H56: =+'Start Year Balance'!H56*(1+Growth!$G33) -> 0 | I56: 0 | J56: =+'Start Year Balance'!J56*(1+Growth!$G33) -> 0 | K56: =+'Start Year Balance'!K56*(1+Growth!$G33) -> 0 | L56: =+'Start Year Balance'!L56*(1+Growth!$G33) -> 0 | M56: =+'Start Year Balance'!M56*(1+Growth!$G33) -> 0 | N56: =+'Start Year Balance'!N56*(1+Growth!$G33) -> 0 | O56: =+'Start Year Balance'!O56*(1+Growth!G33) -> 0 | P56: Geothermal | Q56: =Q$34*R56 -> 8208.211811 | R56: =+'Balance 2025'!R56 -> 0.01308325534
R57: =+R36+R51 -> 1
A59: GHG Balance | B59: =+assumptions!$B$2 -> Country X | D59: 2030
A60: Ton CO2/Toe (IPCC): | C60: =+'Start Year Balance'!C60 -> 2.614070448 | D60: =+'Start Year Balance'!D60 -> 2.872437876 | E60: =+'Start Year Balance'!E60 -> 2.96362638 | F60: =+'Start Year Balance'!F60 -> 3.070012968 | G60: =+'Start Year Balance'!G60 -> 3.206795724 | H60: =+'Start Year Balance'!H60 -> 2.978824464 | J60: =+'Start Year Balance'!J60 -> 3.921105672 | K60: =+'Start Year Balance'!K60 -> 4.194671184 | L60: =+'Start Year Balance'!L60 -> 2.325306852 | M60: =+'Start Year Balance'!M60 -> 4.484816424 | N60: =+'Start Year Balance'!N60 -> 4.157366796
A61: Unit : ktCO2-e | B61: Total | C61: LPG | D61: Gasoline | E61: Jet Fuel | F61: Diesel | G61: Fueloil | H61: Kerosene and other | I61: Total oil products | J61: Coal | K61: Lignite | L61: Gas | M61: Coke | N61: Petrocoke
A62: Total | B62: =+B63+B64 -> 932535.9122 | C62: =+C63+C64 -> 28274.89334 | D62: 14938.34113 | E62: 9977.264446 | F62: 153285.1246 | G62: 3452.557487 | H62: 442.5595416 | I62: 210370.7406 | J62: 177619.4823 | K62: 247844.9526 | L62: 231040.8221 | M62: =+M63+M64 -> 35472.81245 | N62: 30187.10223
A63: Fossil power plants | B63: =SUM(I63:N63) -> 422653.97 | C63: =C60*C35 -> 0 | D63: =D60*D35 -> 0 | E63: 0 | F63: 1812.222923 | G63: 1674.637926 | H63: 0 | I63: =SUM(C63:H63) -> 3486.860849 | J63: =J60*J35 -> 100998.5741 | K63: 216388.6888 | L63: 101779.8463 | M63: =M60*M35 -> 0 | N63: 0
A64: FINAL CONSUMPTION | B64: =SUM(B65:B84) -> 509881.9422 | C64: =SUM(C65:C84) -> 28274.89334 | D64: 14938.34113 | E64: 9977.264446 | F64: 151472.9017 | G64: 1777.919561 | H64: 442.5595416 | I64: =SUM(C64:H64) -> 206883.8797 | J64: =SUM(J65:J84) -> 76620.90818 | K64: 31456.2638 | L64: 129260.9758 | M64: =SUM(M65:M84) -> 35472.81245 | N64: 30187.10223
A65: Industry - steel | B65: =SUM(I65:N65) -> 1544.452939 | C65: =+'Start Year Balance'!C65*(1+Growth!$G8) -> 0 | D65: =+'Start Year Balance'!D65*(1+Growth!$G8) -> 0 | E65: =+'Start Year Balance'!E65*(1+Growth!$G8) -> 0 | F65: =+'Start Year Balance'!F65*(1+Growth!$G8) -> 129.4444945 | G65: =+'Start Year Balance'!G65*(1+Growth!$G8) -> 0 | H65: =+'Start Year Balance'!H65*(1+Growth!$G8) -> 0 | I65: =SUM(C65:H65) -> 129.4444945 | J65: =+'Start Year Balance'!J65*(1+Growth!$G8) -> 106.8368962 | K65: =+'Start Year Balance'!K65*(1+Growth!$G8) -> 114.2426119 | L65: =+'Start Year Balance'!L65*(1+Growth!$G8) -> 1193.928936 | M65: =+'Start Year Balance'!M65*(1+Growth!$G8) -> 0 | N65: =+'Start Year Balance'!N65*(1+Growth!$G8) -> 0
A66: Industry - chemical | B66: =SUM(I66:N66) -> 17465.10029 | C66: =+'Start Year Balance'!C66*(1+Growth!$G9) -> 63.69813268 | D66: =+'Start Year Balance'!D66*(1+Growth!$G9) -> 0 | E66: =+'Start Year Balance'!E66*(1+Growth!$G9) -> 0 | F66: =+'Start Year Balance'!F66*(1+Growth!$G9) -> 30.45752812 | G66: =+'Start Year Balance'!G66*(1+Growth!$G9) -> 22.13177876 | H66: =+'Start Year Balance'!H66*(1+Growth!$G9) -> 0 | I66: 116.2874396 | J66: =+'Start Year Balance'!J66*(1+Growth!$G9) -> 2476.102184 | K66: =+'Start Year Balance'!K66*(1+Growth!$G9) -> 1428.032649 | L66: =+'Start Year Balance'!L66*(1+Growth!$G9) -> 13444.67802 | M66: =+'Start Year Balance'!M66*(1+Growth!$G9) -> 0 | N66: =+'Start Year Balance'!N66*(1+Growth!$G9) -> 0
A67: Industry - non metallic mineral | B67: 67212.87387 | C67: =+'Start Year Balance'!C67*(1+Growth!$G10) -> 21.23271089 | D67: =+'Start Year Balance'!D67*(1+Growth!$G10) -> 0 | E67: =+'Start Year Balance'!E67*(1+Growth!$G10) -> 0 | F67: =+'Start Year Balance'!F67*(1+Growth!$G10) -> 182.7451687 | G67: =+'Start Year Balance'!G67*(1+Growth!$G10) -> 132.7906726 | H67: =+'Start Year Balance'!H67*(1+Growth!$G10) -> 0 | I67: 336.7685522 | J67: =+'Start Year Balance'!J67*(1+Growth!$G10) -> 20782.91858 | K67: =+'Start Year Balance'!K67*(1+Growth!$G10) -> 6177.888937 | L67: =+'Start Year Balance'!L67*(1+Growth!$G10) -> 9779.835285 | M67: =+'Start Year Balance'!M67*(1+Growth!$G10) -> 0 | N67: =+'Start Year Balance'!N67*(1+Growth!$G10) -> 30135.46251
A68: Industry - food processing and beverage | B68: 10852.5131 | C68: =+'Start Year Balance'!C68*(1+Growth!$G11) -> 141.5514059 | D68: =+'Start Year Balance'!D68*(1+Growth!$G11) -> 0 | E68: =+'Start Year Balance'!E68*(1+Growth!$G11) -> 0 | F68: =+'Start Year Balance'!F68*(1+Growth!$G11) -> 45.68629218 | G68: =+'Start Year Balance'!G68*(1+Growth!$G11) -> 272.9586048 | H68: =+'Start Year Balance'!H68*(1+Growth!$G11) -> 0 | I68: 460.1963029 | J68: =+'Start Year Balance'!J68*(1+Growth!$G11) -> 1432.871314 | K68: =+'Start Year Balance'!K68*(1+Growth!$G11) -> 3458.035984 | L68: =+'Start Year Balance'!L68*(1+Growth!$G11) -> 5097.557457 | M68: =+'Start Year Balance'!M68*(1+Growth!$G11) -> 352.2123222 | N68: =+'Start Year Balance'!N68*(1+Growth!$G11) -> 51.63971544
A69: Industry - construction | B69: 3007.538856 | C69: =+'Start Year Balance'!C69*(1+Growth!$G12) -> 0 | D69: =+'Start Year Balance'!D69*(1+Growth!$G12) -> 0 | E69: =+'Start Year Balance'!E69*(1+Growth!$G12) -> 0 | F69: =+'Start Year Balance'!F69*(1+Growth!$G12) -> 1119.314158 | G69: =+'Start Year Balance'!G69*(1+Growth!$G12) -> 0 | H69: =+'Start Year Balance'!H69*(1+Growth!$G12) -> 0 | I69: 1119.314158 | J69: =+'Start Year Balance'!J69*(1+Growth!$G12) -> 6.284523308 | K69: =+'Start Year Balance'!K69*(1+Growth!$G12) -> 13.18183984 | L69: =+'Start Year Balance'!L69*(1+Growth!$G12) -> 1868.758335 | M69: =+'Start Year Balance'!M69*(1+Growth!$G12) -> 0 | N69: =+'Start Year Balance'!N69*(1+Growth!$G12) -> 0
A70: Industry - mining | B70: 4070.273966 | C70: =+'Start Year Balance'!C70*(1+Growth!$G13) -> 0 | D70: =+'Start Year Balance'!D70*(1+Growth!$G13) -> 0 | E70: =+'Start Year Balance'!E70*(1+Growth!$G13) -> 0 | F70: =+'Start Year Balance'!F70*(1+Growth!$G13) -> 2863.007643 | G70: =+'Start Year Balance'!G70*(1+Growth!$G13) -> 0 | H70: =+'Start Year Balance'!H70*(1+Growth!$G13) -> 0 | I70: 2863.007643 | J70: =+'Start Year Balance'!J70*(1+Growth!$G13) -> 119.4059429 | K70: =+'Start Year Balance'!K70*(1+Growth!$G13) -> 413.0309815 | L70: =+'Start Year Balance'!L70*(1+Growth!$G13) -> 674.8293986 | M70: =+'Start Year Balance'!M70*(1+Growth!$G13) -> 0 | N70: =+'Start Year Balance'!N70*(1+Growth!$G13) -> 0
A71: Industry - machinery | B71: 509.9603407 | C71: =+'Start Year Balance'!C71*(1+Growth!$G14) -> 35.38785149 | D71: =+'Start Year Balance'!D71*(1+Growth!$G14) -> 0 | E71: =+'Start Year Balance'!E71*(1+Growth!$G14) -> 0 | F71: =+'Start Year Balance'!F71*(1+Growth!$G14) -> 22.84314609 | G71: =+'Start Year Balance'!G71*(1+Growth!$G14) -> 0 | H71: =+'Start Year Balance'!H71*(1+Growth!$G14) -> 0 | I71: 58.23099758 | J71: =+'Start Year Balance'!J71*(1+Growth!$G14) -> 18.85356993 | K71: =+'Start Year Balance'!K71*(1+Growth!$G14) -> 74.69709241 | L71: =+'Start Year Balance'!L71*(1+Growth!$G14) -> 358.1786808 | M71: =+'Start Year Balance'!M71*(1+Growth!$G14) -> 0 | N71: =+'Start Year Balance'!N71*(1+Growth!$G14) -> 0
A72: Industry - non ferrous metals | B72: 52938.09104 | C72: =+'Start Year Balance'!C72*(1+Growth!$G15) -> 261.870101 | D72: =+'Start Year Balance'!D72*(1+Growth!$G15) -> 0 | E72: =+'Start Year Balance'!E72*(1+Growth!$G15) -> 0 | F72: =+'Start Year Balance'!F72*(1+Growth!$G15) -> 98.98696638 | G72: =+'Start Year Balance'!G72*(1+Growth!$G15) -> 0 | H72: =+'Start Year Balance'!H72*(1+Growth!$G15) -> 0 | I72: 360.8570674 | J72: =+'Start Year Balance'!J72*(1+Growth!$G15) -> 6824.992313 | K72: =+'Start Year Balance'!K72*(1+Growth!$G15) -> 298.7883696 | L72: =+'Start Year Balance'!L72*(1+Growth!$G15) -> 10677.87748 | M72: =+'Start Year Balance'!M72*(1+Growth!$G15) -> 34775.57581 | N72: =+'Start Year Balance'!N72*(1+Growth!$G15) -> 0
A73: Industry - paper and pulp | B73: 2393.434082 | C73: =+'Start Year Balance'!C73*(1+Growth!$G16) -> 7.077570297 | D73: =+'Start Year Balance'!D73*(1+Growth!$G16) -> 0 | E73: =+'Start Year Balance'!E73*(1+Growth!$G16) -> 0 | F73: =+'Start Year Balance'!F73*(1+Growth!$G16) -> 76.14382029 | G73: =+'Start Year Balance'!G73*(1+Growth!$G16) -> 0 | H73: =+'Start Year Balance'!H73*(1+Growth!$G16) -> 0 | I73: 83.22139059 | J73: =+'Start Year Balance'!J73*(1+Growth!$G16) -> 270.2345023 | K73: =+'Start Year Balance'!K73*(1+Growth!$G16) -> 887.5772157 | L73: =+'Start Year Balance'!L73*(1+Growth!$G16) -> 1152.400973 | M73: =+'Start Year Balance'!M73*(1+Growth!$G16) -> 0 | N73: =+'Start Year Balance'!N73*(1+Growth!$G16) -> 0
A74: Industry - transport equipment | B74: 1175.233541 | C74: =+'Start Year Balance'!C74*(1+Growth!$G17) -> 162.7841168 | D74: =+'Start Year Balance'!D74*(1+Growth!$G17) -> 0 | E74: =+'Start Year Balance'!E74*(1+Growth!$G17) -> 0 | F74: =+'Start Year Balance'!F74*(1+Growth!$G17) -> 53.30067421 | G74: =+'Start Year Balance'!G74*(1+Growth!$G17) -> 0 | H74: =+'Start Year Balance'!H74*(1+Growth!$G17) -> 0 | I74: 216.084791 | J74: =+'Start Year Balance'!J74*(1+Growth!$G17) -> 0 | K74: =+'Start Year Balance'!K74*(1+Growth!$G17) -> 35.1515729 | L74: =+'Start Year Balance'!L74*(1+Growth!$G17) -> 923.9971766 | M74: =+'Start Year Balance'!M74*(1+Growth!$G17) -> 0 | N74: =+'Start Year Balance'!N74*(1+Growth!$G17) -> 0
A75: Industry - textile and leather | B75: 13352.26139 | C75: =+'Start Year Balance'!C75*(1+Growth!$G18) -> 84.93084357 | D75: =+'Start Year Balance'!D75*(1+Growth!$G18) -> 0 | E75: =+'Start Year Balance'!E75*(1+Growth!$G18) -> 0 | F75: =+'Start Year Balance'!F75*(1+Growth!$G18) -> 45.68629218 | G75: =+'Start Year Balance'!G75*(1+Growth!$G18) -> 0 | H75: =+'Start Year Balance'!H75*(1+Growth!$G18) -> 0 | I75: 130.6171357 | J75: =+'Start Year Balance'!J75*(1+Growth!$G18) -> 2231.005775 | K75: =+'Start Year Balance'!K75*(1+Growth!$G18) -> 4771.826021 | L75: =+'Start Year Balance'!L75*(1+Growth!$G18) -> 6218.812458 | M75: =+'Start Year Balance'!M75*(1+Growth!$G18) -> 0 | N75: =+'Start Year Balance'!N75*(1+Growth!$G18) -> 0
A76: Industry - miscellaneous | B76: 3228.002074 | C76: =+'Start Year Balance'!C76*(1+Growth!$G19) -> 0 | D76: =+'Start Year Balance'!D76*(1+Growth!$G19) -> 0 | E76: =+'Start Year Balance'!E76*(1+Growth!$G19) -> 0 | F76: =+'Start Year Balance'!F76*(1+Growth!$G19) -> 0 | G76: =+'Start Year Balance'!G76*(1+Growth!$G19) -> 0 | H76: =+'Start Year Balance'!H76*(1+Growth!$G19) -> 0 | I76: 0 | J76: =+'Start Year Balance'!J76*(1+Growth!$G19) -> 0 | K76: =+'Start Year Balance'!K76*(1+Growth!$G19) -> 4.393946612 | L76: =+'Start Year Balance'!L76*(1+Growth!$G19) -> 3223.608127 | M76: =+'Start Year Balance'!M76*(1+Growth!$G19) -> 0 | N76: =+'Start Year Balance'!N76*(1+Growth!$G19) -> 0
A77: Transport - road | B77: 162194.898 | C77: =+'Start Year Balance'!C77*(1+Growth!$G21) -> 21721.06324 | D77: =+'Start Year Balance'!D77*(1+Growth!$G21) -> 14938.34113 | E77: =+'Start Year Balance'!E77*(1+Growth!$G21) -> 0 | F77: =+'Start Year Balance'!F77*(1+Growth!$G21) -> 125089.068 | G77: =+'Start Year Balance'!G77*(1+Growth!$G21) -> 0 | H77: =+'Start Year Balance'!H77*(1+Growth!$G21) -> 0 | I77: 161748.4724 | J77: =+'Start Year Balance'!J77*(1+Growth!$G21) -> 0 | K77: =+'Start Year Balance'!K77*(1+Growth!$G21) -> 0 | L77: =+'Start Year Balance'!L77*(1+Growth!$G21) -> 446.4256022 | M77: =+'Start Year Balance'!M77*(1+Growth!$G21) -> 0 | N77: =+'Start Year Balance'!N77*(1+Growth!$G21) -> 0
A78: Transport - rail | B78: 1027.941574 | C78: =+'Start Year Balance'!C78*(1+Growth!$G22) -> 0 | D78: =+'Start Year Balance'!D78*(1+Growth!$G22) -> 0 | E78: =+'Start Year Balance'!E78*(1+Growth!$G22) -> 0 | F78: =+'Start Year Balance'!F78*(1+Growth!$G22) -> 1027.941574 | G78: =+'Start Year Balance'!G78*(1+Growth!$G22) -> 0 | H78: =+'Start Year Balance'!H78*(1+Growth!$G22) -> 0 | I78: 1027.941574 | J78: =+'Start Year Balance'!J78*(1+Growth!$G22) -> 0 | K78: =+'Start Year Balance'!K78*(1+Growth!$G22) -> 0 | L78: =+'Start Year Balance'!L78*(1+Growth!$G22) -> 0 | M78: =+'Start Year Balance'!M78*(1+Growth!$G22) -> 0 | N78: =+'Start Year Balance'!N78*(1+Growth!$G22) -> 0
A79: Transport - domestic air | B79: 9977.264446 | C79: =+'Start Year Balance'!C79*(1+Growth!$G23) -> 0 | D79: =+'Start Year Balance'!D79*(1+Growth!$G23) -> 0 | E79: =+'Start Year Balance'!E79*(1+Growth!$G23) -> 9977.264446 | F79: =+'Start Year Balance'!F79*(1+Growth!$G23) -> 0 | G79: =+'Start Year Balance'!G79*(1+Growth!$G23) -> 0 | H79: =+'Start Year Balance'!H79*(1+Growth!$G23) -> 0 | I79: 9977.264446 | J79: =+'Start Year Balance'!J79*(1+Growth!$G23) -> 0 | K79: =+'Start Year Balance'!K79*(1+Growth!$G23) -> 0 | L79: =+'Start Year Balance'!L79*(1+Growth!$G23) -> 0 | M79: =+'Start Year Balance'!M79*(1+Growth!$G23) -> 0 | N79: =+'Start Year Balance'!N79*(1+Growth!$G23) -> 0
A80: Transport - navigation | B80: 1350.038505 | C80: =+'Start Year Balance'!C80*(1+Growth!$G24) -> 0 | D80: =+'Start Year Balance'!D80*(1+Growth!$G24) -> 0 | E80: =+'Start Year Balance'!E80*(1+Growth!$G24) -> 0 | F80: =+'Start Year Balance'!F80*(1+Growth!$G24) -> 0 | G80: =+'Start Year Balance'!G80*(1+Growth!$G24) -> 1350.038505 | H80: =+'Start Year Balance'!H80*(1+Growth!$G24) -> 0 | I80: 1350.038505 | J80: =+'Start Year Balance'!J80*(1+Growth!$G24) -> 0 | K80: =+'Start Year Balance'!K80*(1+Growth!$G24) -> 0 | L80: =+'Start Year Balance'!L80*(1+Growth!$G24) -> 0 | M80: =+'Start Year Balance'!M80*(1+Growth!$G24) -> 0 | N80: =+'Start Year Balance'!N80*(1+Growth!$G24) -> 0
A81: Households | B81: 79025.17053 | C81: =+'Start Year Balance'!C81*(1+Growth!$G26) -> 1734.004723 | D81: =+'Start Year Balance'!D81*(1+Growth!$G26) -> 0 | E81: =+'Start Year Balance'!E81*(1+Growth!$G26) -> 0 | F81: =+'Start Year Balance'!F81*(1+Growth!$G26) -> 0 | G81: =+'Start Year Balance'!G81*(1+Growth!$G26) -> 0 | H81: =+'Start Year Balance'!H81*(1+Growth!$G27) -> 442.5595416 | I81: 2176.564264 | J81: =+'Start Year Balance'!J81*(1+Growth!$G26) -> 9527.337336 | K81: =+'Start Year Balance'!K81*(1+Growth!$G26) -> 10220.31982 | L81: =+'Start Year Balance'!L81*(1+Growth!$G26) -> 57100.94911 | M81: =+'Start Year Balance'!M81*(1+Growth!$G26) -> 0 | N81: =+'Start Year Balance'!N81*(1+Growth!$G26) -> 0
A82: Services | B82: 57178.21533 | C82: =+'Start Year Balance'!C82*(1+Growth!$G29) -> 4041.29264 | D82: =+'Start Year Balance'!D82*(1+Growth!$G29) -> 0 | E82: =+'Start Year Balance'!E82*(1+Growth!$G29) -> 0 | F82: =+'Start Year Balance'!F82*(1+Growth!$G29) -> 0 | G82: =+'Start Year Balance'!G82*(1+Growth!$G29) -> 0 | H82: =+'Start Year Balance'!H82*(1+Growth!$G29) -> 0 | I82: 4041.29264 | J82: =+'Start Year Balance'!J82*(1+Growth!$G29) -> 32824.06524 | K82: =+'Start Year Balance'!K82*(1+Growth!$G29) -> 3559.096756 | L82: =+'Start Year Balance'!L82*(1+Growth!$G29) -> 16408.73638 | M82: =+'Start Year Balance'!M82*(1+Growth!$G29) -> 345.0243156 | N82: =+'Start Year Balance'!N82*(1+Growth!$G29) -> 0
A83: Agriculture & Fishery | B83: 21378.67836 | C83: =+'Start Year Balance'!C83*(1+Growth!$G31) -> 0 | D83: =+'Start Year Balance'!D83*(1+Growth!$G31) -> 0 | E83: =+'Start Year Balance'!E83*(1+Growth!$G31) -> 0 | F83: =+'Start Year Balance'!F83*(1+Growth!$G31) -> 20688.27597 | G83: =+'Start Year Balance'!G83*(1+Growth!$G31) -> 0 | H83: =+'Start Year Balance'!H83*(1+Growth!$G31) -> 0 | I83: 20688.27597 | J83: =+'Start Year Balance'!J83*(1+Growth!$G31) -> 0 | K83: =+'Start Year Balance'!K83*(1+Growth!$G31) -> 0 | L83: =+'Start Year Balance'!L83*(1+Growth!$G31) -> 690.4023847 | M83: =+'Start Year Balance'!M83*(1+Growth!$G31) -> 0 | N83: =+'Start Year Balance'!N83*(1+Growth!$G31) -> 0
A84: Non energy uses | B84: 0 | C84: =+'Start Year Balance'!C84*(1+Growth!$G33) -> 0 | D84: =+'Start Year Balance'!D84*(1+Growth!$G33) -> 0 | E84: =+'Start Year Balance'!E84*(1+Growth!$G33) -> 0 | F84: =+'Start Year Balance'!F84*(1+Growth!$G33) -> 0 | G84: =+'Start Year Balance'!G84*(1+Growth!$G33) -> 0 | H84: =+'Start Year Balance'!H84*(1+Growth!$G33) -> 0 | I84: 0 | J84: =+'Start Year Balance'!J84*(1+Growth!$G33) -> 0 | K84: =+'Start Year Balance'!K84*(1+Growth!$G33) -> 0 | L84: =+'Start Year Balance'!L84*(1+Growth!$G33) -> 0 | M84: =+'Start Year Balance'!M84*(1+Growth!$G33) -> 0 | N84: =+'Start Year Balance'!N84*(1+Growth!$G33) -> 0
A85: CH4 from energy combustion | B85: =IF(B62=0,0,+'Start Year Balance'!B85*'Balance 2030'!B64/'Start Year Balance'!B64) -> 12128.98102
A86: N2O from energy combustion | B86: =IF(B63=0,0,+'Start Year Balance'!B86*'Balance 2030'!B65/'Start Year Balance'!B65) -> 9286.662998
A87: Total Agriculture | B87: =SUM(B88:B92) -> 88199.65139
A88: Enteric fermentation | B88: =+'Start Year Balance'!B88*(1+Growth!G$34) -> 41890.6279
A89: Manure management | B89: =+'Start Year Balance'!B89*(1+Growth!G$34) -> 9821.426594
A90: Rice cultivation | B90: =+'Start Year Balance'!B90*(1+Growth!G$35) -> 311.5934833
A91: N2O from agricultural soils | B91: =+'Start Year Balance'!B91*(1+Growth!G$36) -> 35643.17856
A92: Burning of agricultural residues | B92: =+'Start Year Balance'!B92*(1+Growth!G$37) -> 532.8248565
A93: Fugitive (CH4) | B93: =IF('Start Year Balance'!L62=0,0,'Start Year Balance'!B93*'Balance 2030'!L62/'Start Year Balance'!L62) -> 9900.181896
A94: Forestry | B94: =+'Start Year Balance'!B94*(1+Growth!G$38) -> -64020
A95: Waste - solid | B95: =+'Start Year Balance'!B95*(1+Growth!G39) -> 16880
A96: Waste - liquid | B96: =+'Start Year Balance'!B96*(1+Growth!G40) -> 0
A97: Industrial processes | B97: =+'Start Year Balance'!B97*(1+Growth!G41) -> 60720
A98: Total GHG emission | B98: =+B85+B86+B87+B93+B94+B95+B96+B97+B62 -> 1065631.39

Sheet Balance 2035
A1: Fossil fuel balance | B1: =+assumptions!$B$2 -> Country X | D1: 2035
A3: TJ units | B3: LPG | C3: Gasoline | D3: Jet Fuel | E3: Diesel | F3: Fueloil | G3: Kerosene and other | H3: Total oil products | I3: Coal | J3: Lignite | K3: Gas | L3: Coke | M3: Petrocoke | N3: Total energy (fossil)
A4: Unit | B4: TJ | C4: TJ | D4: TJ | E4: TJ | F4: TJ | G4: TJ | H4: TJ | I4: TJ | J4: TJ | K4: TJ | L4: TJ | M4: TJ | N4: TJ
A5: Total | B5: =+B6+B7 -> 452862.0241 | C5: 264911.3953 | D5: 171489.2667 | E5: 2543365.134 | F5: 54842.663 | G5: 7567.905644 | H5: 3495038.388 | I5: 2307442.914 | J5: 3009754.471 | K5: 5061245.013 | L5: 402902.4087 | M5: 369872.4588 | N5: =SUM(H5:M5) -> 14646255.65
A6: Fossil power plants | B6: =C35/C32 -> 0 | C6: =D35/D32 -> 0 | D6: 0 | E6: 30069.09253 | F6: 26601.03526 | G6: 0 | H6: =SUM(B6:G6) -> 56670.12779 | I6: =J35/J32 -> 1312065.777 | J6: =K35/K32 -> 2627759.076 | K6: =L35/L32 -> 2229617.843 | L6: =M35/M32 -> 0 | M6: =N35/N32 -> 0 | N6: =SUM(H6:M6) -> 6226112.824
A7: FINAL CONSUMPTION | B7: =SUM(B8:B27) -> 452862.0241 | C7: 264911.3953 | D7: 171489.2667 | E7: 2513296.041 | F7: 28241.62774 | G7: 7567.905644 | H7: 3438368.261 | I7: 995377.1362 | J7: 381995.3951 | K7: 2831627.17 | L7: 402902.4087 | M7: 369872.4588 | N7: 8420142.829
A8: Industry - steel | B8: =+'Start Year Balance'!B8*(1+Growth!$G8) -> 0 | C8: =+'Start Year Balance'!C8*(1+Growth!$H8) -> 0 | D8: =+'Start Year Balance'!D8*(1+Growth!$H8) -> 0 | E8: =+'Start Year Balance'!E8*(1+Growth!$H8) -> 2147.792324 | F8: =+'Start Year Balance'!F8*(1+Growth!$H8) -> 0 | G8: =+'Start Year Balance'!G8*(1+Growth!$H8) -> 0 | H8: =SUM(B8:G8) -> 2147.792324 | I8: =+'Start Year Balance'!I8*(1+Growth!$H8) -> 1387.911033 | J8: =+'Start Year Balance'!J8*(1+Growth!$H8) -> 1387.327877 | K8: =+'Start Year Balance'!K8*(1+Growth!$H8) -> 26154.54195 | L8: =+'Start Year Balance'!L8*(1+Growth!$H8) -> 0 | M8: =+'Start Year Balance'!M8*(1+Growth!$H8) -> 0 | N8: 31077.57318
A9: Industry - chemical | B9: =+'Start Year Balance'!B9*(1+Growth!$G9) -> 1020.214823 | C9: =+'Start Year Balance'!C9*(1+Growth!$H9) -> 0 | D9: =+'Start Year Balance'!D9*(1+Growth!$H9) -> 0 | E9: =+'Start Year Balance'!E9*(1+Growth!$H9) -> 505.3628997 | F9: =+'Start Year Balance'!F9*(1+Growth!$H9) -> 351.5555321 | G9: =+'Start Year Balance'!G9*(1+Growth!$H9) -> 0 | H9: =SUM(B9:G9) -> 1877.133255 | I9: =+'Start Year Balance'!I9*(1+Growth!$H9) -> 32166.87924 | J9: =+'Start Year Balance'!J9*(1+Growth!$H9) -> 17341.59847 | K9: =+'Start Year Balance'!K9*(1+Growth!$H9) -> 294522.8854 | L9: =+'Start Year Balance'!L9*(1+Growth!$H9) -> 0 | M9: =+'Start Year Balance'!M9*(1+Growth!$H9) -> 0 | N9: 345908.4964
A10: Industry - non metallic mineral | B10: =+'Start Year Balance'!B10*(1+Growth!$G10) -> 340.0716076 | C10: =+'Start Year Balance'!C10*(1+Growth!$H10) -> 0 | D10: =+'Start Year Balance'!D10*(1+Growth!$H10) -> 0 | E10: =+'Start Year Balance'!E10*(1+Growth!$H10) -> 3032.177398 | F10: =+'Start Year Balance'!F10*(1+Growth!$H10) -> 2109.333192 | G10: =+'Start Year Balance'!G10*(1+Growth!$H10) -> 0 | H10: 5481.582198 | I10: =+'Start Year Balance'!I10*(1+Growth!$H10) -> 269989.5169 | J10: =+'Start Year Balance'!J10*(1+Growth!$H10) -> 75022.4229 | K10: =+'Start Year Balance'!K10*(1+Growth!$H10) -> 214239.8132 | L10: =+'Start Year Balance'!L10*(1+Growth!$H10) -> 0 | M10: =+'Start Year Balance'!M10*(1+Growth!$H10) -> 369239.7346 | N10: 933973.0698
A11: Industry - food processing and beverage | B11: =+'Start Year Balance'!B11*(1+Growth!$G11) -> 2267.144051 | C11: =+'Start Year Balance'!C11*(1+Growth!$H11) -> 0 | D11: =+'Start Year Balance'!D11*(1+Growth!$H11) -> 0 | E11: =+'Start Year Balance'!E11*(1+Growth!$H11) -> 758.0443496 | F11: =+'Start Year Balance'!F11*(1+Growth!$H11) -> 4335.851562 | G11: =+'Start Year Balance'!G11*(1+Growth!$H11) -> 0 | H11: 7361.039962 | I11: =+'Start Year Balance'!I11*(1+Growth!$H11) -> 18614.33621 | J11: =+'Start Year Balance'!J11*(1+Growth!$H11) -> 41993.34767 | K11: =+'Start Year Balance'!K11*(1+Growth!$H11) -> 111668.5226 | L11: =+'Start Year Balance'!L11*(1+Growth!$H11) -> 4000.449448 | M11: =+'Start Year Balance'!M11*(1+Growth!$H11) -> 632.7241475 | N11: 184270.42
A12: Industry - construction | B12: =+'Start Year Balance'!B12*(1+Growth!$G12) -> 0 | C12: =+'Start Year Balance'!C12*(1+Growth!$H12) -> 0 | D12: =+'Start Year Balance'!D12*(1+Growth!$H12) -> 0 | E12: =+'Start Year Balance'!E12*(1+Growth!$H12) -> 18572.08656 | F12: =+'Start Year Balance'!F12*(1+Growth!$H12) -> 0 | G12: =+'Start Year Balance'!G12*(1+Growth!$H12) -> 0 | H12: 18572.08656 | I12: =+'Start Year Balance'!I12*(1+Growth!$H12) -> 81.64182548 | J12: =+'Start Year Balance'!J12*(1+Growth!$H12) -> 160.0762935 | K12: =+'Start Year Balance'!K12*(1+Growth!$H12) -> 40937.54392 | L12: =+'Start Year Balance'!L12*(1+Growth!$H12) -> 0 | M12: =+'Start Year Balance'!M12*(1+Growth!$H12) -> 0 | N12: 59751.3486
A13: Industry - mining | B13: =+'Start Year Balance'!B13*(1+Growth!$G13) -> 0 | C13: =+'Start Year Balance'!C13*(1+Growth!$H13) -> 0 | D13: =+'Start Year Balance'!D13*(1+Growth!$H13) -> 0 | E13: =+'Start Year Balance'!E13*(1+Growth!$H13) -> 47504.11257 | F13: =+'Start Year Balance'!F13*(1+Growth!$H13) -> 0 | G13: =+'Start Year Balance'!G13*(1+Growth!$H13) -> 0 | H13: 47504.11257 | I13: =+'Start Year Balance'!I13*(1+Growth!$H13) -> 1551.194684 | J13: =+'Start Year Balance'!J13*(1+Growth!$H13) -> 5015.723864 | K13: =+'Start Year Balance'!K13*(1+Growth!$H13) -> 14783.00197 | L13: =+'Start Year Balance'!L13*(1+Growth!$H13) -> 0 | M13: =+'Start Year Balance'!M13*(1+Growth!$H13) -> 0 | N13: 68854.03309
A14: Industry - machinery | B14: =+'Start Year Balance'!B14*(1+Growth!$G14) -> 566.7860127 | C14: =+'Start Year Balance'!C14*(1+Growth!$H14) -> 0 | D14: =+'Start Year Balance'!D14*(1+Growth!$H14) -> 0 | E14: =+'Start Year Balance'!E14*(1+Growth!$H14) -> 379.0221748 | F14: =+'Start Year Balance'!F14*(1+Growth!$H14) -> 0 | G14: =+'Start Year Balance'!G14*(1+Growth!$H14) -> 0 | H14: 945.8081875 | I14: =+'Start Year Balance'!I14*(1+Growth!$H14) -> 244.9254764 | J14: =+'Start Year Balance'!J14*(1+Growth!$H14) -> 907.0989967 | K14: =+'Start Year Balance'!K14*(1+Growth!$H14) -> 7846.362584 | L14: =+'Start Year Balance'!L14*(1+Growth!$H14) -> 0 | M14: =+'Start Year Balance'!M14*(1+Growth!$H14) -> 0 | N14: 9944.195245
A15: Industry - non ferrous metals | B15: =+'Start Year Balance'!B15*(1+Growth!$G15) -> 4194.216494 | C15: =+'Start Year Balance'!C15*(1+Growth!$H15) -> 0 | D15: =+'Start Year Balance'!D15*(1+Growth!$H15) -> 0 | E15: =+'Start Year Balance'!E15*(1+Growth!$H15) -> 1642.429424 | F15: =+'Start Year Balance'!F15*(1+Growth!$H15) -> 0 | G15: =+'Start Year Balance'!G15*(1+Growth!$H15) -> 0 | H15: 5836.645918 | I15: =+'Start Year Balance'!I15*(1+Growth!$H15) -> 88663.02247 | J15: =+'Start Year Balance'!J15*(1+Growth!$H15) -> 3628.395987 | K15: =+'Start Year Balance'!K15*(1+Growth!$H15) -> 233912.5773 | L15: =+'Start Year Balance'!L15*(1+Growth!$H15) -> 394983.1517 | M15: =+'Start Year Balance'!M15*(1+Growth!$H15) -> 0 | N15: 727023.7934
A16: Industry - paper and pulp | B16: =+'Start Year Balance'!B16*(1+Growth!$G16) -> 113.3572025 | C16: =+'Start Year Balance'!C16*(1+Growth!$H16) -> 0 | D16: =+'Start Year Balance'!D16*(1+Growth!$H16) -> 0 | E16: =+'Start Year Balance'!E16*(1+Growth!$H16) -> 1263.407249 | F16: =+'Start Year Balance'!F16*(1+Growth!$H16) -> 0 | G16: =+'Start Year Balance'!G16*(1+Growth!$H16) -> 0 | H16: 1376.764452 | I16: =+'Start Year Balance'!I16*(1+Growth!$H16) -> 3510.598496 | J16: =+'Start Year Balance'!J16*(1+Growth!$H16) -> 10778.47043 | K16: =+'Start Year Balance'!K16*(1+Growth!$H16) -> 25244.81875 | L16: =+'Start Year Balance'!L16*(1+Growth!$H16) -> 0 | M16: =+'Start Year Balance'!M16*(1+Growth!$H16) -> 0 | N16: 40910.65213
A17: Industry - transport equipment | B17: =+'Start Year Balance'!B17*(1+Growth!$G17) -> 2607.215658 | C17: =+'Start Year Balance'!C17*(1+Growth!$H17) -> 0 | D17: =+'Start Year Balance'!D17*(1+Growth!$H17) -> 0 | E17: =+'Start Year Balance'!E17*(1+Growth!$H17) -> 884.3850745 | F17: =+'Start Year Balance'!F17*(1+Growth!$H17) -> 0 | G17: =+'Start Year Balance'!G17*(1+Growth!$H17) -> 0 | H17: 3491.600733 | I17: =+'Start Year Balance'!I17*(1+Growth!$H17) -> 0 | J17: =+'Start Year Balance'!J17*(1+Growth!$H17) -> 426.8701161 | K17: =+'Start Year Balance'!K17*(1+Growth!$H17) -> 20241.34116 | L17: =+'Start Year Balance'!L17*(1+Growth!$H17) -> 0 | M17: =+'Start Year Balance'!M17*(1+Growth!$H17) -> 0 | N17: 24159.81201
A18: Industry - textile and leather | B18: =+'Start Year Balance'!B18*(1+Growth!$G18) -> 1360.28643 | C18: =+'Start Year Balance'!C18*(1+Growth!$H18) -> 0 | D18: =+'Start Year Balance'!D18*(1+Growth!$H18) -> 0 | E18: =+'Start Year Balance'!E18*(1+Growth!$H18) -> 758.0443496 | F18: =+'Start Year Balance'!F18*(1+Growth!$H18) -> 0 | G18: =+'Start Year Balance'!G18*(1+Growth!$H18) -> 0 | H18: 2118.33078 | I18: =+'Start Year Balance'!I18*(1+Growth!$H18) -> 28982.84805 | J18: =+'Start Year Balance'!J18*(1+Growth!$H18) -> 57947.61826 | K18: =+'Start Year Balance'!K18*(1+Growth!$H18) -> 136231.0489 | L18: =+'Start Year Balance'!L18*(1+Growth!$H18) -> 0 | M18: =+'Start Year Balance'!M18*(1+Growth!$H18) -> 0 | N18: 225279.846
A19: Industry - miscellaneous | B19: =+'Start Year Balance'!B19*(1+Growth!$G19) -> 0 | C19: =+'Start Year Balance'!C19*(1+Growth!$H19) -> 0 | D19: =+'Start Year Balance'!D19*(1+Growth!$H19) -> 0 | E19: =+'Start Year Balance'!E19*(1+Growth!$H19) -> 0 | F19: =+'Start Year Balance'!F19*(1+Growth!$H19) -> 0 | G19: =+'Start Year Balance'!G19*(1+Growth!$H19) -> 0 | H19: 0 | I19: =+'Start Year Balance'!I19*(1+Growth!$H19) -> 0 | J19: =+'Start Year Balance'!J19*(1+Growth!$H19) -> 53.35876451 | K19: =+'Start Year Balance'!K19*(1+Growth!$H19) -> 70617.26326 | L19: =+'Start Year Balance'!L19*(1+Growth!$H19) -> 0 | M19: =+'Start Year Balance'!M19*(1+Growth!$H19) -> 0 | N19: 70670.62202
A20: Transport - road | B20: =+'Start Year Balance'!B20*(1+Growth!$G21) -> 347893.2546 | C20: =+'Start Year Balance'!C20*(1+Growth!$H21) -> 264911.3953 | D20: =+'Start Year Balance'!D20*(1+Growth!$H21) -> 0 | E20: =+'Start Year Balance'!E20*(1+Growth!$H21) -> 2075525.429 | F20: =+'Start Year Balance'!F20*(1+Growth!$H21) -> 0 | G20: =+'Start Year Balance'!G20*(1+Growth!$H21) -> 0 | H20: 2688330.079 | I20: =+'Start Year Balance'!I20*(1+Growth!$H21) -> 0 | J20: =+'Start Year Balance'!J20*(1+Growth!$H21) -> 0 | K20: =+'Start Year Balance'!K20*(1+Growth!$H21) -> 9779.524381 | L20: =+'Start Year Balance'!L20*(1+Growth!$H21) -> 0 | M20: =+'Start Year Balance'!M20*(1+Growth!$H21) -> 0 | N20: 2698109.603
A21: Transport - rail | B21: =+'Start Year Balance'!B21*(1+Growth!$G22) -> 0 | C21: =+'Start Year Balance'!C21*(1+Growth!$H22) -> 0 | D21: =+'Start Year Balance'!D21*(1+Growth!$H22) -> 0 | E21: =+'Start Year Balance'!E21*(1+Growth!$H22) -> 17055.99787 | F21: =+'Start Year Balance'!F21*(1+Growth!$H22) -> 0 | G21: =+'Start Year Balance'!G21*(1+Growth!$H22) -> 0 | H21: 17055.99787 | I21: =+'Start Year Balance'!I21*(1+Growth!$H22) -> 0 | J21: =+'Start Year Balance'!J21*(1+Growth!$H22) -> 0 | K21: =+'Start Year Balance'!K21*(1+Growth!$H22) -> 0 | L21: =+'Start Year Balance'!L21*(1+Growth!$H22) -> 0 | M21: =+'Start Year Balance'!M21*(1+Growth!$H22) -> 0 | N21: 17055.99787
A22: Transport - domestic air | B22: =+'Start Year Balance'!B22*(1+Growth!$G23) -> 0 | C22: =+'Start Year Balance'!C22*(1+Growth!$H23) -> 0 | D22: =+'Start Year Balance'!D22*(1+Growth!$H23) -> 171489.2667 | E22: =+'Start Year Balance'!E22*(1+Growth!$H23) -> 0 | F22: =+'Start Year Balance'!F22*(1+Growth!$H23) -> 0 | G22: =+'Start Year Balance'!G22*(1+Growth!$H23) -> 0 | H22: 171489.2667 | I22: =+'Start Year Balance'!I22*(1+Growth!$H23) -> 0 | J22: =+'Start Year Balance'!J22*(1+Growth!$H23) -> 0 | K22: =+'Start Year Balance'!K22*(1+Growth!$H23) -> 0 | L22: =+'Start Year Balance'!L22*(1+Growth!$H23) -> 0 | M22: =+'Start Year Balance'!M22*(1+Growth!$H23) -> 0 | N22: 171489.2667
A23: Transport - navigation | B23: =+'Start Year Balance'!B23*(1+Growth!$G24) -> 0 | C23: =+'Start Year Balance'!C23*(1+Growth!$H24) -> 0 | D23: =+'Start Year Balance'!D23*(1+Growth!$H24) -> 0 | E23: =+'Start Year Balance'!E23*(1+Growth!$H24) -> 0 | F23: =+'Start Year Balance'!F23*(1+Growth!$H24) -> 21444.88746 | G23: =+'Start Year Balance'!G23*(1+Growth!$H24) -> 0 | H23: 21444.88746 | I23: =+'Start Year Balance'!I23*(1+Growth!$H24) -> 0 | J23: =+'Start Year Balance'!J23*(1+Growth!$H24) -> 0 | K23: =+'Start Year Balance'!K23*(1+Growth!$H24) -> 0 | L23: =+'Start Year Balance'!L23*(1+Growth!$H24) -> 0 | M23: =+'Start Year Balance'!M23*(1+Growth!$H24) -> 0 | N23: 21444.88746
A24: Households | B24: =+'Start Year Balance'!B24*(1+Growth!$G26) -> 27772.51462 | C24: =+'Start Year Balance'!C24*(1+Growth!$H26) -> 0 | D24: =+'Start Year Balance'!D24*(1+Growth!$H26) -> 0 | E24: =+'Start Year Balance'!E24*(1+Growth!$H26) -> 0 | F24: =+'Start Year Balance'!F24*(1+Growth!$H26) -> 0 | G24: =+'Start Year Balance'!G24*(1+Growth!$H27) -> 7567.905644 | H24: 35340.42026 | I24: =+'Start Year Balance'!I24*(1+Growth!$H26) -> 123769.0074 | J24: =+'Start Year Balance'!J24*(1+Growth!$H26) -> 124112.4862 | K24: =+'Start Year Balance'!K24*(1+Growth!$H26) -> 1250869.398 | L24: =+'Start Year Balance'!L24*(1+Growth!$H26) -> 0 | M24: =+'Start Year Balance'!M24*(1+Growth!$H26) -> 0 | N24: 1534091.311
A25: Services | B25: =+'Start Year Balance'!B25*(1+Growth!$G29) -> 64726.96265 | C25: =+'Start Year Balance'!C25*(1+Growth!$H29) -> 0 | D25: =+'Start Year Balance'!D25*(1+Growth!$H29) -> 0 | E25: =+'Start Year Balance'!E25*(1+Growth!$H29) -> 0 | F25: =+'Start Year Balance'!F25*(1+Growth!$H29) -> 0 | G25: =+'Start Year Balance'!G25*(1+Growth!$H29) -> 0 | H25: 64726.96265 | I25: =+'Start Year Balance'!I25*(1+Growth!$H29) -> 426415.2545 | J25: =+'Start Year Balance'!J25*(1+Growth!$H29) -> 43220.59925 | K25: =+'Start Year Balance'!K25*(1+Growth!$H29) -> 359454.3787 | L25: =+'Start Year Balance'!L25*(1+Growth!$H29) -> 3918.807623 | M25: =+'Start Year Balance'!M25*(1+Growth!$H29) -> 0 | N25: 897736.0027
A26: Agriculture & Fishery | B26: =+'Start Year Balance'!B26*(1+Growth!$G31) -> 0 | C26: =+'Start Year Balance'!C26*(1+Growth!$H31) -> 0 | D26: =+'Start Year Balance'!D26*(1+Growth!$H31) -> 0 | E26: =+'Start Year Balance'!E26*(1+Growth!$H31) -> 343267.7496 | F26: =+'Start Year Balance'!F26*(1+Growth!$H31) -> 0 | G26: =+'Start Year Balance'!G26*(1+Growth!$H31) -> 0 | H26: 343267.7496 | I26: =+'Start Year Balance'!I26*(1+Growth!$H31) -> 0 | J26: =+'Start Year Balance'!J26*(1+Growth!$H31) -> 0 | K26: =+'Start Year Balance'!K26*(1+Growth!$H31) -> 15124.14817 | L26: =+'Start Year Balance'!L26*(1+Growth!$H31) -> 0 | M26: =+'Start Year Balance'!M26*(1+Growth!$H31) -> 0 | N26: 358391.8978
A27: Non energy uses | B27: =+'Start Year Balance'!B27*(1+Growth!$G33) -> 0 | C27: =+'Start Year Balance'!C27*(1+Growth!$H33) -> 0 | D27: =+'Start Year Balance'!D27*(1+Growth!$H33) -> 0 | E27: =+'Start Year Balance'!E27*(1+Growth!$H33) -> 0 | F27: =+'Start Year Balance'!F27*(1+Growth!$H33) -> 0 | G27: =+'Start Year Balance'!G27*(1+Growth!$H33) -> 0 | H27: 0 | I27: =+'Start Year Balance'!I27*(1+Growth!$H33) -> 0 | J27: =+'Start Year Balance'!J27*(1+Growth!$H33) -> 0 | K27: =+'Start Year Balance'!K27*(1+Growth!$H33) -> 0 | L27: =+'Start Year Balance'!L27*(1+Growth!$H33) -> 0 | M27: =+'Start Year Balance'!M27*(1+Growth!$H33) -> 0 | N27: 0
A30: Fossil fuel balance | B30: =+assumptions!$B$2 -> Country X | D30: 2035
A31: =+'Start Year Balance'!A31 -> 1 ktoe=41.868 TJ | P31: Fuel share for power like in 2025
A32: =+'Start Year Balance'!A32 -> ktoe per TJ | C32: =+'Start Year Balance'!C32 -> 0.02388458966 | D32: =+'Start Year Balance'!D32 -> 0.02388458966 | E32: =+'Start Year Balance'!E32 -> 0.02388458966 | F32: =+'Start Year Balance'!F32 -> 0.02388458966 | G32: =+'Start Year Balance'!G32 -> 0.02388458966 | H32: =+'Start Year Balance'!H32 -> 0.02388458966 | J32: =+'Start Year Balance'!J32 -> 0.02388458966 | K32: =+'Start Year Balance'!K32 -> 0.02388458966 | L32: =+'Start Year Balance'!L32 -> 0.02388458966 | M32: 0.02388458966 | N32: 0.02388458966
A33: Unit : ktoe | B33: Total | C33: LPG | D33: Gasoline | E33: Jet Fuel | F33: Diesel | G33: Fueloil | H33: Kerosene and other | I33: Total oil products | J33: Coal | K33: Lignite | L33: Gas | M33: Coke | N33: Petrocoke | O33: Electricity consumption Gwh | Q33: Electricity production Gwh | R33: Share of production | S33: Efficiency
A34: Total consumption | B34: =+B35+B36 -> 352163.216 | C34: =+C35+C36 -> 13159.83319 | D34: 6327.299974 | E34: 4095.950767 | F34: 60747.23258 | G34: 1309.894502 | H34: 180.7563209 | I34: 85820.96733 | J34: 55112.32716 | K34: 71886.75052 | L34: 120885.7603 | M34: 9623.158707 | N34: 8834.251905 | P34: Total | Q34: =IF(R35=1,0,O36/(1-R35)) -> 763307.3315
A35: Fossil power plants | B35: =SUM(I35:N35) -> 148708.15 | C35: =IF(Q36=0,0,$I35*IF('Start Year Balance'!$I35>0,'Start Year Balance'!C35/'Start Year Balance'!$I35,0)) -> 0 | D35: =IF(Q36=0,0,$I35*IF('Start Year Balance'!$I35>0,'Start Year Balance'!D35/'Start Year Balance'!$I35,0)) -> 0 | E35: =IF(Q36=0,0,$I35*IF('Start Year Balance'!$I35>0,'Start Year Balance'!E35/'Start Year Balance'!$I35,0)) -> 0 | F35: =IF(Q36=0,0,$I35*IF('Start Year Balance'!$I35>0,'Start Year Balance'!F35/'Start Year Balance'!$I35,0)) -> 718.1879367 | G35: =IF(Q36=0,0,$I35*IF('Start Year Balance'!$I35>0,'Start Year Balance'!G35/'Start Year Balance'!$I35,0)) -> 635.3548118 | H35: =IF(Q36=0,0,$I35*IF('Start Year Balance'!$I35>0,'Start Year Balance'!H35/'Start Year Balance'!$I35,0)) -> 0 | I35: =IF(Q36=0,0,Q39/11.63/S39) -> 1353.542748 | J35: =IF(S38>0,Q38/11.63/S38,0) -> 31338.1527 | K35: =IF(S37>0,Q37/11.63/S37,0) -> 62762.94726 | L35: =IF(S40>0,Q40/11.63/S40,0) -> 53253.50729 | M35: =IF(T40>0,R40/11.63/T40,0) -> 0 | N35: 0 | P35: Losses | Q35: =Q34*R35 -> 130431.5635 | R35: =+'Balance 2025'!R35 -> 0.1708768646
A36: FINAL CONSUMPTION | B36: =SUM(B37:B56) -> 203455.0659 | C36: =SUM(C37:C56) -> 13159.83319 | D36: 6327.299974 | E36: 4095.950767 | F36: 60029.04464 | G36: 674.5396901 | H36: 180.7563209 | I36: =SUM(C36:H36) -> 84467.42458 | J36: =SUM(J37:J56) -> 23774.17446 | K36: 9123.803266 | L36: 67632.25303 | M36: 9623.158707 | N36: 8834.251905 | O36: =SUM(O37:O56) -> 632875.768 | P36: Fossil | Q36: =SUM(Q37:Q49) -> 517868.6779 | R36: =SUM(R37:R50) -> 0.6784536929
A37: Industry - steel | B37: =SUM(I37:N37) -> 742.2750832 | C37: =+'Start Year Balance'!C37*(1+Growth!$H8) -> 0 | D37: =+'Start Year Balance'!D37*(1+Growth!$H8) -> 0 | E37: =+'Start Year Balance'!E37*(1+Growth!$H8) -> 0 | F37: =+'Start Year Balance'!F37*(1+Growth!$H8) -> 51.29913833 | G37: =+'Start Year Balance'!G37*(1+Growth!$H8) -> 0 | H37: =+'Start Year Balance'!H37*(1+Growth!$H8) -> 0 | I37: =SUM(C37:H37) -> 51.29913833 | J37: =+'Start Year Balance'!J37*(1+Growth!$H8) -> 33.14968552 | K37: =+'Start Year Balance'!K37*(1+Growth!$H8) -> 33.13575708 | L37: =+'Start Year Balance'!L37*(1+Growth!$H8) -> 624.6905023 | M37: =+'Start Year Balance'!M37*(1+Growth!$H8) -> 0 | N37: =+'Start Year Balance'!N37*(1+Growth!$H8) -> 0 | O37: =+'Start Year Balance'!O37*(1+Growth!H$20) -> 4469.889945 | P37: Lignite | Q37: =Q$34*R37 -> 94514.99189 | R37: =+'Balance 2025'!R37 -> 0.1238229845 | S37: =+'Balance 2025'!S37 -> 0.1294844622
A38: Industry - chemical | B38: =SUM(I38:N38) -> 8267.161767 | C38: =+'Start Year Balance'!C38*(1+Growth!$H9) -> 29.64668303 | D38: =+'Start Year Balance'!D38*(1+Growth!$H9) -> 0 | E38: =+'Start Year Balance'!E38*(1+Growth!$H9) -> 0 | F38: =+'Start Year Balance'!F38*(1+Growth!$H9) -> 12.07038549 | G38: =+'Start Year Balance'!G38*(1+Growth!$H9) -> 8.396759627 | H38: =+'Start Year Balance'!H38*(1+Growth!$H9) -> 0 | I38: =SUM(C38:H38) -> 50.11382815 | J38: =+'Start Year Balance'!J38*(1+Growth!$H9) -> 768.2927114 | K38: =+'Start Year Balance'!K38*(1+Growth!$H9) -> 414.1969634 | L38: =+'Start Year Balance'!L38*(1+Growth!$H9) -> 7034.558264 | M38: =+'Start Year Balance'!M38*(1+Growth!$H9) -> 0 | N38: =+'Start Year Balance'!N38*(1+Growth!$H9) -> 0 | O38: =+'Start Year Balance'!O38*(1+Growth!H$20) -> 44188.63804 | P38: Coal | Q38: 127568.2681 | R38: =+'Balance 2025'!R38 -> 0.1671256947 | S38: =+'Balance 2025'!S38 -> 0.3500173338
A39: Industry - non metallic mineral | B39: 22309.32328 | C39: =+'Start Year Balance'!C39*(1+Growth!$H10) -> 9.882227678 | D39: =+'Start Year Balance'!D39*(1+Growth!$H10) -> 0 | E39: =+'Start Year Balance'!E39*(1+Growth!$H10) -> 0 | F39: =+'Start Year Balance'!F39*(1+Growth!$H10) -> 72.42231294 | G39: =+'Start Year Balance'!G39*(1+Growth!$H10) -> 50.38055776 | H39: =+'Start Year Balance'!H39*(1+Growth!$H10) -> 0 | I39: 132.6850984 | J39: =+'Start Year Balance'!J39*(1+Growth!$H10) -> 6448.588823 | K39: =+'Start Year Balance'!K39*(1+Growth!$H10) -> 1791.879786 | L39: =+'Start Year Balance'!L39*(1+Growth!$H10) -> 5117.030027 | M39: =+'Start Year Balance'!M39*(1+Growth!$H10) -> 0 | N39: =+'Start Year Balance'!N39*(1+Growth!$H10) -> 8819.139549 | O39: =+'Start Year Balance'!O39*(1+Growth!H$20) -> 54067.29892 | P39: Oil | Q39: 6484.693567 | R39: =+'Balance 2025'!R39 -> 0.008495521134 | S39: =+'Balance 2025'!S39 -> 0.4119436068
A40: Industry - food processing and beverage | B40: 4412.955082 | C40: =+'Start Year Balance'!C40*(1+Growth!$H11) -> 65.88151785 | D40: =+'Start Year Balance'!D40*(1+Growth!$H11) -> 0 | E40: =+'Start Year Balance'!E40*(1+Growth!$H11) -> 0 | F40: =+'Start Year Balance'!F40*(1+Growth!$H11) -> 18.10557824 | G40: =+'Start Year Balance'!G40*(1+Growth!$H11) -> 103.5600354 | H40: =+'Start Year Balance'!H40*(1+Growth!$H11) -> 0 | I40: 187.5471315 | J40: =+'Start Year Balance'!J40*(1+Growth!$H11) -> 444.5957822 | K40: =+'Start Year Balance'!K40*(1+Growth!$H11) -> 1002.993878 | L40: =+'Start Year Balance'!L40*(1+Growth!$H11) -> 2667.15684 | M40: =+'Start Year Balance'!M40*(1+Growth!$H11) -> 95.54909354 | N40: =+'Start Year Balance'!N40*(1+Growth!$H11) -> 15.11235663 | O40: =+'Start Year Balance'!O40*(1+Growth!H$20) -> 20702.03432 | P40: Natural Gas | Q40: 289300.7244 | R40: =+'Balance 2025'!R40 -> 0.3790094925 | S40: =+'Balance 2025'!S40 -> 0.4671126089
A41: Industry - construction | B41: 1427.136443 | C41: =+'Start Year Balance'!C41*(1+Growth!$H12) -> 0 | D41: =+'Start Year Balance'!D41*(1+Growth!$H12) -> 0 | E41: =+'Start Year Balance'!E41*(1+Growth!$H12) -> 0 | F41: =+'Start Year Balance'!F41*(1+Growth!$H12) -> 443.5866668 | G41: =+'Start Year Balance'!G41*(1+Growth!$H12) -> 0 | H41: =+'Start Year Balance'!H41*(1+Growth!$H12) -> 0 | I41: 443.5866668 | J41: =+'Start Year Balance'!J41*(1+Growth!$H12) -> 1.949981501 | K41: =+'Start Year Balance'!K41*(1+Growth!$H12) -> 3.823356586 | L41: =+'Start Year Balance'!L41*(1+Growth!$H12) -> 977.7764383 | M41: =+'Start Year Balance'!M41*(1+Growth!$H12) -> 0 | N41: =+'Start Year Balance'!N41*(1+Growth!$H12) -> 0 | O41: =+'Start Year Balance'!O41*(1+Growth!H$20) -> 8356.623994 | P41: Nuclear | Q41: 0 | R41: =+'Balance 2025'!R41 -> 0
A42: Industry - mining | B42: 1644.550327 | C42: =+'Start Year Balance'!C42*(1+Growth!$H13) -> 0 | D42: =+'Start Year Balance'!D42*(1+Growth!$H13) -> 0 | E42: =+'Start Year Balance'!E42*(1+Growth!$H13) -> 0 | F42: =+'Start Year Balance'!F42*(1+Growth!$H13) -> 1134.616236 | G42: =+'Start Year Balance'!G42*(1+Growth!$H13) -> 0 | H42: =+'Start Year Balance'!H42*(1+Growth!$H13) -> 0 | I42: 1134.616236 | J42: =+'Start Year Balance'!J42*(1+Growth!$H13) -> 37.04964852 | K42: =+'Start Year Balance'!K42*(1+Growth!$H13) -> 119.7985064 | L42: =+'Start Year Balance'!L42*(1+Growth!$H13) -> 353.0859361 | M42: =+'Start Year Balance'!M42*(1+Growth!$H13) -> 0 | N42: =+'Start Year Balance'!N42*(1+Growth!$H13) -> 0 | O42: =+'Start Year Balance'!O42*(1+Growth!H$20) -> 6429.293756 | P42: Net import | Q42: 0 | R42: =+'Balance 2025'!R42 -> 0
A43: Industry - machinery | B43: 240.4459511 | C43: =+'Start Year Balance'!C43*(1+Growth!$H14) -> 16.47037946 | D43: =+'Start Year Balance'!D43*(1+Growth!$H14) -> 0 | E43: =+'Start Year Balance'!E43*(1+Growth!$H14) -> 0 | F43: =+'Start Year Balance'!F43*(1+Growth!$H14) -> 9.052789118 | G43: =+'Start Year Balance'!G43*(1+Growth!$H14) -> 0 | H43: =+'Start Year Balance'!H43*(1+Growth!$H14) -> 0 | I43: 25.52316858 | J43: =+'Start Year Balance'!J43*(1+Growth!$H14) -> 5.849944503 | K43: =+'Start Year Balance'!K43*(1+Growth!$H14) -> 21.66568732 | L43: =+'Start Year Balance'!L43*(1+Growth!$H14) -> 187.4071507 | M43: =+'Start Year Balance'!M43*(1+Growth!$H14) -> 0 | N43: =+'Start Year Balance'!N43*(1+Growth!$H14) -> 0 | O43: =+'Start Year Balance'!O43*(1+Growth!H$20) -> 6280.589003
A44: Industry - non ferrous metals | B44: 17386.36865 | C44: =+'Start Year Balance'!C44*(1+Growth!$H15) -> 121.880808 | D44: =+'Start Year Balance'!D44*(1+Growth!$H15) -> 0 | E44: =+'Start Year Balance'!E44*(1+Growth!$H15) -> 0 | F44: =+'Start Year Balance'!F44*(1+Growth!$H15) -> 39.22875284 | G44: =+'Start Year Balance'!G44*(1+Growth!$H15) -> 0 | H44: =+'Start Year Balance'!H44*(1+Growth!$H15) -> 0 | I44: 161.1095609 | J44: =+'Start Year Balance'!J44*(1+Growth!$H15) -> 2117.67991 | K44: =+'Start Year Balance'!K44*(1+Growth!$H15) -> 86.66274928 | L44: =+'Start Year Balance'!L44*(1+Growth!$H15) -> 5586.905927 | M44: =+'Start Year Balance'!M44*(1+Growth!$H15) -> 9434.010501 | N44: =+'Start Year Balance'!N44*(1+Growth!$H15) -> 0 | O44: =+'Start Year Balance'!O44*(1+Growth!H$20) -> 73661.33704
A45: Industry - paper and pulp | B45: 977.7207245 | C45: =+'Start Year Balance'!C45*(1+Growth!$H16) -> 3.294075893 | D45: =+'Start Year Balance'!D45*(1+Growth!$H16) -> 0 | E45: =+'Start Year Balance'!E45*(1+Growth!$H16) -> 0 | F45: =+'Start Year Balance'!F45*(1+Growth!$H16) -> 30.17596373 | G45: =+'Start Year Balance'!G45*(1+Growth!$H16) -> 0 | H45: =+'Start Year Balance'!H45*(1+Growth!$H16) -> 0 | I45: 33.47003962 | J45: =+'Start Year Balance'!J45*(1+Growth!$H16) -> 83.84920454 | K45: =+'Start Year Balance'!K45*(1+Growth!$H16) -> 257.4393434 | L45: =+'Start Year Balance'!L45*(1+Growth!$H16) -> 602.962137 | M45: =+'Start Year Balance'!M45*(1+Growth!$H16) -> 0 | N45: =+'Start Year Balance'!N45*(1+Growth!$H16) -> 0 | O45: =+'Start Year Balance'!O45*(1+Growth!H$20) -> 11715.60196
A46: Industry - transport equipment | B46: 590.5386655 | C46: =+'Start Year Balance'!C46*(1+Growth!$H17) -> 75.76374553 | D46: =+'Start Year Balance'!D46*(1+Growth!$H17) -> 0 | E46: =+'Start Year Balance'!E46*(1+Growth!$H17) -> 0 | F46: =+'Start Year Balance'!F46*(1+Growth!$H17) -> 21.12317461 | G46: =+'Start Year Balance'!G46*(1+Growth!$H17) -> 0 | H46: =+'Start Year Balance'!H46*(1+Growth!$H17) -> 0 | I46: 96.88692014 | J46: =+'Start Year Balance'!J46*(1+Growth!$H17) -> 0 | K46: =+'Start Year Balance'!K46*(1+Growth!$H17) -> 10.19561756 | L46: =+'Start Year Balance'!L46*(1+Growth!$H17) -> 483.4561278 | M46: =+'Start Year Balance'!M46*(1+Growth!$H17) -> 0 | N46: =+'Start Year Balance'!N46*(1+Growth!$H17) -> 0 | O46: =+'Start Year Balance'!O46*(1+Growth!H$20) -> 7744.310303
A47: Industry - textile and leather | B47: 5387.755709 | C47: =+'Start Year Balance'!C47*(1+Growth!$H18) -> 39.52891071 | D47: =+'Start Year Balance'!D47*(1+Growth!$H18) -> 0 | E47: =+'Start Year Balance'!E47*(1+Growth!$H18) -> 0 | F47: =+'Start Year Balance'!F47*(1+Growth!$H18) -> 18.10557824 | G47: =+'Start Year Balance'!G47*(1+Growth!$H18) -> 0 | H47: =+'Start Year Balance'!H47*(1+Growth!$H18) -> 0 | I47: 57.63448895 | J47: =+'Start Year Balance'!J47*(1+Growth!$H18) -> 692.2434328 | K47: =+'Start Year Balance'!K47*(1+Growth!$H18) -> 1384.055084 | L47: =+'Start Year Balance'!L47*(1+Growth!$H18) -> 3253.822703 | M47: =+'Start Year Balance'!M47*(1+Growth!$H18) -> 0 | N47: =+'Start Year Balance'!N47*(1+Growth!$H18) -> 0 | O47: =+'Start Year Balance'!O47*(1+Growth!H$20) -> 50650.00537
A48: Industry - miscellaneous | B48: 1687.938808 | C48: =+'Start Year Balance'!C48*(1+Growth!$H19) -> 0 | D48: =+'Start Year Balance'!D48*(1+Growth!$H19) -> 0 | E48: =+'Start Year Balance'!E48*(1+Growth!$H19) -> 0 | F48: =+'Start Year Balance'!F48*(1+Growth!$H19) -> 0 | G48: =+'Start Year Balance'!G48*(1+Growth!$H19) -> 0 | H48: =+'Start Year Balance'!H48*(1+Growth!$H19) -> 0 | I48: 0 | J48: =+'Start Year Balance'!J48*(1+Growth!$H19) -> 0 | K48: =+'Start Year Balance'!K48*(1+Growth!$H19) -> 1.274452195 | L48: =+'Start Year Balance'!L48*(1+Growth!$H19) -> 1686.664356 | M48: =+'Start Year Balance'!M48*(1+Growth!$H19) -> 0 | N48: =+'Start Year Balance'!N48*(1+Growth!$H19) -> 0 | O48: =+'Start Year Balance'!O48*(1+Growth!H$20) -> 13613.7744
A49: Transport - road | B49: 66243.47202 | C49: =+'Start Year Balance'!C49*(1+Growth!$H21) -> 10109.51891 | D49: =+'Start Year Balance'!D49*(1+Growth!$H21) -> 6327.299974 | E49: =+'Start Year Balance'!E49*(1+Growth!$H21) -> 0 | F49: =+'Start Year Balance'!F49*(1+Growth!$H21) -> 49573.07321 | G49: =+'Start Year Balance'!G49*(1+Growth!$H21) -> 0 | H49: =+'Start Year Balance'!H49*(1+Growth!$H21) -> 0 | I49: 66009.8921 | J49: =+'Start Year Balance'!J49*(1+Growth!$H21) -> 0 | K49: =+'Start Year Balance'!K49*(1+Growth!$H21) -> 0 | L49: =+'Start Year Balance'!L49*(1+Growth!$H21) -> 233.5799269 | M49: =+'Start Year Balance'!M49*(1+Growth!$H21) -> 0 | N49: =+'Start Year Balance'!N49*(1+Growth!$H21) -> 0 | O49: =+'Start Year Balance'!O49*(1+Growth!H$25) -> 0
A50: Transport - rail | B50: 407.3755103 | C50: =+'Start Year Balance'!C50*(1+Growth!$H22) -> 0 | D50: =+'Start Year Balance'!D50*(1+Growth!$H22) -> 0 | E50: =+'Start Year Balance'!E50*(1+Growth!$H22) -> 0 | F50: =+'Start Year Balance'!F50*(1+Growth!$H22) -> 407.3755103 | G50: =+'Start Year Balance'!G50*(1+Growth!$H22) -> 0 | H50: =+'Start Year Balance'!H50*(1+Growth!$H22) -> 0 | I50: 407.3755103 | J50: =+'Start Year Balance'!J50*(1+Growth!$H22) -> 0 | K50: =+'Start Year Balance'!K50*(1+Growth!$H22) -> 0 | L50: =+'Start Year Balance'!L50*(1+Growth!$H22) -> 0 | M50: =+'Start Year Balance'!M50*(1+Growth!$H22) -> 0 | N50: =+'Start Year Balance'!N50*(1+Growth!$H22) -> 0 | O50: =+'Start Year Balance'!O50*(1+Growth!H$25) -> 2341.370924
A51: Transport - domestic air | B51: 4095.950767 | C51: =+'Start Year Balance'!C51*(1+Growth!$H23) -> 0 | D51: =+'Start Year Balance'!D51*(1+Growth!$H23) -> 0 | E51: =+'Start Year Balance'!E51*(1+Growth!$H23) -> 4095.950767 | F51: =+'Start Year Balance'!F51*(1+Growth!$H23) -> 0 | G51: =+'Start Year Balance'!G51*(1+Growth!$H23) -> 0 | H51: =+'Start Year Balance'!H51*(1+Growth!$H23) -> 0 | I51: 4095.950767 | J51: =+'Start Year Balance'!J51*(1+Growth!$H23) -> 0 | K51: =+'Start Year Balance'!K51*(1+Growth!$H23) -> 0 | L51: =+'Start Year Balance'!L51*(1+Growth!$H23) -> 0 | M51: =+'Start Year Balance'!M51*(1+Growth!$H23) -> 0 | N51: =+'Start Year Balance'!N51*(1+Growth!$H23) -> 0 | O51: =+'Start Year Balance'!O51*(1+Growth!H$25) -> 0 | P51: Renewables | Q51: =SUM(Q52:Q56) -> 245438.6536 | R51: =SUM(R52:R56) -> 0.3215463071
A52: Transport - navigation | B52: 512.2023373 | C52: =+'Start Year Balance'!C52*(1+Growth!$H24) -> 0 | D52: =+'Start Year Balance'!D52*(1+Growth!$H24) -> 0 | E52: =+'Start Year Balance'!E52*(1+Growth!$H24) -> 0 | F52: =+'Start Year Balance'!F52*(1+Growth!$H24) -> 0 | G52: =+'Start Year Balance'!G52*(1+Growth!$H24) -> 512.2023373 | H52: =+'Start Year Balance'!H52*(1+Growth!$H24) -> 0 | I52: 512.2023373 | J52: =+'Start Year Balance'!J52*(1+Growth!$H24) -> 0 | K52: =+'Start Year Balance'!K52*(1+Growth!$H24) -> 0 | L52: =+'Start Year Balance'!L52*(1+Growth!$H24) -> 0 | M52: =+'Start Year Balance'!M52*(1+Growth!$H24) -> 0 | N52: =+'Start Year Balance'!N52*(1+Growth!$H24) -> 0 | O52: =+'Start Year Balance'!O52*(1+Growth!H$25) -> 0 | P52: Hydro | Q52: =Q$34*R52 -> 195782.9291 | R52: =+'Balance 2025'!R52 -> 0.2564929236
A53: Households | B53: 36784.85496 | C53: =+'Start Year Balance'!C53*(1+Growth!$H26) -> 807.0485937 | D53: =+'Start Year Balance'!D53*(1+Growth!$H26) -> 0 | E53: =+'Start Year Balance'!E53*(1+Growth!$H26) -> 0 | F53: =+'Start Year Balance'!F53*(1+Growth!$H26) -> 0 | G53: =+'Start Year Balance'!G53*(1+Growth!$H26) -> 0 | H53: =+'Start Year Balance'!H53*(1+Growth!$H27) -> 180.7563209 | I53: 987.8049146 | J53: =+'Start Year Balance'!J53*(1+Growth!$H26) -> 2956.171955 | K53: =+'Start Year Balance'!K53*(1+Growth!$H26) -> 2964.375806 | L53: =+'Start Year Balance'!L53*(1+Growth!$H26) -> 29876.50228 | M53: =+'Start Year Balance'!M53*(1+Growth!$H26) -> 0 | N53: =+'Start Year Balance'!N53*(1+Growth!$H26) -> 0 | O53: =+'Start Year Balance'!O53*(1+Growth!H28) -> 139668.7529 | P53: Wind | Q53: =Q$34*R53 -> 33977.5783 | R53: =+'Balance 2025'!R53 -> 0.0445136276
A54: Services | B54: 21776.99644 | C54: =+'Start Year Balance'!C54*(1+Growth!$H29) -> 1880.917335 | D54: =+'Start Year Balance'!D54*(1+Growth!$H29) -> 0 | E54: =+'Start Year Balance'!E54*(1+Growth!$H29) -> 0 | F54: =+'Start Year Balance'!F54*(1+Growth!$H29) -> 0 | G54: =+'Start Year Balance'!G54*(1+Growth!$H29) -> 0 | H54: =+'Start Year Balance'!H54*(1+Growth!$H29) -> 0 | I54: 1880.917335 | J54: =+'Start Year Balance'!J54*(1+Growth!$H29) -> 10184.75338 | K54: =+'Start Year Balance'!K54*(1+Growth!$H29) -> 1032.306278 | L54: =+'Start Year Balance'!L54*(1+Growth!$H29) -> 8585.420337 | M54: =+'Start Year Balance'!M54*(1+Growth!$H29) -> 93.59911204 | N54: =+'Start Year Balance'!N54*(1+Growth!$H29) -> 0 | O54: =+'Start Year Balance'!O54*(1+Growth!H30) -> 174754.3274 | P54: Solar | Q54: =Q$34*R54 -> 565.6612194 | R54: =+'Balance 2025'!R54 -> 0.0007410661421
A55: Agriculture & Fishery | B55: 8560.043417 | C55: =+'Start Year Balance'!C55*(1+Growth!$H31) -> 0 | D55: =+'Start Year Balance'!D55*(1+Growth!$H31) -> 0 | E55: =+'Start Year Balance'!E55*(1+Growth!$H31) -> 0 | F55: =+'Start Year Balance'!F55*(1+Growth!$H31) -> 8198.809344 | G55: =+'Start Year Balance'!G55*(1+Growth!$H31) -> 0 | H55: =+'Start Year Balance'!H55*(1+Growth!$H31) -> 0 | I55: 8198.809344 | J55: =+'Start Year Balance'!J55*(1+Growth!$H31) -> 0 | K55: =+'Start Year Balance'!K55*(1+Growth!$H31) -> 0 | L55: =+'Start Year Balance'!L55*(1+Growth!$H31) -> 361.234073 | M55: =+'Start Year Balance'!M55*(1+Growth!$H31) -> 0 | N55: =+'Start Year Balance'!N55*(1+Growth!$H31) -> 0 | O55: =+'Start Year Balance'!O55*(1+Growth!H32) -> 14231.91965 | P55: Biomass | Q55: =Q$34*R55 -> 5125.940328 | R55: =+'Balance 2025'!R55 -> 0.006715434421
A56: Non energy uses | B56: 0 | C56: =+'Start Year Balance'!C56*(1+Growth!$H33) -> 0 | D56: =+'Start Year Balance'!D56*(1+Growth!$H33) -> 0 | E56: =+'Start Year Balance'!E56*(1+Growth!$H33) -> 0 | F56: =+'Start Year Balance'!F56*(1+Growth!$H33) -> 0 | G56: =+'Start Year Balance'!G56*(1+Growth!$H33) -> 0 | H56: =+'Start Year Balance'!H56*(1+Growth!$H33) -> 0 | I56: 0 | J56: =+'Start Year Balance'!J56*(1+Growth!$H33) -> 0 | K56: =+'Start Year Balance'!K56*(1+Growth!$H33) -> 0 | L56: =+'Start Year Balance'!L56*(1+Growth!$H33) -> 0 | M56: =+'Start Year Balance'!M56*(1+Growth!$H33) -> 0 | N56: =+'Start Year Balance'!N56*(1+Growth!$H33) -> 0 | O56: =+'Start Year Balance'!O56*(1+Growth!H33) -> 0 | P56: Geothermal | Q56: =Q$34*R56 -> 9986.544724 | R56: =+'Balance 2025'!R56 -> 0.01308325534
R57: =+R36+R51 -> 1
A59: GHG Balance | B59: =+assumptions!$B$2 -> Country X | D59: 2035
A60: Ton CO2/Toe (IPCC): | C60: =+'Start Year Balance'!C60 -> 2.614070448 | D60: =+'Start Year Balance'!D60 -> 2.872437876 | E60: =+'Start Year Balance'!E60 -> 2.96362638 | F60: =+'Start Year Balance'!F60 -> 3.070012968 | G60: =+'Start Year Balance'!G60 -> 3.206795724 | H60: =+'Start Year Balance'!H60 -> 2.978824464 | J60: =+'Start Year Balance'!J60 -> 3.921105672 | K60: =+'Start Year Balance'!K60 -> 4.194671184 | L60: =+'Start Year Balance'!L60 -> 2.325306852 | M60: =+'Start Year Balance'!M60 -> 4.484816424 | N60: =+'Start Year Balance'!N60 -> 4.157366796
A61: Unit : ktCO2-e | B61: Total | C61: LPG | D61: Gasoline | E61: Jet Fuel | F61: Diesel | G61: Fueloil | H61: Kerosene and other | I61: Total oil products | J61: Coal | K61: Lignite | L61: Gas | M61: Coke | N61: Petrocoke
A62: Total | B62: =+B63+B64 -> 1134572.524 | C62: =+C63+C64 -> 34400.73104 | D62: 18174.7761 | E62: 12138.86775 | F62: 186494.7918 | G62: 4200.564087 | H62: 538.4413508 | I62: 255948.1721 | J62: 216101.2586 | K62: 301541.2809 | L62: 281096.4868 | M62: 43158.10022 | N62: 36727.22554
A63: Fossil power plants | B63: =SUM(I63:N63) -> 514223.1794 | C63: =C60*C35 -> 0 | D63: =D60*D35 -> 0 | E63: 0 | F63: 2204.846279 | G63: 2037.453094 | H63: 0 | I63: =SUM(C63:H63) -> 4242.299373 | J63: =J60*J35 -> 122880.2083 | K63: 263269.9263 | L63: 123830.7454 | M63: 0 | N63: 0
A64: FINAL CONSUMPTION | B64: =SUM(B65:B84) -> 620349.3448 | C64: =SUM(C65:C84) -> 34400.73104 | D64: 18174.7761 | E64: 12138.86775 | F64: 184289.9455 | G64: 2163.110994 | H64: 538.4413508 | I64: =SUM(C64:H64) -> 251705.8727 | J64: =SUM(J65:J84) -> 93221.05032 | K64: 38271.35465 | L64: 157265.7414 | M64: 43158.10022 | N64: 36727.22554
A65: Industry - steel | B65: =SUM(I65:N65) -> 1879.06315 | C65: =+'Start Year Balance'!C65*(1+Growth!$H8) -> 0 | D65: =+'Start Year Balance'!D65*(1+Growth!$H8) -> 0 | E65: =+'Start Year Balance'!E65*(1+Growth!$H8) -> 0 | F65: =+'Start Year Balance'!F65*(1+Growth!$H8) -> 157.4890199 | G65: =+'Start Year Balance'!G65*(1+Growth!$H8) -> 0 | H65: =+'Start Year Balance'!H65*(1+Growth!$H8) -> 0 | I65: =SUM(C65:H65) -> 157.4890199 | J65: =+'Start Year Balance'!J65*(1+Growth!$H8) -> 129.9834199 | K65: =+'Start Year Balance'!K65*(1+Growth!$H8) -> 138.9936054 | L65: =+'Start Year Balance'!L65*(1+Growth!$H8) -> 1452.597105 | M65: =+'Start Year Balance'!M65*(1+Growth!$H8) -> 0 | N65: =+'Start Year Balance'!N65*(1+Growth!$H8) -> 0
A66: Industry - chemical | B66: =SUM(I66:N66) -> 21248.96496 | C66: =+'Start Year Balance'!C66*(1+Growth!$H9) -> 77.498518 | D66: =+'Start Year Balance'!D66*(1+Growth!$H9) -> 0 | E66: =+'Start Year Balance'!E66*(1+Growth!$H9) -> 0 | F66: =+'Start Year Balance'!F66*(1+Growth!$H9) -> 37.05623998 | G66: =+'Start Year Balance'!G66*(1+Growth!$H9) -> 26.92669287 | H66: =+'Start Year Balance'!H66*(1+Growth!$H9) -> 0 | I66: 141.4814509 | J66: =+'Start Year Balance'!J66*(1+Growth!$H9) -> 3012.556908 | K66: =+'Start Year Balance'!K66*(1+Growth!$H9) -> 1737.420067 | L66: =+'Start Year Balance'!L66*(1+Growth!$H9) -> 16357.50653 | M66: =+'Start Year Balance'!M66*(1+Growth!$H9) -> 0 | N66: =+'Start Year Balance'!N66*(1+Growth!$H9) -> 0
A67: Industry - non metallic mineral | B67: 81774.73807 | C67: =+'Start Year Balance'!C67*(1+Growth!$H10) -> 25.83283933 | D67: =+'Start Year Balance'!D67*(1+Growth!$H10) -> 0 | E67: =+'Start Year Balance'!E67*(1+Growth!$H10) -> 0 | F67: =+'Start Year Balance'!F67*(1+Growth!$H10) -> 222.3374399 | G67: =+'Start Year Balance'!G67*(1+Growth!$H10) -> 161.5601572 | H67: =+'Start Year Balance'!H67*(1+Growth!$H10) -> 0 | I67: 409.7304364 | J67: =+'Start Year Balance'!J67*(1+Growth!$H10) -> 25285.59821 | K67: =+'Start Year Balance'!K67*(1+Growth!$H10) -> 7516.346506 | L67: =+'Start Year Balance'!L67*(1+Growth!$H10) -> 11898.66498 | M67: =+'Start Year Balance'!M67*(1+Growth!$H10) -> 0 | N67: =+'Start Year Balance'!N67*(1+Growth!$H10) -> 36664.39793
A68: Industry - food processing and beverage | B68: 13203.74156 | C68: =+'Start Year Balance'!C68*(1+Growth!$H11) -> 172.2189289 | D68: =+'Start Year Balance'!D68*(1+Growth!$H11) -> 0 | E68: =+'Start Year Balance'!E68*(1+Growth!$H11) -> 0 | F68: =+'Start Year Balance'!F68*(1+Growth!$H11) -> 55.58435998 | G68: =+'Start Year Balance'!G68*(1+Growth!$H11) -> 332.0958787 | H68: =+'Start Year Balance'!H68*(1+Growth!$H11) -> 0 | I68: 559.8991676 | J68: =+'Start Year Balance'!J68*(1+Growth!$H11) -> 1743.307043 | K68: =+'Start Year Balance'!K68*(1+Growth!$H11) -> 4207.229516 | L68: =+'Start Year Balance'!L68*(1+Growth!$H11) -> 6201.958076 | M68: =+'Start Year Balance'!M68*(1+Growth!$H11) -> 428.520144 | N68: =+'Start Year Balance'!N68*(1+Growth!$H11) -> 62.82760967
A69: Industry - construction | B69: 3659.130878 | C69: =+'Start Year Balance'!C69*(1+Growth!$H12) -> 0 | D69: =+'Start Year Balance'!D69*(1+Growth!$H12) -> 0 | E69: =+'Start Year Balance'!E69*(1+Growth!$H12) -> 0 | F69: =+'Start Year Balance'!F69*(1+Growth!$H12) -> 1361.816819 | G69: =+'Start Year Balance'!G69*(1+Growth!$H12) -> 0 | H69: =+'Start Year Balance'!H69*(1+Growth!$H12) -> 0 | I69: 1361.816819 | J69: =+'Start Year Balance'!J69*(1+Growth!$H12) -> 7.646083523 | K69: =+'Start Year Balance'!K69*(1+Growth!$H12) -> 16.0377237 | L69: =+'Start Year Balance'!L69*(1+Growth!$H12) -> 2273.630252 | M69: =+'Start Year Balance'!M69*(1+Growth!$H12) -> 0 | N69: =+'Start Year Balance'!N69*(1+Growth!$H12) -> 0
A70: Industry - mining | B70: 4952.110634 | C70: =+'Start Year Balance'!C70*(1+Growth!$H13) -> 0 | D70: =+'Start Year Balance'!D70*(1+Growth!$H13) -> 0 | E70: =+'Start Year Balance'!E70*(1+Growth!$H13) -> 0 | F70: =+'Start Year Balance'!F70*(1+Growth!$H13) -> 3483.286559 | G70: =+'Start Year Balance'!G70*(1+Growth!$H13) -> 0 | H70: =+'Start Year Balance'!H70*(1+Growth!$H13) -> 0 | I70: 3483.286559 | J70: =+'Start Year Balance'!J70*(1+Growth!$H13) -> 145.2755869 | K70: =+'Start Year Balance'!K70*(1+Growth!$H13) -> 502.5153425 | L70: =+'Start Year Balance'!L70*(1+Growth!$H13) -> 821.0331465 | M70: =+'Start Year Balance'!M70*(1+Growth!$H13) -> 0 | N70: =+'Start Year Balance'!N70*(1+Growth!$H13) -> 0
A71: Industry - machinery | B71: 620.4447286 | C71: =+'Start Year Balance'!C71*(1+Growth!$H14) -> 43.05473222 | D71: =+'Start Year Balance'!D71*(1+Growth!$H14) -> 0 | E71: =+'Start Year Balance'!E71*(1+Growth!$H14) -> 0 | F71: =+'Start Year Balance'!F71*(1+Growth!$H14) -> 27.79217999 | G71: =+'Start Year Balance'!G71*(1+Growth!$H14) -> 0 | H71: =+'Start Year Balance'!H71*(1+Growth!$H14) -> 0 | I71: 70.84691221 | J71: =+'Start Year Balance'!J71*(1+Growth!$H14) -> 22.93825057 | K71: =+'Start Year Balance'!K71*(1+Growth!$H14) -> 90.88043428 | L71: =+'Start Year Balance'!L71*(1+Growth!$H14) -> 435.7791316 | M71: =+'Start Year Balance'!M71*(1+Growth!$H14) -> 0 | N71: =+'Start Year Balance'!N71*(1+Growth!$H14) -> 0
A72: Industry - non ferrous metals | B72: 64407.28212 | C72: =+'Start Year Balance'!C72*(1+Growth!$H15) -> 318.6050184 | D72: =+'Start Year Balance'!D72*(1+Growth!$H15) -> 0 | E72: =+'Start Year Balance'!E72*(1+Growth!$H15) -> 0 | F72: =+'Start Year Balance'!F72*(1+Growth!$H15) -> 120.43278 | G72: =+'Start Year Balance'!G72*(1+Growth!$H15) -> 0 | H72: =+'Start Year Balance'!H72*(1+Growth!$H15) -> 0 | I72: 439.0377984 | J72: =+'Start Year Balance'!J72*(1+Growth!$H15) -> 8303.646706 | K72: =+'Start Year Balance'!K72*(1+Growth!$H15) -> 363.5217371 | L72: =+'Start Year Balance'!L72*(1+Growth!$H15) -> 12991.27063 | M72: =+'Start Year Balance'!M72*(1+Growth!$H15) -> 42309.80524 | N72: =+'Start Year Balance'!N72*(1+Growth!$H15) -> 0
A73: Industry - paper and pulp | B73: 2911.978522 | C73: =+'Start Year Balance'!C73*(1+Growth!$H16) -> 8.610946444 | D73: =+'Start Year Balance'!D73*(1+Growth!$H16) -> 0 | E73: =+'Start Year Balance'!E73*(1+Growth!$H16) -> 0 | F73: =+'Start Year Balance'!F73*(1+Growth!$H16) -> 92.64059996 | G73: =+'Start Year Balance'!G73*(1+Growth!$H16) -> 0 | H73: =+'Start Year Balance'!H73*(1+Growth!$H16) -> 0 | I73: 101.2515464 | J73: =+'Start Year Balance'!J73*(1+Growth!$H16) -> 328.7815915 | K73: =+'Start Year Balance'!K73*(1+Growth!$H16) -> 1079.873396 | L73: =+'Start Year Balance'!L73*(1+Growth!$H16) -> 1402.071989 | M73: =+'Start Year Balance'!M73*(1+Growth!$H16) -> 0 | N73: =+'Start Year Balance'!N73*(1+Growth!$H16) -> 0
A74: Industry - transport equipment | B74: 1429.851298 | C74: =+'Start Year Balance'!C74*(1+Growth!$H17) -> 198.0517682 | D74: =+'Start Year Balance'!D74*(1+Growth!$H17) -> 0 | E74: =+'Start Year Balance'!E74*(1+Growth!$H17) -> 0 | F74: =+'Start Year Balance'!F74*(1+Growth!$H17) -> 64.84841997 | G74: =+'Start Year Balance'!G74*(1+Growth!$H17) -> 0 | H74: =+'Start Year Balance'!H74*(1+Growth!$H17) -> 0 | I74: 262.9001882 | J74: =+'Start Year Balance'!J74*(1+Growth!$H17) -> 0 | K74: =+'Start Year Balance'!K74*(1+Growth!$H17) -> 42.76726319 | L74: =+'Start Year Balance'!L74*(1+Growth!$H17) -> 1124.183847 | M74: =+'Start Year Balance'!M74*(1+Growth!$H17) -> 0 | N74: =+'Start Year Balance'!N74*(1+Growth!$H17) -> 0
A75: Industry - textile and leather | B75: 16245.06757 | C75: =+'Start Year Balance'!C75*(1+Growth!$H18) -> 103.3313573 | D75: =+'Start Year Balance'!D75*(1+Growth!$H18) -> 0 | E75: =+'Start Year Balance'!E75*(1+Growth!$H18) -> 0 | F75: =+'Start Year Balance'!F75*(1+Growth!$H18) -> 55.58435998 | G75: =+'Start Year Balance'!G75*(1+Growth!$H18) -> 0 | H75: =+'Start Year Balance'!H75*(1+Growth!$H18) -> 0 | I75: 158.9157173 | J75: =+'Start Year Balance'!J75*(1+Growth!$H18) -> 2714.359651 | K75: =+'Start Year Balance'!K75*(1+Growth!$H18) -> 5805.655978 | L75: =+'Start Year Balance'!L75*(1+Growth!$H18) -> 7566.136227 | M75: =+'Start Year Balance'!M75*(1+Growth!$H18) -> 0 | N75: =+'Start Year Balance'!N75*(1+Growth!$H18) -> 0
A76: Industry - miscellaneous | B76: 3927.358092 | C76: =+'Start Year Balance'!C76*(1+Growth!$H19) -> 0 | D76: =+'Start Year Balance'!D76*(1+Growth!$H19) -> 0 | E76: =+'Start Year Balance'!E76*(1+Growth!$H19) -> 0 | F76: =+'Start Year Balance'!F76*(1+Growth!$H19) -> 0 | G76: =+'Start Year Balance'!G76*(1+Growth!$H19) -> 0 | H76: =+'Start Year Balance'!H76*(1+Growth!$H19) -> 0 | I76: 0 | J76: =+'Start Year Balance'!J76*(1+Growth!$H19) -> 0 | K76: =+'Start Year Balance'!K76*(1+Growth!$H19) -> 5.345907899 | L76: =+'Start Year Balance'!L76*(1+Growth!$H19) -> 3922.012184 | M76: =+'Start Year Balance'!M76*(1+Growth!$H19) -> 0 | N76: =+'Start Year Balance'!N76*(1+Growth!$H19) -> 0
A77: Transport - road | B77: 197334.8934 | C77: =+'Start Year Balance'!C77*(1+Growth!$H21) -> 26426.99464 | D77: =+'Start Year Balance'!D77*(1+Growth!$H21) -> 18174.7761 | E77: =+'Start Year Balance'!E77*(1+Growth!$H21) -> 0 | F77: =+'Start Year Balance'!F77*(1+Growth!$H21) -> 152189.9776 | G77: =+'Start Year Balance'!G77*(1+Growth!$H21) -> 0 | H77: =+'Start Year Balance'!H77*(1+Growth!$H21) -> 0 | I77: 196791.7484 | J77: =+'Start Year Balance'!J77*(1+Growth!$H21) -> 0 | K77: =+'Start Year Balance'!K77*(1+Growth!$H21) -> 0 | L77: =+'Start Year Balance'!L77*(1+Growth!$H21) -> 543.1450046 | M77: =+'Start Year Balance'!M77*(1+Growth!$H21) -> 0 | N77: =+'Start Year Balance'!N77*(1+Growth!$H21) -> 0
A78: Transport - rail | B78: 1250.648099 | C78: =+'Start Year Balance'!C78*(1+Growth!$H22) -> 0 | D78: =+'Start Year Balance'!D78*(1+Growth!$H22) -> 0 | E78: =+'Start Year Balance'!E78*(1+Growth!$H22) -> 0 | F78: =+'Start Year Balance'!F78*(1+Growth!$H22) -> 1250.648099 | G78: =+'Start Year Balance'!G78*(1+Growth!$H22) -> 0 | H78: =+'Start Year Balance'!H78*(1+Growth!$H22) -> 0 | I78: 1250.648099 | J78: =+'Start Year Balance'!J78*(1+Growth!$H22) -> 0 | K78: =+'Start Year Balance'!K78*(1+Growth!$H22) -> 0 | L78: =+'Start Year Balance'!L78*(1+Growth!$H22) -> 0 | M78: =+'Start Year Balance'!M78*(1+Growth!$H22) -> 0 | N78: =+'Start Year Balance'!N78*(1+Growth!$H22) -> 0
A79: Transport - domestic air | B79: 12138.86775 | C79: =+'Start Year Balance'!C79*(1+Growth!$H23) -> 0 | D79: =+'Start Year Balance'!D79*(1+Growth!$H23) -> 0 | E79: =+'Start Year Balance'!E79*(1+Growth!$H23) -> 12138.86775 | F79: =+'Start Year Balance'!F79*(1+Growth!$H23) -> 0 | G79: =+'Start Year Balance'!G79*(1+Growth!$H23) -> 0 | H79: =+'Start Year Balance'!H79*(1+Growth!$H23) -> 0 | I79: 12138.86775 | J79: =+'Start Year Balance'!J79*(1+Growth!$H23) -> 0 | K79: =+'Start Year Balance'!K79*(1+Growth!$H23) -> 0 | L79: =+'Start Year Balance'!L79*(1+Growth!$H23) -> 0 | M79: =+'Start Year Balance'!M79*(1+Growth!$H23) -> 0 | N79: =+'Start Year Balance'!N79*(1+Growth!$H23) -> 0
A80: Transport - navigation | B80: 1642.528265 | C80: =+'Start Year Balance'!C80*(1+Growth!$H24) -> 0 | D80: =+'Start Year Balance'!D80*(1+Growth!$H24) -> 0 | E80: =+'Start Year Balance'!E80*(1+Growth!$H24) -> 0 | F80: =+'Start Year Balance'!F80*(1+Growth!$H24) -> 0 | G80: =+'Start Year Balance'!G80*(1+Growth!$H24) -> 1642.528265 | H80: =+'Start Year Balance'!H80*(1+Growth!$H24) -> 0 | I80: 1642.528265 | J80: =+'Start Year Balance'!J80*(1+Growth!$H24) -> 0 | K80: =+'Start Year Balance'!K80*(1+Growth!$H24) -> 0 | L80: =+'Start Year Balance'!L80*(1+Growth!$H24) -> 0 | M80: =+'Start Year Balance'!M80*(1+Growth!$H24) -> 0 | N80: =+'Start Year Balance'!N80*(1+Growth!$H24) -> 0
A81: Households | B81: 96146.20309 | C81: =+'Start Year Balance'!C81*(1+Growth!$H26) -> 2109.681879 | D81: =+'Start Year Balance'!D81*(1+Growth!$H26) -> 0 | E81: =+'Start Year Balance'!E81*(1+Growth!$H26) -> 0 | F81: =+'Start Year Balance'!F81*(1+Growth!$H26) -> 0 | G81: =+'Start Year Balance'!G81*(1+Growth!$H26) -> 0 | H81: =+'Start Year Balance'!H81*(1+Growth!$H27) -> 538.4413508 | I81: 2648.12323 | J81: =+'Start Year Balance'!J81*(1+Growth!$H26) -> 11591.46262 | K81: =+'Start Year Balance'!K81*(1+Growth!$H26) -> 12434.58177 | L81: =+'Start Year Balance'!L81*(1+Growth!$H26) -> 69472.03547 | M81: =+'Start Year Balance'!M81*(1+Growth!$H26) -> 0 | N81: =+'Start Year Balance'!N81*(1+Growth!$H26) -> 0
A82: Services | B82: 69566.04163 | C82: =+'Start Year Balance'!C82*(1+Growth!$H29) -> 4916.85042 | D82: =+'Start Year Balance'!D82*(1+Growth!$H29) -> 0 | E82: =+'Start Year Balance'!E82*(1+Growth!$H29) -> 0 | F82: =+'Start Year Balance'!F82*(1+Growth!$H29) -> 0 | G82: =+'Start Year Balance'!G82*(1+Growth!$H29) -> 0 | H82: =+'Start Year Balance'!H82*(1+Growth!$H29) -> 0 | I82: 4916.85042 | J82: =+'Start Year Balance'!J82*(1+Growth!$H29) -> 39935.49424 | K82: =+'Start Year Balance'!K82*(1+Growth!$H29) -> 4330.185398 | L82: =+'Start Year Balance'!L82*(1+Growth!$H29) -> 19963.73674 | M82: =+'Start Year Balance'!M82*(1+Growth!$H29) -> 419.774835 | N82: =+'Start Year Balance'!N82*(1+Growth!$H29) -> 0
A83: Agriculture & Fishery | B83: 26010.43107 | C83: =+'Start Year Balance'!C83*(1+Growth!$H31) -> 0 | D83: =+'Start Year Balance'!D83*(1+Growth!$H31) -> 0 | E83: =+'Start Year Balance'!E83*(1+Growth!$H31) -> 0 | F83: =+'Start Year Balance'!F83*(1+Growth!$H31) -> 25170.45101 | G83: =+'Start Year Balance'!G83*(1+Growth!$H31) -> 0 | H83: =+'Start Year Balance'!H83*(1+Growth!$H31) -> 0 | I83: 25170.45101 | J83: =+'Start Year Balance'!J83*(1+Growth!$H31) -> 0 | K83: =+'Start Year Balance'!K83*(1+Growth!$H31) -> 0 | L83: =+'Start Year Balance'!L83*(1+Growth!$H31) -> 839.9800652 | M83: =+'Start Year Balance'!M83*(1+Growth!$H31) -> 0 | N83: =+'Start Year Balance'!N83*(1+Growth!$H31) -> 0
A84: Non energy uses | B84: 0 | C84: =+'Start Year Balance'!C84*(1+Growth!$H33) -> 0 | D84: =+'Start Year Balance'!D84*(1+Growth!$H33) -> 0 | E84: =+'Start Year Balance'!E84*(1+Growth!$H33) -> 0 | F84: =+'Start Year Balance'!F84*(1+Growth!$H33) -> 0 | G84: =+'Start Year Balance'!G84*(1+Growth!$H33) -> 0 | H84: =+'Start Year Balance'!H84*(1+Growth!$H33) -> 0 | I84: 0 | J84: =+'Start Year Balance'!J84*(1+Growth!$H33) -> 0 | K84: =+'Start Year Balance'!K84*(1+Growth!$H33) -> 0 | L84: =+'Start Year Balance'!L84*(1+Growth!$H33) -> 0 | M84: =+'Start Year Balance'!M84*(1+Growth!$H33) -> 0 | N84: =+'Start Year Balance'!N84*(1+Growth!$H33) -> 0
A85: CH4 from energy combustion | B85: =IF(B62=0,0,+'Start Year Balance'!B85*'Balance 2035'!B64/'Start Year Balance'!B64) -> 14756.75996
A86: N2O from energy combustion | B86: =IF(B63=0,0,+'Start Year Balance'!B86*'Balance 2035'!B65/'Start Year Balance'!B65) -> 11298.64549
A87: Total Agriculture | B87: =SUM(B88:B92) -> 97379.54195
A88: Enteric fermentation | B88: =+'Start Year Balance'!B88*(1+Growth!H$34) -> 46250.6381
A89: Manure management | B89: =+'Start Year Balance'!B89*(1+Growth!H$34) -> 10843.64856
A90: Rice cultivation | B90: =+'Start Year Balance'!B90*(1+Growth!H$35) -> 344.0243833
A91: N2O from agricultural soils | B91: =+'Start Year Balance'!B91*(1+Growth!H$36) -> 39352.94921
A92: Burning of agricultural residues | B92: =+'Start Year Balance'!B92*(1+Growth!H$37) -> 588.2816955
A93: Fugitive (CH4) | B93: =IF('Start Year Balance'!L62=0,0,'Start Year Balance'!B93*'Balance 2035'!L62/'Start Year Balance'!L62) -> 12045.08504
A94: Forestry | B94: =+'Start Year Balance'!B94*(1+Growth!H$38) -> -64020
A95: Waste - solid | B95: =+'Start Year Balance'!B95*(1+Growth!H39) -> 16880
A96: Waste - liquid | B96: =+'Start Year Balance'!B96*(1+Growth!H40) -> 0
A97: Industrial processes | B97: =+'Start Year Balance'!B97*(1+Growth!H41) -> 60720
A98: Total GHG emission | B98: =+B85+B86+B87+B93+B94+B95+B96+B97+B62 -> 1283632.557

Sheet Balance 2050
A1: Fossil fuel balance | B1: =+assumptions!$B$2 -> Country X | D1: 2030
A3: TJ units | B3: LPG | C3: Gasoline | D3: Jet Fuel | E3: Diesel | F3: Fueloil | G3: Kerosene and other | H3: Total oil products | I3: Coal | J3: Lignite | K3: Gas | L3: Coke | M3: Petrocoke | N3: Total energy (fossil)
A4: Unit | B4: TJ | C4: TJ | D4: TJ | E4: TJ | F4: TJ | G4: TJ | H4: TJ | I4: TJ | J4: TJ | K4: TJ | L4: TJ | M4: TJ | N4: TJ
A5: Total | B5: =+B6+B7 -> 741541.0137 | C5: 356535.8594 | D5: 230801.9745 | E5: 3423034.606 | F5: 73811.00373 | G5: 10185.40459 | H5: 4835909.862 | I5: 3105514.36 | J5: 4050733.249 | K5: 6811769.416 | L5: 542253.5954 | M5: 497799.6315 | N5: =SUM(H5:M5) -> 19843980.11
A6: Fossil power plants | B6: =C35/C32 -> 0 | C6: =D35/D32 -> 0 | D6: 0 | E6: 40469.0396 | F6: 35801.49112 | G6: 0 | H6: =SUM(B6:G6) -> 76270.53073 | I6: =J35/J32 -> 1765867.787 | J6: =K35/K32 -> 3536617.741 | K6: =L35/L32 -> 3000772.062 | L6: =M35/M32 -> 0 | M6: =N35/N32 -> 0 | N6: =SUM(H6:M6) -> 8379528.121
A7: FINAL CONSUMPTION | B7: =SUM(B8:B27) -> 741541.0137 | C7: 356535.8594 | D7: 230801.9745 | E7: 3382565.566 | F7: 38009.5126 | G7: 10185.40459 | H7: 4759639.331 | I7: 1339646.572 | J7: 514115.5077 | K7: 3810997.354 | L7: 542253.5954 | M7: 497799.6315 | N7: 11464451.99
A8: Industry - steel | B8: =+'Start Year Balance'!B8*(1+Growth!$I8) -> 0 | C8: =+'Start Year Balance'!C8*(1+Growth!$I8) -> 0 | D8: =+'Start Year Balance'!D8*(1+Growth!$I8) -> 0 | E8: =+'Start Year Balance'!E8*(1+Growth!$I8) -> 2890.645686 | F8: =+'Start Year Balance'!F8*(1+Growth!$I8) -> 0 | G8: =+'Start Year Balance'!G8*(1+Growth!$I8) -> 0 | H8: =SUM(B8:G8) -> 2890.645686 | I8: =+'Start Year Balance'!I8*(1+Growth!$I8) -> 1867.945516 | J8: =+'Start Year Balance'!J8*(1+Growth!$I8) -> 1867.160665 | K8: =+'Start Year Balance'!K8*(1+Growth!$I8) -> 35200.56991 | L8: =+'Start Year Balance'!L8*(1+Growth!$I8) -> 0 | M8: =+'Start Year Balance'!M8*(1+Growth!$I8) -> 0 | N8: 41826.32178
A9: Industry - chemical | B9: =+'Start Year Balance'!B9*(1+Growth!$I9) -> 1670.555475 | C9: =+'Start Year Balance'!C9*(1+Growth!$I9) -> 0 | D9: =+'Start Year Balance'!D9*(1+Growth!$I9) -> 0 | E9: =+'Start Year Balance'!E9*(1+Growth!$I9) -> 680.1519261 | F9: =+'Start Year Balance'!F9*(1+Growth!$I9) -> 473.1474598 | G9: =+'Start Year Balance'!G9*(1+Growth!$I9) -> 0 | H9: =SUM(B9:G9) -> 2823.854861 | I9: =+'Start Year Balance'!I9*(1+Growth!$I9) -> 43292.38431 | J9: =+'Start Year Balance'!J9*(1+Growth!$I9) -> 23339.50831 | K9: =+'Start Year Balance'!K9*(1+Growth!$I9) -> 396389.0264 | L9: =+'Start Year Balance'!L9*(1+Growth!$I9) -> 0 | M9: =+'Start Year Balance'!M9*(1+Growth!$I9) -> 0 | N9: 465844.7739
A10: Industry - non metallic mineral | B10: =+'Start Year Balance'!B10*(1+Growth!$I10) -> 556.851825 | C10: =+'Start Year Balance'!C10*(1+Growth!$I10) -> 0 | D10: =+'Start Year Balance'!D10*(1+Growth!$I10) -> 0 | E10: =+'Start Year Balance'!E10*(1+Growth!$I10) -> 4080.911557 | F10: =+'Start Year Balance'!F10*(1+Growth!$I10) -> 2838.884759 | G10: =+'Start Year Balance'!G10*(1+Growth!$I10) -> 0 | H10: 7476.64814 | I10: =+'Start Year Balance'!I10*(1+Growth!$I10) -> 363370.3424 | J10: =+'Start Year Balance'!J10*(1+Growth!$I10) -> 100970.3036 | K10: =+'Start Year Balance'!K10*(1+Growth!$I10) -> 288338.5814 | L10: =+'Start Year Balance'!L10*(1+Growth!$I10) -> 0 | M10: =+'Start Year Balance'!M10*(1+Growth!$I10) -> 496948.0681 | N10: 1257103.944
A11: Industry - food processing and beverage | B11: =+'Start Year Balance'!B11*(1+Growth!$I11) -> 3712.3455 | C11: =+'Start Year Balance'!C11*(1+Growth!$I11) -> 0 | D11: =+'Start Year Balance'!D11*(1+Growth!$I11) -> 0 | E11: =+'Start Year Balance'!E11*(1+Growth!$I11) -> 1020.227889 | F11: =+'Start Year Balance'!F11*(1+Growth!$I11) -> 5835.485337 | G11: =+'Start Year Balance'!G11*(1+Growth!$I11) -> 0 | H11: 10568.05873 | I11: =+'Start Year Balance'!I11*(1+Growth!$I11) -> 25052.44574 | J11: =+'Start Year Balance'!J11*(1+Growth!$I11) -> 56517.51705 | K11: =+'Start Year Balance'!K11*(1+Growth!$I11) -> 150291.1289 | L11: =+'Start Year Balance'!L11*(1+Growth!$I11) -> 5384.078252 | M11: =+'Start Year Balance'!M11*(1+Growth!$I11) -> 851.563397 | N11: 248664.7921
A12: Industry - construction | B12: =+'Start Year Balance'!B12*(1+Growth!$I12) -> 0 | C12: =+'Start Year Balance'!C12*(1+Growth!$I12) -> 0 | D12: =+'Start Year Balance'!D12*(1+Growth!$I12) -> 0 | E12: =+'Start Year Balance'!E12*(1+Growth!$I12) -> 24995.58328 | F12: =+'Start Year Balance'!F12*(1+Growth!$I12) -> 0 | G12: =+'Start Year Balance'!G12*(1+Growth!$I12) -> 0 | H12: 24995.58328 | I12: =+'Start Year Balance'!I12*(1+Growth!$I12) -> 109.879148 | J12: =+'Start Year Balance'!J12*(1+Growth!$I12) -> 215.4416152 | K12: =+'Start Year Balance'!K12*(1+Growth!$I12) -> 55096.54421 | L12: =+'Start Year Balance'!L12*(1+Growth!$I12) -> 0 | M12: =+'Start Year Balance'!M12*(1+Growth!$I12) -> 0 | N12: 80417.44826
A13: Industry - mining | B13: =+'Start Year Balance'!B13*(1+Growth!$I13) -> 0 | C13: =+'Start Year Balance'!C13*(1+Growth!$I13) -> 0 | D13: =+'Start Year Balance'!D13*(1+Growth!$I13) -> 0 | E13: =+'Start Year Balance'!E13*(1+Growth!$I13) -> 63934.28105 | F13: =+'Start Year Balance'!F13*(1+Growth!$I13) -> 0 | G13: =+'Start Year Balance'!G13*(1+Growth!$I13) -> 0 | H13: 63934.28105 | I13: =+'Start Year Balance'!I13*(1+Growth!$I13) -> 2087.703812 | J13: =+'Start Year Balance'!J13*(1+Growth!$I13) -> 6750.503942 | K13: =+'Start Year Balance'!K13*(1+Growth!$I13) -> 19895.9743 | L13: =+'Start Year Balance'!L13*(1+Growth!$I13) -> 0 | M13: =+'Start Year Balance'!M13*(1+Growth!$I13) -> 0 | N13: 92668.4631
A14: Industry - machinery | B14: =+'Start Year Balance'!B14*(1+Growth!$I14) -> 928.086375 | C14: =+'Start Year Balance'!C14*(1+Growth!$I14) -> 0 | D14: =+'Start Year Balance'!D14*(1+Growth!$I14) -> 0 | E14: =+'Start Year Balance'!E14*(1+Growth!$I14) -> 510.1139446 | F14: =+'Start Year Balance'!F14*(1+Growth!$I14) -> 0 | G14: =+'Start Year Balance'!G14*(1+Growth!$I14) -> 0 | H14: 1438.20032 | I14: =+'Start Year Balance'!I14*(1+Growth!$I14) -> 329.637444 | J14: =+'Start Year Balance'!J14*(1+Growth!$I14) -> 1220.835819 | K14: =+'Start Year Balance'!K14*(1+Growth!$I14) -> 10560.17097 | L14: =+'Start Year Balance'!L14*(1+Growth!$I14) -> 0 | M14: =+'Start Year Balance'!M14*(1+Growth!$I14) -> 0 | N14: 13548.84456
A15: Industry - non ferrous metals | B15: =+'Start Year Balance'!B15*(1+Growth!$I15) -> 6867.839175 | C15: =+'Start Year Balance'!C15*(1+Growth!$I15) -> 0 | D15: =+'Start Year Balance'!D15*(1+Growth!$I15) -> 0 | E15: =+'Start Year Balance'!E15*(1+Growth!$I15) -> 2210.49376 | F15: =+'Start Year Balance'!F15*(1+Growth!$I15) -> 0 | G15: =+'Start Year Balance'!G15*(1+Growth!$I15) -> 0 | H15: 9078.332935 | I15: =+'Start Year Balance'!I15*(1+Growth!$I15) -> 119328.7547 | J15: =+'Start Year Balance'!J15*(1+Growth!$I15) -> 4883.343277 | K15: =+'Start Year Balance'!K15*(1+Growth!$I15) -> 314815.5318 | L15: =+'Start Year Balance'!L15*(1+Growth!$I15) -> 531595.318 | M15: =+'Start Year Balance'!M15*(1+Growth!$I15) -> 0 | N15: 979701.2807
A16: Industry - paper and pulp | B16: =+'Start Year Balance'!B16*(1+Growth!$I16) -> 185.617275 | C16: =+'Start Year Balance'!C16*(1+Growth!$I16) -> 0 | D16: =+'Start Year Balance'!D16*(1+Growth!$I16) -> 0 | E16: =+'Start Year Balance'!E16*(1+Growth!$I16) -> 1700.379815 | F16: =+'Start Year Balance'!F16*(1+Growth!$I16) -> 0 | G16: =+'Start Year Balance'!G16*(1+Growth!$I16) -> 0 | H16: 1885.99709 | I16: =+'Start Year Balance'!I16*(1+Growth!$I16) -> 4724.803364 | J16: =+'Start Year Balance'!J16*(1+Growth!$I16) -> 14506.40209 | K16: =+'Start Year Balance'!K16*(1+Growth!$I16) -> 33976.20226 | L16: =+'Start Year Balance'!L16*(1+Growth!$I16) -> 0 | M16: =+'Start Year Balance'!M16*(1+Growth!$I16) -> 0 | N16: 55093.40481
A17: Industry - transport equipment | B17: =+'Start Year Balance'!B17*(1+Growth!$I17) -> 4269.197325 | C17: =+'Start Year Balance'!C17*(1+Growth!$I17) -> 0 | D17: =+'Start Year Balance'!D17*(1+Growth!$I17) -> 0 | E17: =+'Start Year Balance'!E17*(1+Growth!$I17) -> 1190.265871 | F17: =+'Start Year Balance'!F17*(1+Growth!$I17) -> 0 | G17: =+'Start Year Balance'!G17*(1+Growth!$I17) -> 0 | H17: 5459.463196 | I17: =+'Start Year Balance'!I17*(1+Growth!$I17) -> 0 | J17: =+'Start Year Balance'!J17*(1+Growth!$I17) -> 574.5109738 | K17: =+'Start Year Balance'!K17*(1+Growth!$I17) -> 27242.18019 | L17: =+'Start Year Balance'!L17*(1+Growth!$I17) -> 0 | M17: =+'Start Year Balance'!M17*(1+Growth!$I17) -> 0 | N17: 33276.15436
A18: Industry - textile and leather | B18: =+'Start Year Balance'!B18*(1+Growth!$I18) -> 2227.4073 | C18: =+'Start Year Balance'!C18*(1+Growth!$I18) -> 0 | D18: =+'Start Year Balance'!D18*(1+Growth!$I18) -> 0 | E18: =+'Start Year Balance'!E18*(1+Growth!$I18) -> 1020.227889 | F18: =+'Start Year Balance'!F18*(1+Growth!$I18) -> 0 | G18: =+'Start Year Balance'!G18*(1+Growth!$I18) -> 0 | H18: 3247.635189 | I18: =+'Start Year Balance'!I18*(1+Growth!$I18) -> 39007.09754 | J18: =+'Start Year Balance'!J18*(1+Growth!$I18) -> 77989.86469 | K18: =+'Start Year Balance'!K18*(1+Growth!$I18) -> 183349.0555 | L18: =+'Start Year Balance'!L18*(1+Growth!$I18) -> 0 | M18: =+'Start Year Balance'!M18*(1+Growth!$I18) -> 0 | N18: 303593.6529
A19: Industry - miscellaneous | B19: =+'Start Year Balance'!B19*(1+Growth!$I19) -> 0 | C19: =+'Start Year Balance'!C19*(1+Growth!$I19) -> 0 | D19: =+'Start Year Balance'!D19*(1+Growth!$I19) -> 0 | E19: =+'Start Year Balance'!E19*(1+Growth!$I19) -> 0 | F19: =+'Start Year Balance'!F19*(1+Growth!$I19) -> 0 | G19: =+'Start Year Balance'!G19*(1+Growth!$I19) -> 0 | H19: 0 | I19: =+'Start Year Balance'!I19*(1+Growth!$I19) -> 0 | J19: =+'Start Year Balance'!J19*(1+Growth!$I19) -> 71.81387173 | K19: =+'Start Year Balance'!K19*(1+Growth!$I19) -> 95041.53876 | L19: =+'Start Year Balance'!L19*(1+Growth!$I19) -> 0 | M19: =+'Start Year Balance'!M19*(1+Growth!$I19) -> 0 | N19: 95113.35263
A20: Transport - road | B20: =+'Start Year Balance'!B20*(1+Growth!$I21) -> 569659.417 | C20: =+'Start Year Balance'!C20*(1+Growth!$I21) -> 356535.8594 | D20: =+'Start Year Balance'!D20*(1+Growth!$I21) -> 0 | E20: =+'Start Year Balance'!E20*(1+Growth!$I21) -> 2793383.96 | F20: =+'Start Year Balance'!F20*(1+Growth!$I21) -> 0 | G20: =+'Start Year Balance'!G20*(1+Growth!$I21) -> 0 | H20: 3719579.237 | I20: =+'Start Year Balance'!I20*(1+Growth!$I21) -> 0 | J20: =+'Start Year Balance'!J20*(1+Growth!$I21) -> 0 | K20: =+'Start Year Balance'!K20*(1+Growth!$I21) -> 13161.95223 | L20: =+'Start Year Balance'!L20*(1+Growth!$I21) -> 0 | M20: =+'Start Year Balance'!M20*(1+Growth!$I21) -> 0 | N20: 3732741.189
A21: Transport - rail | B21: =+'Start Year Balance'!B21*(1+Growth!$I22) -> 0 | C21: =+'Start Year Balance'!C21*(1+Growth!$I22) -> 0 | D21: =+'Start Year Balance'!D21*(1+Growth!$I22) -> 0 | E21: =+'Start Year Balance'!E21*(1+Growth!$I22) -> 22955.12751 | F21: =+'Start Year Balance'!F21*(1+Growth!$I22) -> 0 | G21: =+'Start Year Balance'!G21*(1+Growth!$I22) -> 0 | H21: 22955.12751 | I21: =+'Start Year Balance'!I21*(1+Growth!$I22) -> 0 | J21: =+'Start Year Balance'!J21*(1+Growth!$I22) -> 0 | K21: =+'Start Year Balance'!K21*(1+Growth!$I22) -> 0 | L21: =+'Start Year Balance'!L21*(1+Growth!$I22) -> 0 | M21: =+'Start Year Balance'!M21*(1+Growth!$I22) -> 0 | N21: 22955.12751
A22: Transport - domestic air | B22: =+'Start Year Balance'!B22*(1+Growth!$I23) -> 0 | C22: =+'Start Year Balance'!C22*(1+Growth!$I23) -> 0 | D22: =+'Start Year Balance'!D22*(1+Growth!$I23) -> 230801.9745 | E22: =+'Start Year Balance'!E22*(1+Growth!$I23) -> 0 | F22: =+'Start Year Balance'!F22*(1+Growth!$I23) -> 0 | G22: =+'Start Year Balance'!G22*(1+Growth!$I23) -> 0 | H22: 230801.9745 | I22: =+'Start Year Balance'!I22*(1+Growth!$I23) -> 0 | J22: =+'Start Year Balance'!J22*(1+Growth!$I23) -> 0 | K22: =+'Start Year Balance'!K22*(1+Growth!$I23) -> 0 | L22: =+'Start Year Balance'!L22*(1+Growth!$I23) -> 0 | M22: =+'Start Year Balance'!M22*(1+Growth!$I23) -> 0 | N22: 230801.9745
A23: Transport - navigation | B23: =+'Start Year Balance'!B23*(1+Growth!$I24) -> 0 | C23: =+'Start Year Balance'!C23*(1+Growth!$I24) -> 0 | D23: =+'Start Year Balance'!D23*(1+Growth!$I24) -> 0 | E23: =+'Start Year Balance'!E23*(1+Growth!$I24) -> 0 | F23: =+'Start Year Balance'!F23*(1+Growth!$I24) -> 28861.99505 | G23: =+'Start Year Balance'!G23*(1+Growth!$I24) -> 0 | H23: 28861.99505 | I23: =+'Start Year Balance'!I23*(1+Growth!$I24) -> 0 | J23: =+'Start Year Balance'!J23*(1+Growth!$I24) -> 0 | K23: =+'Start Year Balance'!K23*(1+Growth!$I24) -> 0 | L23: =+'Start Year Balance'!L23*(1+Growth!$I24) -> 0 | M23: =+'Start Year Balance'!M23*(1+Growth!$I24) -> 0 | N23: 28861.99505
A24: Households | B24: =+'Start Year Balance'!B24*(1+Growth!$I26) -> 45476.23238 | C24: =+'Start Year Balance'!C24*(1+Growth!$I26) -> 0 | D24: =+'Start Year Balance'!D24*(1+Growth!$I26) -> 0 | E24: =+'Start Year Balance'!E24*(1+Growth!$I26) -> 0 | F24: =+'Start Year Balance'!F24*(1+Growth!$I26) -> 0 | G24: =+'Start Year Balance'!G24*(1+Growth!$I27) -> 10185.40459 | H24: 55661.63697 | I24: =+'Start Year Balance'!I24*(1+Growth!$I26) -> 166576.7884 | J24: =+'Start Year Balance'!J24*(1+Growth!$I26) -> 167039.0656 | K24: =+'Start Year Balance'!K24*(1+Growth!$I26) -> 1683505.518 | L24: =+'Start Year Balance'!L24*(1+Growth!$I26) -> 0 | M24: =+'Start Year Balance'!M24*(1+Growth!$I26) -> 0 | N24: 2072783.008
A25: Services | B25: =+'Start Year Balance'!B25*(1+Growth!$I29) -> 105987.464 | C25: =+'Start Year Balance'!C25*(1+Growth!$I29) -> 0 | D25: =+'Start Year Balance'!D25*(1+Growth!$I29) -> 0 | E25: =+'Start Year Balance'!E25*(1+Growth!$I29) -> 0 | F25: =+'Start Year Balance'!F25*(1+Growth!$I29) -> 0 | G25: =+'Start Year Balance'!G25*(1+Growth!$I29) -> 0 | H25: 105987.464 | I25: =+'Start Year Balance'!I25*(1+Growth!$I29) -> 573898.79 | J25: =+'Start Year Balance'!J25*(1+Growth!$I29) -> 58169.2361 | K25: =+'Start Year Balance'!K25*(1+Growth!$I29) -> 483778.2673 | L25: =+'Start Year Balance'!L25*(1+Growth!$I29) -> 5274.199104 | M25: =+'Start Year Balance'!M25*(1+Growth!$I29) -> 0 | N25: 1227107.957
A26: Agriculture & Fishery | B26: =+'Start Year Balance'!B26*(1+Growth!$I31) -> 0 | C26: =+'Start Year Balance'!C26*(1+Growth!$I31) -> 0 | D26: =+'Start Year Balance'!D26*(1+Growth!$I31) -> 0 | E26: =+'Start Year Balance'!E26*(1+Growth!$I31) -> 461993.1958 | F26: =+'Start Year Balance'!F26*(1+Growth!$I31) -> 0 | G26: =+'Start Year Balance'!G26*(1+Growth!$I31) -> 0 | H26: 461993.1958 | I26: =+'Start Year Balance'!I26*(1+Growth!$I31) -> 0 | J26: =+'Start Year Balance'!J26*(1+Growth!$I31) -> 0 | K26: =+'Start Year Balance'!K26*(1+Growth!$I31) -> 20355.11217 | L26: =+'Start Year Balance'!L26*(1+Growth!$I31) -> 0 | M26: =+'Start Year Balance'!M26*(1+Growth!$I31) -> 0 | N26: 482348.308
A27: Non energy uses | B27: =+'Start Year Balance'!B27*(1+Growth!$I33) -> 0 | C27: =+'Start Year Balance'!C27*(1+Growth!$I33) -> 0 | D27: =+'Start Year Balance'!D27*(1+Growth!$I33) -> 0 | E27: =+'Start Year Balance'!E27*(1+Growth!$I33) -> 0 | F27: =+'Start Year Balance'!F27*(1+Growth!$I33) -> 0 | G27: =+'Start Year Balance'!G27*(1+Growth!$I33) -> 0 | H27: 0 | I27: =+'Start Year Balance'!I27*(1+Growth!$I33) -> 0 | J27: =+'Start Year Balance'!J27*(1+Growth!$I33) -> 0 | K27: =+'Start Year Balance'!K27*(1+Growth!$I33) -> 0 | L27: =+'Start Year Balance'!L27*(1+Growth!$I33) -> 0 | M27: =+'Start Year Balance'!M27*(1+Growth!$I33) -> 0 | N27: 0
A30: Fossil fuel balance | B30: =+assumptions!$B$2 -> Country X | D30: 2050
A31: =+'Start Year Balance'!A31 -> 1 ktoe=41.868 TJ | P31: Fuel share for power like in 2030
A32: =+'Start Year Balance'!A32 -> ktoe per TJ | C32: =+'Start Year Balance'!C32 -> 0.02388458966 | D32: =+'Start Year Balance'!D32 -> 0.02388458966 | E32: =+'Start Year Balance'!E32 -> 0.02388458966 | F32: =+'Start Year Balance'!F32 -> 0.02388458966 | G32: =+'Start Year Balance'!G32 -> 0.02388458966 | H32: =+'Start Year Balance'!H32 -> 0.02388458966 | J32: =+'Start Year Balance'!J32 -> 0.02388458966 | K32: =+'Start Year Balance'!K32 -> 0.02388458966 | L32: =+'Start Year Balance'!L32 -> 0.02388458966 | M32: 0.02388458966 | N32: 0.02388458966
A33: Unit : ktoe | B33: Total | C33: LPG | D33: Gasoline | E33: Jet Fuel | F33: Diesel | G33: Fueloil | H33: Kerosene and other | I33: Total oil products | J33: Coal | K33: Lignite | L33: Gas | M33: Coke | N33: Petrocoke | O33: Electricity consumption Gwh | Q33: Electricity production Gwh | R33: Share of production | S33: Efficiency
A34: Total consumption | B34: =+B35+B36 -> 473965.3223 | C34: =+C35+C36 -> 17711.40283 | D34: 8515.712702 | E34: 5512.610453 | F34: 81757.77697 | G34: 1762.945537 | H34: 243.2742093 | I34: 115503.7227 | J34: 74173.93618 | K34: 96750.10148 | L34: 162696.3174 | M34: 12951.50462 | N34: 11889.73993 | P34: Total | Q34: =IF(R35=1,0,O36/(1-R35)) -> 1027311.17
A35: Fossil power plants | B35: =SUM(I35:N35) -> 200141.5907 | C35: =IF(Q36=0,0,$I35*IF('Start Year Balance'!$I35>0,'Start Year Balance'!C35/'Start Year Balance'!$I35,0)) -> 0 | D35: =IF(Q36=0,0,$I35*IF('Start Year Balance'!$I35>0,'Start Year Balance'!D35/'Start Year Balance'!$I35,0)) -> 0 | E35: =IF(Q36=0,0,$I35*IF('Start Year Balance'!$I35>0,'Start Year Balance'!E35/'Start Year Balance'!$I35,0)) -> 0 | F35: =IF(Q36=0,0,$I35*IF('Start Year Balance'!$I35>0,'Start Year Balance'!F35/'Start Year Balance'!$I35,0)) -> 966.586405 | G35: =IF(Q36=0,0,$I35*IF('Start Year Balance'!$I35>0,'Start Year Balance'!G35/'Start Year Balance'!$I35,0)) -> 855.1039248 | H35: =IF(Q36=0,0,$I35*IF('Start Year Balance'!$I35>0,'Start Year Balance'!H35/'Start Year Balance'!$I35,0)) -> 0 | I35: =IF(Q36=0,0,Q39/11.63/S39) -> 1821.69033 | J35: =IF(S38>0,Q38/11.63/S38,0) -> 42177.0275 | K35: =IF(S37>0,Q37/11.63/S37,0) -> 84470.66353 | L35: =IF(S40>0,Q40/11.63/S40,0) -> 71672.20937 | M35: =IF(T40>0,R40/11.63/T40,0) -> 0 | N35: 0 | P35: Losses | Q35: =Q34*R35 -> 175543.7117 | R35: =+'Balance 2025'!R35 -> 0.1708768646
A36: FINAL CONSUMPTION | B36: =SUM(B37:B56) -> 273823.7315 | C36: =SUM(C37:C56) -> 17711.40283 | D36: 8515.712702 | E36: 5512.610453 | F36: 80791.19056 | G36: 907.8416118 | H36: 243.2742093 | I36: =SUM(C36:H36) -> 113682.0324 | J36: =SUM(J37:J56) -> 31996.90867 | K36: 12279.43794 | L36: 91024.108 | M36: 12951.50462 | N36: 11889.73993 | O36: =SUM(O37:O56) -> 851767.4582 | P36: Fossil | Q36: =SUM(Q37:Q49) -> 696983.057 | R36: =SUM(R37:R50) -> 0.6784536929
A37: Industry - steel | B37: =SUM(I37:N37) -> 999.0045328 | C37: =+'Start Year Balance'!C37*(1+Growth!$I8) -> 0 | D37: =+'Start Year Balance'!D37*(1+Growth!$I8) -> 0 | E37: =+'Start Year Balance'!E37*(1+Growth!$I8) -> 0 | F37: =+'Start Year Balance'!F37*(1+Growth!$I8) -> 69.04188607 | G37: =+'Start Year Balance'!G37*(1+Growth!$I8) -> 0 | H37: =+'Start Year Balance'!H37*(1+Growth!$I8) -> 0 | I37: =SUM(C37:H37) -> 69.04188607 | J37: =+'Start Year Balance'!J37*(1+Growth!$I8) -> 44.61511216 | K37: =+'Start Year Balance'!K37*(1+Growth!$I8) -> 44.59636631 | L37: =+'Start Year Balance'!L37*(1+Growth!$I8) -> 840.7511682 | M37: =+'Start Year Balance'!M37*(1+Growth!$I8) -> 0 | N37: =+'Start Year Balance'!N37*(1+Growth!$I8) -> 0 | O37: =+'Start Year Balance'!O37*(1+Growth!I$20) -> 6015.883353 | P37: Lignite | Q37: =Q$34*R37 -> 127204.7351 | R37: =+'Balance 2025'!R37 -> 0.1238229845 | S37: =+'Balance 2025'!S37 -> 0.1294844622
A38: Industry - chemical | B38: =SUM(I38:N38) -> 11126.51127 | C38: =+'Start Year Balance'!C38*(1+Growth!$I9) -> 39.90053203 | D38: =+'Start Year Balance'!D38*(1+Growth!$I9) -> 0 | E38: =+'Start Year Balance'!E38*(1+Growth!$I9) -> 0 | F38: =+'Start Year Balance'!F38*(1+Growth!$I9) -> 16.24514966 | G38: =+'Start Year Balance'!G38*(1+Growth!$I9) -> 11.30093293 | H38: =+'Start Year Balance'!H38*(1+Growth!$I9) -> 0 | I38: =SUM(C38:H38) -> 67.44661462 | J38: =+'Start Year Balance'!J38*(1+Growth!$I9) -> 1034.020835 | K38: =+'Start Year Balance'!K38*(1+Growth!$I9) -> 557.4545789 | L38: =+'Start Year Balance'!L38*(1+Growth!$I9) -> 9467.589242 | M38: =+'Start Year Balance'!M38*(1+Growth!$I9) -> 0 | N38: =+'Start Year Balance'!N38*(1+Growth!$I9) -> 0 | O38: =+'Start Year Balance'!O38*(1+Growth!I$20) -> 59472.08885 | P38: Coal | Q38: 171690.093 | R38: =+'Balance 2025'!R38 -> 0.1671256947 | S38: =+'Balance 2025'!S38 -> 0.3500173338
A39: Industry - non metallic mineral | B39: 30025.41186 | C39: =+'Start Year Balance'!C39*(1+Growth!$I10) -> 13.30017734 | D39: =+'Start Year Balance'!D39*(1+Growth!$I10) -> 0 | E39: =+'Start Year Balance'!E39*(1+Growth!$I10) -> 0 | F39: =+'Start Year Balance'!F39*(1+Growth!$I10) -> 97.47089798 | G39: =+'Start Year Balance'!G39*(1+Growth!$I10) -> 67.80559756 | H39: =+'Start Year Balance'!H39*(1+Growth!$I10) -> 0 | I39: 178.5766729 | J39: =+'Start Year Balance'!J39*(1+Growth!$I10) -> 8678.951524 | K39: =+'Start Year Balance'!K39*(1+Growth!$I10) -> 2411.634271 | L39: =+'Start Year Balance'!L39*(1+Growth!$I10) -> 6886.8487 | M39: =+'Start Year Balance'!M39*(1+Growth!$I10) -> 0 | N39: =+'Start Year Balance'!N39*(1+Growth!$I10) -> 11869.40069 | O39: =+'Start Year Balance'!O39*(1+Growth!I$20) -> 72767.46576 | P39: Oil | Q39: 8727.543755 | R39: =+'Balance 2025'!R39 -> 0.008495521134 | S39: =+'Balance 2025'!S39 -> 0.4119436068
A40: Industry - food processing and beverage | B40: 5939.256523 | C40: =+'Start Year Balance'!C40*(1+Growth!$I11) -> 88.66784896 | D40: =+'Start Year Balance'!D40*(1+Growth!$I11) -> 0 | E40: =+'Start Year Balance'!E40*(1+Growth!$I11) -> 0 | F40: =+'Start Year Balance'!F40*(1+Growth!$I11) -> 24.36772449 | G40: =+'Start Year Balance'!G40*(1+Growth!$I11) -> 139.3781728 | H40: =+'Start Year Balance'!H40*(1+Growth!$I11) -> 0 | I40: 252.4137462 | J40: =+'Start Year Balance'!J40*(1+Growth!$I11) -> 598.3673866 | K40: =+'Start Year Balance'!K40*(1+Growth!$I11) -> 1349.897703 | L40: =+'Start Year Balance'!L40*(1+Growth!$I11) -> 3589.641944 | M40: =+'Start Year Balance'!M40*(1+Growth!$I11) -> 128.5964998 | N40: =+'Start Year Balance'!N40*(1+Growth!$I11) -> 20.33924231 | O40: =+'Start Year Balance'!O40*(1+Growth!I$20) -> 27862.21253 | P40: Natural Gas | Q40: 389360.6852 | R40: =+'Balance 2025'!R40 -> 0.3790094925 | S40: =+'Balance 2025'!S40 -> 0.4671126089
A41: Industry - construction | B41: 1920.737753 | C41: =+'Start Year Balance'!C41*(1+Growth!$I12) -> 0 | D41: =+'Start Year Balance'!D41*(1+Growth!$I12) -> 0 | E41: =+'Start Year Balance'!E41*(1+Growth!$I12) -> 0 | F41: =+'Start Year Balance'!F41*(1+Growth!$I12) -> 597.0092501 | G41: =+'Start Year Balance'!G41*(1+Growth!$I12) -> 0 | H41: =+'Start Year Balance'!H41*(1+Growth!$I12) -> 0 | I41: 597.0092501 | J41: =+'Start Year Balance'!J41*(1+Growth!$I12) -> 2.624418362 | K41: =+'Start Year Balance'!K41*(1+Growth!$I12) -> 5.145734575 | L41: =+'Start Year Balance'!L41*(1+Growth!$I12) -> 1315.95835 | M41: =+'Start Year Balance'!M41*(1+Growth!$I12) -> 0 | N41: =+'Start Year Balance'!N41*(1+Growth!$I12) -> 0 | O41: =+'Start Year Balance'!O41*(1+Growth!I$20) -> 11246.91565 | P41: Nuclear | Q41: 0 | R41: =+'Balance 2025'!R41 -> 0
A42: Industry - mining | B42: 2213.348216 | C42: =+'Start Year Balance'!C42*(1+Growth!$I13) -> 0 | D42: =+'Start Year Balance'!D42*(1+Growth!$I13) -> 0 | E42: =+'Start Year Balance'!E42*(1+Growth!$I13) -> 0 | F42: =+'Start Year Balance'!F42*(1+Growth!$I13) -> 1527.044068 | G42: =+'Start Year Balance'!G42*(1+Growth!$I13) -> 0 | H42: =+'Start Year Balance'!H42*(1+Growth!$I13) -> 0 | I42: 1527.044068 | J42: =+'Start Year Balance'!J42*(1+Growth!$I13) -> 49.86394888 | K42: =+'Start Year Balance'!K42*(1+Growth!$I13) -> 161.2330167 | L42: =+'Start Year Balance'!L42*(1+Growth!$I13) -> 475.207182 | M42: =+'Start Year Balance'!M42*(1+Growth!$I13) -> 0 | N42: =+'Start Year Balance'!N42*(1+Growth!$I13) -> 0 | O42: =+'Start Year Balance'!O42*(1+Growth!I$20) -> 8652.982905 | P42: Net import | Q42: 0 | R42: =+'Balance 2025'!R42 -> 0
A43: Industry - machinery | B43: 323.6085926 | C43: =+'Start Year Balance'!C43*(1+Growth!$I14) -> 22.16696224 | D43: =+'Start Year Balance'!D43*(1+Growth!$I14) -> 0 | E43: =+'Start Year Balance'!E43*(1+Growth!$I14) -> 0 | F43: =+'Start Year Balance'!F43*(1+Growth!$I14) -> 12.18386225 | G43: =+'Start Year Balance'!G43*(1+Growth!$I14) -> 0 | H43: =+'Start Year Balance'!H43*(1+Growth!$I14) -> 0 | I43: 34.35082449 | J43: =+'Start Year Balance'!J43*(1+Growth!$I14) -> 7.873255087 | K43: =+'Start Year Balance'!K43*(1+Growth!$I14) -> 29.15916259 | L43: =+'Start Year Balance'!L43*(1+Growth!$I14) -> 252.2253505 | M43: =+'Start Year Balance'!M43*(1+Growth!$I14) -> 0 | N43: =+'Start Year Balance'!N43*(1+Growth!$I14) -> 0 | O43: =+'Start Year Balance'!O43*(1+Growth!I$20) -> 8452.845885
A44: Industry - non ferrous metals | B44: 23399.76308 | C44: =+'Start Year Balance'!C44*(1+Growth!$I15) -> 164.0355206 | D44: =+'Start Year Balance'!D44*(1+Growth!$I15) -> 0 | E44: =+'Start Year Balance'!E44*(1+Growth!$I15) -> 0 | F44: =+'Start Year Balance'!F44*(1+Growth!$I15) -> 52.7967364 | G44: =+'Start Year Balance'!G44*(1+Growth!$I15) -> 0 | H44: =+'Start Year Balance'!H44*(1+Growth!$I15) -> 0 | I44: 216.832257 | J44: =+'Start Year Balance'!J44*(1+Growth!$I15) -> 2850.118342 | K44: =+'Start Year Balance'!K44*(1+Growth!$I15) -> 116.6366504 | L44: =+'Start Year Balance'!L44*(1+Growth!$I15) -> 7519.239796 | M44: =+'Start Year Balance'!M44*(1+Growth!$I15) -> 12696.93604 | N44: =+'Start Year Balance'!N44*(1+Growth!$I15) -> 0 | O44: =+'Start Year Balance'!O44*(1+Growth!I$20) -> 99138.46128
A45: Industry - paper and pulp | B45: 1315.883367 | C45: =+'Start Year Balance'!C45*(1+Growth!$I16) -> 4.433392448 | D45: =+'Start Year Balance'!D45*(1+Growth!$I16) -> 0 | E45: =+'Start Year Balance'!E45*(1+Growth!$I16) -> 0 | F45: =+'Start Year Balance'!F45*(1+Growth!$I16) -> 40.61287416 | G45: =+'Start Year Balance'!G45*(1+Growth!$I16) -> 0 | H45: =+'Start Year Balance'!H45*(1+Growth!$I16) -> 0 | I45: 45.04626661 | J45: =+'Start Year Balance'!J45*(1+Growth!$I16) -> 112.8499896 | K45: =+'Start Year Balance'!K45*(1+Growth!$I16) -> 346.4794614 | L45: =+'Start Year Balance'!L45*(1+Growth!$I16) -> 811.5076493 | M45: =+'Start Year Balance'!M45*(1+Growth!$I16) -> 0 | N45: =+'Start Year Balance'!N45*(1+Growth!$I16) -> 0 | O45: =+'Start Year Balance'!O45*(1+Growth!I$20) -> 15767.65774
A46: Industry - transport equipment | B46: 794.7872925 | C46: =+'Start Year Balance'!C46*(1+Growth!$I17) -> 101.9680263 | D46: =+'Start Year Balance'!D46*(1+Growth!$I17) -> 0 | E46: =+'Start Year Balance'!E46*(1+Growth!$I17) -> 0 | F46: =+'Start Year Balance'!F46*(1+Growth!$I17) -> 28.42901191 | G46: =+'Start Year Balance'!G46*(1+Growth!$I17) -> 0 | H46: =+'Start Year Balance'!H46*(1+Growth!$I17) -> 0 | I46: 130.3970382 | J46: =+'Start Year Balance'!J46*(1+Growth!$I17) -> 0 | K46: =+'Start Year Balance'!K46*(1+Growth!$I17) -> 13.72195887 | L46: =+'Start Year Balance'!L46*(1+Growth!$I17) -> 650.6682954 | M46: =+'Start Year Balance'!M46*(1+Growth!$I17) -> 0 | N46: =+'Start Year Balance'!N46*(1+Growth!$I17) -> 0 | O46: =+'Start Year Balance'!O46*(1+Growth!I$20) -> 10422.82204
A47: Industry - textile and leather | B47: 7251.209823 | C47: =+'Start Year Balance'!C47*(1+Growth!$I18) -> 53.20070937 | D47: =+'Start Year Balance'!D47*(1+Growth!$I18) -> 0 | E47: =+'Start Year Balance'!E47*(1+Growth!$I18) -> 0 | F47: =+'Start Year Balance'!F47*(1+Growth!$I18) -> 24.36772449 | G47: =+'Start Year Balance'!G47*(1+Growth!$I18) -> 0 | H47: =+'Start Year Balance'!H47*(1+Growth!$I18) -> 0 | I47: 77.56843387 | J47: =+'Start Year Balance'!J47*(1+Growth!$I18) -> 931.6685186 | K47: =+'Start Year Balance'!K47*(1+Growth!$I18) -> 1862.755916 | L47: =+'Start Year Balance'!L47*(1+Growth!$I18) -> 4379.216955 | M47: =+'Start Year Balance'!M47*(1+Growth!$I18) -> 0 | N47: =+'Start Year Balance'!N47*(1+Growth!$I18) -> 0 | O47: =+'Start Year Balance'!O47*(1+Growth!I$20) -> 68168.23857
A48: Industry - miscellaneous | B48: 2271.743399 | C48: =+'Start Year Balance'!C48*(1+Growth!$I19) -> 0 | D48: =+'Start Year Balance'!D48*(1+Growth!$I19) -> 0 | E48: =+'Start Year Balance'!E48*(1+Growth!$I19) -> 0 | F48: =+'Start Year Balance'!F48*(1+Growth!$I19) -> 0 | G48: =+'Start Year Balance'!G48*(1+Growth!$I19) -> 0 | H48: =+'Start Year Balance'!H48*(1+Growth!$I19) -> 0 | I48: 0 | J48: =+'Start Year Balance'!J48*(1+Growth!$I19) -> 0 | K48: =+'Start Year Balance'!K48*(1+Growth!$I19) -> 1.715244858 | L48: =+'Start Year Balance'!L48*(1+Growth!$I19) -> 2270.028154 | M48: =+'Start Year Balance'!M48*(1+Growth!$I19) -> 0 | N48: =+'Start Year Balance'!N48*(1+Growth!$I19) -> 0 | O48: =+'Start Year Balance'!O48*(1+Growth!I$20) -> 18322.34793
A49: Transport - road | B49: 89154.99162 | C49: =+'Start Year Balance'!C49*(1+Growth!$I21) -> 13606.08142 | D49: =+'Start Year Balance'!D49*(1+Growth!$I21) -> 8515.712702 | E49: =+'Start Year Balance'!E49*(1+Growth!$I21) -> 0 | F49: =+'Start Year Balance'!F49*(1+Growth!$I21) -> 66718.82967 | G49: =+'Start Year Balance'!G49*(1+Growth!$I21) -> 0 | H49: =+'Start Year Balance'!H49*(1+Growth!$I21) -> 0 | I49: 88840.62379 | J49: =+'Start Year Balance'!J49*(1+Growth!$I21) -> 0 | K49: =+'Start Year Balance'!K49*(1+Growth!$I21) -> 0 | L49: =+'Start Year Balance'!L49*(1+Growth!$I21) -> 314.3678281 | M49: =+'Start Year Balance'!M49*(1+Growth!$I21) -> 0 | N49: =+'Start Year Balance'!N49*(1+Growth!$I21) -> 0 | O49: =+'Start Year Balance'!O49*(1+Growth!I$25) -> 0
A50: Transport - rail | B50: 548.2738011 | C50: =+'Start Year Balance'!C50*(1+Growth!$I22) -> 0 | D50: =+'Start Year Balance'!D50*(1+Growth!$I22) -> 0 | E50: =+'Start Year Balance'!E50*(1+Growth!$I22) -> 0 | F50: =+'Start Year Balance'!F50*(1+Growth!$I22) -> 548.2738011 | G50: =+'Start Year Balance'!G50*(1+Growth!$I22) -> 0 | H50: =+'Start Year Balance'!H50*(1+Growth!$I22) -> 0 | I50: 548.2738011 | J50: =+'Start Year Balance'!J50*(1+Growth!$I22) -> 0 | K50: =+'Start Year Balance'!K50*(1+Growth!$I22) -> 0 | L50: =+'Start Year Balance'!L50*(1+Growth!$I22) -> 0 | M50: =+'Start Year Balance'!M50*(1+Growth!$I22) -> 0 | N50: =+'Start Year Balance'!N50*(1+Growth!$I22) -> 0 | O50: =+'Start Year Balance'!O50*(1+Growth!I$25) -> 3151.176994
A51: Transport - domestic air | B51: 5512.610453 | C51: =+'Start Year Balance'!C51*(1+Growth!$I23) -> 0 | D51: =+'Start Year Balance'!D51*(1+Growth!$I23) -> 0 | E51: =+'Start Year Balance'!E51*(1+Growth!$I23) -> 5512.610453 | F51: =+'Start Year Balance'!F51*(1+Growth!$I23) -> 0 | G51: =+'Start Year Balance'!G51*(1+Growth!$I23) -> 0 | H51: =+'Start Year Balance'!H51*(1+Growth!$I23) -> 0 | I51: 5512.610453 | J51: =+'Start Year Balance'!J51*(1+Growth!$I23) -> 0 | K51: =+'Start Year Balance'!K51*(1+Growth!$I23) -> 0 | L51: =+'Start Year Balance'!L51*(1+Growth!$I23) -> 0 | M51: =+'Start Year Balance'!M51*(1+Growth!$I23) -> 0 | N51: =+'Start Year Balance'!N51*(1+Growth!$I23) -> 0 | O51: =+'Start Year Balance'!O51*(1+Growth!I$25) -> 0 | P51: Renewables | Q51: =SUM(Q52:Q56) -> 330328.1129 | R51: =SUM(R52:R56) -> 0.3215463071
A52: Transport - navigation | B52: 689.3569085 | C52: =+'Start Year Balance'!C52*(1+Growth!$I24) -> 0 | D52: =+'Start Year Balance'!D52*(1+Growth!$I24) -> 0 | E52: =+'Start Year Balance'!E52*(1+Growth!$I24) -> 0 | F52: =+'Start Year Balance'!F52*(1+Growth!$I24) -> 0 | G52: =+'Start Year Balance'!G52*(1+Growth!$I24) -> 689.3569085 | H52: =+'Start Year Balance'!H52*(1+Growth!$I24) -> 0 | I52: 689.3569085 | J52: =+'Start Year Balance'!J52*(1+Growth!$I24) -> 0 | K52: =+'Start Year Balance'!K52*(1+Growth!$I24) -> 0 | L52: =+'Start Year Balance'!L52*(1+Growth!$I24) -> 0 | M52: =+'Start Year Balance'!M52*(1+Growth!$I24) -> 0 | N52: =+'Start Year Balance'!N52*(1+Growth!$I24) -> 0 | O52: =+'Start Year Balance'!O52*(1+Growth!I$25) -> 0 | P52: Hydro | Q52: =Q$34*R52 -> 263498.0454 | R52: =+'Balance 2025'!R52 -> 0.2564929236
A53: Households | B53: 49507.57162 | C53: =+'Start Year Balance'!C53*(1+Growth!$I26) -> 1086.18115 | D53: =+'Start Year Balance'!D53*(1+Growth!$I26) -> 0 | E53: =+'Start Year Balance'!E53*(1+Growth!$I26) -> 0 | F53: =+'Start Year Balance'!F53*(1+Growth!$I26) -> 0 | G53: =+'Start Year Balance'!G53*(1+Growth!$I26) -> 0 | H53: =+'Start Year Balance'!H53*(1+Growth!$I27) -> 243.2742093 | I53: 1329.455359 | J53: =+'Start Year Balance'!J53*(1+Growth!$I26) -> 3978.618237 | K53: =+'Start Year Balance'!K53*(1+Growth!$I26) -> 3989.65954 | L53: =+'Start Year Balance'!L53*(1+Growth!$I26) -> 40209.83848 | M53: =+'Start Year Balance'!M53*(1+Growth!$I26) -> 0 | N53: =+'Start Year Balance'!N53*(1+Growth!$I26) -> 0 | O53: =+'Start Year Balance'!O53*(1+Growth!I28) -> 187975.7524 | P53: Wind | Q53: =Q$34*R53 -> 45729.34684 | R53: =+'Balance 2025'!R53 -> 0.0445136276
A54: Services | B54: 29308.97001 | C54: =+'Start Year Balance'!C54*(1+Growth!$I29) -> 2531.467088 | D54: =+'Start Year Balance'!D54*(1+Growth!$I29) -> 0 | E54: =+'Start Year Balance'!E54*(1+Growth!$I29) -> 0 | F54: =+'Start Year Balance'!F54*(1+Growth!$I29) -> 0 | G54: =+'Start Year Balance'!G54*(1+Growth!$I29) -> 0 | H54: =+'Start Year Balance'!H54*(1+Growth!$I29) -> 0 | I54: 2531.467088 | J54: =+'Start Year Balance'!J54*(1+Growth!$I29) -> 13707.33711 | K54: =+'Start Year Balance'!K54*(1+Growth!$I29) -> 1389.348335 | L54: =+'Start Year Balance'!L54*(1+Growth!$I29) -> 11554.8454 | M54: =+'Start Year Balance'!M54*(1+Growth!$I29) -> 125.9720814 | N54: =+'Start Year Balance'!N54*(1+Growth!$I29) -> 0 | O54: =+'Start Year Balance'!O54*(1+Growth!I30) -> 235196.3163 | P54: Solar | Q54: =Q$34*R54 -> 761.3055254 | R54: =+'Balance 2025'!R54 -> 0.0007410661421
A55: Agriculture & Fishery | B55: 11520.69141 | C55: =+'Start Year Balance'!C55*(1+Growth!$I31) -> 0 | D55: =+'Start Year Balance'!D55*(1+Growth!$I31) -> 0 | E55: =+'Start Year Balance'!E55*(1+Growth!$I31) -> 0 | F55: =+'Start Year Balance'!F55*(1+Growth!$I31) -> 11034.51791 | G55: =+'Start Year Balance'!G55*(1+Growth!$I31) -> 0 | H55: =+'Start Year Balance'!H55*(1+Growth!$I31) -> 0 | I55: 11034.51791 | J55: =+'Start Year Balance'!J55*(1+Growth!$I31) -> 0 | K55: =+'Start Year Balance'!K55*(1+Growth!$I31) -> 0 | L55: =+'Start Year Balance'!L55*(1+Growth!$I31) -> 486.1735016 | M55: =+'Start Year Balance'!M55*(1+Growth!$I31) -> 0 | N55: =+'Start Year Balance'!N55*(1+Growth!$I31) -> 0 | O55: =+'Start Year Balance'!O55*(1+Growth!I32) -> 19154.29005 | P55: Biomass | Q55: =Q$34*R55 -> 6898.840792 | R55: =+'Balance 2025'!R55 -> 0.006715434421
A56: Non energy uses | B56: 0 | C56: =+'Start Year Balance'!C56*(1+Growth!$I33) -> 0 | D56: =+'Start Year Balance'!D56*(1+Growth!$I33) -> 0 | E56: =+'Start Year Balance'!E56*(1+Growth!$I33) -> 0 | F56: =+'Start Year Balance'!F56*(1+Growth!$I33) -> 0 | G56: =+'Start Year Balance'!G56*(1+Growth!$I33) -> 0 | H56: =+'Start Year Balance'!H56*(1+Growth!$I33) -> 0 | I56: 0 | J56: =+'Start Year Balance'!J56*(1+Growth!$I33) -> 0 | K56: =+'Start Year Balance'!K56*(1+Growth!$I33) -> 0 | L56: =+'Start Year Balance'!L56*(1+Growth!$I33) -> 0 | M56: =+'Start Year Balance'!M56*(1+Growth!$I33) -> 0 | N56: =+'Start Year Balance'!N56*(1+Growth!$I33) -> 0 | O56: =+'Start Year Balance'!O56*(1+Growth!I33) -> 0 | P56: Geothermal | Q56: =Q$34*R56 -> 13440.57435 | R56: =+'Balance 2025'!R56 -> 0.01308325534
R57: =+R36+R51 -> 1
A59: GHG Balance | B59: =+assumptions!$B$2 -> Country X | D59: 2030
A60: Ton CO2/Toe (IPCC): | C60: =+'Start Year Balance'!C60 -> 2.614070448 | D60: =+'Start Year Balance'!D60 -> 2.872437876 | E60: =+'Start Year Balance'!E60 -> 2.96362638 | F60: =+'Start Year Balance'!F60 -> 3.070012968 | G60: =+'Start Year Balance'!G60 -> 3.206795724 | H60: =+'Start Year Balance'!H60 -> 2.978824464 | J60: =+'Start Year Balance'!J60 -> 3.921105672 | K60: =+'Start Year Balance'!K60 -> 4.194671184 | L60: =+'Start Year Balance'!L60 -> 2.325306852 | M60: =+'Start Year Balance'!M60 -> 4.484816424 | N60: =+'Start Year Balance'!N60 -> 4.157366796
A61: Unit : ktCO2-e | B61: Total | C61: LPG | D61: Gasoline | E61: Jet Fuel | F61: Diesel | G61: Fueloil | H61: Kerosene and other | I61: Total oil products | J61: Coal | K61: Lignite | L61: Gas | M61: Coke | N61: Petrocoke
A62: Total | B62: =+B63+B64 -> 1526985.238 | C62: =+C63+C64 -> 46298.85473 | D62: 24460.85571 | E62: 16337.31776 | F62: 250997.4355 | G62: 5653.406208 | H62: 724.671166 | I62: 344472.5411 | J62: 290843.8419 | K62: 405834.8627 | L62: 378318.8616 | M62: 58085.12063 | N62: 49430.01001
A63: Fossil power plants | B63: =SUM(I63:N63) -> 692076.6959 | C63: =C60*C35 -> 0 | D63: =D60*D35 -> 0 | E63: 0 | F63: 2967.432798 | G63: 2742.14361 | H63: 0 | I63: =SUM(C63:H63) -> 5709.576408 | J63: =J60*J35 -> 165380.5818 | K63: 354326.6582 | L63: 166659.8795 | M63: 0 | N63: 0
A64: FINAL CONSUMPTION | B64: =SUM(B65:B84) -> 834908.5419 | C64: =SUM(C65:C84) -> 46298.85473 | D64: 24460.85571 | E64: 16337.31776 | F64: 248030.0027 | G64: 2911.262599 | H64: 724.671166 | I64: =SUM(C64:H64) -> 338762.9647 | J64: =SUM(J65:J84) -> 125463.2601 | K64: 51508.20448 | L64: 211658.982 | M64: 58085.12063 | N64: 49430.01001
A65: Industry - steel | B65: =SUM(I65:N65) -> 2528.9716 | C65: =+'Start Year Balance'!C65*(1+Growth!$I8) -> 0 | D65: =+'Start Year Balance'!D65*(1+Growth!$I8) -> 0 | E65: =+'Start Year Balance'!E65*(1+Growth!$I8) -> 0 | F65: =+'Start Year Balance'!F65*(1+Growth!$I8) -> 211.9594856 | G65: =+'Start Year Balance'!G65*(1+Growth!$I8) -> 0 | H65: =+'Start Year Balance'!H65*(1+Growth!$I8) -> 0 | I65: =SUM(C65:H65) -> 211.9594856 | J65: =+'Start Year Balance'!J65*(1+Growth!$I8) -> 174.9405693 | K65: =+'Start Year Balance'!K65*(1+Growth!$I8) -> 187.0670927 | L65: =+'Start Year Balance'!L65*(1+Growth!$I8) -> 1955.004452 | M65: =+'Start Year Balance'!M65*(1+Growth!$I8) -> 0 | N65: =+'Start Year Balance'!N65*(1+Growth!$I8) -> 0
A66: Industry - chemical | B66: =SUM(I66:N66) -> 28598.30916 | C66: =+'Start Year Balance'!C66*(1+Growth!$I9) -> 104.3028016 | D66: =+'Start Year Balance'!D66*(1+Growth!$I9) -> 0 | E66: =+'Start Year Balance'!E66*(1+Growth!$I9) -> 0 | F66: =+'Start Year Balance'!F66*(1+Growth!$I9) -> 49.87282013 | G66: =+'Start Year Balance'!G66*(1+Growth!$I9) -> 36.23978339 | H66: =+'Start Year Balance'!H66*(1+Growth!$I9) -> 0 | I66: 190.4154052 | J66: =+'Start Year Balance'!J66*(1+Growth!$I9) -> 4054.50496 | K66: =+'Start Year Balance'!K66*(1+Growth!$I9) -> 2338.338659 | L66: =+'Start Year Balance'!L66*(1+Growth!$I9) -> 22015.05014 | M66: =+'Start Year Balance'!M66*(1+Growth!$I9) -> 0 | N66: =+'Start Year Balance'!N66*(1+Growth!$I9) -> 0
A67: Industry - non metallic mineral | B67: 110058.0308 | C67: =+'Start Year Balance'!C67*(1+Growth!$I10) -> 34.76760055 | D67: =+'Start Year Balance'!D67*(1+Growth!$I10) -> 0 | E67: =+'Start Year Balance'!E67*(1+Growth!$I10) -> 0 | F67: =+'Start Year Balance'!F67*(1+Growth!$I10) -> 299.2369208 | G67: =+'Start Year Balance'!G67*(1+Growth!$I10) -> 217.4387003 | H67: =+'Start Year Balance'!H67*(1+Growth!$I10) -> 0 | I67: 551.4432217 | J67: =+'Start Year Balance'!J67*(1+Growth!$I10) -> 34031.08605 | K67: =+'Start Year Balance'!K67*(1+Growth!$I10) -> 10116.01278 | L67: =+'Start Year Balance'!L67*(1+Growth!$I10) -> 16014.03647 | M67: =+'Start Year Balance'!M67*(1+Growth!$I10) -> 0 | N67: =+'Start Year Balance'!N67*(1+Growth!$I10) -> 49345.45232
A68: Industry - food processing and beverage | B68: 17770.49771 | C68: =+'Start Year Balance'!C68*(1+Growth!$I11) -> 231.7840036 | D68: =+'Start Year Balance'!D68*(1+Growth!$I11) -> 0 | E68: =+'Start Year Balance'!E68*(1+Growth!$I11) -> 0 | F68: =+'Start Year Balance'!F68*(1+Growth!$I11) -> 74.8092302 | G68: =+'Start Year Balance'!G68*(1+Growth!$I11) -> 446.9573284 | H68: =+'Start Year Balance'!H68*(1+Growth!$I11) -> 0 | I68: 753.5505623 | J68: =+'Start Year Balance'!J68*(1+Growth!$I11) -> 2346.261754 | K68: =+'Start Year Balance'!K68*(1+Growth!$I11) -> 5662.376998 | L68: =+'Start Year Balance'!L68*(1+Growth!$I11) -> 8347.019009 | M68: =+'Start Year Balance'!M68*(1+Growth!$I11) -> 576.7316942 | N68: =+'Start Year Balance'!N68*(1+Growth!$I11) -> 84.55769063
A69: Industry - construction | B69: 4924.708395 | C69: =+'Start Year Balance'!C69*(1+Growth!$I12) -> 0 | D69: =+'Start Year Balance'!D69*(1+Growth!$I12) -> 0 | E69: =+'Start Year Balance'!E69*(1+Growth!$I12) -> 0 | F69: =+'Start Year Balance'!F69*(1+Growth!$I12) -> 1832.82614 | G69: =+'Start Year Balance'!G69*(1+Growth!$I12) -> 0 | H69: =+'Start Year Balance'!H69*(1+Growth!$I12) -> 0 | I69: 1832.82614 | J69: =+'Start Year Balance'!J69*(1+Growth!$I12) -> 10.29062173 | K69: =+'Start Year Balance'!K69*(1+Growth!$I12) -> 21.58466454 | L69: =+'Start Year Balance'!L69*(1+Growth!$I12) -> 3060.006969 | M69: =+'Start Year Balance'!M69*(1+Growth!$I12) -> 0 | N69: =+'Start Year Balance'!N69*(1+Growth!$I12) -> 0
A70: Industry - mining | B70: 6664.888911 | C70: =+'Start Year Balance'!C70*(1+Growth!$I13) -> 0 | D70: =+'Start Year Balance'!D70*(1+Growth!$I13) -> 0 | E70: =+'Start Year Balance'!E70*(1+Growth!$I13) -> 0 | F70: =+'Start Year Balance'!F70*(1+Growth!$I13) -> 4688.045092 | G70: =+'Start Year Balance'!G70*(1+Growth!$I13) -> 0 | H70: =+'Start Year Balance'!H70*(1+Growth!$I13) -> 0 | I70: 4688.045092 | J70: =+'Start Year Balance'!J70*(1+Growth!$I13) -> 195.5218128 | K70: =+'Start Year Balance'!K70*(1+Growth!$I13) -> 676.319489 | L70: =+'Start Year Balance'!L70*(1+Growth!$I13) -> 1105.002517 | M70: =+'Start Year Balance'!M70*(1+Growth!$I13) -> 0 | N70: =+'Start Year Balance'!N70*(1+Growth!$I13) -> 0
A71: Industry - machinery | B71: 835.036916 | C71: =+'Start Year Balance'!C71*(1+Growth!$I14) -> 57.94600091 | D71: =+'Start Year Balance'!D71*(1+Growth!$I14) -> 0 | E71: =+'Start Year Balance'!E71*(1+Growth!$I14) -> 0 | F71: =+'Start Year Balance'!F71*(1+Growth!$I14) -> 37.4046151 | G71: =+'Start Year Balance'!G71*(1+Growth!$I14) -> 0 | H71: =+'Start Year Balance'!H71*(1+Growth!$I14) -> 0 | I71: 95.35061601 | J71: =+'Start Year Balance'!J71*(1+Growth!$I14) -> 30.87186518 | K71: =+'Start Year Balance'!K71*(1+Growth!$I14) -> 122.3130991 | L71: =+'Start Year Balance'!L71*(1+Growth!$I14) -> 586.5013357 | M71: =+'Start Year Balance'!M71*(1+Growth!$I14) -> 0 | N71: =+'Start Year Balance'!N71*(1+Growth!$I14) -> 0
A72: Industry - non ferrous metals | B72: 86683.72176 | C72: =+'Start Year Balance'!C72*(1+Growth!$I15) -> 428.8004067 | D72: =+'Start Year Balance'!D72*(1+Growth!$I15) -> 0 | E72: =+'Start Year Balance'!E72*(1+Growth!$I15) -> 0 | F72: =+'Start Year Balance'!F72*(1+Growth!$I15) -> 162.0866654 | G72: =+'Start Year Balance'!G72*(1+Growth!$I15) -> 0 | H72: =+'Start Year Balance'!H72*(1+Growth!$I15) -> 0 | I72: 590.8870722 | J72: =+'Start Year Balance'!J72*(1+Growth!$I15) -> 11175.61519 | K72: =+'Start Year Balance'!K72*(1+Growth!$I15) -> 489.2523963 | L72: =+'Start Year Balance'!L72*(1+Growth!$I15) -> 17484.53982 | M72: =+'Start Year Balance'!M72*(1+Growth!$I15) -> 56943.42727 | N72: =+'Start Year Balance'!N72*(1+Growth!$I15) -> 0
A73: Industry - paper and pulp | B73: 3919.139695 | C73: =+'Start Year Balance'!C73*(1+Growth!$I16) -> 11.58920018 | D73: =+'Start Year Balance'!D73*(1+Growth!$I16) -> 0 | E73: =+'Start Year Balance'!E73*(1+Growth!$I16) -> 0 | F73: =+'Start Year Balance'!F73*(1+Growth!$I16) -> 124.6820503 | G73: =+'Start Year Balance'!G73*(1+Growth!$I16) -> 0 | H73: =+'Start Year Balance'!H73*(1+Growth!$I16) -> 0 | I73: 136.2712505 | J73: =+'Start Year Balance'!J73*(1+Growth!$I16) -> 442.4967342 | K73: =+'Start Year Balance'!K73*(1+Growth!$I16) -> 1453.367412 | L73: =+'Start Year Balance'!L73*(1+Growth!$I16) -> 1887.004297 | M73: =+'Start Year Balance'!M73*(1+Growth!$I16) -> 0 | N73: =+'Start Year Balance'!N73*(1+Growth!$I16) -> 0
A74: Industry - transport equipment | B74: 1924.391591 | C74: =+'Start Year Balance'!C74*(1+Growth!$I17) -> 266.5516042 | D74: =+'Start Year Balance'!D74*(1+Growth!$I17) -> 0 | E74: =+'Start Year Balance'!E74*(1+Growth!$I17) -> 0 | F74: =+'Start Year Balance'!F74*(1+Growth!$I17) -> 87.27743523 | G74: =+'Start Year Balance'!G74*(1+Growth!$I17) -> 0 | H74: =+'Start Year Balance'!H74*(1+Growth!$I17) -> 0 | I74: 353.8290394 | J74: =+'Start Year Balance'!J74*(1+Growth!$I17) -> 0 | K74: =+'Start Year Balance'!K74*(1+Growth!$I17) -> 57.55910544 | L74: =+'Start Year Balance'!L74*(1+Growth!$I17) -> 1513.003446 | M74: =+'Start Year Balance'!M74*(1+Growth!$I17) -> 0 | N74: =+'Start Year Balance'!N74*(1+Growth!$I17) -> 0
A75: Industry - textile and leather | B75: 21863.7221 | C75: =+'Start Year Balance'!C75*(1+Growth!$I18) -> 139.0704022 | D75: =+'Start Year Balance'!D75*(1+Growth!$I18) -> 0 | E75: =+'Start Year Balance'!E75*(1+Growth!$I18) -> 0 | F75: =+'Start Year Balance'!F75*(1+Growth!$I18) -> 74.8092302 | G75: =+'Start Year Balance'!G75*(1+Growth!$I18) -> 0 | H75: =+'Start Year Balance'!H75*(1+Growth!$I18) -> 0 | I75: 213.8796324 | J75: =+'Start Year Balance'!J75*(1+Growth!$I18) -> 3653.170713 | K75: =+'Start Year Balance'!K75*(1+Growth!$I18) -> 7813.648564 | L75: =+'Start Year Balance'!L75*(1+Growth!$I18) -> 10183.02319 | M75: =+'Start Year Balance'!M75*(1+Growth!$I18) -> 0 | N75: =+'Start Year Balance'!N75*(1+Growth!$I18) -> 0
A76: Industry - miscellaneous | B76: 5285.706909 | C76: =+'Start Year Balance'!C76*(1+Growth!$I19) -> 0 | D76: =+'Start Year Balance'!D76*(1+Growth!$I19) -> 0 | E76: =+'Start Year Balance'!E76*(1+Growth!$I19) -> 0 | F76: =+'Start Year Balance'!F76*(1+Growth!$I19) -> 0 | G76: =+'Start Year Balance'!G76*(1+Growth!$I19) -> 0 | H76: =+'Start Year Balance'!H76*(1+Growth!$I19) -> 0 | I76: 0 | J76: =+'Start Year Balance'!J76*(1+Growth!$I19) -> 0 | K76: =+'Start Year Balance'!K76*(1+Growth!$I19) -> 7.19488818 | L76: =+'Start Year Balance'!L76*(1+Growth!$I19) -> 5278.512021 | M76: =+'Start Year Balance'!M76*(1+Growth!$I19) -> 0 | N76: =+'Start Year Balance'!N76*(1+Growth!$I19) -> 0
A77: Transport - road | B77: 265586.785 | C77: =+'Start Year Balance'!C77*(1+Growth!$I21) -> 35567.25536 | D77: =+'Start Year Balance'!D77*(1+Growth!$I21) -> 24460.85571 | E77: =+'Start Year Balance'!E77*(1+Growth!$I21) -> 0 | F77: =+'Start Year Balance'!F77*(1+Growth!$I21) -> 204827.6723 | G77: =+'Start Year Balance'!G77*(1+Growth!$I21) -> 0 | H77: =+'Start Year Balance'!H77*(1+Growth!$I21) -> 0 | I77: 264855.7834 | J77: =+'Start Year Balance'!J77*(1+Growth!$I21) -> 0 | K77: =+'Start Year Balance'!K77*(1+Growth!$I21) -> 0 | L77: =+'Start Year Balance'!L77*(1+Growth!$I21) -> 731.0016648 | M77: =+'Start Year Balance'!M77*(1+Growth!$I21) -> 0 | N77: =+'Start Year Balance'!N77*(1+Growth!$I21) -> 0
A78: Transport - rail | B78: 1683.207679 | C78: =+'Start Year Balance'!C78*(1+Growth!$I22) -> 0 | D78: =+'Start Year Balance'!D78*(1+Growth!$I22) -> 0 | E78: =+'Start Year Balance'!E78*(1+Growth!$I22) -> 0 | F78: =+'Start Year Balance'!F78*(1+Growth!$I22) -> 1683.207679 | G78: =+'Start Year Balance'!G78*(1+Growth!$I22) -> 0 | H78: =+'Start Year Balance'!H78*(1+Growth!$I22) -> 0 | I78: 1683.207679 | J78: =+'Start Year Balance'!J78*(1+Growth!$I22) -> 0 | K78: =+'Start Year Balance'!K78*(1+Growth!$I22) -> 0 | L78: =+'Start Year Balance'!L78*(1+Growth!$I22) -> 0 | M78: =+'Start Year Balance'!M78*(1+Growth!$I22) -> 0 | N78: =+'Start Year Balance'!N78*(1+Growth!$I22) -> 0
A79: Transport - domestic air | B79: 16337.31776 | C79: =+'Start Year Balance'!C79*(1+Growth!$I23) -> 0 | D79: =+'Start Year Balance'!D79*(1+Growth!$I23) -> 0 | E79: =+'Start Year Balance'!E79*(1+Growth!$I23) -> 16337.31776 | F79: =+'Start Year Balance'!F79*(1+Growth!$I23) -> 0 | G79: =+'Start Year Balance'!G79*(1+Growth!$I23) -> 0 | H79: =+'Start Year Balance'!H79*(1+Growth!$I23) -> 0 | I79: 16337.31776 | J79: =+'Start Year Balance'!J79*(1+Growth!$I23) -> 0 | K79: =+'Start Year Balance'!K79*(1+Growth!$I23) -> 0 | L79: =+'Start Year Balance'!L79*(1+Growth!$I23) -> 0 | M79: =+'Start Year Balance'!M79*(1+Growth!$I23) -> 0 | N79: =+'Start Year Balance'!N79*(1+Growth!$I23) -> 0
A80: Transport - navigation | B80: 2210.626787 | C80: =+'Start Year Balance'!C80*(1+Growth!$I24) -> 0 | D80: =+'Start Year Balance'!D80*(1+Growth!$I24) -> 0 | E80: =+'Start Year Balance'!E80*(1+Growth!$I24) -> 0 | F80: =+'Start Year Balance'!F80*(1+Growth!$I24) -> 0 | G80: =+'Start Year Balance'!G80*(1+Growth!$I24) -> 2210.626787 | H80: =+'Start Year Balance'!H80*(1+Growth!$I24) -> 0 | I80: 2210.626787 | J80: =+'Start Year Balance'!J80*(1+Growth!$I24) -> 0 | K80: =+'Start Year Balance'!K80*(1+Growth!$I24) -> 0 | L80: =+'Start Year Balance'!L80*(1+Growth!$I24) -> 0 | M80: =+'Start Year Balance'!M80*(1+Growth!$I24) -> 0 | N80: =+'Start Year Balance'!N80*(1+Growth!$I24) -> 0
A81: Households | B81: 129400.1306 | C81: =+'Start Year Balance'!C81*(1+Growth!$I26) -> 2839.354045 | D81: =+'Start Year Balance'!D81*(1+Growth!$I26) -> 0 | E81: =+'Start Year Balance'!E81*(1+Growth!$I26) -> 0 | F81: =+'Start Year Balance'!F81*(1+Growth!$I26) -> 0 | G81: =+'Start Year Balance'!G81*(1+Growth!$I26) -> 0 | H81: =+'Start Year Balance'!H81*(1+Growth!$I27) -> 724.671166 | I81: 3564.025211 | J81: =+'Start Year Balance'!J81*(1+Growth!$I26) -> 15600.58254 | K81: =+'Start Year Balance'!K81*(1+Growth!$I26) -> 16735.30991 | L81: =+'Start Year Balance'!L81*(1+Growth!$I26) -> 93500.21294 | M81: =+'Start Year Balance'!M81*(1+Growth!$I26) -> 0 | N81: =+'Start Year Balance'!N81*(1+Growth!$I26) -> 0
A82: Services | B82: 93626.73286 | C82: =+'Start Year Balance'!C82*(1+Growth!$I29) -> 6617.433304 | D82: =+'Start Year Balance'!D82*(1+Growth!$I29) -> 0 | E82: =+'Start Year Balance'!E82*(1+Growth!$I29) -> 0 | F82: =+'Start Year Balance'!F82*(1+Growth!$I29) -> 0 | G82: =+'Start Year Balance'!G82*(1+Growth!$I29) -> 0 | H82: =+'Start Year Balance'!H82*(1+Growth!$I29) -> 0 | I82: 6617.433304 | J82: =+'Start Year Balance'!J82*(1+Growth!$I29) -> 53747.91728 | K82: =+'Start Year Balance'!K82*(1+Growth!$I29) -> 5827.859426 | L82: =+'Start Year Balance'!L82*(1+Growth!$I29) -> 26868.56119 | M82: =+'Start Year Balance'!M82*(1+Growth!$I29) -> 564.9616596 | N82: =+'Start Year Balance'!N82*(1+Growth!$I29) -> 0
A83: Agriculture & Fishery | B83: 35006.61565 | C83: =+'Start Year Balance'!C83*(1+Growth!$I31) -> 0 | D83: =+'Start Year Balance'!D83*(1+Growth!$I31) -> 0 | E83: =+'Start Year Balance'!E83*(1+Growth!$I31) -> 0 | F83: =+'Start Year Balance'!F83*(1+Growth!$I31) -> 33876.11308 | G83: =+'Start Year Balance'!G83*(1+Growth!$I31) -> 0 | H83: =+'Start Year Balance'!H83*(1+Growth!$I31) -> 0 | I83: 33876.11308 | J83: =+'Start Year Balance'!J83*(1+Growth!$I31) -> 0 | K83: =+'Start Year Balance'!K83*(1+Growth!$I31) -> 0 | L83: =+'Start Year Balance'!L83*(1+Growth!$I31) -> 1130.502575 | M83: =+'Start Year Balance'!M83*(1+Growth!$I31) -> 0 | N83: =+'Start Year Balance'!N83*(1+Growth!$I31) -> 0
A84: Non energy uses | B84: 0 | C84: =+'Start Year Balance'!C84*(1+Growth!$I33) -> 0 | D84: =+'Start Year Balance'!D84*(1+Growth!$I33) -> 0 | E84: =+'Start Year Balance'!E84*(1+Growth!$I33) -> 0 | F84: =+'Start Year Balance'!F84*(1+Growth!$I33) -> 0 | G84: =+'Start Year Balance'!G84*(1+Growth!$I33) -> 0 | H84: =+'Start Year Balance'!H84*(1+Growth!$I33) -> 0 | I84: 0 | J84: =+'Start Year Balance'!J84*(1+Growth!$I33) -> 0 | K84: =+'Start Year Balance'!K84*(1+Growth!$I33) -> 0 | L84: =+'Start Year Balance'!L84*(1+Growth!$I33) -> 0 | M84: =+'Start Year Balance'!M84*(1+Growth!$I33) -> 0 | N84: =+'Start Year Balance'!N84*(1+Growth!$I33) -> 0
A85: CH4 from energy combustion | B85: =IF(B62=0,0,+'Start Year Balance'!B85*'Balance 2050'!B64/'Start Year Balance'!B64) -> 19860.656
A86: N2O from energy combustion | B86: =IF(B63=0,0,+'Start Year Balance'!B86*'Balance 2050'!B65/'Start Year Balance'!B65) -> 15206.48923
A87: Total Agriculture | B87: =SUM(B88:B92) -> 113054.6251
A88: Enteric fermentation | B88: =+'Start Year Balance'!B88*(1+Growth!I$34) -> 53695.555
A89: Manure management | B89: =+'Start Year Balance'!B89*(1+Growth!I$34) -> 12589.13934
A90: Rice cultivation | B90: =+'Start Year Balance'!B90*(1+Growth!I$35) -> 399.4016289
A91: N2O from agricultural soils | B91: =+'Start Year Balance'!B91*(1+Growth!I$36) -> 45687.55233
A92: Burning of agricultural residues | B92: =+'Start Year Balance'!B92*(1+Growth!I$37) -> 682.9767855
A93: Fugitive (CH4) | B93: =IF('Start Year Balance'!L62=0,0,'Start Year Balance'!B93*'Balance 2050'!L62/'Start Year Balance'!L62) -> 16211.09858
A94: Forestry | B94: =+'Start Year Balance'!B94*(1+Growth!I$38) -> -64020
A95: Waste - solid | B95: =+'Start Year Balance'!B95*(1+Growth!I39) -> 16880
A96: Waste - liquid | B96: =+'Start Year Balance'!B96*(1+Growth!I40) -> 0
A97: Industrial processes | B97: =+'Start Year Balance'!B97*(1+Growth!I41) -> 60720
A98: Total GHG emission | B98: =+B85+B86+B87+B93+B94+B95+B96+B97+B62 -> 1704898.107

Sheet assumptions
A1: Assumptionst and Country settings
A2: Country: | B2: Country X
A3: Start year (latest inventory): | B3: 2015
A4: Currency: | B4: Currency Y
A5: Exchange rate used: 1 US$= | B5: 4 | C5: =+Currency -> Currency Y
A6: Discount rate = | B6: 0.07
A8: Energy prices used for the whole future period:
A9: Crude oil | B9: 50 | C9: US$/bbl | F9: 1 Million BTU = | G9: 1.055 | H9: GJ
A10: Crude oil | B10: =B9/G11 -> 0.3144654088 | C10: US$/litre | F10: 1 US gallon = | G10: 3.7854 | H10: litres
A11: LNG | B11: 3.25 | C11: US$/MBTU | F11: 1 bbl = | G11: 159 | H11: litres
A12: Natural gas | B12: =B11/1.055 -> 3.08056872 | C12: US$/GJ
A13: Coal | B13: 50 | C13: US$/ton
A15: Fuel prices
A16: 2020 prices | B16: LPG | C16: Gaso- | D16: Bioethanol | E16: Jet | F16: Diesel | G16: Biodiesel | H16: Heavy | I16: Kero- | J16: Coal | K16: Coke | L16: Petroleum | M16: Lignite | N16: Natural
C17: line | E17: Fuel | F17: Oil | H17: Fuel Oil | I17: sene | L17: coke | N17: Gas
A18: Destillate price/crude oil price (litre/litre) | B18: 0.9 | C18: 1.4 | E18: 1.4 | F18: 1.2 | H18: 0.8 | I18: 1.4
A19: US$/liter | B19: =$B$10*B18 -> 0.2830188679 | C19: =$B$10*C18 -> 0.4402515723 | D19: 0.83 | E19: =$B$10*E18 -> 0.4402515723 | F19: =$B$10*F18 -> 0.3773584906 | G19: 1.2 | H19: =$B$10*H18 -> 0.251572327 | I19: =$B$10*I18 -> 0.4402515723
A20: US$/GJ | B20: =B19*1000/B22/B21 -> 11.08052885 | C20: =C19*1000/C22/C21 -> 13.10272537 | E20: =(E19*1000/E21)/E22 -> 12.34165655 | F20: =F19*1000/F22/F21 -> 10.36778902 | H20: =(H19*1000/H21)/H22 -> 6.387321626 | I20: =(I19*1000/I21)/I22 -> 12.29752995 | J20: =B13/J22 -> 2.003205128 | K20: =J20 -> 2.003205128 | L20: =K20 -> 2.003205128 | N20: =+B12 -> 3.08056872
A21: t/m3 | B21: 0.54 | C21: 0.75 | D21: =1/(C63/1000) -> 0.7552870091 | E21: 0.8 | F21: 0.84 | G21: =1/(C64/1000) -> 0.8833922261 | H21: 0.98 | I21: 0.8 | N21: (MJ/Nm3)
A22: GJ/t | B22: 47.3 | C22: 44.8 | D22: =+D68 -> 26.79552 | E22: 44.59 | F22: 43.33 | G22: =+D68 -> 26.79552 | H22: 40.19 | I22: 44.75 | J22: 24.96 | K22: 28 | L22: 31 | M22: 18.3 | N22: 39
A24: Electricity | B24: Isolated grids | C24: Grid 1 | D24: Grid 2
A25: US$/kWh | C25: 0.2
B26: tCO2/MWh (=kCO2/kWh)
A27: Operating margin (OM)
A28: Build Margin (BM)
A29: Combined Margin (CM) Solar & Wind | C29: 0.4855
A30: Combined Margin (CM) Other | C30: 0.4855
A33: Electricity grid losses & own consumption | B33: 0.186
A35: kg/GJ | B35: Emission factors | C35: CO2 | D35: CH4 | E35: N2O
A36: Power plant | B36: Fuel oil | C36: =21.1*44/12 -> 77.36666667 | D36: 0.003 | E36: 0.0006
B37: Diesel oil | C37: =20.2*44/12 -> 74.06666667 | D37: 0.003 | E37: 0.0006
B38: Gasoline | C38: =18.9*44/12 -> 69.3 | D38: 0.003 | E38: 0.0006
B39: Jet fuel | C39: =19.5*44/12 -> 71.5 | D39: 0.003 | E39: 0.0006
B40: Kerosene | C40: =19.6*44/12 -> 71.86666667 | D40: 0.003 | E40: 0.0006
B41: LPG | C41: =17.2*44/12 -> 63.06666667 | D41: 0.001 | E41: 0.0001
B42: Natural gas | C42: 56.1 | D42: 0.001 | E42: 0.0001
B43: Coal | C43: =25.8*44/12 -> 94.6 | D43: 0.001 | E43: 0.0014
B44: Lignite | C44: =27.6*44/12 -> 101.2 | D44: =+D43 -> 0.001 | E44: 0.0014
A45: Industry | B45: Oil | C45: as | D45: 0.002 | E45: 0.0006
B46: Natural gas | C46: above | D46: 0.005 | E46: 0.0001
B47: Coal | D47: 0.01 | E47: 0.0014
B48: Charcoal | D48: 0.2 | E48: 0.004
A49: Residential | B49: Oil | C49: as | D49: 0.01 | E49: 0.0006
B50: Natural gas | C50: above | D50: 0.005 | E50: 0.0001
B51: Coal | D51: 0.3 | E51: 0.0014
B52: Charcoal | D52: 0.2 | E52: 0.004
A54: Global warming potentials: | B54: SAR | C54: AR4 | D54: AR5 | E54: GWP used | G54: TAR
A55: 1 Ton CH4 = | B55: 21 | C55: 25 | D55: 28 | E55: =+B55 -> 21 | F55: Ton CO2 | G55: 23
A56: 1 Ton N2O = | B56: 310 | C56: 298 | D56: 265 | E56: =+B56 -> 310 | F56: Ton CO2 | G56: 296
A59: Source:
A60: http://www.iisd.org/gsi/sites/default/files/bf_uk_fqdmodel.pdf
A61: CONVERSION FACTORS
B62: Tonnes | C62: Litres
A63: Ethanol | B63: 1 | C63: 1324
A64: Biodiesel | B64: 1 | C64: 1132
A65: Diesel | B65: 1 | C65: =1/0.84*1000 -> 1190.47619
A66: Gasoline | B66: 1 | C66: =1/0.75*1000 -> 1333.333333
B67: Tonnes | C67: TOE | D67: GJ
A68: Ethanol | B68: 1 | C68: 0.64 | D68: =C68*C$73 -> 26.79552
A69: Biodiesel | B69: 1 | C69: 0.86 | D69: =C69*C$73 -> 36.00648 | F69: 1 toe costs | G69: =+C64/C69*G19 -> 1579.534884 | H69: US $
A70: Diesel | B70: 1 | C70: =43.33/41.868 -> 1.03491927 | D70: =C70*C$73 -> 43.33
A71: Gasoline | B71: 1 | C71: =44.8/41.868 -> 1.070029617 | D71: =C71*C$73 -> 44.8
B73: 1 toe = | C73: 41.868 | D73: GJ

Sheet coordinates
A1: xSum: | B1: Sorted values (All values) | H1: xSum (included) | I1: Sorted values (meeting thresholds) | L1: X-coordinates (reduction of CO2) | Q1: Y-coordinates (Cost of reduction option) | X1: Options omitted from graph
A2: =SUM(D3:D100) -> 137740.0242 | B2: Reduction option | C2: US$/tonCO2 | D2: Emission reduction in 2020 per option kt/year | H2: =SUM(K3:K100) -> 137263.5747 | I2: Reduction option | J2: US$/tonCO2 | K2: Emission reduction in 2020 per option kt/year | L2: Point 1 | M2: Point 2 | N2: halfway | O2: Point 3 | P2: Point 4 | Q2: Point 1 | R2: Point 2 | S2: Point 3 | T2: halfway | U2: Point 4 | X2: Reduction option | Y2: US$/tonCO2 | Z2: Emission reduction in 2020 per option kt/year
B3: Hydro power connected to main grid | C3: 358.2033739 | D3: 96153.275 | F3: count(included) | G3: =COUNTA(I3:I300) -> 8 | I3: Hydro power connected to main grid | J3: 358.2033739 | K3: 96153.275 | L3: 0 | M3: 0 | N3: 48076.6375 | O3: 96153.275 | P3: 96153.275 | Q3: 0 | R3: 358.2033739 | S3: 358.2033739 | T3: 358.2033739 | U3: 0 | X3: Electric cars | Y3: -376.3625201 | Z3: 476.4495
B4: Wind turbines, on-shore | C4: 351.1100104 | D4: 12137.5 | F4: count(excluded) | G4: =COUNTA(X3:X300) -> 1 | I4: Wind turbines, on-shore | J4: 351.1100104 | K4: 12137.5 | L4: 96153.275 | M4: 96153.275 | N4: 102222.025 | O4: 108290.775 | P4: 108290.775 | Q4: 0 | R4: 351.1100104 | S4: 351.1100104 | T4: 351.1100104 | U4: 0
B5: New office building with central cooling | C5: 300.2097828 | D5: 34.86940321 | I5: New office building with central cooling | J5: 300.2097828 | K5: 34.86940321 | L5: 108290.775 | M5: 108290.775 | N5: 108308.2097 | O5: 108325.6444 | P5: 108325.6444 | Q5: 0 | R5: 300.2097828 | S5: 300.2097828 | T5: 300.2097828 | U5: 0
B6: Solar PVs, large grid | C6: 294.1264611 | D6: 6202.2625 | I6: Solar PVs, large grid | J6: 294.1264611 | K6: 6202.2625 | L6: 108325.6444 | M6: 108325.6444 | N6: 111426.7757 | O6: 114527.9069 | P6: 114527.9069 | Q6: 0 | R6: 294.1264611 | S6: 294.1264611 | T6: 294.1264611 | U6: 0
B7: New bicycle lanes | C7: 144.8607822 | D7: 34.32913559 | I7: New bicycle lanes | J7: 144.8607822 | K7: 34.32913559 | L7: 114527.9069 | M7: 114527.9069 | N7: 114545.0715 | O7: 114562.236 | P7: 114562.236 | Q7: 0 | R7: 144.8607822 | S7: 144.8607822 | T7: 144.8607822 | U7: 0
B8: Energy efficiency in industry | C8: -0.9439292574 | D8: 13282.49426 | I8: Energy efficiency in industry | J8: -0.9439292574 | K8: 13282.49426 | L8: 114562.236 | M8: 114562.236 | N8: 121203.4832 | O8: 127844.7303 | P8: 127844.7303 | Q8: 0 | R8: -0.9439292574 | S8: -0.9439292574 | T8: -0.9439292574 | U8: 0
B9: Energy efficiency in service | C9: -0.9439292574 | D9: 2136.344436 | I9: Energy efficiency in service | J9: -0.9439292574 | K9: 2136.344436 | L9: 127844.7303 | M9: 127844.7303 | N9: 128912.9025 | O9: 129981.0747 | P9: 129981.0747 | Q9: 0 | R9: -0.9439292574 | S9: -0.9439292574 | T9: -0.9439292574 | U9: 0
B10: Efficient electric grids | C10: -145.23996 | D10: 7282.5 | I10: Efficient electric grids | J10: -145.23996 | K10: 7282.5 | L10: 129981.0747 | M10: 129981.0747 | N10: 133622.3247 | O10: 137263.5747 | P10: 137263.5747 | Q10: 0 | R10: -145.23996 | S10: -145.23996 | T10: -145.23996 | U10: 0
B11: Electric cars | C11: -376.3625201 | D11: 476.4495

Sheet graph
A1: Settings for creating Marginal Abatement Revenue curve
C21: Insert only values | E21: Please select the scenario you wish to create the graph for.
A22: Threshold for smallest value on x-axis (ktCO2e/yr) | C22: 10 | D22: values above 0
A23: Threshold for smallest value on y-axis (US$/ktCO2e) | C23: -200 | D23: values below 0
A24: Threshold for largest value on y-axis (US$/ktCO2e) | C24: 800 | D24: values above 0
A26: Include all options in graph with no thresholds | E26: Marginal Abatement Revenue Curve created from Main Sheet:
E27: main20
E28: Font size for labels in graph: (default and minimum is 10 pts) | H28: 15
H50: 8109
B90: Options included in MAR Curve | I90: Options excluded in MAR Curve
B91: Reduction option | C91: US$/tonCO2 | D91: Emission reduction in 2030 per option kt/year | I91: Reduction option | J91: US$/tonCO2 | K91: Emission reduction in 2020 per option kt/year
B92: Hydro power connected to main grid | C92: 358.2033739 | D92: 96153.275 | I92: Electric cars | J92: -376.3625201 | K92: 476.4495
B93: Wind turbines, on-shore | C93: 351.1100104 | D93: 12137.5
B94: New office building with central cooling | C94: 300.2097828 | D94: 34.86940321
B95: Solar PVs, large grid | C95: 294.1264611 | D95: 6202.2625
B96: New bicycle lanes | C96: 144.8607822 | D96: 34.32913559
B97: Energy efficiency in industry | C97: -0.9439292574 | D97: 13282.49426
B98: Energy efficiency in service | C98: -0.9439292574 | D98: 2136.344436
B99: Efficient electric grids | C99: -145.23996 | D99: 7282.5

Sheet main25
A1: Total GHG mitigation in | B1: =+assumptions!$B$2 -> Country X | C1: In 2025 | AA1: Sorted Values - according to revenue potential
E2: Emission | F2: Investment | G2: Annual | H2: Units | I2: Emission reduction in 2025 | L2: Diesel | M2: Gasoline | N2: Electricity | O2: Electricity | AA2: Reduction option | AB2: US$/ktCO2 (Revenue) | AC2: Emission reduction in 2020 per option (ktCO2/yr)
E3: reduction | G3: costs | H3: penetrating | I3: Per option | J3: Added | L3: saved | M3: saved | N3: saved | O3: produced
A4: Type | B4: Reduction option | C4: US$/tonCO2 | D4: Sub-type unit | E4: t CO2/unit | F4: Million US$ | G4: MUS$/year | H4: in 2025 | I4: kt/year | J4: kt/year | K4: Frac.of total | L4: ktoe | M4: ktoe | N4: GWh | O4: GWh
A5: Agriculture | B5: Rice crop CH4 reduction | C5: =Agriculture!D28 -> 1.2 | D5: Rice crop CH4 red.(1000 ha) | E5: =Agriculture!D25 -> 2566.2 | F5: =Agriculture!B15*H5/1000000 -> 0 | G5: =Agriculture!D20*H5/1000000 -> 0 | I5: =E5*H5/1000 -> 0 | J5: =OFFSET(J5,-1,0)+I5 -> 0 | K5: =J5/TotalEmis2025 -> 0 | AA5: Hydro power connected to main grid | AB5: 358.2033739 | AC5: 96153.275
B6: Zero tillage | C6: =+Agriculture!D192 -> -166.3918768 | D6: 1000 ha | E6: =+Agriculture!D190 -> 85.7270531 | F6: =Agriculture!C180*H6/1000000 -> 0 | G6: =Agriculture!D185*H6/1000000 -> 0 | I6: =E6*H6/1000 -> 0 | J6: =OFFSET(J6,-1,0)+I6 -> 0 | K6: 0 | AA6: Wind turbines, on-shore | AB6: 351.1100104 | AC6: 12137.5
B7: Cover crops | C7: =+Agriculture!D87 -> 81.04026846 | D7: 1000 ha | E7: =+Agriculture!D85 -> 1490 | F7: =Agriculture!D75*H7/1000000 -> 0 | G7: =Agriculture!D80*H7/1000000 -> 0 | I7: =E7*H7/1000 -> 0 | J7: =OFFSET(J7,-1,0)+I7 -> 0 | K7: 0 | AA7: New office building with central cooling | AB7: 300.2097828 | AC7: 34.86940321
B8: Nitrification inhibitors (1000 ha) | C8: =+Agriculture!D115 -> 67.68987342 | D8: 1000 ha | E8: =+Agriculture!D113 -> 790 | F8: =Agriculture!D103*H8/1000000 -> 0 | G8: =Agriculture!D108*H8/1000000 -> 0 | I8: =E8*H8/1000 -> 0 | J8: =OFFSET(J8,-1,0)+I8 -> 0 | K8: 0 | AA8: Solar PVs, large grid | AB8: 294.1264611 | AC8: 6202.2625
B9: Covering slurry stores (1 slurry store) | C9: =+Agriculture!D141 -> 937.8333407 | D9: 1 slurry store | E9: =+Agriculture!D139 -> 0.2013 | F9: =Agriculture!D129*H9/1000000 -> 0 | G9: =Agriculture!D134*H9/1000000 -> 0 | I9: =E9*H9/1000 -> 0 | J9: =OFFSET(J9,-1,0)+I9 -> 0 | K9: =J9/TotalEmis2025 -> 0 | AA9: New bicycle lanes | AB9: 144.8607822 | AC9: 34.32913559
B10: Fat supplementation in ruminants diets (%DM fat added) | C10: =+Agriculture!D166 -> 80.5 | D10: %DM fat added | E10: =+Agriculture!D164 -> 4336.226833 | F10: =Agriculture!D154*H10/1000000 -> 0 | G10: =Agriculture!D159*H10/1000000 -> 0 | I10: 0 | J10: 0 | K10: 0 | AA10: Energy efficiency in industry | AB10: -0.9439292574 | AC10: 13282.49426
B11: Tobacco curing | C11: =+Agriculture!D60 -> -20.8017392 | D11: 100 t tobacco/yr | E11: =+Agriculture!D58 -> 561.969408 | F11: =Agriculture!B48*H11/1000000 -> 0 | G11: =Agriculture!D53*H11/1000000 -> 0 | I11: =E11*H11/1000 -> 0 | J11: =OFFSET(J11,-1,0)+I11 -> 0 | K11: 0 | AA11: Energy efficiency in service | AB11: -0.9439292574 | AC11: 2136.344436
A12: Biomass energy | B12: Rice husk cogeneration plants | C12: =+'Biomass energy'!D22 -> -87.68471234 | D12: 1 MW cogeneration | E12: =+'Biomass energy'!D20 -> 9719.024743 | F12: =+'Biomass energy'!B10*H12/1000000 -> 0 | G12: =+'Biomass energy'!D15*H12/1000000 -> 0 | I12: =E12*H12/1000 -> 0 | J12: =OFFSET(J12,-1,0)+I12 -> 0 | K12: =J12/TotalEmis2025 -> 0 | O12: =+'Biomass energy'!G20/'Biomass energy'!G17*H12/1000 -> 0 | AA12: Efficient electric grids | AB12: -145.23996 | AC12: 7282.5
B13: Biomass power from biomass residues | C13: =+'Biomass energy'!D55 -> -184.6008877 | D13: 1 MW CHP plant | E13: =+'Biomass energy'!D53 -> 2427.5 | F13: =+'Biomass energy'!B43*H13/1000000 -> 0 | G13: =+'Biomass energy'!D48*H13/1000000 -> 0 | I13: 0 | J13: 0 | K13: =J13/TotalEmis2025 -> 0 | O13: =+'Biomass energy'!G51*H13/1000 -> 0 | AA13: Electric cars | AB13: -376.3625201 | AC13: 476.4495
B14: Bagasse power | C14: ='Biomass energy'!D86 -> -341.7429484 | D14: 100 kt sugar cane/year | E14: ='Biomass energy'!D84 -> 6791.451429 | F14: ='Biomass energy'!B74*H14/1000000 -> 0 | G14: ='Biomass energy'!D79*H14/1000000 -> 0 | I14: 0 | J14: 0 | K14: 0 | O14: ='Biomass energy'!G85/'Biomass energy'!G79*100*H14/1000 -> 0
A15: CCS | B15: CCS plant | C15: =+CCS!D22 -> 203.8168012 | D15: 1 MW | E15: =+CCS!D20 -> 5412.371134 | F15: =CCS!D10*H15/1000000 -> 0 | G15: =CCS!D15*H15/1000000 -> 0 | I15: =E15*H15/1000 -> 0 | J15: =OFFSET(J15,-1,0)+I15 -> 0 | K15: =J15/TotalEmis2025 -> 0 | O15: =+CCS!G16/CCS!G13*H15/1000 -> 0
A16: Cement | B16: Clinker replacement | C16: =+Cement!D22 -> 7.552571263 | D16: 1000 tonnes cement/day | E16: =+Cement!D20 -> 166583.5619 | F16: =Cement!B9*H16/1000000 -> 0 | G16: =Cement!D15*H16/1000000 -> 0 | I16: 0 | J16: 0 | K16: 0
A17: Coal bed/mine methane | B17: Coal mine methane | C17: =+'Coalmine CH4'!D23 -> -30.71210762 | D17: 10 Mm3 CMM/year | E17: =+'Coalmine CH4'!D21 -> 37352.84 | F17: =+'Coalmine CH4'!B11/1000000*H17 -> 0 | G17: =+'Coalmine CH4'!D21/1000000*H17 -> 0 | I17: 0 | J17: 0 | K17: 0 | O17: =+'Coalmine CH4'!G26/'Coalmine CH4'!G21*10*H17/1000 -> 0
A18: EE households | B18: Efficient residential airconditioning | C18: =+'EE households'!D28 -> -307.4092522 | D18: 1000 Airconditioners | E18: =+'EE households'!D26 -> 779.892092 | F18: =+'EE households'!B16*H18/1000000 -> 0 | G18: =+'EE households'!D21*H18/1000000 -> 0 | I18: 0 | J18: 0 | K18: =J18/TotalEmis2025 -> 0 | N18: =+'EE households'!G40*H18/1000 -> 0
B19: Efficient lighting with CFLs | C19: =+'EE households'!D62 -> -321.0676312 | D19: 1000 Bulps | E19: =+'EE households'!D60 -> 38.0974355 | F19: =+'EE households'!D50*H19/1000000 -> 0 | G19: =+'EE households'!D55*H19/1000000 -> 0 | I19: 0 | J19: 0 | K19: 0 | N19: ='EE households'!G63*H19/1000 -> 0
B20: Efficient lighting with LEDs | C20: =+'EE households'!D94 -> -354.6816744 | D20: 1000 Bulps | E20: =+'EE households'!D92 -> 77.71876843 | F20: =+'EE households'!D82*H20/1000000 -> 0 | G20: =+'EE households'!D87*H20/1000000 -> 0 | I20: 0 | J20: 0 | K20: 0 | N20: =+'EE households'!G99*H20/1000 -> 0
B21: Efficient lighting with LEDs replacing CFL | C21: =+'EE households'!D120 -> -213.844558 | D21: 1000 Bulps | E21: =+'EE households'!D118 -> 9.143384521 | F21: ='EE households'!D108*H21/1000000 -> 0 | G21: ='EE households'!D113*H21/1000000 -> 0 | I21: 0 | J21: 0 | K21: =J21/TotalEmis2025 -> 0 | N21: =+'EE households'!G100*H21/1000 -> 0
B22: Efficient wood stoves | C22: =+'EE households'!D176 -> -933.2500415 | D22: 1000 stoves | E22: =+'EE households'!D174 -> 1338.333333 | F22: =+'EE households'!B164*H22/1000000 -> 0 | G22: =+'EE households'!D169*H22/1000000 -> 0 | I22: 0 | J22: 0 | K22: 0
B23: Efficient charcoal stoves | C23: =+'EE households'!D204 -> -62.01052922 | D23: 1000 stoves | E23: =+'EE households'!D202 -> 292.9169187 | F23: =+'EE households'!B192*H23/1000000 -> 0 | G23: =+'EE households'!D197*H23/1000000 -> 0 | I23: 0 | J23: 0 | K23: 0
B24: LPG stoves replacing wood stoves | C24: =+'EE households'!D236 -> 74.16714372 | D24: 1000 stoves | E24: =+'EE households'!D234 -> 2054.943917 | F24: ='EE households'!B224*H24/1000000 -> 0 | G24: ='EE households'!D229*H24/1000000 -> 0 | I24: 0 | J24: 0 | K24: 0
B25: Efficient electric stoves | C25: =+'EE households'!D265 -> -273.8098373 | D25: 1000 stoves | E25: =+'EE households'!D263 -> 155.0737101 | F25: ='EE households'!D253*H25/1000000 -> 0 | G25: ='EE households'!D258*H25/1000000 -> 0 | I25: 0 | J25: 0 | K25: 0 | N25: ='EE households'!G273*H25/1000 -> 0
B26: Induction based cooking | C26: =+'EE households'!D291 -> 504.9017484 | D26: 1000 stoves | E26: =+'EE households'!D289 -> 11.29676034 | F26: ='EE households'!D279*H26/1000000 -> 0 | G26: ='EE households'!D284*H26/1000000 -> 0 | I26: 0 | J26: 0 | K26: 0 | N26: ='EE households'!G300*H26/1000 -> 0
B27: New passive home | C27: =+'EE households'!$D$319 -> -141.1892243 | D27: 1000 new homes | E27: =+'EE households'!$D$317 -> 8499.232187 | F27: =+'EE households'!$D$307 -> 0 | G27: =+H27*'EE households'!$D$312/1000000 -> 0 | I27: 0 | J27: 0 | K27: =J27/Totalemis2050 -> 0 | N27: ='EE households'!$G$325*H27/1000 -> 0
B28: Efficient refrigerators | C28: =+'EE households'!D146 -> -37.23701391 | D28: 1000 refrigerators | E28: =+'EE households'!D144 -> 1203.823587 | F28: =+'EE households'!D134*H28/1000000 -> 0 | G28: =+'EE households'!D139*H28/1000000 -> 0 | I28: 0 | J28: 0 | K28: 0 | N28: =+'EE households'!G158*H28/1000 -> 0
A29: EE industry | B29: Efficient electric motors | C29: =+'EE industry'!D21 -> -309.0172324 | D29: 1 kW | E29: =+'EE industry'!D19 -> 0.6494539995 | F29: =+'EE industry'!D9*H29/1000000 -> 0 | G29: =+'EE industry'!D14*H29/1000000 -> 0 | I29: =E29*H29/1000 -> 0 | J29: =OFFSET(J29,-1,0)+I29 -> 0 | K29: =J29/TotalEmis2025 -> 0 | N29: =H29*'EE industry'!G21/1000000 -> 0
B30: Energy efficiency in industry | C30: =+'EE industry'!D80 -> 0.9439292574 | D30: 10% red. of energy demand | E30: =+'EE industry'!D78 -> 13282494.26 | F30: =+'EE industry'!K68*H30/1000000 -> 177.7497355 | G30: ='EE industry'!D73*H30/1000000 -> 12.53773494 | H30: 1 | I30: =E30*H30/1000 -> 13282.49426 | J30: =OFFSET(J30,-1,0)+I30 -> 13282.49426 | K30: =J30/TotalEmis2025 -> 0.01640000615
B31: Building materials | C31: =+'EE industry'!D51 -> -18.89515475 | D31: 1 million bricks | E31: =+'EE industry'!D49 -> 520.3 | F31: ='EE industry'!D39*H31/1000000 -> 0 | G31: ='EE industry'!D44*H31/1000000 -> 0 | I31: =E31*H31/1000 -> 0 | J31: =OFFSET(J31,-1,0)+I31 -> 13282.49426 | K31: =J31/TotalEmis2025 -> 0.01640000615
A32: EE own generation | B32: Waste heat recovery at cement plant | C32: =+'EE own generation'!D21 -> -375.618814 | D32: 1 Cement plant | E32: =+'EE own generation'!D19 -> 39852.89865 | F32: =+'EE own generation'!B9*H32/1000000 -> 0 | G32: =+'EE own generation'!D14*H32/1000000 -> 0 | I32: =E32*H32/1000 -> 0 | J32: =OFFSET(J32,-1,0)+I32 -> 13282.49426 | K32: 0.01640000615 | O32: =+'EE own generation'!G15*main30!H32 -> 0
B33: Waste heat recovery at steel plant | C33: =+'EE own generation'!D51 -> -390.7944803 | D33: 1 Steel plant | E33: =+'EE own generation'!D49 -> 36703.8 | F33: =+'EE own generation'!B39*H33/1000000 -> 0 | G33: =+'EE own generation'!D44*H33/1000000 -> 0 | I33: 0 | J33: 13282.49426 | K33: 0.01640000615 | O33: ='EE own generation'!G44*main30!H33 -> 0
A34: EE service | B34: Efficient electric motors | C34: =+'EE service'!D27 -> -309.0172324 | D34: 1 kW | E34: =+'EE service'!D25 -> 0.6494539995 | F34: =+'EE service'!D15*H34/1000000 -> 0 | G34: =+'EE service'!D20*H34/1000000 -> 0 | I34: 0 | J34: 13282.49426 | K34: =J34/TotalEmis2025 -> 0.01640000615 | N34: =H34*'EE service'!G27/1000000 -> 0
B35: Efficient office lighting with CFLs | C35: =+'EE service'!D55 -> -303.4049412 | D35: 1000 lights | E35: =+'EE service'!D53 -> 39.18593366 | F35: =+'EE service'!D43*H35/1000000 -> 0 | G35: =+'EE service'!D48*H35/1000000 -> 0 | I35: 0 | J35: 13282.49426 | K35: 0.01640000615 | N35: =+'EE service'!G55*H35/1000 -> 0
B36: Efficient office lighting with LEDs | C36: =+'EE service'!D87 -> -270.574894 | D36: 1000 lights | E36: =+'EE service'!D85 -> 44.41072482 | F36: =+'EE service'!D75*H36/1000000 -> 0 | G36: =+'EE service'!D80*H36/1000000 -> 0 | I36: =E36*H36/1000 -> 0 | J36: =OFFSET(J36,-1,0)+I36 -> 13282.49426 | K36: =J36/TotalEmis2025 -> 0.01640000615 | N36: =+'EE service'!G87*H36/1000 -> 0
B37: Efficient street lights | C37: =+'EE service'!D121 -> -301.4717881 | D37: 1000 lights | E37: =+'EE service'!D119 -> 391.8593366 | F37: =+'EE service'!D109*H37/1000000 -> 0 | G37: =+'EE service'!D114*H37/1000000 -> 0 | I37: 0 | J37: 13282.49426 | K37: =J37/TotalEmis2025 -> 0.01640000615 | N37: =+'EE service'!G135*H37/1000 -> 0
B38: Efficient water pumping | C38: =+'EE service'!D157 -> -310.596086 | D38: 4 Million m3 water | E38: =+'EE service'!D155 -> 763.4398034 | F38: =+'EE service'!B145*H38/1000000 -> 0 | G38: =+'EE service'!D150*H38/1000000 -> 0 | I38: 0 | J38: 13282.49426 | K38: 0.01640000615 | N38: =+'EE service'!G156*H38 -> 0
B39: HVAC | C39: =+'EE service'!D246 -> -399.5917508 | D39: 100,000 m2 floor area | E39: =+'EE service'!D244 -> 4556.707109 | F39: ='EE service'!D234*H39/1000000 -> 0 | G39: ='EE service'!D239*H39/1000000 -> 0 | I39: 0 | J39: 13282.49426 | K39: =J39/TotalEmis2025 -> 0.01640000615 | N39: =+'EE service'!G252*H39/1000 -> 0
B40: Efficient Chiller > 300 TR | C40: =+'EE service'!D275 -> -84.76380665 | D40: 1 TR | E40: =+'EE service'!D273 -> 1.96075 | F40: ='EE service'!D235*H40/1000000 -> 0 | G40: ='EE service'!D240*H40/1000000 -> 0 | I40: =E40*H40/1000 -> 0 | J40: =OFFSET(J40,-1,0)+I40 -> 13282.49426 | K40: =+J40/TotalEmis2025 -> 0.01640000615 | N40: =+'EE service'!G288*H40/1000000 -> 0
B41: Efficient Chiller < 300 TR | C41: =+'EE service'!D307 -> -126.6301241 | D41: 1 TR | E41: =+'EE service'!D305 -> 0.87335 | F41: ='EE service'!D236*H41/1000000 -> 0 | G41: ='EE service'!D241*H41/1000000 -> 0 | I41: 0 | J41: 13282.49426 | K41: 0.01640000615 | N41: =+'EE service'!G319*H41/1000000 -> 0
B42: Efficient room airconditioner | C42: =+'EE service'!D339 -> -288.5413986 | D42: 1 Airconditioner | E42: =+'EE service'!D337 -> 0.7055080649 | F42: ='EE service'!B327*H42/1000000 -> 0 | G42: ='EE service'!D332*H42/1000000 -> 0 | I42: 0 | J42: 13282.49426 | K42: 0.01640000615 | N42: =+'EE service'!G352*H42/1000000 -> 0
B43: Efficient commercial dishwashing machine | C43: =+'EE service'!D372 -> -197.3651484 | D43: 1000 meals/day | E43: =+'EE service'!D370 -> 10.88498157 | F43: ='EE service'!D360*H43/1000000 -> 0 | G43: ='EE service'!D365*H43/1000000 -> 0 | I43: 0 | J43: 13282.49426 | K43: 0.01640000615 | N43: =+'EE service'!G387*H43/1000000 -> 0
B44: Efficient hotel refrigerator | C44: =+'EE service'!D407 -> 947.9528361 | D44: 1 refrigerator | E44: =+'EE service'!D405 -> 0.397191125 | F44: ='EE service'!B395*H44/1000000 -> 0 | G44: ='EE service'!D400*H44/1000000 -> 0 | I44: 0 | J44: 13282.49426 | K44: 0.01640000615 | N44: =+'EE service'!G414*H44/1000000 -> 0
B45: Efficient hotel washing machine | C45: =+'EE service'!D437 -> 38248.88709 | D45: 100 Guest Nights (GN) | E45: =+'EE service'!D435 -> 0.06378414057 | F45: ='EE service'!D425*H45/1000000 -> 0 | G45: ='EE service'!D430*H45/1000000 -> 0 | I45: 0 | J45: 13282.49426 | K45: 0.01640000615 | N45: =+'EE service'!G458*H45/1000000 -> 0
B46: Energy efficiency in service | C46: =+'EE service'!D221 -> 0.9439292574 | D46: 10% red. of energy demand | E46: =+'EE service'!D219 -> 4272688.871 | F46: ='EE service'!B209*H46/1000000 -> 21.36344436 | G46: ='EE service'!D214*H46/1000000 -> 2.016558017 | H46: 0.5 | I46: 2136.344436 | J46: 15418.83869 | K46: =J46/TotalEmis2025 -> 0.01903776839
B47: New office building with central cooling | C47: =+'EE service'!D186 -> -300.2097828 | D47: 1000 m2 | E47: =+'EE service'!D184 -> 34.86940321 | F47: =+'EE service'!D174*H47/1000000 -> 6.598786157 | G47: =+'EE service'!D179*H47/1000000 -> -10.46813597 | H47: 1000 | I47: =(E47*H47)/1000 -> 34.86940321 | J47: =OFFSET(J47,-1,0,1,1)+I47 -> 15453.7081 | K47: 0.01908082193 | N47: =+'EE service'!G199*H47 -> 58.46280992
A48: EE supply side | B48: New high efficiency coal power plant | C48: =+'EE supply side'!D52 -> 21.48582394 | D48: 1 MW | E48: =+'EE supply side'!D50 -> 1117.0368 | F48: =+'EE supply side'!B40*H48/1000000 -> 0 | G48: =+'EE supply side'!D45*H48/1000000 -> 0 | I48: 0 | J48: 15453.7081 | K48: 0.01908082193
B49: New natural gas power plant | C49: ='EE supply side'!D23 -> -5891.96831 | D49: 1 MW | E49: =+'EE supply side'!D21 -> 159 | F49: =+'EE supply side'!B11/1000000*H49 -> 0 | G49: =+'EE supply side'!D16/1000000*H49 -> 0 | I49: 0 | J49: 15453.7081 | K49: =J49/TotalEmis2025 -> 0.01908082193
B50: Switch from fuel oil to diesel | C50: ='EE supply side'!D140 -> 1206.960466 | D50: 1 MW | E50: =+'EE supply side'!D138 -> 124.4919356 | F50: =+'EE supply side'!B128/1000000*H50 -> 0 | G50: =+'EE supply side'!D133/1000000*H50 -> 0 | I50: 0 | J50: 15453.7081 | K50: =J50/TotalEmis2025 -> 0.01908082193
B51: Switch from fuel oil to natural gas | C51: ='EE supply side'!D170 -> -339.5211245 | D51: 1 MW | E51: =+'EE supply side'!D168 -> 1454.357143 | F51: =+'EE supply side'!B158/1000000*H51 -> 0 | G51: =+'EE supply side'!D1634/1000000*H51 -> 0 | I51: 0 | J51: =OFFSET(J51,-1,0,1,1)+I51 -> 15453.7081 | K51: =J51/TotalEmis2025 -> 0.01908082193
B52: Cogeneration in industry | C52: =+'EE supply side'!D111 -> -4717.342804 | D52: 1 MW | E52: =+'EE supply side'!D109 -> 542.4089492 | F52: =+'EE supply side'!D100*main25!H52/1000000 -> 0 | G52: =+'EE supply side'!D104*H52/1000000 -> 0 | I52: 0 | J52: 15453.7081 | K52: =J52/TotalEmis2025 -> 0.01908082193 | N52: =+'EE supply side'!G110*H52/1000 -> 0
B53: Single cycle to combined cycle | C53: =+'EE supply side'!D81 -> 55.04272371 | D53: 100 MW increase | E53: =+'EE supply side'!D79 -> 75738 | F53: ='EE supply side'!D70*H53/1000000 -> 0 | G53: ='EE supply side'!D74*H53/1000000 -> 0 | I53: 0 | J53: 15453.7081 | K53: 0.01908082193 | N53: =+'EE supply side'!G90*H53/1000 -> 0
A54: Energy distribution | B54: Efficient electric grids | C54: =+'Energy distribution'!D24 -> 145.23996 | D54: 1 GWh loss reduction | E54: =+'Energy distribution'!D22 -> 485.5 | F54: =+'Energy distribution'!D12*main25!H54/1000000 -> 14383.59917 | G54: =+'Energy distribution'!D17*H54/1000000 -> 1057.710009 | H54: 15000 | I54: 7282.5 | J54: 22736.2081 | K54: 0.02807258526 | N54: =+H54*'Energy distribution'!N20 -> 0
B55: Connection of isolated grid to central grid | C55: =+'Energy distribution'!D53 -> -35.97046427 | D55: 1 GWh consumption | E55: =+'Energy distribution'!D51 -> 485.5 | F55: =+'Energy distribution'!D41*H55/1000000 -> 0 | G55: =+'Energy distribution'!D46*H55/1000000 -> 0 | I55: =(E55*H55)/1000 -> 0 | J55: =OFFSET(J55,-1,0,1,1)+I55 -> 22736.2081 | K55: =J55/TotalEmis2025 -> 0.02807258526
B56: Power factor increase | C56: =+'Energy distribution'!D83 -> 1.318578051 | D56: 1000 commerce/industry buildings | E56: =+'Energy distribution'!D81 -> 94589.93197 | F56: ='Energy distribution'!B71*H56/1000000 -> 0 | G56: ='Energy distribution'!D76*H56/1000000 -> 0 | I56: 0 | J56: 22736.2081 | K56: =J56/TotalEmis2025 -> 0.02807258526 | N56: =H56*'Energy distribution'!G91 -> 0
B57: District heating network rehabilitation (100,000 flats supplied) | C57: =+'Energy distribution'!D112 -> -153.1304887 | D57: 100,000 flats supplied | E57: =+'Energy distribution'!D110 -> 33649.05341 | F57: ='Energy distribution'!B99*H57/1000000 -> 0 | G57: ='Energy distribution'!D105*H57/1000000 -> 0 | I57: 0 | J57: 22736.2081 | K57: =+J57/TotalEmis2025 -> 0.02807258526
B58: District cooling network (1 million m2 new city area covered) | C58: =+'Energy distribution'!D151 -> -148.4527474 | D58: 1 million m2 new city area covered | E58: =+'Energy distribution'!D149 -> 13725.62313 | F58: ='Energy distribution'!D139*H58/1000000 -> 0 | G58: ='Energy distribution'!D144*H58/1000000 -> 0 | I58: 0 | J58: 22736.2081 | K58: =+J58/TotalEmis2025 -> 0.02807258526
A59: Forestry | B59: Reforestation | C59: =+Forestry!D26 -> 15.44611512 | D59: Reforestation of 1000 ha | E59: =Forestry!D24 -> 3666.666667 | F59: =Forestry!B13/1000000*H59 -> 0 | G59: =Forestry!D19/1000000*H59 -> 0 | I59: 0 | J59: 22736.2081 | K59: =J59/TotalEmis2025 -> 0.02807258526
B60: REDD: Avoided deforestation | C60: =+Forestry!D54 -> -10.38322183 | D60: No deforestation for 1000 ha | E60: =Forestry!D52 -> 3666.666667 | F60: =Forestry!B42*H60/1000000 -> 0 | G60: =Forestry!D47/1000000*H60 -> 0 | I60: =(E60*H60)/1000 -> 0 | J60: 22736.2081 | K60: =J60/TotalEmis2025 -> 0.02807258526
B61: Assisted forest regeneration | C61: =Forestry!D82 -> -3.86152878 | D61: Reforestation of 1000 ha | E61: =Forestry!D80 -> 3666.666667 | F61: =Forestry!B70/1000000*H61 -> 0 | G61: =Forestry!D47/1000000*H61 -> 0 | I61: 0 | J61: 22736.2081 | K61: =J61/TotalEmis2025 -> 0.02807258526
B62: Reforestation with agroforestry | C62: =Forestry!D111 -> -0.6593433015 | D62: Reforestation of 1000 ha | E62: =Forestry!D109 -> 3666.666667 | F62: =Forestry!B98/1000000*H62 -> 0 | G62: =Forestry!D104/1000000*H62 -> 0 | I62: 0 | J62: 22736.2081 | K62: =J62/TotalEmis2025 -> 0.02807258526
B63: Reforestation with Silvopasture | C63: =Forestry!D141 -> -0.6593433015 | D63: Reforestation of 1000 ha | E63: =Forestry!D139 -> 3666.666667 | F63: =Forestry!B128/1000000*H63 -> 0 | G63: =Forestry!D134/1000000*H63 -> 0 | I63: 0 | J63: 22736.2081 | K63: =J63/TotalEmis2025 -> 0.02807258526
A64: Fossil fuel switch | B64: Switch from coal to natural gas in industry | C64: =+'Fossil fuel switch'!D22 -> 31.12653615 | D64: 100 TJ fuel use/year | E64: =+'Fossil fuel switch'!D20 -> 3850 | F64: ='Fossil fuel switch'!B10/1000000*H64 -> 0 | G64: ='Fossil fuel switch'!D15/1000000*H64 -> 0 | I64: 0 | J64: 22736.2081 | K64: 0.02807258526
B65: Switch from fuel oil to natural gas in industry | C65: ='Fossil fuel switch'!D51 -> -120.5737385 | D65: 100 TJ fuel use/year | E65: ='Fossil fuel switch'!D49 -> 2126.666667 | F65: ='Fossil fuel switch'!B39/1000000*H65 -> 0 | G65: ='Fossil fuel switch'!D44/1000000*H65 -> 0 | I65: 0 | J65: 22736.2081 | K65: 0.02807258526
A66: Fugitive | B66: Reduced flaring at oil field | C66: =+Fugitive!D23 -> 9.665100476 | D66: 1 MMSCF/day | E66: =+Fugitive!D21 -> 22613.49991 | F66: =+Fugitive!B11*H66/1000000 -> 0 | G66: =+Fugitive!D16*H66/1000000 -> 0 | I66: 0 | J66: 22736.2081 | K66: 0.02807258526
B67: Reduced flaring at oil refineries | C67: =+Fugitive!D52 -> 217.2561354 | D67: 1 MMSCF/day | E67: =+Fugitive!D50 -> 20797.218 | F67: =+Fugitive!B40*H67/1000000 -> 0 | G67: =+Fugitive!D45*H67/1000000 -> 0 | I67: =(E67*H67)/1000 -> 0 | J67: =OFFSET(J67,-1,0,1,1)+I67 -> 22736.2081 | K67: =J67/TotalEmis2025 -> 0.02807258526
B68: Leak reduction in natural gas pipelines | C68: =Fugitive!D79 -> -5.576949389 | D68: 1 Mm3 CH/year leaking | E68: =+Fugitive!D77 -> 15078 | F68: =Fugitive!B67*H68/1000000 -> 0 | G68: =Fugitive!B72*H68/1000000 -> 0 | I68: =(E68*H68)/1000 -> 0 | J68: =OFFSET(J68,-1,0,1,1)+I68 -> 22736.2081 | K68: =J68/TotalEmis2025 -> 0.02807258526
B69: Charcoal production | C69: =+Fugitive!D106 -> 1.606633349 | D69: 100,000 ton charcoal/yr | E69: =+Fugitive!D104 -> 141004.8048 | F69: =Fugitive!B95*H69/1000000 -> 0 | G69: =Fugitive!D99*H69/1000000 -> 0 | I69: =(E69*H69)/1000 -> 0 | J69: =OFFSET(J69,-1,0,1,1)+I69 -> 22736.2081 | K69: =J69/TotalEmis2025 -> 0.02807258526
A70: Geothermal | B70: Geothermal power | C70: =+Geothermal!D21 -> -238.860736 | D70: 1 MW | E70: =+Geothermal!D19 -> 3065.9325 | F70: =+Geothermal!B9*H70/1000000 -> 0 | G70: =+Geothermal!D14*H70/1000000 -> 0 | I70: 0 | J70: 22736.2081 | K70: 0.02807258526 | O70: =+Geothermal!G17*H70/1000 -> 0
B71: Geothermal heat | C71: =+Geothermal!D49 -> 22.34827711 | D71: 1000 m2 heated area | E71: =+Geothermal!D47 -> 17.05628571 | F71: =Geothermal!B37*H71/1000000 -> 0 | G71: =Geothermal!D42*H71/1000000 -> 0 | I71: =(E71*H71)/1000 -> 0 | J71: =OFFSET(J71,-1,0,1,1)+I71 -> 22736.2081 | K71: =J71/TotalEmis2025 -> 0.02807258526
A72: HFCs, PFCs, SF6 | B72: Reduced PFCs from aluminum production | C72: =+'HFC PFC SF6'!D23 -> 0.0339760664 | D72: 100,000 ton Aluminium/yr | E72: =+'HFC PFC SF6'!D21 -> 111888.385 | F72: =+'HFC PFC SF6'!B11*H72/1000000 -> 0 | G72: =+'HFC PFC SF6'!D16*H72/1000000 -> 0 | I72: 0 | J72: 22736.2081 | K72: 0.02807258526
A73: Hydro | B73: Hydro power connected to main grid | C73: =+Hydro!D23 -> -358.2033739 | D73: 1 MW | E73: =+Hydro!D21 -> 1923.0655 | F73: =+Hydro!B11*H73/1000000 -> 56905 | G73: =+Hydro!D16*H73/1000000 -> -34442.42752 | H73: 50000 | I73: 96153.275 | J73: 118889.4831 | K73: 0.1467938337 | O73: =+Hydro!G18*H73/1000 -> 198050
B74: Mini hydro power connected to main grid | C74: =+Hydro!D52 -> -181.6332823 | D74: 1 MW | E74: =+Hydro!D50 -> 1942 | F74: =+Hydro!B40*H74/1000000 -> 0 | G74: =+Hydro!D45*H74/1000000 -> 0 | I74: 0 | J74: 118889.4831 | K74: 0.1467938337 | O74: =Hydro!G48/Hydro!G45*H74/1000 -> 0
B75: Mini hydro power off grid | C75: =+Hydro!D81 -> -16.96810299 | D75: 1 MW | E75: =+Hydro!D79 -> 3232 | F75: =+Hydro!B69*H75/1000000 -> 0 | G75: =Hydro!D74*H75/1000000 -> 0 | I75: 0 | J75: 118889.4831 | K75: =J75/TotalEmis2025 -> 0.1467938337 | O75: =Hydro!G49/Hydro!G46*H75/1000 -> 0
A76: Landfills | B76: Landfill gas plant with power production | C76: =Landfills!D25 -> -42.46544747 | D76: 200 t/day plant | E76: =Landfills!D23 -> 124415.214 | F76: =+Landfills!B13*H76/1000000 -> 0 | G76: =+Landfills!D18*H76/1000000 -> 0 | I76: 0 | J76: 118889.4831 | K76: 0.1467938337 | O76: =+Landfills!G34*H76/1000 -> 0
B77: Landfill gas flaring | C77: =+Landfills!D116 -> 1.121356277 | D77: 1 t/day plant | E77: =+Landfills!D114 -> 124415.214 | F77: =+Landfills!B104*H77/1000000 -> 0 | G77: =Landfills!D109*H77/1000000 -> 0 | I77: 0 | J77: 118889.4831 | K77: 0.1467938337
B78: Incineration plant | C78: =+Landfills!D89 -> 13.88192578 | D78: 200 t/day plant | E78: =Landfills!D87 -> 139951.214 | F78: =Landfills!B77*H78/1000000 -> 0 | G78: =Landfills!D82*H78/1000000 -> 0 | I78: 0 | J78: 118889.4831 | K78: 0.1467938337
B79: Recycling of plastics | C79: =+Landfills!D195 -> -280.9256499 | D79: 1000 t MSW/year plant | E79: =Landfills!D193 -> 1095.42 | F79: =Landfills!D182*H79/1000000 -> 0 | G79: =Landfills!D188*H79/1000000 -> 0 | I79: 0 | J79: 118889.4831 | K79: 0.1467938337
B80: Refuce Derived Fuel (RDF) from MSW | C80: =+Landfills!D169 -> -119.5920627 | D80: 200 t/day plant | E80: =Landfills!D167 -> 20389.42857 | F80: =Landfills!D157*H80/1000000 -> 0 | G80: =Landfills!D162*H80/1000000 -> 0 | I80: =(E80*H80)/1000 -> 0 | J80: =OFFSET(J80,-1,0,1,1)+I80 -> 118889.4831 | K80: 0.1467938337
B81: Biogas from Municipal Solid Waste | C81: =+Landfills!D144 -> 0.2205563527 | D81: 1000 t/year plant | E81: =+Landfills!D142 -> 12186.72 | F81: =+Landfills!B132*H81/1000 -> 0 | G81: =Landfills!D137*H81/1000000 -> 0 | I81: =(E81*H81)/1000 -> 0 | J81: =OFFSET(J81,-1,0,1,1)+I81 -> 118889.4831 | K81: 0.1467938337
B82: Composting of Municipal Solid Waste | C82: =+Landfills!D61 -> -0.05586878118 | D82: 1000 t/day plant | E82: =+Landfills!D59 -> 4136782.104 | F82: =+Landfills!B48*H82/1000000 -> 0 | G82: =+Landfills!D54*H82/1000000 -> 0 | I82: 0 | J82: 118889.4831 | K82: =J82/TotalEmis2025 -> 0.1467938337
A83: Marine | B83: Tidal | C83: =Marine!D21 -> 363.6166732 | D83: 1 MW of tidal power | E83: =Marine!D19 -> 1275.894 | F83: =Marine!B9*H83/1000000 -> 0 | G83: =Marine!D14*H83/1000000 -> 0 | I83: 0 | J83: 118889.4831 | K83: 0.1467938337 | O83: =+Marine!G17*H83/1000 -> 0
B84: Wave | C84: =Marine!D46 -> 343.1068215 | D84: 1 MW of wave power | E84: =Marine!D44 -> 1488.543 | F84: =Marine!B34*H84/1000000 -> 0 | G84: =Marine!D39*H84/1000000 -> 0 | I84: 0 | J84: 118889.4831 | K84: 0.1467938337 | O84: =+Marine!G42*H84/1000 -> 0
A85: Methane avoidance | B85: Biogas at rural farms using kerosene | C85: =+'Methane avoidance'!D22 -> -151.6625876 | D85: 1000 units | E85: =+'Methane avoidance'!D20 -> 1227.6264 | F85: =+'Methane avoidance'!B10*H85/1000000 -> 0 | G85: =+'Methane avoidance'!D15*H85/1000000 -> 0 | I85: =(E85*H85)/1000 -> 0 | J85: =OFFSET(J85,-1,0,1,1)+I85 -> 118889.4831 | K85: 0.1467938337
B86: Biogas at rural farms using non-renewable fuelwood | C86: =+'Methane avoidance'!D49 -> 2.285701121 | D86: 1000 units | E86: =+'Methane avoidance'!D47 -> 11274.12 | F86: =+'Methane avoidance'!B37*H86/1000000 -> 0 | G86: =+'Methane avoidance'!D42*H86/1000000 -> 0 | I86: =(E86*H86)/1000 -> 0 | J86: =OFFSET(J86,-1,0,1,1)+I86 -> 118889.4831 | K86: 0.1467938337
B87: Biogas at big farms | C87: =+'Methane avoidance'!D76 -> -18.33016219 | D87: 84000 pigs | E87: =+'Methane avoidance'!D74 -> 71321.27861 | F87: ='Methane avoidance'!B64*H87/1000000 -> 0 | G87: ='Methane avoidance'!D69*H87/1000000 -> 0 | I87: 0 | J87: 118889.4831 | K87: =J87/TotalEmis2025 -> 0.1467938337 | O87: =+'Methane avoidance'!G78*H87/1000 -> 0
B88: Biogas from industrial waste water | C88: =+'Methane avoidance'!D104 -> -199.0085772 | D88: 1 plant | E88: =+'Methane avoidance'!D102 -> 25805.268 | F88: =+'Methane avoidance'!B92*H88/1000000 -> 0 | G88: =+'Methane avoidance'!D97*H88/1000000 -> 0 | I88: 0 | J88: 118889.4831 | K88: 0.1467938337
A89: N2O | B89: Nitric acid plant (N2O destruction) | C89: =+N2O!D20 -> 1.455010229 | D89: 100 ton HNO3/day | E89: =+N2O!D18 -> 69021.5 | F89: =+N2O!B9*H89/1000000 -> 0 | G89: =N2O!D13*H89/1000000 -> 0 | I89: 0 | J89: 118889.4831 | K89: 0.1467938337
A90: Solar | B90: Solar water heater, residential | C90: =Solar!D31 -> -341.4492172 | D90: 1000 locations | E90: =Solar!D29*1000 -> 803.7600577 | F90: =+Solar!B19*H90/1000000 -> 0 | G90: =+Solar!D24*H90/1000000 -> 0 | I90: =E90*H90/1000 -> 0 | J90: =OFFSET(J90,-1,0)+I90 -> 118889.4831 | K90: =J90/TotalEmis2025 -> 0.1467938337 | N90: =+Solar!G37*H90/1000000 -> 0
B91: Solar water heater, large | C91: =+Solar!D58 -> -350.3022646 | D91: 1 unit | E91: =+Solar!D56 -> 30.3547223 | F91: =+Solar!B46*H91/1000000 -> 0 | G91: =+Solar!D51*H91/1000000 -> 0 | I91: =(E91*H91)/1000 -> 0 | J91: =OFFSET(J91,-1,0,1,1)+I91 -> 118889.4831 | K91: 0.1467938337 | N91: =+Solar!G66*H91/1000000 -> 0
B92: Solar PVs, large grid | C92: =Solar!D88 -> -294.1264611 | D92: 1 MW | E92: =Solar!D86 -> 886.0375 | F92: =+Solar!B76*H92/1000000 -> 7000 | G92: =+Solar!D81*H92/1000000 -> -1824.24952 | H92: 7000 | I92: =(E92*H92)/1000 -> 6202.2625 | J92: =OFFSET(J92,-1,0,1,1)+I92 -> 125091.7456 | K92: 0.1544518188 | O92: =+Solar!G86*H92/1000 -> 12775
B93: Solar PVs, large grid with 24h storage | C93: =Solar!D112 -> -164.5244766 | D93: 1 MW | E93: =Solar!D110 -> 886.0375 | F93: =+Solar!B100*H93/1000000 -> 0 | G93: =+Solar!D105*H93/1000000 -> 0 | I93: =(E93*H93)/1000 -> 0 | J93: =OFFSET(J93,-1,0,1,1)+I93 -> 125091.7456 | K93: =+J93/TotalEmis2025 -> 0.1544518188 | O93: =+Solar!G110*H93/1000 -> 0
B94: Solar house PVs | C94: =+Solar!D137 -> -215.5798038 | D94: 500 W | E94: =+Solar!D135 -> 0.398716875 | F94: =+Solar!B125*H94/1000000 -> 0 | G94: =+Solar!D130*H94/1000000 -> 0 | I94: 0 | J94: 125091.7456 | K94: =+J94/TotalEmis2025 -> 0.1544518188 | O94: =+Solar!G140*H94/1000 -> 0
B95: Solar cottage PVs | C95: =+Solar!D164 -> -215.5798038 | D95: 50 W | E95: =+Solar!D162 -> 0.0398716875 | F95: =+Solar!B152*H95/1000000 -> 0 | G95: =+Solar!D157*H95/1000000 -> 0 | I95: =(E95*H95)/1000 -> 0 | J95: =OFFSET(J95,-1,0,1,1)+I95 -> 125091.7456 | K95: =J95/TotalEmis2025 -> 0.1544518188 | O95: =+Solar!G167*H95/1000 -> 0
B96: Solar/diesel mini-grid | C96: =+Solar!D189 -> 95.25325009 | D96: 40 kW from solar | E96: =+Solar!D187 -> 58.4 | F96: =+Solar!B177*H96/1000000 -> 0 | G96: =Solar!D182*H96/1000000 -> 0 | I96: =(E96*H96)/1000 -> 0 | J96: =OFFSET(J96,-1,0,1,1)+I96 -> 125091.7456 | K96: =J96/TotalEmis2025 -> 0.1544518188 | O96: =+Solar!G194*H96/1000 -> 0
B97: Solar LED lamps | C97: =+Solar!D301 -> -121.3838439 | D97: 1000 lamps | E97: =+Solar!D299 -> 93.90817333 | F97: =Solar!B289*H97/1000000 -> 0 | G97: =Solar!D294*H97/1000000 -> 0 | I97: =(E97*H97)/1000 -> 0 | J97: =OFFSET(J97,-1,0,1,1)+I97 -> 125091.7456 | K97: =J97/TotalEmis2025 -> 0.1544518188
B98: Solar PVs, small isolated grid, 100% solar | C98: =+Solar!D217 -> 221.4391744 | D98: 2 MW | E98: =+Solar!D215 -> 2628 | F98: =+Solar!B205*H98/1000000 -> 0 | G98: =+Solar!D210*H98/1000000 -> 0 | I98: =(E98*H98)/1000 -> 0 | J98: =OFFSET(J98,-1,0,1,1)+I98 -> 125091.7456 | K98: 0.1544518188 | O98: =+Solar!G220*H98/1000 -> 0
B99: Solar street lights | C99: =+Solar!D328 -> -758.4245007 | D99: 1000 locations (0.05 MW) | E99: =+Solar!D326 -> 448.2483137 | F99: =+Solar!B316*H99/1000000 -> 0 | G99: =+Solar!D316*H99/1000000 -> 0 | I99: 0 | J99: 125091.7456 | K99: =J99/TotalEmis2025 -> 0.1544518188 | O99: =+Solar!G339*H99/1000 -> 0
B100: Parabolic through CSP, no storage | C100: =Solar!D246 -> 180.2858439 | D100: 1 MW | E100: =Solar!D244 -> 728.25 | F100: =Solar!B234*H100/1000000 -> 0 | G100: =Solar!D239*H100/1000000 -> 0 | I100: 0 | J100: 125091.7456 | K100: 0.1544518188 | O100: =+Solar!G242*H100/1000 -> 0
B101: Solar tower CSP, with storage | C101: =+Solar!D273 -> 686.7743302 | D101: 1 MW | E101: =+Solar!D271 -> 728.25 | F101: =+Solar!B261*H101/1000000 -> 0 | G101: =+Solar!D266*H101/1000000 -> 0 | I101: 0 | J101: 125091.7456 | K101: 0.1544518188 | O101: =+Solar!G269*H101/1000 -> 0
A102: Transport | B102: 10% Biodiesel blend in all diesel | C102: =+Transport!D37 -> 369.3801107 | D102: 10% blend in transport | E102: =+Transport!D35 -> 9515956.471 | F102: =+Transport!B25*H102/1000000 -> 0 | G102: =+Transport!D30*H102/1000000 -> 0 | I102: 0 | J102: 125091.7456 | K102: 0.1544518188
B103: 15% Bioethanol blend in all gasoline | C103: =+Transport!D66 -> 430.2691256 | D103: 15% blend in transport | E103: =+Transport!D64 -> 1616104.663 | F103: =+Transport!B53*H103/1000000 -> 0 | G103: =+Transport!D58*M103/1000000 -> 0 | I103: 0 | J103: 125091.7456 | K103: 0.1544518188
B104: Bus Rapid Transit (BRT) | C104: =Transport!D478 -> 89.46221882 | D104: 1 km BRT line | E104: =+Transport!D476 -> 1983.461633 | F104: =Transport!B465*H104/1000000 -> 0 | G104: =Transport!D471*H104/1000000 -> 0 | I104: 0 | J104: 125091.7456 | K104: 0.1544518188 | L104: =I104/3.1 -> 0
B105: More efficient gasoline cars | C105: =+Transport!D97 -> -210.5459231 | D105: 1000 cars | E105: =+Transport!D95 -> 408.9038049 | F105: =+Transport!B84*H105/1000000 -> 0 | G105: =+Transport!D90*H105/1000000 -> 0 | I105: 0 | J105: 125091.7456 | K105: 0.1544518188 | M105: =I105/2.9 -> 0
B106: More efficient diesel cars | C106: =+Transport!D123 -> -158.5267765 | D106: 1000 cars | E106: =+Transport!D121 -> 179.7212853 | F106: =+Transport!B110*H106/1000000 -> 0 | G106: =+Transport!D116*H106/1000000 -> 0 | I106: 0 | J106: 125091.7456 | K106: 0.1544518188 | L106: =I106/3.1 -> 0
B107: Natural Gas cars | C107: =+Transport!D394 -> -111.5932574 | D107: 1000 cars using natural gas | E107: =+Transport!D392 -> 778.084501 | F107: =+Transport!B382*H107/1000000 -> 0 | G107: =+Transport!D387*H107/1000000 -> 0 | I107: =(E107*H107)/1000 -> 0 | J107: =OFFSET(J107,-1,0,1,1)+I107 -> 125091.7456 | K107: =J107/TotalEmis2025 -> 0.1544518188 | L107: =I107/3.1 -> 0
B108: Electric cars | C108: =+Transport!D147 -> 357.7262044 | D108: 1000 cars | E108: =+Transport!D145 -> 1002.541789 | F108: =+Transport!D135*H108/1000000 -> 1650 | G108: =+Transport!D140*H108/1000000 -> 179.3177345 | H108: 500 | I108: 501.2708947 | J108: 125593.0165 | K108: 0.1550707422 | M108: =I108/2.9 -> 172.8520327
B109: Electric 18m buses | C109: =+Transport!D177 -> 1333.258417 | D109: 1000 buses | E109: =+Transport!D175 -> 39529.6484 | F109: =+Transport!D165*H109/1000000 -> 0 | G109: =+Transport!D170*H109/1000000 -> 0 | I109: 0 | J109: 125593.0165 | K109: 0.1550707422 | L109: =I109/3.1 -> 0
B110: Electric 12m buses | C110: =+Transport!D208 -> 1904.122164 | D110: 1000 buses | E110: =+Transport!D206 -> 14473.98379 | F110: =+Transport!D196*H110/1000000 -> 0 | G110: =+Transport!D201*H110/1000000 -> 0 | I110: 0 | J110: 125593.0165 | K110: 0.1550707422 | L110: 0
B111: Electric heavy trucks | C111: =+Transport!D239 -> 4822.847635 | D111: 1000 trucks | E111: =+Transport!D237 -> 11981.40859 | F111: =+Transport!D227*H111/1000000 -> 0 | G111: =+Transport!D232*H111/1000000 -> 0 | I111: 0 | J111: 125593.0165 | K111: 0.1550707422 | L111: 0
B112: Electric light trucks | C112: =+Transport!D271 -> 1654.944384 | D112: 1000 trucks | E112: =+Transport!D269 -> 6272.801779 | F112: =+Transport!D259*H112/1000000 -> 0 | G112: =+Transport!D264*H112/1000000 -> 0 | I112: =(E112*H112)/1000 -> 0 | J112: =OFFSET(J112,-1,0,1,1)+I112 -> 125593.0165 | K112: =J112/TotalEmis2025 -> 0.1550707422 | L112: 0
B113: Electric rail | C113: =+Transport!D303 -> 3676.240401 | D113: 1 Million trainkm/year | E113: =+Transport!D301 -> 3527.072721 | F113: =Transport!D291*H113/1000000 -> 0 | G113: =Transport!D296*H113/1000000 -> 0 | I113: 0 | J113: 125593.0165 | K113: =J113/TotalEmis2025 -> 0.1550707422 | L113: 0
B114: Shifting passengers from car to rail (1Mill. personkm/day) | C114: =+Transport!D334 -> 1961.841466 | D114: 1 Million personkm/day | E114: =+Transport!D332 -> 35457.80333 | F114: =+Transport!D322*H114/1000 -> 0 | G114: =+Transport!D327*H114/1000 -> 0 | I114: =(E114*H114)/1000 -> 0 | J114: =OFFSET(J114,-1,0,1,1)+I114 -> 125593.0165 | K114: =J114/TotalEmis2025 -> 0.1550707422 | L114: 0
B115: Shifting freight transport from road to rail (1000 tonkm/day) | C115: =+Transport!D363 -> -1534.825995 | D115: 1000 tonkm/day | E115: =+Transport!D361 -> 241.3646113 | F115: =+Transport!D351*H115/1000 -> 0 | G115: =+Transport!D356*H115/1000 -> 0 | I115: 0 | J115: 125593.0165 | K115: 0.1550707422 | L115: 0
B116: Restriction on import of used cars | C116: =+Transport!D423 -> -210.545827 | D116: 1000 cars | E116: =+Transport!D421 -> 931.392 | F116: =+Transport!B410*H116/1000000 -> 0 | G116: =+Transport!D91*H116/1000000 -> 0 | I116: 0 | J116: 125593.0165 | K116: 0.1550707422 | L116: 0
B117: New bicycle lanes | C117: =+Transport!D508 -> -144.8607822 | D117: 1 km bicycle lane | E117: =+Transport!D506 -> 686.5827118 | F117: =+Transport!B496*H117/1000000 -> 2.5 | G117: =+Transport!D501*H117/1000000 -> -4.972945435 | H117: 50 | I117: 34.32913559 | J117: 125627.3456 | K117: =J117/TotalEmis2025 -> 0.1551131287 | L117: 11.07391471
B118: Electric three-wheelers | C118: =+Transport!D534 -> 153.3735916 | D118: 1000 three-wheelers | E118: =+Transport!D532 -> 293.2810331 | F118: =Transport!B522*H118/1000000 -> 0 | G118: =Transport!D527*H118/1000000 -> 0 | I118: 0 | J118: 125627.3456 | K118: =+J118/TotalEmis2025 -> 0.1551131287 | M118: =I118/2.9 -> 0
B119: Electric two-wheelers | C119: =+Transport!D563 -> 1009.052669 | D119: 1000 two-wheelers | E119: =+Transport!D561 -> 196.4355 | F119: =Transport!D551*H119/1000000 -> 0 | G119: =Transport!D556*H119/1000000 -> 0 | I119: 0 | J119: 125627.3456 | K119: =+J119/TotalEmis2025 -> 0.1551131287 | M119: 0
B120: Better maintenance and use of motor bikes | C120: =+Transport!D450 -> -189.0731174 | D120: 1000 bikes | E120: =+Transport!D448 -> 116.424 | F120: =+Transport!B438*H120/1000000 -> 0 | G120: =+Transport!D443*H120/1000000 -> 0 | I120: 0 | J120: 125627.3456 | K120: 0.1551131287 | M120: 0
A121: Wind | B121: Wind turbines, on-shore | C121: =Wind!$D$21 -> -351.1100104 | D121: 1 MW | E121: =Wind!D19 -> 1213.75 | F121: =+Wind!B9*H121/1000000 -> 6750 | G121: =+Wind!D14*H121/1000000 -> -4261.597751 | H121: 10000 | I121: 12137.5 | J121: 137764.8456 | K121: 0.1700994009 | L121: =I121/3.1 -> 3915.322581 | O121: =+Wind!G17*H121/1000 -> 25000
B122: Wind turbines, on-shore with 24 storage | C122: =Wind!D45 -> -282.25942 | D122: 1 MW | E122: =Wind!D43 -> 1327.8425 | F122: =+Wind!B33*H122/1000000 -> 0 | G122: =+Wind!D38*H122/1000000 -> 0 | I122: 0 | J122: 137764.8456 | K122: =+J122/TotalEmis2025 -> 0.1700994009 | L122: =I122/3.1 -> 0 | O122: =+Wind!G41*H122/1000 -> 0
B123: Wind turbines, off-shore | C123: =Wind!$D$70 -> -235.9150912 | D123: 1 MW | E123: =Wind!D68 -> 1553.6 | F123: =+Wind!B58*H123/1000000 -> 0 | G123: =+Wind!D63*H123/1000000 -> 0 | I123: 0 | J123: 137764.8456 | K123: 0.1700994009 | L123: =I123/3.1 -> 0 | O123: =+Wind!G66*H123/1000 -> 0
E124: Totals: | F124: =SUM(F5:F123) -> 86896.81114 | G124: =SUM(G5:G123) -> -39292.13383 | I124: BAU emission in 2025: | J124: =+'Balance 2025'!B98 -> 809907.8828 | K124: ktCO2-eq. | L124: =SUM(L5:L123) -> 3926.396495 | M124: =SUM(M5:M123) -> 172.8520327 | N124: 58.46280992 | O124: 235825
A125: GHG reduction options: | B125: =COUNTA(B5:B123) -> 119
A126: Do not remove this number!!
G130: CO2 emissions: ktCO2 in 2025 | J130: BAU | K130: Reduction | L130: New total
G131: Fossil power plants | J131: =+'Balance 2025'!B63+'Balance 2025'!B85+'Balance 2025'!B86 -> 331834.6484 | K131: =SUM(I12:I14)+I15+SUM(I48:I56)+I70+SUM(I73:I75)+I83+I84+SUM(I92:I96)+I98+I100+I101+SUM(I121:I123) -> 121775.5375 | L131: =+J131-K131 -> 210059.1109 | M131: Power emission factor: | O131: =L131/'Balance 2025'!Q34 -> 0.4480619989 | P131: tCO2/MWh
G132: Industry | J132: =SUM('Balance 2025'!B65:B76)+'Balance 2025'!B84+'Balance 2025'!B93+'Balance 2025'!B97 -> 200942.9344 | K132: =I16+I17+SUM(I29:I33)+I64+I65+SUM(I66:I69)+I72+I88+I89 -> 13282.49426 | L132: =+J132-K132 -> 187660.4401
G133: Transport | J133: =SUM('Balance 2025'!B77:B80) -> 130434.0205 | K133: =SUM(I102:I120)+I99 -> 535.6000303 | L133: 129898.4205
G134: Households | J134: =+'Balance 2025'!B81 -> 59052.20454 | K134: =SUM(I18:I28)+I57+I58+I71+I90+I91+I97 -> 0 | L134: 59052.20454
